{"text_format":"1","workbook":"xlsx","n_sheets":11,"sheets":["README","ReleaseNotes","unique_contracts","Calcs","resources","lse_names","misc","btm_pv_forecast","CSPReportSheet","Reliability","ReportSheet"],"not_rendered":{"charts":2,"images":0,"macros":1,"external_links":0,"defined_names":62,"comments":0,"pivot_tables":0},"unopened":[],"bounds":{"document_bytes":16777216,"sheet_cells":100000,"rows_first":2000,"rows_last":500,"rows_between":2000,"halvings":0,"cell_chars":16384,"cell_head_chars":4096},"cells_cut":0,"cells_raw":0,"read":"whole","date_system":"1900"}

{"sheet":"README","index":0,"n_rows":4,"n_cols":4,"rows_kept":4,"cut":false,"hidden":false,"merged":[[3,0,3,1],[3,3,4,6]]}
["ReleaseVersion","rdtv3"]
["ReleaseDate","2022-09-23"]
[]
[null,null,null," In order to run the macro, LSEs must FIRST enable macros. Then, they are instructed to complete the RDT data entry fully, then push the button on the README tab. "]

{"sheet":"ReleaseNotes","index":1,"n_rows":9,"n_cols":4,"rows_kept":9,"cut":false,"hidden":false,"merged":[]}
["ReleaseVersion","ReleaseDate","ID","Note"]
["RDTv3 beta","2022-06-06"]
["RDTv3 Release","2022-06-15"]
["RDTv3 Updated","2022-06-20",null,"Minor updates in columns' names"]
["RDTv3 Updated","2022-07-15",null,"Reliability tabs updates & some minor updates to the resource tab"]
["RDTv3 Updated","2022-07-29",null,"1)\"misc\" tab: updated with all ELCC % values and added MRN/TRN ratios\n2)“Reliability” tab: added formulas to pull MRN/TRN ratios from the “misc” worksheet; updated formatting for cells H23:J50 and L23:P50 (previously greyed out since results weren’t available for those years)\n3)“Calcs” tab: updated formulas in columns S:T so that battery contracts with durations greater than or equal to 9 hours will get “8hr_batteries” ELCC%; updated formulas in columns S:T and added formulas in column Y so that battery contracts with durations less than 4 hours will get (“4hr_batteries” ELCC%) * (contract duration) / 4hr"]
["RDTv3 Updated","2022-08-23",null,"1)\"resources\" tab: updated to include several new resource IDs, remove duplicates, adjust how baseline hybrid/paired resources are characterized, and update some project-specific information\n2) \"btm_pv_forecast\" tab: Added an additional LSE\n3)“ReportSheet” tab: new macro generated error flag, Rows with invalid buying_energy_capacity and csp_resource_category; flags contracts with non-storage CSP resources is marked as CapacityOnly and is marked as CSP.\n4)“ReportSheet” tab: summation now includes contracts that ara both \"Buy\" and \"Owned\""]
["RDTv3 Updated","2022-09-23",null,"1) corrects made to macro\n2) fixes the ELCC type issues for a few generic resources"]
["RDTv3 Updated","2022-10-11",null,"1) corrects made to the \"CSPReportSheet\""]

{"sheet":"unique_contracts","index":2,"n_rows":53,"n_cols":77,"rows_kept":53,"cut":false,"hidden":false,"merged":[]}
["lse_unique_contract_id","resource","alternative_resource_name","contract_status","project_interconnection_position","interconnection_substation","marginal_addition","marginal_addition_to","total_nameplate_capacity","contracted_nameplate_capacity","sep_contracted_mw_nqc","contract_gwh_annual","is_hybrid_paired","can_charge_from_grid","total_generator_mw","contracted_generator_mw","total_storage_mw","contracted_storage_mw","solar_technology_sub_type","storage_technology_sub_type","total_storage_depth_mwh","contracted_storage_depth_mwh","viability_cod_reasonableness","viability_technical_feasibility","viability_financing_sitecontrol","resource_mix","cam_d1911016_vamo_ghgfreepcia","buy_sell_own","counterparty","generator_supplier","developer_name","capacity_area","capacity_sub_area","cpuc_approval_ref","county","COD_year","COD_month","COD_day","contract_start_date_year","contract_start_date_month","contract_start_date_day","contract_end_date_year","contract_end_date_month","contract_end_date_day","contract_execution_date_year","contract_execution_date_month","contract_execution_date_day","tx_upgrades","tx_upgrade_date_year","tx_upgrade_date_month","tx_upgrade_date_day","tx_upgrade_description","d1911016_tranche","d2106035_procurement_cat","mtr_tranche1_NQC","mtr_tranche2_NQC","mtr_tranche3_NQC","mtr_tranche4_NQC_LDES","mtr_tranche4_NQC_firm_ZE","mtr_NQC_ZE_gen_paired_dr","previous_COD_year","previous_COD_month","previous_COD_day","remediation_plan","signed_contract","notice_to_proceed","public_contract","buying_energy_capacity","NQC_reporting_source","procurement_origin","csp_resource_category","csp_annual_2024","csp_annual_2026","csp_annual_2030","csp_annual_2035","macro_supertype","notes"]
["UC_RAONLY_RCEA_2","_NEW_GENERIC_SOLAR_1AXIS","Sandrini Sol 1 Solar Park","Development","Q-1213","NA","NA",null,null,null,null,null,"NotHybrid",null,null,null,null,null,"1Axis",null,null,null,null,null,null,null,"D.19-11-016","Buy","Redwood Coast Energy Authority","EDPR North America","NA","Kern",null,null,"KernCounty",null,null,null,null,null,null,null,null,null,null,null,null,null,null,null,null,null,3,null,null,null,null,null,null,null,null,null,null,"NO","YES","YES",null,"CapacityOnly","In the contract","D1911016","NA",null,null,null,null,"newgeneric"]
["UC_PPA_GoldenFields_1","_NEW_GENERIC_SOLAR_1AXIS",null,"Development","Q-1212","NA","NA",null,null,null,null,null,"NotHybrid",null,null,null,null,null,"1Axis",null,null,null,null,null,null,null,null,"Buy","non-LSE supplier","Golden_Fields_Solar_IV_LLC","NA","Kern",null,null,"KernCounty",null,null,null,null,null,null,null,null,null,null,null,null,null,null,null,null,null,null,null,null,null,null,null,null,null,null,null,null,"NA","YES",null,null,"EnergyCapacity","Calculated",null,"Solar New SCE SDG&E (GWh)",null,null,null,null,"newgeneric"]
[null,"_NEW_GENERIC_BATTERY_STORAGE",null,"Development","Q-1212","NA","NA",null,null,null,null,null,"NotHybrid",null,null,null,null,null,null,"Li",120,null,null,null,null,null,null,"Buy","non-LSE supplier",null,"NA","Kern",null,null,"KernCounty",null,null,null,null,null,null,null,null,null,null,null,null,null,null,null,null,null,null,null,null,null,null,null,null,null,null,null,null,"NA","NO",null,null,"EnergyCapacity","Calculated",null,"Battery Storage (MWh Energy Capacity)",null,null,null,null,"newgeneric"]
["PGE_Development_battery_1","_NEW_GENERIC_BATTERY_STORAGE",null,"Development",null,null,null,null,null,null,null,null,"NotHybrid",null,null,null,null,null,null,"Li",null,null,null,null,null,null,"CAM","Buy","Pacific Gas & Electric",null,null,null,null,null,null,null,null,null,null,null,null,null,null,null,null,null,null,null,null,null,null,null,null,null,null,null,null,null,null,null,null,null,null,null,null,null,null,"CapacityOnly",null,null,"Battery Storage (MWh Energy Capacity)",null,null,null,null,"newgeneric"]
["PGE_Development_battery_2","_NEW_GENERIC_BATTERY_STORAGE",null,"Development",null,null,null,null,null,null,null,null,"NotHybrid",null,null,null,null,null,null,"Li",null,null,null,null,null,null,"CAM","Buy","Pacific Gas & Electric",null,null,null,null,null,null,null,null,null,null,null,null,null,null,null,null,null,null,null,null,null,null,null,null,null,null,null,null,null,null,null,null,null,null,null,null,null,null,"EnergyCapacity",null,null,"Battery Storage (MWh Energy Capacity)",null,null,null,null,"newgeneric"]
["SDGE_Development_Battery_1","_NEW_GENERIC_BATTERY_STORAGE",null,"Development",null,null,null,null,null,null,null,null,"NotHybrid",null,null,null,null,null,null,"Li",null,null,null,null,null,null,"CAM","Buy","San Diego Gas & Electric",null,null,null,null,null,null,null,null,null,null,null,null,null,null,null,null,null,null,null,null,null,null,null,null,null,null,null,null,null,null,null,null,null,null,null,null,null,null,"EnergyCapacity",null,null,"Battery Storage (MWh Energy Capacity)",null,null,null,null,"newgeneric"]
["SDGE_Development_Battery_2","_NEW_GENERIC_BATTERY_STORAGE",null,"Development",null,null,null,null,null,null,null,null,"NotHybrid",null,null,null,null,null,null,"Li",null,null,null,null,null,null,"CAM","Buy","San Diego Gas & Electric",null,null,null,null,null,null,null,null,null,null,null,null,null,null,null,null,null,null,null,null,null,null,null,null,null,null,null,null,null,null,null,null,null,null,null,null,null,null,"EnergyCapacity",null,null,"Battery Storage (MWh Energy Capacity)",null,null,null,null,"newgeneric"]
["SCE_Development_Battery_1","_NEW_GENERIC_BATTERY_STORAGE",null,"Development",null,null,null,null,null,null,null,null,"NotHybrid",null,null,null,null,null,null,"Li",null,null,null,null,null,null,"CAM","Buy","Southern California Edison",null,null,null,null,null,null,null,null,null,null,null,null,null,null,null,null,null,null,null,null,null,null,null,null,null,null,null,null,null,null,null,null,null,null,null,null,null,null,"CapacityOnly",null,null,"Battery Storage (MWh Energy Capacity)",null,null,null,null,"newgeneric"]
["SCE_Development_Battery_2","_NEW_GENERIC_BATTERY_STORAGE",null,"Development",null,null,null,null,null,null,null,null,"NotHybrid",null,null,null,null,null,null,"Li",null,null,null,null,null,null,"CAM","Buy","Southern California Edison",null,null,null,null,null,null,null,null,null,null,null,null,null,null,null,null,null,null,null,null,null,null,null,null,null,null,null,null,null,null,null,null,null,null,null,null,null,null,"CapacityOnly",null,null,"Battery Storage (MWh Energy Capacity)",null,null,null,null,"newgeneric"]
["SCE_Development_CHP_1","_NEW_GENERIC_COGEN",null,"Development",null,null,null,null,null,null,null,null,"NotHybrid",null,null,null,null,null,null,null,null,null,null,null,null,null,"CAM","Buy","Southern California Edison",null,null,null,null,null,null,null,null,null,null,null,null,null,null,null,null,null,null,null,null,null,null,null,null,null,null,null,null,null,null,null,null,null,null,null,null,null,null,"CapacityOnly",null,null,"NA",null,null,null,null,"newgeneric"]
["UC_PPA_Giffen","GIFENS_6_BUGSL1",null,"Online",null,null,"NA",null,null,null,null,null,"NotHybrid",null,null,null,null,null,"1Axis",null,null,null,null,null,null,null,"D.19-11-016","Buy","non-LSE supplier","Giffen_Solar_Park_LLC","NA","GreaterFresno",null,null,"FresnoCounty",2017,8,3,2014,9,3,2042,8,2,2014,9,3,null,null,null,null,null,"1&2&3",null,null,null,null,null,null,null,null,null,null,"NO","YES","YES",null,"EnergyCapacity","In the contract","D1911016","Solar Baseline California (GWh)",37.394280000000002,37.170079999999999,36.726239999999997,36.178280000000001,"physical"]
["UC_GHGPCIA_PGE_1","_EXISTING_GENERIC_INSTATE_LARGE_HYDRO",null,"Online",null,null,"NA",null,null,null,null,null,"NotHybrid",null,null,null,null,null,null,null,null,null,null,null,null,null,"GHG-free PCIA","Buy","Pacific Gas & Electric","NA","NA",null,null,null,null,null,null,null,2020,8,1,2035,12,31,2020,7,10,null,null,null,null,null,null,null,null,null,null,null,null,null,null,null,null,"NA",null,null,null,"EnergyOnly",null,null,"Large Hydro (GWh)",9.0159000000000002,9.0159000000000002,9.0159000000000002,9.0159000000000002,"existinggeneric"]
["UC_GHGPCIA_PGE_2","_EXISTING_GENERIC_NUCLEAR",null,"Online",null,null,"NA",null,null,null,null,null,"NotHybrid",null,null,null,null,null,null,null,null,null,null,null,null,null,"GHG-free PCIA","Buy","Pacific Gas & Electric","NA","NA",null,null,null,null,null,null,null,2020,8,1,2025,8,20,2020,7,10,null,null,null,null,null,null,null,null,null,null,null,null,null,null,null,null,"NA",null,null,null,"EnergyOnly",null,null,"Nuclear (GWh)",33.255000000000003,0,0,0,"existinggeneric"]
["UC_GHGPCIA_SCE_1","_EXISTING_GENERIC_INSTATE_LARGE_HYDRO",null,"Online",null,null,"NA",null,null,null,null,null,"NotHybrid",null,null,null,null,null,null,null,null,null,null,null,null,null,"GHG-free PCIA","Buy","Southern California Edison","NA","NA",null,null,null,null,null,null,null,2020,10,1,2035,12,31,2020,5,29,null,null,null,null,null,null,null,null,null,null,null,null,null,null,null,null,"NA",null,null,null,"EnergyOnly",null,null,"Large Hydro (GWh)",0.77549999999999997,0.77549999999999997,0.77549999999999997,0.77549999999999997,"existinggeneric"]
["UC_GHGPCIA_SCE_2","_EXISTING_GENERIC_NUCLEAR",null,"Online",null,null,"NA",null,null,null,null,null,"NotHybrid",null,null,null,null,null,null,null,null,null,null,null,null,null,"GHG-free PCIA","Buy","Southern California Edison","NA","NA",null,null,null,null,null,null,null,2020,10,1,2035,12,31,2020,5,29,null,null,null,null,null,null,null,null,null,null,null,null,null,null,null,null,"NA",null,null,null,"EnergyOnly",null,null,"Nuclear (GWh)",1.5357000000000001,1.5357000000000001,1.5357000000000001,1.5357000000000001,"existinggeneric"]
["UC_PPA_FivePoints","EXCLSG_1_SOLAR",null,"Online",null,null,"NA",null,null,null,null,null,"NotHybrid",null,null,null,null,null,"1Axis",null,null,null,null,null,null,null,null,"Buy","non-LSE supplier","Five_Points_Solar_Park_LLC","NA","GreaterFresno",null,null,"FresnoCounty",2016,11,2,2014,9,3,2041,10,31,2014,9,3,null,null,null,null,null,null,null,null,null,null,null,null,null,null,null,null,"NA","YES",null,null,"EnergyCapacity","In the contract",null,"Solar Baseline California (GWh)",115.58839999999999,114.89604000000001,113.455,111.83096,"physical"]
["UC_BRAllocation_WAPA_1","_EXISTING_GENERIC_INSTATE_LARGE_HYDRO",null,"Online",null,null,"NA",null,null,null,null,null,"NotHybrid",null,null,null,null,null,null,null,null,null,null,null,null,null,null,"Buy","non-LSE supplier","Western Area Power Administration","NA",null,null,null,null,2025,1,1,2025,1,1,2054,12,31,2021,3,16,null,null,null,null,null,null,null,null,null,null,null,null,null,null,null,null,"NA","YES",null,null,"EnergyOnly",null,null,"Large Hydro (GWh)",0,4.9000000000000004,4.9000000000000004,4.9000000000000004,"existinggeneric"]
["UC_RAONLY_SGPM_1","TERMEX_2_PL1X3",null,"Online",null,null,"NA",null,null,null,null,null,"NotHybrid",null,null,null,null,null,null,null,null,null,null,null,null,null,null,"Buy","non-LSE supplier","Sempra_Gas_Power_Marketing_LLC","NA","SanDiegoImperialValley",null,null,"BajaCaliforniaMexico",null,null,null,2025,1,1,2025,12,31,2021,8,21,null,null,null,null,null,null,null,null,null,null,null,null,null,null,null,null,"NA","YES",null,null,"CapacityOnly","In the contract",null,"NA",null,null,null,null,"physical"]
["UC_RAONLY_SGPM_2","TERMEX_2_PL1X3",null,"Online",null,null,"NA",null,null,null,null,null,"NotHybrid",null,null,null,null,null,null,null,null,null,null,null,null,null,null,"Buy","non-LSE supplier","Sempra_Gas_Power_Marketing_LLC","NA","SanDiegoImperialValley",null,null,"BajaCaliforniaMexico",null,null,null,2020,3,17,2024,12,31,2020,3,17,null,null,null,null,null,null,null,null,null,null,null,null,null,null,null,null,"NA","YES",null,null,"CapacityOnly","In the contract",null,"NA",null,null,null,null,"physical"]
["UC_RAONLY_CC_1","_EXISTING_GENERIC_COMBINED_CYCLE",null,"Online",null,null,"NA",null,null,null,null,null,"NotHybrid",null,null,null,null,null,null,null,null,null,null,null,null,null,null,"Buy","non-LSE supplier",null,"NA",null,null,null,null,null,null,null,2024,1,1,2024,12,31,null,null,null,null,null,null,null,null,null,null,null,null,null,null,null,null,null,null,null,"NA","NO",null,null,"CapacityOnly","Calculated",null,"NA",null,null,null,null,"existinggeneric"]
["UC_RAONLY_CC_2","_EXISTING_GENERIC_COMBINED_CYCLE",null,"Online",null,null,"NA",null,null,null,null,null,"NotHybrid",null,null,null,null,null,null,null,null,null,null,null,null,null,null,"Buy","non-LSE supplier",null,"NA",null,null,null,null,null,null,null,2033,1,1,2035,12,31,null,null,null,null,null,null,null,null,null,null,null,null,null,null,null,null,null,null,null,"NA","NO",null,null,"CapacityOnly","Calculated",null,"NA",null,null,null,null,"existinggeneric"]
["PGE_Online_ccgt_1","_EXISTING_GENERIC_COMBINED_CYCLE",null,"Online",null,null,null,null,null,null,null,null,"NotHybrid",null,null,null,null,null,null,null,null,null,null,null,null,null,"CAM","Buy","Pacific Gas & Electric",null,null,null,null,null,null,2018,1,1,2024,1,1,2026,12,31,2017,1,1,null,null,null,null,null,null,null,null,null,null,null,null,null,null,null,null,null,null,null,null,"EnergyCapacity",null,null,"NA",null,null,null,null,"existinggeneric"]
["PGE_Online_ccgt_2","_EXISTING_GENERIC_COMBINED_CYCLE",null,"Online",null,null,null,null,null,null,null,null,"NotHybrid",null,null,null,null,null,null,null,null,null,null,null,null,null,"CAM","Buy","Pacific Gas & Electric",null,null,null,null,null,null,2018,1,1,2024,1,1,2025,12,31,2017,1,1,null,null,null,null,null,null,null,null,null,null,null,null,null,null,null,null,null,null,null,null,"EnergyCapacity",null,null,"NA",null,null,null,null,"existinggeneric"]
["PGE_Online_ccgt_3","_EXISTING_GENERIC_COMBINED_CYCLE",null,"Online",null,null,null,null,null,null,null,null,"NotHybrid",null,null,null,null,null,null,null,null,null,null,null,null,null,"CAM","Buy","Pacific Gas & Electric",null,null,null,null,null,null,2018,1,1,2024,1,1,2024,12,31,2017,1,1,null,null,null,null,null,null,null,null,null,null,null,null,null,null,null,null,null,null,null,null,"EnergyCapacity",null,null,"NA",null,null,null,null,"existinggeneric"]
["PGE_Online_chp","_EXISTING_GENERIC_COGEN",null,"Online",null,null,null,null,null,null,null,null,"NotHybrid",null,null,null,null,null,null,null,null,null,null,null,null,null,"CAM","Buy","Pacific Gas & Electric",null,null,null,null,null,null,2018,1,1,2024,1,1,2024,12,31,2017,1,1,null,null,null,null,null,null,null,null,null,null,null,null,null,null,null,null,null,null,null,null,"EnergyCapacity",null,null,"NA",null,null,null,null,"existinggeneric"]
["PGE_Online_chp_1","_EXISTING_GENERIC_COGEN",null,"Online",null,null,null,null,null,null,null,null,"NotHybrid",null,null,null,null,null,null,null,null,null,null,null,null,null,"CAM","Buy","Pacific Gas & Electric",null,null,null,null,null,null,2018,1,1,2024,1,1,2025,12,31,2017,1,1,null,null,null,null,null,null,null,null,null,null,null,null,null,null,null,null,null,null,null,null,"EnergyCapacity",null,null,"NA",null,null,null,null,"existinggeneric"]
["PGE_Online_chp_2","_EXISTING_GENERIC_COGEN",null,"Online",null,null,null,null,null,null,null,null,"NotHybrid",null,null,null,null,null,null,null,null,null,null,null,null,null,"CAM","Buy","Pacific Gas & Electric",null,null,null,null,null,null,2018,1,1,2024,1,1,2026,12,31,2017,1,1,null,null,null,null,null,null,null,null,null,null,null,null,null,null,null,null,null,null,null,null,"EnergyCapacity",null,null,"NA",null,null,null,null,"existinggeneric"]
["PGE_Online_battery","_EXISTING_GENERIC_BATTERY_STORAGE",null,"Online",null,null,null,null,null,null,null,null,"NotHybrid",null,null,null,null,null,null,"Li",null,null,null,null,null,null,"CAM","Buy","Pacific Gas & Electric",null,null,null,null,null,null,2018,1,1,2024,1,1,2035,12,31,2017,1,1,null,null,null,null,null,null,null,null,null,null,null,null,null,null,null,null,null,null,null,null,"CapacityOnly",null,null,"Battery Storage (MWh Energy Capacity)",1.2992128365217253,1.2992128365217253,1.2992128365217253,1.2992128365217253,"existinggeneric"]
["SDGE_Online_Battery","_EXISTING_GENERIC_BATTERY_STORAGE",null,"Online",null,null,null,null,null,null,null,null,"NotHybrid",null,null,null,null,null,null,"Li",null,null,null,null,null,null,"CAM","Buy","San Diego Gas & Electric",null,null,null,null,null,null,2018,1,1,2024,1,1,2035,12,31,2017,1,1,null,null,null,null,null,null,null,null,null,null,null,null,null,null,null,null,null,null,null,null,"EnergyCapacity",null,null,"Battery Storage (MWh Energy Capacity)",8.226811382717393E-2,8.226811382717393E-2,8.226811382717393E-2,8.226811382717393E-2,"existinggeneric"]
["SDGE_Online_Peaker_1","_EXISTING_GENERIC_PEAKER",null,"Online",null,null,null,null,null,null,null,null,"NotHybrid",null,null,null,null,null,null,null,null,null,null,null,null,null,"CAM","Buy","San Diego Gas & Electric",null,null,null,null,null,null,2018,1,1,2024,1,1,2035,12,31,2017,1,1,null,null,null,null,null,null,null,null,null,null,null,null,null,null,null,null,null,null,null,null,"EnergyCapacity",null,null,"NA",null,null,null,null,"existinggeneric"]
["SDGE_Online_Peaker_2","_EXISTING_GENERIC_PEAKER",null,"Online",null,null,null,null,null,null,null,null,"NotHybrid",null,null,null,null,null,null,null,null,null,null,null,null,null,"CAM","Buy","San Diego Gas & Electric",null,null,null,null,null,null,2018,1,1,2024,1,1,2026,5,31,2021,2,12,null,null,null,null,null,null,null,null,null,null,null,null,null,null,null,null,null,null,null,null,"EnergyCapacity",null,null,"NA",null,null,null,null,"existinggeneric"]
["SDGE_Online_CHP_1","_EXISTING_GENERIC_COGEN",null,"Online",null,null,null,null,null,null,null,null,"NotHybrid",null,null,null,null,null,null,null,null,null,null,null,null,null,"CAM","Buy","San Diego Gas & Electric",null,null,null,null,null,null,2018,1,1,2024,1,1,2024,5,31,2017,1,1,null,null,null,null,null,null,null,null,null,null,null,null,null,null,null,null,null,null,null,null,"EnergyCapacity",null,null,"NA",null,null,null,null,"existinggeneric"]
["SDGE_Online_CHP_2","_EXISTING_GENERIC_COGEN",null,"Online",null,null,null,null,null,null,null,null,"NotHybrid",null,null,null,null,null,null,null,null,null,null,null,null,null,"CAM","Buy","San Diego Gas & Electric",null,null,null,null,null,null,2018,1,1,2024,1,1,2026,12,31,2017,1,1,null,null,null,null,null,null,null,null,null,null,null,null,null,null,null,null,null,null,null,null,"EnergyCapacity",null,null,"NA",null,null,null,null,"existinggeneric"]
["SDGE_Online_DR","_EXISTING_GENERIC_DR",null,"Online",null,null,null,null,null,null,null,null,"NotHybrid",null,null,null,null,null,null,null,null,null,null,null,null,null,"CAM","Buy","San Diego Gas & Electric",null,null,null,null,null,null,2018,1,1,2024,1,1,2024,12,31,2017,1,1,null,null,null,null,null,null,null,null,null,null,null,null,null,null,null,null,null,null,null,null,"EnergyCapacity",null,null,"NA",null,null,null,null,"existinggeneric"]
["SCE_Online_Peaker_1","_EXISTING_GENERIC_PEAKER",null,"Online",null,null,null,null,null,null,null,null,"NotHybrid",null,null,null,null,null,null,null,null,null,null,null,null,null,"CAM","Buy","Southern California Edison",null,null,null,null,null,null,2018,1,1,2024,1,1,2035,12,31,2017,1,1,null,null,null,null,null,null,null,null,null,null,null,null,null,null,null,null,null,null,null,null,"CapacityOnly",null,null,"NA",null,null,null,null,"existinggeneric"]
["SCE_Online_Peaker_2","_EXISTING_GENERIC_PEAKER",null,"Online",null,null,null,null,null,null,null,null,"NotHybrid",null,null,null,null,null,null,null,null,null,null,null,null,null,"CAM","Buy","Southern California Edison",null,null,null,null,null,null,2018,1,1,2024,1,1,2026,12,31,2017,1,1,null,null,null,null,null,null,null,null,null,null,null,null,null,null,null,null,null,null,null,null,"CapacityOnly",null,null,"NA",null,null,null,null,"existinggeneric"]
["SCE_Online_Peaker_3","_EXISTING_GENERIC_PEAKER",null,"Online",null,null,null,null,null,null,null,null,"ExistingThermalNewStorage","Yes",null,null,null,null,null,"Li",null,null,null,null,null,null,"CAM","Buy","Southern California Edison",null,null,null,null,null,null,2018,1,1,2024,1,1,2035,12,31,2017,1,1,null,null,null,null,null,null,null,null,null,null,null,null,null,null,null,null,null,null,null,null,"CapacityOnly",null,null,"NA",null,null,null,null,"existinggeneric"]
["SCE_Online_Peaker_4","_EXISTING_GENERIC_PEAKER",null,"Online",null,null,null,null,null,null,null,null,"ExistingThermalNewStorage","No",null,null,null,null,null,"Li",null,null,null,null,null,null,"CAM","Buy","Southern California Edison",null,null,null,null,null,null,2018,1,1,2024,1,1,2035,12,31,2017,1,1,null,null,null,null,null,null,null,null,null,null,null,null,null,null,null,null,null,null,null,null,"CapacityOnly",null,null,"NA",null,null,null,null,"existinggeneric"]
["SCE_Online_Battery_1","_EXISTING_GENERIC_BATTERY_STORAGE",null,"Online",null,null,null,null,null,null,null,null,"NotHybrid",null,null,null,null,null,null,"Li",null,null,null,null,null,null,"CAM","Buy","Southern California Edison",null,null,null,null,null,null,2018,1,1,2024,1,1,2026,12,30,2017,1,1,null,null,null,null,null,null,null,null,null,null,null,null,null,null,null,null,null,null,null,null,"CapacityOnly",null,null,"Battery Storage (MWh Energy Capacity)",3.2030289579361743E-2,3.2030289579361743E-2,3.2030289579361743E-2,3.2030289579361743E-2,"existinggeneric"]
["SCE_Online_Battery_2","_EXISTING_GENERIC_BATTERY_STORAGE",null,"Online",null,null,null,null,null,null,null,null,"NotHybrid",null,null,null,null,null,null,"Li",null,null,null,null,null,null,"CAM","Buy","Southern California Edison",null,null,null,null,null,null,2018,1,1,2024,1,1,2035,12,31,2017,1,1,null,null,null,null,null,null,null,null,null,null,null,null,null,null,null,null,null,null,null,null,"CapacityOnly",null,null,"Battery Storage (MWh Energy Capacity)",0.35087726311937184,0.35087726311937184,0.35087726311937184,0.35087726311937184,"existinggeneric"]
["SCE_Online_CHP_1","_EXISTING_GENERIC_COGEN",null,"Online",null,null,null,null,null,null,null,null,"NotHybrid",null,null,null,null,null,null,null,null,null,null,null,null,null,"CAM","Buy","Southern California Edison",null,null,null,null,null,null,2018,1,1,2024,1,1,2026,8,31,2017,1,1,null,null,null,null,null,null,null,null,null,null,null,null,null,null,null,null,null,null,null,null,"CapacityOnly",null,null,"NA",null,null,null,null,"existinggeneric"]
["SCE_Online_CHP_2","_EXISTING_GENERIC_COGEN",null,"Online",null,null,null,null,null,null,null,null,"NotHybrid",null,null,null,null,null,null,null,null,null,null,null,null,null,"CAM","Buy","Southern California Edison",null,null,null,null,null,null,2018,1,1,2024,1,1,2026,12,31,2017,1,1,null,null,null,null,null,null,null,null,null,null,null,null,null,null,null,null,null,null,null,null,"CapacityOnly",null,null,"NA",null,null,null,null,"existinggeneric"]
["SCE_Online_CHP_3","_EXISTING_GENERIC_COGEN",null,"Online",null,null,null,null,null,null,null,null,"NotHybrid",null,null,null,null,null,null,null,null,null,null,null,null,null,"CAM","Buy","Southern California Edison",null,null,null,null,null,null,2018,1,1,2024,1,1,2027,7,31,2017,1,1,null,null,null,null,null,null,null,null,null,null,null,null,null,null,null,null,null,null,null,null,"CapacityOnly",null,null,"NA",null,null,null,null,"existinggeneric"]
["SCE_Online_CHP_4","_EXISTING_GENERIC_COGEN",null,"Online",null,null,null,null,null,null,null,null,"NotHybrid",null,null,null,null,null,null,null,null,null,null,null,null,null,"CAM","Buy","Southern California Edison",null,null,null,null,null,null,2018,1,1,2024,1,1,2025,3,11,2017,1,1,null,null,null,null,null,null,null,null,null,null,null,null,null,null,null,null,null,null,null,null,"CapacityOnly",null,null,"NA",null,null,null,null,"existinggeneric"]
["SCE_Online_CCGT_1","_EXISTING_GENERIC_COMBINED_CYCLE",null,"Online",null,null,null,null,null,null,null,null,"NotHybrid",null,null,null,null,null,null,null,null,null,null,null,null,null,"CAM","Buy","Southern California Edison",null,null,null,null,null,null,2018,1,1,2024,1,1,2035,12,31,2017,1,1,null,null,null,null,null,null,null,null,null,null,null,null,null,null,null,null,null,null,null,null,"CapacityOnly",null,null,"NA",null,null,null,null,"existinggeneric"]
["SCE_Online_CCGT_2","_EXISTING_GENERIC_COMBINED_CYCLE",null,"Online",null,null,null,null,null,null,null,null,"NotHybrid",null,null,null,null,null,null,null,null,null,null,null,null,null,"CAM","Buy","Southern California Edison",null,null,null,null,null,null,2018,1,1,2024,1,1,2026,7,31,2017,1,1,null,null,null,null,null,null,null,null,null,null,null,null,null,null,null,null,null,null,null,null,"CapacityOnly",null,null,"NA",null,null,null,null,"existinggeneric"]
[null,"_NEW_GENERIC_WIND",null,"PlannedNew",null,"ARBWIND_6_N001","NA",null,null,null,null,null,"NotHybrid",null,null,null,null,null,null,null,null,null,null,null,null,null,"D.19-11-016","Buy","non-LSE supplier",null,"NA","Kern",null,null,"KernCounty",null,null,null,2024,6,3,2039,6,2,null,null,null,null,null,null,null,null,null,null,null,null,null,null,null,null,null,null,null,"NA","NO",null,null,"EnergyCapacity","Calculated",null,"Wind New SCE SDG&E (GWh)",32.936,65.542000000000002,64.241,62.651000000000003,"newgeneric"]
[null,"_CREZ_GENERIC_NEW_MEXICO_WIND",null,"PlannedNew",null,null,"NA",null,null,null,null,null,"NotHybrid",null,null,null,null,null,null,null,null,null,null,null,null,null,"D.19-11-016","Buy","non-LSE supplier",null,"NA","TEPC",null,null,"NewMexico",null,null,null,2026,6,1,2041,5,31,null,null,null,null,null,null,null,null,null,null,null,null,null,null,null,null,null,null,null,"NA","NO",null,null,"EnergyCapacity","Calculated",null,"Wind New Mexico (GWh)",0,151.096,299.02800000000002,291.62599999999998,"newresolve"]
[null,"_NEW_GENERIC_BATTERY_STORAGE",null,"PlannedNew","WDT-1551","EISENHOW_1_N001","NA",null,null,null,null,null,"NotHybrid",null,null,null,null,null,null,"Li",40,null,null,null,null,null,null,"Buy","non-LSE supplier",null,"NA","SanDiegoImperialValley",null,null,"RiversideCounty",null,null,null,null,null,null,null,null,null,null,null,null,null,null,null,null,null,null,null,null,null,null,null,null,null,null,null,null,null,null,null,null,"CapacityOnly","In the contract","D2106035","Battery Storage (MWh Energy Capacity)",null,null,null,null,"newgeneric"]
[null,"_NEW_BTM_DR",null,"PlannedNew",null,null,"NA",null,null,null,null,null,"NotHybrid",null,null,null,null,null,null,null,null,null,null,null,null,null,null,"Buy","non-LSE supplier",null,"NA",null,null,null,null,null,null,null,null,null,null,null,null,null,null,null,null,null,null,null,null,null,null,null,null,null,null,null,null,null,null,null,null,null,null,null,null,"CapacityOnly","In the contract","D2106035","NA",null,null,null,null,"newloadmod"]
["UC_RAONLY_LDES_1","_NEW_GENERIC_PUMPED_STORAGE_HYDRO",null,"PlannedNew",null,null,"NA",null,null,null,null,null,"NotHybrid",null,null,null,null,null,null,null,null,null,null,null,null,null,null,"Buy","non-LSE supplier","NA","NA",null,null,null,null,null,null,null,null,null,null,null,null,null,null,null,null,null,null,null,null,null,null,null,null,null,null,null,null,null,null,null,null,null,null,null,null,"CapacityOnly",null,"D2106035","NA",null,null,null,null,"newgeneric"]
["UC_RAONLY_ZEFIRM_1","_NEW_GENERIC_GEOTHERMAL",null,"PlannedNew",null,null,"NA",null,null,null,null,null,"NotHybrid",null,null,null,null,null,null,null,null,null,null,null,null,null,null,"Buy","non-LSE supplier","NA","NA",null,null,null,null,null,null,null,null,null,null,null,null,null,null,null,null,null,null,null,null,null,null,null,null,null,null,null,null,null,null,null,null,null,null,null,null,"CapacityOnly",null,"D2106035","NA",null,null,null,null,"newgeneric"]

{"sheet":"Calcs","index":3,"n_rows":1,"n_cols":37,"rows_kept":1,"cut":false,"hidden":false,"merged":[[0,0,20,0]]}
["Instruction: This worksheet consists of formulas only. LSEs should extend formulas in columns B:AK to cover all contracts entered in the \"unique_contracts\" worksheet (i.e. the last row that has formulas in this worksheet should have a row number that is greater than or equal to that of the last row in the \"unique_contracts\" worksheet). To extend formulas in this worksheet, please select one row (e.g. B500:AK500) and drag down the formulas vertically. PLEASE DO NOT DRAG FORMULAS HORIZONTALLY. Please do not hard-code values in this worksheet. All contract information should be entered in the \"unique_contracts\" tab.","resource","contract_status","contracted_nameplate_capacity","is_hybrid_paired","can_charge_from_grid","contracted_generator_mw","contracted_storage_mw","contracted_storage_depth_mwh","buy_sell_own","contract_start_date_year","contract_start_date_month","contract_start_date_day","contract_end_date_year","contract_end_date_month","contract_end_date_day","buying_energy_capacity","multiplier","resource elcc type","hybrid/paired storage elcc type","elcc type (for summary tables and charts)","start year","end year","hybrid storage derate (100% means no derates)","short duration derate",2024,2025,2026,2027,2028,2029,2030,2031,2032,2033,2034,2035]

{"sheet":"resources","index":4,"n_rows":1778,"n_cols":7,"rows_kept":1778,"cut":false,"hidden":false,"merged":[]}
["resource","generator_name","MAXGEN","resolve_final_group","BAA_ID","supertype","elcc_type"]
["7STDRD_1_SOLAR1","SHAFTER_SOLAR",20,"caiso_solar","CISO","physical","utility_pv"]
["ACACIA_6_SOLAR","WEST_ANTELOPE_SOLAR",20,"caiso_solar","CISO","physical","utility_pv"]
["ADELANTO_SOLAR","NAN",10,"ldwp_solar","LADWP","physical","utility_pv"]
["ADERA_1_SOLAR1","ADERA_SOLAR",20,"caiso_solar","CISO","physical","utility_pv"]
["ADLIN_1_UNITS","GEYSERS_AIDLIN_AGGREGATE",22,"caiso_geothermal","CISO","physical","geothermal"]
["ADMEST_6_SOLAR","ADAMS_EAST",19,"caiso_solar","CISO","physical","utility_pv"]
["ADOBEE_1_SOLAR","ADOBE_SOLAR",20,"caiso_solar","CISO","physical","utility_pv"]
["AGCANA_X_HOOVER","HOOVER_POWER_PLANT",40,"caiso_hydro","WALC","specifiedimport","hydro"]
["AGRICO_6_PL3N5","FRESNO_PEAKER",22.69,"caiso_peaker1","CISO","physical","gas_ct"]
["AGRICO_7_UNIT","FRESNO_COGEN",49.9,"caiso_ccgt2","CISO","physical","gas_cc"]
["AGUCAL_5_SOLAR1","AGUA_CALIENTE_SOLAR",290,"caiso_solar","CISO","physical","utility_pv"]
["AKINGS_6_AMESR1","AMERICAN_KINGS_SOLAR",123,"caiso_solar","CISO","physical","utility_pv"]
["ALAMIT_2_PL1X3","ALAMITOS_ENERGY_CENTER_UNIT_7",674.7,"caiso_ccgt1","CISO","physical","gas_cc"]
["ALAMIT_7_ES1","ALAMITOS_ENERGY_STORAGE",100.45,"caiso_li_battery","CISO","physical","hr_batteries"]
["ALAMIT_7_UNIT_3","ALAMITOS_GEN_STA._UNIT_3",326.76,"caiso_st","CISO","physical","steam"]
["ALAMIT_7_UNIT_4","ALAMITOS_GEN_STA._UNIT_4",334.43,"caiso_st","CISO","physical","steam"]
["ALAMIT_7_UNIT_5","ALAMITOS_GEN_STA._UNIT_5",480,"caiso_st","CISO","physical","steam"]
["ALAMO_6_UNIT","ALAMO_POWER_PLANT",17,"caiso_hydro","CISO","physical","hydro"]
["ALHMBR_1_ALHSLR","SG_ALHAMBRA",50,"iid_solar","IID","specifiedimport","utility_pv"]
["ALLGNY_6_HYDRO1","SALMON_CREEK_HYDROELECTRIC_PROJECT",0.52,"caiso_small_hydro","CISO","physical","small_hydro"]
["ALMASL_2_AL6BT6","MAVERICK6STORAGE",50,"caiso_li_battery","CISO","physical","hr_batteries"]
["ALMASL_2_GS1SR1","ALMASOL_GENERATING_STATION_1",125,"caiso_solar","CISO","physical","utility_pv"]
["ALMASL_2_GS4SR4","ALMASOL_GENERATING_STATION_4",100,"caiso_solar","CISO","physical","utility_pv"]
["ALMASL_2_GS6SR6","ALMASOL_GENERATING_STATION_6",100,"caiso_solar","CISO","physical","utility_pv"]
["ALMASL_2_GS7SR7","ALMASOL_GENERATING_STATION_7",132,"caiso_solar","CISO","physical","utility_pv"]
["ALMEGT_1_UNIT_1","ALAMEDA_GT_UNIT_1",25,"caiso_peaker2","CISO","physical","gas_ct"]
["ALMEGT_1_UNIT_2","ALAMEDA_GT_UNIT_2",25,"caiso_peaker2","CISO","physical","gas_ct"]
["ALPSLR_1_NTHSLR","ALPAUGH_NORTH,_LLC",20,"caiso_solar","CISO","physical","utility_pv"]
["ALPSLR_1_SPSSLR","ALPAUGH_50_LLC",50,"caiso_solar","CISO","physical","utility_pv"]
["ALT6DN_2_WIND7","PINYON_PINES_1",164.31,"caiso_wind","CISO","physical","in_state_wind_south"]
["ALT6DS_2_WIND9","PINYON_PINES_2",132,"caiso_wind","CISO","physical","in_state_wind_south"]
["ALTA3A_2_CPCE4","ALTA_WIND_4",102,"caiso_wind","CISO","physical","in_state_wind_south"]
["ALTA3A_2_CPCE5","ALTA_WIND_5",168,"caiso_wind","CISO","physical","in_state_wind_south"]
["ALTA3A_2_CPCE8","ALTA_WIND_8",150,"caiso_wind","CISO","physical","in_state_wind_south"]
["ALTA4A_2_CPCW1","ALTA_WIND_1",150,"caiso_wind","CISO","physical","in_state_wind_south"]
["ALTA4B_2_CPCW2","ALTA_WIND_2",150,"caiso_wind","CISO","physical","in_state_wind_south"]
["ALTA4B_2_CPCW3","ALTA_WIND_3",150,"caiso_wind","CISO","physical","in_state_wind_south"]
["ALTA4B_2_CPCW6","MUSTANG_HILLS",150,"caiso_wind","CISO","physical","in_state_wind_south"]
["ALTA6B_2_WIND11","ALTA_WIND_11",88.15,"caiso_wind","CISO","physical","in_state_wind_south"]
["ALTA6E_2_WIND10","ALTA_WIND_10",134.84,"caiso_wind","CISO","physical","in_state_wind_south"]
["ALTAGASSTORAGE","NAN",40,"caiso_li_battery","CISO","physical","hr_batteries"]
["ALTWD_1_QF","NAN",28.84,"caiso_wind","CISO","physical","in_state_wind_south"]
["ALTWD_2_AT3WD3","ALTECH_3",9.8000000000000007,"caiso_wind","CISO","physical","in_state_wind_south"]
["ALTWD_2_COAWD1","COACHELLA_1",50.4,"caiso_wind","CISO","physical","in_state_wind_south"]
["ANAHM_2_CANYN1","CANYON_POWER_PLANT_UNIT_1",49.4,"caiso_peaker1","CISO","physical","gas_ct"]
["ANAHM_2_CANYN2","CANYON_POWER_PLANT_UNIT_2",49.4,"caiso_peaker1","CISO","physical","gas_ct"]
["ANAHM_2_CANYN3","CANYON_POWER_PLANT_UNIT_3",49.4,"caiso_peaker1","CISO","physical","gas_ct"]
["ANAHM_2_CANYN4","CANYON_POWER_PLANT_UNIT_4",49.4,"caiso_peaker1","CISO","physical","gas_ct"]
["ANAHM_7_CT","NAN",40.64,"caiso_peaker1","CISO","physical","gas_ct"]
["ANTLPE_2_QF","ANTELOPE QFS",4,"caiso_wind","CISO","physical","in_state_wind_south"]
["ANZA_6_SOLAR1","SEVILLE SOLAR ONE",20,"iid_solar","IID","specifiedimport","utility_pv"]
["APEX_CC","NAN",538.70000000000005,"ldwp_ccgt","LADWP","physical","gas_cc"]
["APLHIL_1_SFKHY1","SOUTH FORK POWERHOUSE",2.68,"caiso_hydro","CISO","physical","hydro"]
["APLHIL_1_SLABCK","SLAB CREEK HYDRO",1,"caiso_small_hydro","CISO","physical","small_hydro"]
["AQUAWS_2_AQWSR1","Aquamarine Westside",250,"caiso_solar","CISO","physical","utility_pv"]
["ARATINASOLAR","NAN",150,"caiso_solar","CISO","physical","utility_pv"]
["ARATINASTORAGE","NAN",50,"caiso_li_battery","CISO","physical","hr_batteries"]
["ARBWD_6_QF","WIND RESOURCE II",19.95,"caiso_wind","CISO","physical","in_state_wind_south"]
["ARCOGN_2_UNITS","WATSON COGENERATION",416.6,"caiso_chp","CISO","physical","cogen"]
["ARKANS_1_ARKSLR","SG ARKANSAS",50,"iid_solar","IID","specifiedimport","utility_pv"]
["ARLINT_5_SCEDYN","ARLINGTON VALLEY CC",565,"SW_CCGT","AZPS","specifiedimport","gas_cc"]
["ARLNTN_2_AR1SR1","Arlington",100,"caiso_solar","CISO","physical","utility_pv"]
["ARLNTN_2_ASUSR1","Arlington Solar 1",131,"caiso_solar","CISO","physical","utility_pv"]
["ARLVAL_5_SOLAR","ARLINGTON VALLEY SOLAR ENERGY II",127,"caiso_solar","SRP","specifiedimport","utility_pv"]
["ARVINN_6_ORION1","ORION 1 SOLAR",12,"caiso_solar","CISO","physical","utility_pv"]
["ARVINN_6_ORION2","ORION 2 SOLAR",8,"caiso_solar","CISO","physical","utility_pv"]
["ASTORA_2_SOLAR1","ASTORIA 1",100,"caiso_solar","CISO","physical","utility_pv"]
["ASTORA_2_SOLAR2","ASTORIA 2",75,"caiso_solar","CISO","physical","utility_pv"]
["ATHOS_5_AP1X2","INTERSECTSOLAR",250,"caiso_solar","CISO","physical","utility_pv"]
["ATHOS_5_AP2X2","Athos Power Plant 2",200,"caiso_solar","CISO","physical","utility_pv"]
["ATWEL2_1_SOLAR1","ATWELL WEST",20,"caiso_solar","CISO","physical","utility_pv"]
["ATWELL_1_SOLAR","ATWELL ISLAND PV SOLAR GENERATING FACI.",20,"caiso_solar","CISO","physical","utility_pv"]
["AVENAL_6_AVPARK","AVENAL PARK SOLAR PROJECT",6,"caiso_solar","CISO","physical","utility_pv"]
["AVENAL_6_AVSLR1","AVENAL SOLAR 1",7.9,"caiso_solar","CISO","physical","utility_pv"]
["AVENAL_6_AVSLR2","AVENAL SOLAR 2",7.9,"caiso_solar","CISO","physical","utility_pv"]
["AVENAL_6_SANDDG","SAND DRAG SOLAR PROJECT",19,"caiso_solar","CISO","physical","utility_pv"]
["AVENAL_6_SUNCTY","SUN CITY SOLAR PROJECT",20,"caiso_solar","CISO","physical","utility_pv"]
["AVSOLR_2_SOLAR","AV SOLAR RANCH 1",241.5,"caiso_solar","CISO","physical","utility_pv"]
["AZALEASOLAR","NAN",60,"caiso_solar","CISO","physical","utility_pv"]
["AZALEASTORAGE","NAN",38,"caiso_li_battery","CISO","physical","hr_batteries"]
["BAHIA_2_LKHSR1","LAKE HERMAN SOLAR",5,"caiso_solar","CISO","physical","utility_pv"]
["BALCHS_7_UNIT 1","BALCH 1 PH UNIT 1",31,"caiso_hydro","CISO","physical","hydro"]
["BALCHS_7_UNIT 2","BALCH 2 PH UNIT 2",52.5,"caiso_hydro","CISO","physical","hydro"]
["BALCHS_7_UNIT 3","BALCH 2 PH UNIT 3",54.6,"caiso_hydro","CISO","physical","hydro"]
["BANGOR_6_HYDRO","VIRGINIA RANCH DAM POWERPLANT",1,"caiso_small_hydro","CISO","physical","small_hydro"]
["BANKPP_2_NSPIN","BANKPP_2_NSPIN",270,"caiso_pumped_hydro","CISO","physical","pumped_storage"]
["BARRE_2_QF","BARRE QFS",0.2,"caiso_small_hydro","CISO","physical","small_hydro"]
["BARRE_6_PEAKER","BARRE PEAKER",47,"caiso_peaker1","CISO","physical","gas_ct"]
["BASICE_2_UNITS","KING CITY COGEN",120,"caiso_chp","CISO","physical","cogen"]
["BCTSYS_5_PWXDYN","BCTSYS_5_PWXDYN",428,"caiso_hydro","BPAT","specifiedimport","hydro"]
["BDGRCK_1_UNITS","BADGER CREEK LIMITED",48.08,"caiso_peaker1","CISO","physical","gas_ct"]
["BEACON_SOLAR_B","NAN",125,"ldwp_solar","LADWP","physical","utility_pv"]
["BEARDS_7_UNIT 1","BEARDSLEY HYDRO",11.5,"caiso_hydro","CISO","physical","hydro"]
["BEARMT_1_UNIT","BEAR MOUNTAIN LIMITED",49.21,"caiso_peaker2","CISO","physical","gas_ct"]
["BEJNLS_5_BV2SCEDYN","BROADVIEW 2",167,"caiso_wind","AZPS","specifiedimport","out_of_state_wind_AZNM"]
["BEKWJS_5_BV1SCEDYN","BROADVIEW 1",130,"caiso_wind","AZPS","specifiedimport","out_of_state_wind_AZNM"]
["BELDEN_7_UNIT 1","BELDEN HYDRO",119,"caiso_hydro","CISO","physical","hydro"]
["BELLEVUESOLARINV1","NAN",1.6,"caiso_solar","CISO","physical","utility_pv"]
["BGSKYN_2_AS2SR1","ANTELOPE SOLAR 2",105,"caiso_solar","CISO","physical","utility_pv"]
["BGSKYN_2_ASPSR2","ANTELOPE SOLAR 2 SAN PABLO",100,"caiso_solar","CISO","physical","utility_pv"]
["BGSKYN_2_ASSR1B","Antelope Solar 1B ",17,"caiso_solar","CISO","physical","utility_pv"]
["BGSKYN_2_ASSR3A","ANTELOPE SOLAR 3A",15,"caiso_solar","CISO","physical","utility_pv"]
["BGSKYN_2_ASSR3B","ANTELOPE SOLAR 3B",5,"caiso_solar","CISO","physical","utility_pv"]
["BGSKYN_2_BS3SR3","BIG SKY SOLAR 3",20,"caiso_solar","CISO","physical","utility_pv"]
["BIGBEAUSTORAGE","NAN",40,"caiso_li_battery","CISO","physical","hr_batteries"]
["BIGCRK_2_EXESWD","BIG CREEK HYDRO PROJECT PSP",820,"caiso_hydro","CISO","physical","hydro"]
["BIGCRK_7_DAM7","DAM 7 AT BIG CREEK (FISHWATER GEN)",0.3,"caiso_hydro","CISO","physical","hydro"]
["BIGCRK_7_MAMRES","MAMMOTH POOL RESERVOIR (FISHWATER",1.25,"caiso_small_hydro","CISO","physical","small_hydro"]
["BIGSKY_2_AS2BT1","Antelope Solar 2 LAB",127,"caiso_li_battery","CISO","physical","hr_batteries"]
["BIGSKY_2_ASLBT2","ANTELOPE SOLAR 2 LUNA",100,"caiso_li_battery","CISO","physical","hr_batteries"]
["BIGSKY_2_BSKSR6","BIG SKY SOLAR 6",20,"caiso_solar","CISO","physical","utility_pv"]
["BIGSKY_2_BSKSR7","BIG SKY SOLAR 7",20,"caiso_solar","CISO","physical","utility_pv"]
["BIGSKY_2_BSKSR8","BIG SKY SOLAR 8",20,"caiso_solar","CISO","physical","utility_pv"]
["BIGSKY_2_SOLAR1","ANTELOPE BIG SKY RANCH",20,"caiso_solar","CISO","physical","utility_pv"]
["BIGSKY_2_SOLAR2","BIG SKY SOLAR 4",40,"caiso_solar","CISO","physical","utility_pv"]
["BIGSKY_2_SOLAR3","BIG SKY SUMMER",20,"caiso_solar","CISO","physical","utility_pv"]
["BIGSKY_2_SOLAR4","WESTERN ANTELOPE BLUE SKY RANCH B",20,"caiso_solar","CISO","physical","utility_pv"]
["BIGSKY_2_SOLAR5","BIG SKY SOLAR 2",5,"caiso_solar","CISO","physical","utility_pv"]
["BIGSKY_2_SOLAR6","SOLVERDE 1",85,"caiso_solar","CISO","physical","utility_pv"]
["BIGSKY_2_SOLAR7","BIG SKY SOLAR 1",50,"caiso_solar","CISO","physical","utility_pv"]
["BIGSKY1","NAN",0.75,"caiso_biomass","CISO","physical","biomass_wood"]
["BIGSKY2","NAN",0.75,"caiso_biomass","CISO","physical","biomass_wood"]
["BIOMAS_1_UNIT 1","WOODLAND BIOMASS",25.5,"caiso_biomass","CISO","physical","biomass_wood"]
["BIOMASSONEGE1","NAN",14.4,"caiso_biomass","CISO","physical","biomass_wood"]
["BISHOP_1_ALAMO","BISHOP CREEK PLANT 2  AND  6",13.4,"caiso_small_hydro","CISO","physical","small_hydro"]
["BISHOP_1_UNITS","BISHOP CREEK PLANT 3  AND  4",15.8,"caiso_small_hydro","CISO","physical","small_hydro"]
["BKRFLD_2_SOLAR1","BAKERSFIELD 111",1.38,"caiso_solar","CISO","physical","utility_pv"]
["BLACK_7_UNIT 1","JAMES B. BLACK 1",85,"caiso_hydro","CISO","physical","hydro"]
["BLACK_7_UNIT 2","JAMES B. BLACK 2",84.1,"caiso_hydro","CISO","physical","hydro"]
["BLACK_WALNUT","NAN",15,"caiso_li_battery","CISO","physical","hr_batteries"]
["BLAST_1_WIND","MOUNTAIN VIEW IV WIND",49,"caiso_wind","CISO","physical","in_state_wind_south"]
["BLCKBT_2_STONEY","BLACK BUTTE HYDRO",6.2,"caiso_small_hydro","CISO","physical","small_hydro"]
["BLCKWL_6_SOLAR1","BLACKWELL SOLAR",12,"caiso_solar","CISO","physical","utility_pv"]
["BLKCRK_2_GMCBT1","GENESIS MCCOY BESS",230,"caiso_li_battery","CISO","physical","hr_batteries"]
["BLKCRK_2_SOLAR1","MCCOY STATION",250,"caiso_solar","CISO","physical","utility_pv"]
["BLKDIA_2_BDEBT1","BLACK DIAMOND ENERGY STORAGE",200,"caiso_li_battery","CISO","physical","hr_batteries"]
["BLM W_2_COSBT1","COSOSTORAGE",60,"caiso_li_battery","CISO","physical","hr_batteries"]
["BLM_2_UNITS","BLM EAST FACILITY",72,"caiso_geothermal","CISO","physical","geothermal"]
["BLUE_MOUNTAIN_ELECTRIC_COMPANY","NAN",3,"caiso_biomass","CISO","physical","biomass_wood"]
["BLULKE_6_BLUELK","NAN",12,"caiso_biomass","CISO","physical","biomass_wood"]
["BLYTHE_1_SOLAR1","BLYTHE SOLAR 1 PROJECT",21,"caiso_solar","CISO","physical","utility_pv"]
["BLYTHE_1_SOLAR2","BLYTHE GREEN 1",20,"caiso_solar","CISO","physical","utility_pv"]
["BLYTHESTORAGE1","NAN",63,"caiso_li_battery","CISO","physical","hr_batteries"]
["BNNIEN_7_ALTAPH","ALTA POWER HOUSE",1,"caiso_small_hydro","CISO","physical","small_hydro"]
["BOGUE_1_UNITA1","FEATHER RIVER ENERGY CENTER, UNIT #1",47.6,"caiso_peaker1","CISO","physical","gas_ct"]
["BORDER_6_UNITA1","CALPEAK POWER BORDER UNIT 1",51.25,"caiso_peaker2","CISO","physical","gas_ct"]
["BOWMN_6_HYDRO","NID HYDRO BOWMAN POWERHOUSE",3.6,"caiso_small_hydro","CISO","physical","small_hydro"]
["BRDGVL_7_BAKER","BAKER STATION HYDRO",1.49,"caiso_small_hydro","CISO","physical","small_hydro"]
["BRDSLD_2_HIWIND","HIGH WINDS ENERGY CENTER",162,"caiso_wind","CISO","physical","in_state_wind_north"]
["BRDSLD_2_MTZUM2","NEXTERA ENERGY MONTEZUMA WIND II",78.2,"caiso_wind","CISO","physical","in_state_wind_north"]
["BRDSLD_2_MTZUMA","FPL ENERGY MONTEZUMA WIND",36.799999999999997,"caiso_wind","CISO","physical","in_state_wind_north"]
["BRDSLD_2_SHILO1","SHILOH I WIND PROJECT",150,"caiso_wind","CISO","physical","in_state_wind_north"]
["BRDSLD_2_SHILO2","SHILOH WIND PROJECT 2",150,"caiso_wind","CISO","physical","in_state_wind_north"]
["BRDSLD_2_SHLO3A","SHILOH III WIND PROJECT, LLC",102.5,"caiso_wind","CISO","physical","in_state_wind_north"]
["BRDSLD_2_SHLO3B","SHILOH IV WIND PROJECT",100,"caiso_wind","CISO","physical","in_state_wind_north"]
["BREGGO_6_DEGRSL","DESERT GREEN SOLAR FARM",6.3,"caiso_solar","CISO","physical","utility_pv"]
["BREGGO_6_SOLAR","NRG BORREGO SOLAR ONE",26,"caiso_solar","CISO","physical","utility_pv"]
["BRODIE_2_WIND","CORAM BRODIE WIND PROJECT",102,"caiso_wind","CISO","physical","in_state_wind_south"]
["BUCKBL_2_PL1X3","BLYTHE ENERGY CENTER",493.63,"caiso_ccgt2","CISO","physical","gas_cc"]
["BUCKCK_2_HYDRO","LASSEN STATION HYDRO",0.99,"caiso_small_hydro","CISO","physical","small_hydro"]
["BUCKCK_7_OAKFLT","OAK FLAT",1.3,"caiso_small_hydro","CISO","physical","small_hydro"]
["BUCKCK_7_PL1X2","BUCKS CREEK AGGREGATE",57.25,"caiso_hydro","CISO","physical","hydro"]
["BUCKWD_1_NPALM1","NORTH PALM SPRINGS 1A",2.4,"caiso_solar","CISO","physical","utility_pv"]
["BUCKWD_1_QF","BUCKWIND RE-POWERING PROJECT",16.5,"caiso_wind","CISO","physical","in_state_wind_south"]
["BUCKWD_7_WINTCV","WINTEC ENERGY, LTD.",1.32,"caiso_wind","CISO","physical","in_state_wind_south"]
["BURNYF_2_UNIT 1","BURNEY FOREST POWER",29,"caiso_biomass","CISO","physical","biomass_wood"]
["BUTTVL_7_UNIT 1","BUTT VALLEY HYDRO",39.5,"caiso_hydro","CISO","physical","hydro"]
["CABALO_2_M2BSR1","MUSTANG 2 BARBARO SOLAR",50,"caiso_solar","CISO","physical","utility_pv"]
["CABALO_2_M2WSR2","MUSTANG 2 WHIRLAWAY SOLAR",100,"caiso_solar","CISO","physical","utility_pv"]
["CABZON_1_WINDA1","CABAZON WIND PROJECT",41,"caiso_wind","CISO","physical","in_state_wind_south"]
["CALFTN_2_CFSBT1","California Flats Storage",60,"caiso_li_battery","CISO","physical","hr_batteries"]
["CALFTN_2_SOLAR","CALIFORNIA FLATS NORTH",130,"caiso_solar","CISO","physical","utility_pv"]
["CALFTS_2_CFSSR1","CALIFORNIA FLATS SOLAR SOUTH",150,"caiso_solar","CISO","physical","utility_pv"]
["CALGEN_1_UNITS","COSO NAVY 1",80,"caiso_geothermal","CISO","physical","geothermal"]
["CALPIN_1_AGNEW","AGNEWS POWER PLANT",28.56,"caiso_ccgt1","CISO","physical","gas_cc"]
["CALPSS_6_SOLAR1","CALIPATRIA SOLAR FARM",19.899999999999999,"iid_solar","IID","specifiedimport","utility_pv"]
["CAMCHE_1_PL1X3","CAMANCHE UNITS  1, 2 &  3 AGGREGATE",9.99,"caiso_hydro","CISO","physical","hydro"]
["CAMDEN_6_RDDBM1","RUANN DAIRY DIGESTER BIOMAT",0.55000000000000004,"caiso_biomass","CISO","physical","biomass_wood"]
["CAMERON","NAN",2.4,"caiso_solar","CISO","physical","utility_pv"]
["CAMLOT_2_SOLAR1","CAMELOT",45,"caiso_solar","CISO","physical","utility_pv"]
["CAMLOT_2_SOLAR2","COLUMBIA TWO",15,"caiso_solar","CISO","physical","utility_pv"]
["CAMPFW_7_FARWST","CAMP FAR WEST HYDRO",8,"caiso_small_hydro","CISO","physical","small_hydro"]
["CANTUA_1_SOLAR","CANTUA SOLAR STATION",20,"caiso_solar","CISO","physical","utility_pv"]
["CAPWD_1_QF","EDOM HILLS WIND FARM",19.55,"caiso_wind","CISO","physical","in_state_wind_south"]
["CARBOU_7_PL2X3","CARIBOU PH 1 UNIT 2 & 3 AGGREGATE",49,"caiso_hydro","CISO","physical","hydro"]
["CARBOU_7_PL4X5","CARIBOU PH 2 UNIT 4 & 5 AGGREGATE",120,"caiso_hydro","CISO","physical","hydro"]
["CARBOU_7_UNIT 1","CARIBOU PH 1 UNIT 1",24,"caiso_hydro","CISO","physical","hydro"]
["CARGILLB6BIO1","NAN",1.1000000000000001,"caiso_biomass","CISO","physical","biomass_wood"]
["CARGILLB6BIO2","NAN",1.1000000000000001,"caiso_biomass","CISO","physical","biomass_wood"]
["CARLS1_2_CARCT1","CARLSBAD 1",422,"caiso_peaker1","CISO","physical","gas_ct"]
["CARLS2_1_CARCT1","CARLSBAD 2",105.5,"caiso_peaker1","CISO","physical","gas_ct"]
["CARSON_ICE_CC","NAN",62.7,"banc_ccgt","BANC","physical","gas_cc"]
["CARSON_ICE_PEAKER","NAN",42,"banc_peaker","BANC","physical","gas_ct"]
["CASADB_1_CD4GT1","NAN",40,"caiso_geothermal","CISO","physical","geothermal"]
["CASCADESTORAGE","NAN",25,"caiso_li_battery","CISO","physical","hr_batteries"]
["CASTAIC_1","NAN",240,"ldwp_pumped_hydro","LADWP","physical","pumped_storage"]
["CASTAIC_2","NAN",250,"ldwp_pumped_hydro","LADWP","physical","pumped_storage"]
["CASTAIC_3","NAN",240,"ldwp_pumped_hydro","LADWP","physical","pumped_storage"]
["CASTAIC_4","NAN",240,"ldwp_pumped_hydro","LADWP","physical","pumped_storage"]
["CASTAIC_5","NAN",240,"ldwp_pumped_hydro","LADWP","physical","pumped_storage"]
["CASTAIC_6","NAN",250,"ldwp_pumped_hydro","LADWP","physical","pumped_storage"]
["CASTVL_2_FCELL","NAN",1.4,"caiso_biomass","CISO","physical","biomass_wood"]
["CATLNA_2_SOLAR","CATALINA SOLAR - PHASES 1 AND 2",110,"caiso_solar","CISO","physical","utility_pv"]
["CATLNA_2_SOLAR2","CATALINA SOLAR 2",18,"caiso_solar","CISO","physical","utility_pv"]
["CAVLSR_2_BSOLAR","CALIFORNIA VALLEY SOLAR RANCH-PHASE B",40,"caiso_solar","CISO","physical","utility_pv"]
["CAVLSR_2_RSOLAR","CALIFORNIA VALLEY SOLAR RANCH-PHASE A",210,"caiso_solar","CISO","physical","utility_pv"]
["CAYTNO_2_VASCO","VASCO ROAD",4.3,"caiso_biomass","CISO","physical","biomass_wood"]
["CDWR07_2_GEN","CDWR07_2_GEN",415.3,"caiso_pumped_hydro","CISO","physical","pumped_storage"]
["CEDRCK_6_UNIT","WATER WHEEL RANCH",0.98,"caiso_small_hydro","CISO","physical","small_hydro"]
["CEDUCR_2_SOLAR1","DUCOR SOLAR 1",20,"caiso_solar","CISO","physical","utility_pv"]
["CEDUCR_2_SOLAR2","DUCOR SOLAR 2",20,"caiso_solar","CISO","physical","utility_pv"]
["CEDUCR_2_SOLAR3","DUCOR SOLAR 3",15,"caiso_solar","CISO","physical","utility_pv"]
["CEDUCR_2_SOLAR4","DUCOR SOLAR 4",20,"caiso_solar","CISO","physical","utility_pv"]
["CENT40_1_C40SR1","CENTRAL 40",40,"caiso_solar","CISO","physical","utility_pv"]
["CENTER_2_RHONDO","MWD RIO HONDO HYDROELECTRIC RECOVERY PLA",1.91,"caiso_hydro","CISO","physical","hydro"]
["CENTER_2_SOLAR1","PICO RIVERA",0.9,"caiso_solar","CISO","physical","utility_pv"]
["CENTER_2_TECNG1","TECHNICAST",0.99,"caiso_chp","CISO","physical","cogen"]
["CENTER_6_PEAKER","CENTER PEAKER",47.11,"caiso_peaker1","CISO","physical","gas_ct"]
["CENTRY_6_PL1X4","CENTURY GENERATING PLANT (AGGREGATE)",41.4,"caiso_peaker1","CISO","physical","gas_ct"]
["CHALANSOLAR","NAN",64.900000000000006,"caiso_solar","CISO","physical","utility_pv"]
["CHALANSTORAGE","NAN",25,"caiso_li_battery","CISO","physical","hr_batteries"]
["CHALK_1_UNIT","CHALK CLIFF LIMITED",48.67,"caiso_peaker2","CISO","physical","gas_ct"]
["CHARMN_2_PGONG1","PROCTER  AND  GAMBLE OXNARD I",19.87,"caiso_chp","CISO","physical","cogen"]
["CHEVCD_6_UNIT","CHEVRON USA (TAFT/CADET)",11.5,"caiso_chp","CISO","physical","cogen"]
["CHEVCO_6_UNIT 1","CHEVRON USA (COALINGA)",16.5,"caiso_chp","CISO","physical","cogen"]
["CHEVCO_6_UNIT 2","AERA ENERGY LLC. (COALINGA)",8.5,"caiso_chp","CISO","physical","cogen"]
["CHEVCY_1_UNIT","CHEVRON USA (CYMRIC)",24.3,"caiso_chp","CISO","physical","cogen"]
["CHEVMN_2_UNITS","CHEVRON U.S.A. UNITS 1 & 2 AGGREGATE",124.87,"caiso_chp","CISO","physical","cogen"]
["CHICPK_7_UNIT 1","CHICAGO PARK POWERHOUSE",42,"caiso_hydro","CISO","physical","hydro"]
["CHILLS_1_SYCENG","SYCAMORE ENERGY 1",1.5,"caiso_biomass","CISO","physical","biomass_wood"]
["CHILLS_7_UNITA1","SYCAMORE ENERGY 2",2.25,"caiso_biomass","CISO","physical","biomass_wood"]
["CHINO_2_APEBT1","POMONA ENERGY STORAGE",20,"caiso_li_battery","CISO","physical","hr_batteries"]
["CHINO_2_JURUPA","JURUPA",1.5,"caiso_solar","CISO","physical","utility_pv"]
["CHINO_2_QF","CHINO QFS",0.19,"caiso_biomass","CISO","physical","biomass_wood"]
["CHINO_2_SASOLR","SS SAN ANTONIO WEST LLC",1.5,"caiso_solar","CISO","physical","utility_pv"]
["CHINO_2_SOLAR","CHINO RT SOLAR 1",1,"caiso_solar","CISO","physical","utility_pv"]
["CHINO_2_SOLAR2","KONA SOLAR - TERRA FRANCESCA",1.49,"caiso_solar","CISO","physical","utility_pv"]
["CHINO_6_CIMGEN","CHINO CO-GENERATION",26,"caiso_chp","CISO","physical","cogen"]
["CHINO_6_SMPPAP","NAN",44,"caiso_peaker2","CISO","physical","gas_ct"]
["CHINO_7_MILIKN","MN MILLIKEN GENCO LLC",1.9,"caiso_biomass","CISO","physical","biomass_wood"]
["CHWCHL_1_BIOMAS","CHOW II BIOMASS TO ENERGY",10.8,"caiso_biomass","CISO","physical","biomass_wood"]
["CHWCHL_1_UNIT","CHOW 2 PEAKER PLANT",48.6,"caiso_reciprocating_engine","CISO","physical","ice"]
["CLINESCO_3_PVDYN","CLINES CORNERS",129.94,"caiso_wind","PNM","specifiedimport","out_of_state_wind_AZNM"]
["CLINESCO_3_WBDYN","CLINES CORNERS B",194.28,"caiso_wind","PNM","specifiedimport","out_of_state_wind_AZNM"]
["CLOVDL_1_SOLAR","CLOVERDALE SOLAR I",1.5,"caiso_solar","CISO","physical","utility_pv"]
["CLOVER_2_UNIT","CLOVER CREEK",0.99,"caiso_small_hydro","CISO","physical","small_hydro"]
["CLRKRD_6_LIMESD","LIME SADDLE HYDRO",2,"caiso_small_hydro","CISO","physical","small_hydro"]
["CLRMTK_1_QF","SMALL QF AGGREGATION - OAKLAND",1.25,"caiso_chp","CISO","physical","cogen"]
["CNTNLA_2_SOLAR1","CENTINELA SOLAR ENERGY I",125,"caiso_solar","CISO","physical","utility_pv"]
["CNTNLA_2_SOLAR2","CENTINELS SOLAR ENERGY 2",45.6,"caiso_solar","CISO","physical","utility_pv"]
["CNTRVL_6_UNIT","CENTERVILLE",6.4,"caiso_small_hydro","CISO","physical","small_hydro"]
["COACHELLA_1","NAN",20,"iid_peaker","IID","physical","gas_ct"]
["COACHELLA_2","NAN",20,"iid_peaker","IID","physical","gas_ct"]
["COACHELLA_3","NAN",20,"iid_peaker","IID","physical","gas_ct"]
["COACHELLA_4","NAN",20,"iid_peaker","IID","physical","gas_ct"]
["COACHELLA_BATTERY","NAN",31,"IID_Li_Battery","IID","physical","hr_batteries"]
["COACHELLAWIND","NAN",94.936000000000007,"caiso_wind","CISO","physical","in_state_wind_south"]
["COCOPP_2_CTG1","MARSH LANDING 1",204.2,"caiso_peaker1","CISO","physical","gas_ct"]
["COCOPP_2_CTG2","MARSH LANDING 2",202.7,"caiso_peaker1","CISO","physical","gas_ct"]
["COCOPP_2_CTG3","MARSH LANDING 3",208.96,"caiso_peaker1","CISO","physical","gas_ct"]
["COCOPP_2_CTG4","MARSH LANDING 4",204.29,"caiso_peaker1","CISO","physical","gas_ct"]
["COCOSB_6_SOLAR","OAKLEY SOLAR PROJECT",1.5,"caiso_solar","CISO","physical","utility_pv"]
["COGNAT_1_UNIT","STOCKTON BIOMAS",45,"caiso_biomass","CISO","physical","biomass_wood"]
["COLEMN_2_UNIT","COLEMAN",13,"caiso_small_hydro","CISO","physical","small_hydro"]
["COLGAT_7_UNIT 1","COLGATE POWERHOUSE UNIT 1",176.72,"caiso_hydro","CISO","physical","hydro"]
["COLGAT_7_UNIT 2","COLGATE POWERHOUSE UNIT 2",175.67,"caiso_hydro","CISO","physical","hydro"]
["COLGNS_2_CNSSR1","COLGREEN NORTH SHORE",74.8,"iid_solar","IID","specifiedimport","utility_pv"]
["COLPIN_6_COLLNS","COLLINS PINE",3.3,"caiso_biomass","CISO","physical","biomass_wood"]
["COLTON_6_AGUAM1","AGUA MANSA UNIT 1 (CITY OF COLTON)",43,"caiso_peaker2","CISO","physical","gas_ct"]
["COLUSA_2_PL1X3","COLUSA GENERATING STATION",641,"caiso_ccgt1","CISO","physical","gas_cc"]
["COLVIL_7_PL1X2","COLLIERVILLE HYDRO UNIT 1 & 2 AGGREGATE",246.86,"caiso_hydro","CISO","physical","hydro"]
["CONTRL_1_CASAD1","MAMMOTH G1",10,"caiso_geothermal","CISO","physical","geothermal"]
["CONTRL_1_CASAD2","MAMMOTH G2",10.5,"caiso_geothermal","CISO","physical","geothermal"]
["CONTRL_1_CASAD3","MAMMOTH G3",14,"caiso_geothermal","CISO","physical","geothermal"]
["CONTRL_1_LUNDY","LUNDY",3,"caiso_small_hydro","CISO","physical","small_hydro"]
["CONTRL_1_OXBOW","DIXIE VALLEY GEO",60,"caiso_geothermal","CISO","physical","geothermal"]
["CONTRL_1_POOLE","POOLE HYDRO PLANT 1",10.9,"caiso_small_hydro","CISO","physical","small_hydro"]
["CONTRL_1_QF","CONTROL QFS",2.9,"caiso_geothermal","CISO","physical","geothermal"]
["CONTRL_1_RUSHCK","RUSH CREEK",11.94,"caiso_small_hydro","CISO","physical","small_hydro"]
["COPMT2_2_SOLAR2","CMS2",155,"caiso_solar","CISO","physical","utility_pv"]
["COPMT4_2_SOLAR4","COPPER MOUNTAIN SOLAR 4",92,"caiso_solar","CISO","physical","utility_pv"]
["COPMTN_2_CM10","COPPER MOUNTAIN 10",10,"caiso_solar","CISO","physical","utility_pv"]
["COPMTN_2_SOLAR1","COPPER MOUNTAIN 48",48,"caiso_solar","CISO","physical","utility_pv"]
["COPPER_MOUNTAIN_3_01","COPPER_MOUNTAIN_3_01",26,"ldwp_solar","LADWP","physical","utility_pv"]
["COPPER_MOUNTAIN_3_02","COPPER_MOUNTAIN_3_02",27,"ldwp_solar","LADWP","physical","utility_pv"]
["COPPER_MOUNTAIN_3_03","COPPER_MOUNTAIN_3_03",26,"ldwp_solar","LADWP","physical","utility_pv"]
["COPPER_MOUNTAIN_3_04","COPPER_MOUNTAIN_3_04",28,"ldwp_solar","LADWP","physical","utility_pv"]
["COPPER_MOUNTAIN_3_05","COPPER_MOUNTAIN_3_05",25,"ldwp_solar","LADWP","physical","utility_pv"]
["COPPER_MOUNTAIN_3_06","COPPER_MOUNTAIN_3_06",26,"ldwp_solar","LADWP","physical","utility_pv"]
["COPPER_MOUNTAIN_3_07","COPPER_MOUNTAIN_3_07",27,"ldwp_solar","LADWP","physical","utility_pv"]
["COPPER_MOUNTAIN_3_08","COPPER_MOUNTAIN_3_08",26,"ldwp_solar","LADWP","physical","utility_pv"]
["COPPER_MOUNTAIN_3_09","COPPER_MOUNTAIN_3_09",24,"ldwp_solar","LADWP","physical","utility_pv"]
["COPPER_MOUNTAIN_3_10","COPPER_MOUNTAIN_3_10",20,"ldwp_solar","LADWP","physical","utility_pv"]
["CORCAN_1_SOLAR1","CID SOLAR",20,"caiso_solar","CISO","physical","utility_pv"]
["CORCAN_1_SOLAR2","CORCORAN CITY",11,"caiso_solar","CISO","physical","utility_pv"]
["CORDOVA_FIR_SOLAR","NAN",9.5,"banc_solar","BANC","physical","utility_pv"]
["CORONS_2_SOLAR","MASTER DEVELOPMENT CORONA",0.99,"caiso_solar","CISO","physical","utility_pv"]
["CORONS_6_CLRWTR","CLEARWATER POWER PLANT",28,"caiso_ccgt2","CISO","physical","gas_cc"]
["CORRAL_6_SJOAQN","AMERESCO SAN JOAQUIN",4.3,"caiso_biomass","CISO","physical","biomass_wood"]
["COSUMNES_CC","NAN",534.6,"banc_ccgt","BANC","physical","gas_cc"]
["COTTLE_2_FRNKNH","FRANKENHEIMER POWER PLANT",5.3,"caiso_small_hydro","CISO","physical","small_hydro"]
["COVERD_2_HCKHY1","HATCHET CREEK",6.89,"caiso_hydro","CISO","physical","hydro"]
["COVERD_2_MCKHY1","MONTGOMERY CREEK HYDRO",2.8,"caiso_hydro","CISO","physical","hydro"]
["COVERD_2_QFUNTS","COVE HYDROELECTRIC PROJECT",5.5,"caiso_small_hydro","CISO","physical","small_hydro"]
["COVERD_2_RCKHY1","ROARING CREEK",2,"caiso_hydro","CISO","physical","hydro"]
["COWCRK_2_UNIT","COW CREEK HYDRO",2,"caiso_small_hydro","CISO","physical","small_hydro"]
["CPSTNO_7_PRMADS","PRIMA DESCHECHA (CAPISTRANO)",6.1,"caiso_biomass","CISO","physical","cogen"]
["CPVERD_2_SOLAR","CAMPO VERDE SOLAR",139,"caiso_solar","CISO","physical","utility_pv"]
["CRELMN_6_RAMON1","RAMONA 1",2,"caiso_solar","CISO","physical","utility_pv"]
["CRELMN_6_RAMON2","RAMONA 2",5,"caiso_solar","CISO","physical","utility_pv"]
["CRELMN_6_RAMSR3","RAMONA SOLAR ENERGY",4.32,"caiso_solar","CISO","physical","utility_pv"]
["CRESSY_1_PARKER","PARKER POWERHOUSE",2.83,"caiso_small_hydro","CISO","physical","small_hydro"]
["CRESTA_7_PL1X2","CRESTA PH UNIT 1 & 2 AGGREGATE",70.400000000000006,"caiso_hydro","CISO","physical","hydro"]
["CRIMSN_2_CRMBT1","Crimson (CAISO), Sonoran West (LSEs)",200,"caiso_li_battery","CISO","physical","hr_batteries"]
["CRIMSN_2_CRMBT2","Crimson 2",150,"caiso_li_battery","CISO","physical","hr_batteries"]
["CRNEVL_6_CRNVA","CRANE VALLEY",0.9,"caiso_small_hydro","CISO","physical","small_hydro"]
["CRNEVL_6_SJQN 2","SAN JOAQUIN 2",3.2,"caiso_hydro","CISO","physical","hydro"]
["CRNEVL_6_SJQN 3","SAN JOAQUIN 3",4.2,"caiso_hydro","CISO","physical","hydro"]
["CROKET_7_UNIT","CROCKETT COGEN",240,"caiso_chp","CISO","physical","cogen"]
["CROWCREEKSOLAR","NAN",20,"caiso_solar","CISO","physical","utility_pv"]
["CROWCREEKSTORAGE","NAN",20,"caiso_li_battery","CISO","physical","hr_batteries"]
["CRSTWD_6_KUMYAY","KUMEYAAY WIND FARM",50,"caiso_wind","CISO","physical","in_state_wind_south"]
["CRWCKS_1_SOLAR1","CROW CREEK SOLAR 1",20,"caiso_solar","CISO","physical","utility_pv"]
["CSCCOG_1_UNIT 1","SANTA CLARA CO-GEN",7,"caiso_peaker1","CISO","physical","cogen"]
["CSCGNR_1_UNIT 1","GIANERA PEAKER UNIT 1",24.75,"caiso_peaker2","CISO","physical","gas_ct"]
["CSCGNR_1_UNIT 2","GIANERA PEAKER UNIT 2",24.75,"caiso_peaker2","CISO","physical","gas_ct"]
["CSLR4S_2_SOLAR","CSOLAR IV SOUTH",130,"caiso_solar","CISO","physical","utility_pv"]
["CSTOGA_6_LNDFIL","CLOVER FLAT LAND FILL GAS",0.85,"caiso_biomass","CISO","physical","biomass_wood"]
["CSTRVL_7_PL1X2","MARINA LAND FILL GAS",4.53,"caiso_biomass","CISO","physical","biomass_wood"]
["CSTRVL_7_QFUNTS","CASTROVILLE QF AGGREGATE",2,"caiso_biomass","CISO","physical","cogen"]
["CTNWDP_1_QF","SMALL QF AGGREGATION - BURNEY",0.5,"caiso_small_hydro","CISO","physical","small_hydro"]
["CUMBIA_1_SOLAR","COLUMBIA SOLAR ENERGY II",19,"caiso_solar","CISO","physical","utility_pv"]
["CUMMNG_6_SUNCT1","SUNSELECT 1",4,"caiso_chp","CISO","physical","cogen"]
["CURTIS_1_CANLCK","CANAL CREEK POWERHOUSE",0.9,"caiso_small_hydro","CISO","physical","small_hydro"]
["CURTIS_1_FARFLD","FAIRFIELD POWERHOUSE",0.9,"caiso_small_hydro","CISO","physical","small_hydro"]
["CUYAMS_6_CUYSR1","CUYAMA SOLAR",40,"caiso_solar","CISO","physical","utility_pv"]
["DAIRLD_1_CR1BM1","NAN",2,"caiso_biogas","CISO","physical","biogas"]
["DAIRLD_1_MD1SL1","MADERA 1",1.5,"caiso_solar","CISO","physical","utility_pv"]
["DAIRLD_1_MD2BM1","MADERA DIGESTER GENSET 2",0.8,"caiso_biomass","CISO","physical","biomass_wood"]
["DALYCT_1_FCELL","NAN",1.6,"caiso_biomass","CISO","physical","biomass_wood"]
["DAVID_TEVELDE_DAIRY_DIGESTER","NAN",1,"caiso_biogas","CISO","physical","biogas"]
["DAVIS_1_SOLAR1","GRASSLANDS 3",1,"caiso_solar","CISO","physical","utility_pv"]
["DAVIS_1_SOLAR2","GRASSLANDS 4",1,"caiso_solar","CISO","physical","utility_pv"]
["DAVIS_7_MNMETH","MM YOLO POWER LLC",4,"caiso_biogas","CISO","physical","biogas"]
["DEADCK_1_UNIT","DEADCK_1_UNIT",2,"caiso_small_hydro","CISO","physical","small_hydro"]
["DEERCR_6_UNIT 1","DEER CREEK",7,"caiso_hydro","CISO","physical","hydro"]
["DEL_RANCH_COMPANY","NAN",42,"iid_geothermal","IID","physical","geothermal"]
["DELAMO_2_SOLAR1","GOLDEN SPRINGS BUILDING H",1.5,"caiso_solar","CISO","physical","utility_pv"]
["DELAMO_2_SOLAR2","GOLDEN SPRINGS BUILDING M",1.75,"caiso_solar","CISO","physical","utility_pv"]
["DELAMO_2_SOLAR3","GOLDEN SPRINGS BUILDING G",1.25,"caiso_solar","CISO","physical","utility_pv"]
["DELAMO_2_SOLAR4","GOLDEN SPRINGS BUILDING F",1.3,"caiso_solar","CISO","physical","utility_pv"]
["DELAMO_2_SOLAR5","GOLDEN SPRINGS BUILDING L",1,"caiso_solar","CISO","physical","utility_pv"]
["DELAMO_2_SOLAR6","FREEWAY SPRINGS",2,"caiso_solar","CISO","physical","utility_pv"]
["DELAMO_2_SOLRC1","GOLDEN SPRINGS BUILDING C1",1.1599999999999999,"caiso_solar","CISO","physical","utility_pv"]
["DELAMO_2_SOLRD","GOLDEN SOLAR BUILDING D",1.25,"caiso_solar","CISO","physical","utility_pv"]
["DELSUR_6_BSOLAR","CENTRAL ANTELOPE DRY RANCH B",3,"caiso_solar","CISO","physical","utility_pv"]
["DELSUR_6_CREST","NAN",10,"caiso_solar","CISO","physical","utility_pv"]
["DELSUR_6_DRYFRB","DRY FARM RANCH B",5,"caiso_solar","CISO","physical","utility_pv"]
["DELSUR_6_SOLAR1","SUMMER SOLAR NORTH",6.5,"caiso_solar","CISO","physical","utility_pv"]
["DELSUR_6_SOLAR4","RADIANCE SOLAR 4",1.5,"caiso_solar","CISO","physical","utility_pv"]
["DELSUR_6_SOLAR5","RADIANCE SOLAR 5",1.5,"caiso_solar","CISO","physical","utility_pv"]
["DELTA_2_PL1X4","DELTA ENERGY CENTER AGGREGATE",880,"caiso_ccgt1","CISO","physical","gas_cc"]
["DESERT_POWER_3","NAN",50,"iid_geothermal","IID","physical","geothermal"]
["DESERT_VIEW","NAN",50,"caiso_biomass","IID","physical","biogas"]
["DEVERS_1_QF","NAN",92.639805999999993,"caiso_wind","CISO","physical","in_state_wind_south"]
["DEVERS_1_SEPV05","SEPV 5",2,"caiso_solar","CISO","physical","utility_pv"]
["DEVERS_1_SOLAR","CASCADE SOLAR",18.5,"caiso_solar","CISO","physical","utility_pv"]
["DEVERS_1_SOLAR1","SEPV8",12,"caiso_solar","CISO","physical","utility_pv"]
["DEVERS_1_SOLAR2","SEPV9",9,"caiso_solar","CISO","physical","utility_pv"]
["DEVERS_2_CS2SR4","CALIENTE SOLAR 2",0.91,"caiso_solar","CISO","physical","utility_pv"]
["DEVERS_2_DHSPG2","DESERT HOT SPRINGS 2",1.4,"caiso_solar","CISO","physical","utility_pv"]
["DEXZEL_1_UNIT","WESTERN POWER AND STEAM COGENERATION",20,"caiso_chp","CISO","physical","cogen"]
["DIABLO_7_UNIT 1","DIABLO CANYON UNIT 1",1150,"caiso_nuclear","CISO","physical","nuclear"]
["DIABLO_7_UNIT 2","DIABLO CANYON UNIT 2",1150,"caiso_nuclear","CISO","physical","nuclear"]
["DIAMOND_H_DAIRY_POWER","NAN",2,"caiso_biogas","CISO","physical","biogas"]
["DINUBA_6_UNIT","NAN",12,"caiso_biomass","CISO","physical","biomass_wood"]
["DISCOV_1_CHEVRN","CHEVRON USA (EASTRIDGE)",48.8,"caiso_chp","CISO","physical","cogen"]
["DIVSON_6_NSQF","NAN",47,"caiso_chp","CISO","physical","cogen"]
["DIXNLD_1_LNDFL","ZERO WASTE ENERGY",1.6,"caiso_biomass","CISO","physical","biomass_wood"]
["DMDVLY_1_UNITS","DIAMOND VALLEY LAKE PUMP-GEN PLANT",21,"caiso_hydro","CISO","physical","hydro"]
["DONNLS_7_UNIT","DONNELLS HYDRO",72,"caiso_hydro","CISO","physical","hydro"]
["DOSMGO_2_NSPIN","DOSMGO_2_NSPIN",159,"caiso_pumped_hydro","CISO","physical","pumped_storage"]
["DOUBLC_1_UNITS","DOUBLE \"C\" LIMITED",52.23,"caiso_peaker2","CISO","physical","gas_ct"]
["DOUBLEADIGESTER1","NAN",1.5,"caiso_biomass","CISO","physical","biomass_wood"]
["DOUBLEADIGESTER2","NAN",1.5,"caiso_biomass","CISO","physical","biomass_wood"]
["DOUBLEADIGESTER3","NAN",1.5,"caiso_biomass","CISO","physical","biomass_wood"]
["DRACKR_2_D4SR4B","DRACKER SOLAR UNIT 4B",62.5,"caiso_solar","CISO","physical","utility_pv"]
["DRACKR_2_DS3SR3","DRACKER SOLAR UNIT 3",125,"caiso_solar","CISO","physical","utility_pv"]
["DRACKR_2_DS4SR4","DRACKER SOLAR UNIT 4",62.5,"caiso_solar","CISO","physical","utility_pv"]
["DRACKR_2_DSUBT1","DRACKER SOLAR UNIT 1 BESS",63,"caiso_li_battery","CISO","physical","hr_batteries"]
["DRACKR_2_DSUBT2","DRACKER SOLAR UNIT 2 BESS",115,"caiso_li_battery","CISO","physical","hr_batteries"]
["DRACKR_2_DSUBT3","DRACKER SOLAR UNIT 3 BESS",115,"caiso_li_battery","CISO","physical","hr_batteries"]
["DRACKR_2_DSUBT4","Dracker Solar Unit 4 BESS",47,"caiso_li_battery","CISO","physical","hr_batteries"]
["DRACKR_2_SOLAR1","DRACKER SOLAR UNIT 1",110,"caiso_solar","CISO","physical","utility_pv"]
["DRACKR_2_SOLAR2","DRACKER SOLAR UNIT 2",125,"caiso_solar","CISO","physical","utility_pv"]
["DRACKR_3_DSUBT3","NAN",115,"caiso_li_battery","CISO","physical","hr_batteries"]
["DREWS_6_PL1X4","DREWS GENERATING PLANT",41.4,"caiso_peaker1","CISO","physical","gas_ct"]
["DREWSR_2_BHSSR1","Blue Hornet Solar",100,"caiso_solar","CISO","physical","utility_pv"]
["DRUM_7_PL1X2","DRUM PH 1 UNITS 1 & 2 AGGREGATE",26,"caiso_hydro","CISO","physical","hydro"]
["DRUM_7_PL3X4","DRUM PH 1 UNITS 3 & 4 AGGREGATE",28.9,"caiso_hydro","CISO","physical","hydro"]
["DRUM_7_UNIT 5","DRUM PH 2 UNIT 5",50,"caiso_hydro","CISO","physical","hydro"]
["DSABLA_7_UNIT","DE SABLA HYDRO",18.5,"caiso_small_hydro","CISO","physical","small_hydro"]
["DSFLWR_2_WS2SR1","WILLOW SPRINGS 2",100,"caiso_solar","CISO","physical","utility_pv"]
["DSRTHV_2_DH1SR1","DESERT HARVEST",80,"caiso_solar","CISO","physical","utility_pv"]
["DSRTHV_2_DH2BT1","DESERT HARVEST BESS",35,"caiso_li_battery","CISO","physical","hr_batteries"]
["DSRTHV_2_DH2SR2","DESERT HARVEST 2",70,"caiso_solar","CISO","physical","utility_pv"]
["DSRTSL_2_SOLAR1","DESERT STATELINE",296.19,"caiso_solar","CISO","physical","utility_pv"]
["DSRTSN_2_DS2X2","Desert Sunlight PV II Storage",230,"caiso_li_battery","CISO","physical","hr_batteries"]
["DSRTSN_2_SOLAR1","DESERT SUNLIGHT 300",300,"caiso_solar","CISO","physical","utility_pv"]
["DSRTSN_2_SOLAR2","DESERT SUNLIGHT 250",250,"caiso_solar","CISO","physical","utility_pv"]
["DTCHWD_2_BT3WND","BROOKFIELD TEHACHAPI 3",4.5,"caiso_wind","CISO","physical","in_state_wind_south"]
["DTCHWD_2_BT4WND","BROOKFIELD TEHACHAPI 4",6.52,"caiso_wind","CISO","physical","in_state_wind_south"]
["DUANE_1_PL1X3","DONALD VON RAESFELD POWER PROJECT",147.80000000000001,"caiso_ccgt2","CISO","physical","gas_cc"]
["DURNMESA_3_WBDYN","DURAN MESA",105.08,"caiso_wind","PNM","specifiedimport","out_of_state_wind_AZNM"]
["DUTCH1_7_UNIT 1","DUTCH FLAT 1 PH",22,"caiso_hydro","CISO","physical","hydro"]
["DUTCH2_7_UNIT 1","DUTCH FLAT 2 PH",26,"caiso_hydro","CISO","physical","hydro"]
["DVLCYN_1_UNITS","DEVIL CANYON HYDRO UNITS 1-4 AGGREGATE",235,"caiso_hydro","CISO","physical","hydro"]
["DYERSM_6_DSWWD1","DYER SUMMIT WIND REPOWER",44.8,"caiso_wind","CISO","physical","in_state_wind_north"]
["EARTH_ENERGY_1","NAN",11,"iid_geothermal","IID","physical","geothermal"]
["EASTWD_7_UNIT","EASTWOOD PUMP-GEN",200,"caiso_pumped_hydro","CISO","physical","pumped_storage"]
["EDMONS_2_NSPIN","EDMONS_2_NSPIN",775.8,"caiso_pumped_hydro","CISO","physical","pumped_storage"]
["EDWARD_2_E21SB1_LESR","EdSan 2 Edwards 1A",71,"caiso_li_battery","CISO","physical","hr_batteries"]
["EDWARD_2_E21SB1_SUN","EdSan 2 Edwards 1A",95,"caiso_solar","CISO","physical","utility_pv"]
["EDWARD_2_E23SB1","EdSan 2 Edwards 3",18,"caiso_solar","CISO","physical","utility_pv"]
["EDWARD_2_E23SB1_LESR","EdSan 2 Edwards 3",12,"caiso_li_battery","CISO","physical","hr_batteries"]
["EDWARD_2_ES2BT3","EdSan 2",85,"caiso_solar","CISO","physical","utility_pv"]
["EDWARD_2_ES2BT3_LESR","EdSan 2",66,"caiso_li_battery","CISO","physical","hr_batteries"]
["EEKTMN_6_SOLAR1","EE K SOLAR 1",20,"caiso_solar","CISO","physical","utility_pv"]
["EL_CENTRO_4","NAN",70,"iid_ccgt","IID","physical","gas_cc"]
["EL_CENTRO_CC2","NAN",108.8,"iid_ccgt","IID","physical","gas_cc"]
["EL_CENTRO_CC3","NAN",146.5,"iid_ccgt","IID","physical","gas_cc"]
["ELCABO_5_ECWSCEDYN","EL CABO WIND",298,"caiso_wind","AZPS","specifiedimport","out_of_state_wind_AZNM"]
["ELCAJN_6_DRGEN1","NAN",3,"caiso_li_battery","CISO","physical","hr_batteries"]
["ELCAJN_6_DRGEN2","NAN",1,"caiso_li_battery","CISO","physical","hr_batteries"]
["ELCAJN_6_EB1BT1","EASTERN BESS 1",7.5,"caiso_li_battery","CISO","physical","hr_batteries"]
["ELCAJN_6_LM6K","EL CAJON ENERGY CENTER",48.1,"caiso_peaker2","CISO","physical","gas_ct"]
["ELCAJN_6_UNITA1","CUYAMACA PEAK ENERGY PLANT",45.42,"caiso_peaker1","CISO","physical","gas_ct"]
["ELCAP_1_SOLAR","2097 HELTON",1.5,"caiso_solar","CISO","physical","utility_pv"]
["ELDORO_7_UNIT 1","EL DORADO UNIT 1",11,"caiso_hydro","CISO","physical","hydro"]
["ELDORO_7_UNIT 2","EL DORADO UNIT 2",11,"caiso_hydro","CISO","physical","hydro"]
["ELECTR_7_PL1X3","ELECTRA PH UNIT 1 & 2 AGGREGATE",93,"caiso_hydro","CISO","physical","hydro"]
["ELK_GROVE_1_SOLAR","NAN",50.9,"banc_solar","BANC","physical","utility_pv"]
["ELK_GROVE_2_SOLAR","NAN",37.9,"banc_solar","BANC","physical","utility_pv"]
["ELKCRK_6_STONYG","STONEY GORGE HYDRO AGGREGATE",4.9000000000000004,"caiso_small_hydro","CISO","physical","small_hydro"]
["ELKHIL_2_PL1X3","ELK HILLS COMBINED CYCLE (AGGREGATE)",551.70000000000005,"caiso_ccgt1","CISO","physical","gas_cc"]
["ELKHRN_1_EESX3","ELKHORN ENERGY STORAGE",182.5,"caiso_li_battery","CISO","physical","hr_batteries"]
["ELLIS_2_QF","ELLIS QFS",12,"caiso_peaker1","CISO","physical","gas_ct"]
["ELNIDP_6_BIOMAS","EL NIDO BIOMASS TO ENERGY",10.5,"caiso_biomass","CISO","physical","biomass_wood"]
["ELSEGN_2_UN1011","EL SEGUNDO ENERGY CENTER 5/6",263,"caiso_ccgt2","CISO","physical","gas_cc"]
["ELSEGN_2_UN2021","EL SEGUNDO ENERGY CENTER 7/8",263.68,"caiso_ccgt1","CISO","physical","gas_cc"]
["ENELBELLASTORAGE","NAN",10,"caiso_li_battery","CISO","physical","hr_batteries"]
["ENERGETICS_PV","NAN",4.8,"caiso_solar","CISO","physical","utility_pv"]
["ENERSJ_2_WIND","ESJ WIND ENERGY",155.1,"caiso_wind","CISO","physical","in_state_wind_south"]
["ENERSJ_5_ESJWD2","ENERGIA_SIERRA_JUAREZ_2_US_LLC",105,"caiso_wind","CISO","physical","in_state_wind_south"]
["ENWIND_2_WIND1","CAMERON RIDGE",47.1,"caiso_wind","CISO","physical","in_state_wind_south"]
["ENWIND_2_WIND2","RIDGETOP I",38.24,"caiso_wind","CISO","physical","in_state_wind_south"]
["ESCNDO_6_EB1BT1","ESCONDIDO BESS 1",10,"caiso_li_battery","CISO","physical","hr_batteries"]
["ESCNDO_6_EB2BT2","ESCONDIDO BESS 2",10,"caiso_li_battery","CISO","physical","hr_batteries"]
["ESCNDO_6_EB3BT3","ESCONDIDO BESS 3",10,"caiso_li_battery","CISO","physical","hr_batteries"]
["ESCNDO_6_PL1X2","MMC ESCONDIDO AGGREGATE",48.71,"caiso_peaker2","CISO","physical","gas_ct"]
["ESCNDO_6_UNITB1","CALPEAK POWER ENTERPRISE UNIT 1",48.04,"caiso_peaker2","CISO","physical","gas_ct"]
["ESCO_6_GLMQF","GOAL LINE COGEN",49.9,"caiso_chp","CISO","physical","cogen"]
["ESNHWR_2_WC1BT1","Wildcat I BESS",3,"caiso_li_battery","CISO","physical","hr_batteries"]
["ESQUON_6_LNDFIL","NEAL ROAD LANDFILL GENERATING FACILITY",2.1,"caiso_biomass","CISO","physical","biomass_wood"]
["ESTWND_2_OPPWD1","Oasis Power Plant Eastwind",57.14,"caiso_wind","CISO","physical","in_state_wind_south"]
["ETIWND_2_CHMPNE","CHAMPAGNE",1,"caiso_solar","CISO","physical","utility_pv"]
["ETIWND_2_FONTNA","FONTANALYTLE CREEK POWERHOUSE P",2.56,"caiso_small_hydro","CISO","physical","small_hydro"]
["ETIWND_2_RTS010","SPVP010 FONTANA RT SOLAR",1.5,"caiso_solar","CISO","physical","utility_pv"]
["ETIWND_2_RTS015","SPVP015",3,"caiso_solar","CISO","physical","utility_pv"]
["ETIWND_2_RTS017","SPVP017",3.5,"caiso_solar","CISO","physical","utility_pv"]
["ETIWND_2_RTS018","SPVP018 FONTANA RT SOLAR",1.5,"caiso_solar","CISO","physical","utility_pv"]
["ETIWND_2_RTS023","SPVP023 FONTANA RT SOLAR",2.5,"caiso_solar","CISO","physical","utility_pv"]
["ETIWND_2_RTS026","SPVP026",6,"caiso_solar","CISO","physical","utility_pv"]
["ETIWND_2_RTS027","SPVP027",2,"caiso_solar","CISO","physical","utility_pv"]
["ETIWND_2_SOLAR1","DEDEAUX ONTARIO",1,"caiso_solar","CISO","physical","utility_pv"]
["ETIWND_2_SOLAR2","ROCHESTER",1,"caiso_solar","CISO","physical","utility_pv"]
["ETIWND_2_SOLAR5","DULLES",2,"caiso_solar","CISO","physical","utility_pv"]
["ETIWND_2_UNIT1","ETIWND_2_UNIT1",33.6,"caiso_chp","CISO","physical","cogen"]
["ETIWND_6_GRPLND","GRAPELAND PEAKER",47.39,"caiso_peaker1","CISO","physical","gas_ct"]
["ETIWND_6_MWDETI","ETIWANDA RECOVERY HYDRO",24,"caiso_small_hydro","CISO","physical","small_hydro"]
["EXCHEC_7_UNIT 1","EXCHEQUER HYDRO",94.5,"caiso_hydro","CISO","physical","hydro"]
["EXCLSG_1_SOLAR","EXCELSIOR SOLAR",60,"caiso_solar","CISO","physical","utility_pv"]
["FAIRHV_6_UNIT","NAN",18.75,"caiso_biomass","CISO","physical","biomass_wood"]
["FALLBROOKSTORAGE","NAN",40,"caiso_li_battery","CISO","physical","hr_batteries"]
["FELLOW_7_QFUNTS","FELLOW QF AGGREGATE",6.2,"caiso_chp","CISO","physical","cogen"]
["FLOWD_2_RT2WD2","RIDGETOP 2",27.39,"caiso_wind","CISO","physical","in_state_wind_south"]
["FLOWD_2_WIND1","CAMERON RIDGE 2",11.9,"caiso_wind","CISO","physical","in_state_wind_south"]
["FLOWD2_2_FPLWND","DIABLO WINDS",18,"caiso_wind","CISO","physical","in_state_wind_north"]
["FMEADO_6_HELLHL","FMEADO_6_HELLHL",0.6,"caiso_hydro","CISO","physical","hydro"]
["FMEADO_7_UNIT","FRENCH MEADOWS HYDRO",16,"caiso_small_hydro","CISO","physical","small_hydro"]
["FORBST_7_UNIT 1","FORBESTOWN HYDRO",37.5,"caiso_hydro","CISO","physical","hydro"]
["FORKBU_6_UNIT","HYPOWER, INC. (FORKS OF BUTTE)",14.3,"caiso_hydro","CISO","physical","hydro"]
["FRESHW_1_SOLAR1","CORCORAN 3",20,"caiso_solar","CISO","physical","utility_pv"]
["FRESNOSOLAR","NAN",100,"caiso_solar","CISO","physical","utility_pv"]
["FRESNOSTORAGE","NAN",10,"caiso_li_battery","CISO","physical","hr_batteries"]
["FRIANT_6_UNITS","FRIANT DAM",25,"caiso_small_hydro","CISO","physical","small_hydro"]
["FRITO_1_LAY","FRITO-LAY",6,"caiso_chp","CISO","physical","cogen"]
["FRNTBW_6_SOLAR1","FRONTIER SOLAR",20,"caiso_solar","CISO","physical","utility_pv"]
["FROGTN_1_UTICAA","ANGELS POWERHOUSE",1.4,"caiso_hydro","CISO","physical","hydro"]
["FROGTN_1_UTICAM","MURPHYS POWERHOUSE",3.6,"caiso_hydro","CISO","physical","hydro"]
["FTSWRD_6_TRFORK","THREE FORKS WATER POWER PROJECT",1.63,"caiso_small_hydro","CISO","physical","small_hydro"]
["FTSWRD_7_QFUNTS","FTSWRD_7_QFUNTS",1.6,"caiso_small_hydro","CISO","physical","small_hydro"]
["FULTON_1_QF","SMALL QF AGGREGATION - ZENIA",1,"caiso_small_hydro","CISO","physical","small_hydro"]
["GALE_1_SR3SR3","SUNRAY 3",13.8,"caiso_solar","CISO","physical","utility_pv"]
["GANSO_1_WSTBM1","WESTSTAR DAIRY BIOGAS",1,"caiso_biogas","CISO","physical","biogas"]
["GARLND_2_GARBT1","GARLAND STORAGE",88,"caiso_li_battery","CISO","physical","hr_batteries"]
["GARLND_2_GASLR","GARLAND B",180,"caiso_solar","CISO","physical","utility_pv"]
["GARLND_2_GASLRA","GARLAND A",20,"caiso_solar","CISO","physical","utility_pv"]
["GARNET_1_SOLAR","NORTH PALM SPRINGS 4A",4,"caiso_solar","CISO","physical","utility_pv"]
["GARNET_1_SOLAR2","GARNET SOLAR POWER GENERATION STATION 1",4,"caiso_solar","CISO","physical","utility_pv"]
["GARNET_1_UNITS","GARNET GREEN POWER PROJECT AGGREGATE",16.5,"caiso_wind","CISO","physical","in_state_wind_south"]
["GARNET_1_WIND","GARNET WIND ENERGY CENTER",6.5,"caiso_wind","CISO","physical","in_state_wind_south"]
["GARNET_1_WINDS","GARNET WINDS AGGREGATION",22.5,"caiso_wind","CISO","physical","in_state_wind_south"]
["GARNET_1_WT3WND","WAGNER WIND",6,"caiso_wind","CISO","physical","in_state_wind_south"]
["GARNET_2_COAWD2","COACHELLA 2",10.8,"caiso_wind","CISO","physical","in_state_wind_south"]
["GARNET_2_DIFWD1","NAN",7.88,"caiso_wind","CISO","physical","in_state_wind_south"]
["GARNET_2_HYDRO","WHITEWATER HYDRO",1,"caiso_small_hydro","CISO","physical","small_hydro"]
["GARNET_2_WIND1","PHOENIX",11.2,"caiso_wind","CISO","physical","in_state_wind_south"]
["GARNET_2_WIND2","KAREN AVENUE WIND FARM",11.7,"caiso_wind","CISO","physical","in_state_wind_south"]
["GARNET_2_WIND3","SAN GORGONIO EAST",12.6,"caiso_wind","CISO","physical","in_state_wind_south"]
["GARNET_2_WIND4","WINDUSTRIES",9.8000000000000007,"caiso_wind","CISO","physical","in_state_wind_south"]
["GARNET_2_WIND5","EASTWIND",3,"caiso_wind","CISO","physical","in_state_wind_south"]
["GARNET_2_WPMWD6","WINTEC PALM",5.93,"caiso_wind","CISO","physical","in_state_wind_south"]
["GASKW1_2_GW1SR1","GASKELL WEST 1",20,"caiso_solar","CISO","physical","utility_pv"]
["GATES_2_SOLAR","GATES SOLAR STATION",20,"caiso_solar","CISO","physical","utility_pv"]
["GATES_2_WSOLAR","WEST GATES SOLAR STATION",10,"caiso_solar","CISO","physical","utility_pv"]
["GATEWY_2_GESBT1","GATEWAY ENERGY STROAGE",250,"caiso_li_battery","CISO","physical","hr_batteries"]
["GATWAY_2_PL1X3","GATEWAY GENERATING STATION",585,"caiso_ccgt1","CISO","physical","gas_cc"]
["GENESI_2_STG","GENESIS STATION",250,"caiso_solar","CISO","physical","utility_pv"]
["GEO_EAST_MESA_2_1","NAN",22,"iid_geothermal","IID","physical","geothermal"]
["GEO_EAST_MESA_3_1","NAN",22,"iid_geothermal","IID","physical","geothermal"]
["GEO_EAST_MESA_3_2","NAN",10,"iid_geothermal","IID","physical","geothermal"]
["GEYS11_7_UNIT11","GEYSERS UNIT 11 (HEALDSBURG)",86.8,"caiso_geothermal","CISO","physical","geothermal"]
["GEYS12_7_UNIT12","GEYSERS UNIT 12 (HEALDSBURG)",57,"caiso_geothermal","CISO","physical","geothermal"]
["GEYS13_7_UNIT13","GEYSERS UNIT 13 (HEALDSBURG)",73,"caiso_geothermal","CISO","physical","geothermal"]
["GEYS14_7_UNIT14","GEYSERS UNIT 14 (HEALDSBURG)",70,"caiso_geothermal","CISO","physical","geothermal"]
["GEYS16_7_UNIT16","GEYSERS UNIT 16 (HEALDSBURG)",63,"caiso_geothermal","CISO","physical","geothermal"]
["GEYS17_2_BOTRCK","NAN",10.01,"caiso_geothermal","CISO","physical","geothermal"]
["GEYS17_7_UNIT17","GEYSERS UNIT 17 (HEALDSBURG)",75.5,"caiso_geothermal","CISO","physical","geothermal"]
["GEYS18_7_UNIT18","GEYSERS UNIT 18 (HEALDSBURG)",72,"caiso_geothermal","CISO","physical","geothermal"]
["GEYS20_7_UNIT20","GEYSERS UNIT 20 (HEALDSBURG)",50,"caiso_geothermal","CISO","physical","geothermal"]
["GIFENS_6_BUGSL1","BURFORD GIFFEN",20,"caiso_solar","CISO","physical","utility_pv"]
["GIFFEN_6_SOLAR","GIFFEN SOLAR STATION",10,"caiso_solar","CISO","physical","utility_pv"]
["GIFFEN_6_SOLAR1","ASPIRATION SOLAR G",9,"caiso_solar","CISO","physical","utility_pv"]
["GILROY_1_UNIT","GILROY COGEN AGGREGATE",120,"caiso_ccgt1","CISO","physical","gas_ct"]
["GILRPP_1_PL1X2","GILROY ENERGY CENTER UNITS 1&2 AGGREGATE",95.2,"caiso_peaker2","CISO","physical","gas_ct"]
["GILRPP_1_PL3X4","GILROY ENERGY CENTER, UNIT #3",46.2,"caiso_peaker2","CISO","physical","gas_ct"]
["GLDFGR_6_SOLAR1","PORTAL RIDGE B",20,"caiso_solar","CISO","physical","utility_pv"]
["GLDFGR_6_SOLAR2","PORTAL RIDGE C",11.4,"caiso_solar","CISO","physical","utility_pv"]
["GLDTWN_6_COLUM3","COLUMBIA 3",10,"caiso_solar","CISO","physical","utility_pv"]
["GLDTWN_6_SOLAR","RIO GRANDE",5,"caiso_solar","CISO","physical","utility_pv"]
["GLNARM_2_UNIT 5","GLENARM TURBINE 5",65.81,"caiso_peaker2","CISO","physical","gas_cc"]
["GLNARM_7_UNIT 1","GLEN ARM UNIT 1",22.07,"caiso_peaker2","CISO","physical","gas_ct"]
["GLNARM_7_UNIT 2","GLEN ARM UNIT 2",22.3,"caiso_peaker2","CISO","physical","gas_ct"]
["GLNARM_7_UNIT 3","GLEN ARM UNIT 3",44.83,"caiso_peaker1","CISO","physical","gas_ct"]
["GLNARM_7_UNIT 4","GLEN ARM UNIT 4",42.42,"caiso_peaker1","CISO","physical","gas_ct"]
["GLOW_6_SOLAR","ANTELOPE POWER PLANT",20,"caiso_solar","CISO","physical","utility_pv"]
["GOLETA_2_QF","GOLETA QFS",0.25,"caiso_small_hydro","CISO","physical","small_hydro"]
["GOLETA_2_VALBT1","VALLECITO ENERGY STORAGE",10,"caiso_li_battery","CISO","physical","hr_batteries"]
["GOLETA_6_ELLWOD","ELLWOOD ENERGY SUPPORT FACILITY",54,"caiso_peaker2","CISO","physical","gas_ct"]
["GOLETA_6_EXGEN","EXXON COMPANY USA",48.2,"caiso_chp","CISO","physical","cogen"]
["GOLETA_6_GAVOTA","NAN",9.9,"caiso_chp","CISO","physical","cogen"]
["GOLETA_6_TAJIGS","NAN",2.84,"caiso_biogas","CISO","physical","biogas"]
["GOLETA_6_TR2BM2","Tajiguas Biogas Engines",1.99,"caiso_biomass","CISO","physical","biogas"]
["GONZLS_6_UNIT","JOHNSON CANYON LANDFILL",1.42,"caiso_biomass","CISO","physical","biomass_wood"]
["GOOSLK_1_SOLAR1","GOOSE LAKE",12,"caiso_solar","CISO","physical","utility_pv"]
["GRADYW_5_GDYWD1","GRADY WIND",200,"caiso_wind","AZPS","specifiedimport","out_of_state_wind_AZNM"]
["GRAYSON_3","NAN",18,"ldwp_st","LADWP","physical","steam"]
["GRAYSON_4","NAN",40,"ldwp_st","LADWP","physical","steam"]
["GRAYSON_5","NAN",40,"ldwp_st","LADWP","physical","steam"]
["GRAYSON_9","NAN",48,"ldwp_peaker","LADWP","physical","gas_ct"]
["GRAYSON_CC","NAN",102,"ldwp_ccgt","LADWP","physical","gas_cc"]
["GRIDLY_6_SOLAR","GRIDLEY MAIN TWO",2.5,"caiso_solar","CISO","physical","utility_pv"]
["GRIFFI_2_LSPDYN","GRIFFITH ENERGY",570,"sw_ccgt","WALC","specifiedimport","gas_cc"]
["GRIZLY_1_UNIT 1","GRIZZLY HYDRO",20,"caiso_hydro","CISO","physical","hydro"]
["GRNITE_6_ESCBT1","EnerSmart El Cajon",3,"caiso_li_battery","CISO","physical","hr_batteries"]
["GRNLF1_1_PL1X2","Greenleaf 1",60,"caiso_peaker2","CISO","physical","gas_ct"]
["GRNLF1_1_UNITS","NAN",49.2,"caiso_peaker1","CISO","physical","gas_ct"]
["GRNLF2_1_UNIT","GREENLEAF II COGEN",49.2,"caiso_chp","CISO","physical","cogen"]
["GRNVLY_7_SCLAND","SANTA CRUZ LANDFILL GENERATING PLANT",3.04,"caiso_biomass","CISO","physical","biomass_wood"]
["GRSCRK_6_BGCKWW","BIG CREEK WATER WORKS - CEDAR FLAT",5,"caiso_small_hydro","CISO","physical","small_hydro"]
["GRZZLY_1_BERKLY","BERKELEY COGENERATION",26.35,"caiso_chp","CISO","physical","cogen"]
["GUERNS_6_HD3BM3","HANFORD DIGESTER GENSET 3",1,"caiso_biogas","CISO","physical","biogas"]
["GUERNS_6_SOLAR","GUERNSEY SOLAR STATION",20,"caiso_solar","CISO","physical","utility_pv"]
["GUERNS_6_VH2BM1","HANFORD DIGESTER GENSET 2",1,"caiso_biogas","CISO","physical","biogas"]
["GWFPWR_1_UNITS","HANFORD PEAKER PLANT",98.46,"caiso_peaker2","CISO","physical","gas_ct"]
["GYS5X6_7_UNITS","GEYSERS UNITS 5 & 6 AGGREGATE",98.43,"caiso_geothermal","CISO","physical","geothermal"]
["GYS7X8_7_UNITS","GEYSERS UNITS 7 & 8 AGGREGATE",95.8,"caiso_geothermal","CISO","physical","geothermal"]
["GYSRVL_7_WSPRNG","WARM SPRINGS HYDRO",3.75,"caiso_small_hydro","CISO","physical","small_hydro"]
["HAASPH_7_PL1X2","HAAS PH UNIT 1 & 2 AGGREGATE",144,"caiso_hydro","CISO","physical","hydro"]
["HALSEY_6_UNIT","HALSEY HYDRO",13.5,"caiso_small_hydro","CISO","physical","small_hydro"]
["HARBGN_7_UNITS","HARBOR COGEN COMBINED CYCLE",109.01,"caiso_ccgt2","CISO","physical","gas_cc"]
["HARBOR_CC","NAN",231,"ldwp_ccgt","LADWP","physical","gas_cc"]
["HARBOR_UNIT_10","NAN",49,"ldwp_peaker","LADWP","physical","gas_ct"]
["HARBOR_UNIT_11","NAN",49,"ldwp_peaker","LADWP","physical","gas_ct"]
["HARBOR_UNIT_12","NAN",49,"ldwp_peaker","LADWP","physical","gas_ct"]
["HARBOR_UNIT_13","NAN",49,"ldwp_peaker","LADWP","physical","gas_ct"]
["HARBOR_UNIT_14","NAN",49,"ldwp_peaker","LADWP","physical","gas_ct"]
["HARDWK_6_STWBM1","STILL WATER RANCH DAIRY",1,"caiso_biogas","CISO","physical","biogas"]
["HAT_CREEK_BIOENERGY__LLC","NAN",2.88,"caiso_biomass","CISO","physical","biomass_wood"]
["HATCR1_7_UNIT","HAT CREEK  #1",8.5,"caiso_small_hydro","CISO","physical","small_hydro"]
["HATCR2_7_UNIT","HAT CREEK  #2",8.5,"caiso_small_hydro","CISO","physical","small_hydro"]
["HATLOS_6_BWDHY1","BIDWELL DITCH",2,"caiso_hydro","CISO","physical","hydro"]
["HATLOS_6_LSCRK","LOST CREEK 1 & 2 HYDRO CONVERSION",1.7,"caiso_small_hydro","CISO","physical","small_hydro"]
["HATRDG_2_WIND","HATCHET RIDGE WIND FARM",102,"caiso_wind","CISO","physical","in_state_wind_north"]
["HAYNES_1","NAN",222,"ldwp_st","LADWP","physical","steam"]
["HAYNES_11","NAN",96,"ldwp_peaker","LADWP","physical","gas_ct"]
["HAYNES_12","NAN",96,"ldwp_peaker","LADWP","physical","gas_ct"]
["HAYNES_13","NAN",96,"ldwp_peaker","LADWP","physical","gas_ct"]
["HAYNES_14","NAN",96,"ldwp_peaker","LADWP","physical","gas_ct"]
["HAYNES_15","NAN",96,"ldwp_peaker","LADWP","physical","gas_ct"]
["HAYNES_16","NAN",96,"ldwp_peaker","LADWP","physical","gas_ct"]
["HAYNES_2","NAN",222,"ldwp_st","LADWP","physical","steam"]
["HAYNES_CC","NAN",590,"ldwp_ccgt","LADWP","physical","gas_cc"]
["HAYPRS_6_HAYHD1","HAYPRESS LOWER",5.8,"caiso_small_hydro","CISO","physical","small_hydro"]
["HAYPRS_6_HAYHD2","HAYPRESS MIDDLE",6.7,"caiso_small_hydro","CISO","physical","small_hydro"]
["HEBER_GEO_1","NAN",8.75,"iid_geothermal","IID","physical","geothermal"]
["HEBER_GEO_2","NAN",4.37,"iid_geothermal","IID","physical","geothermal"]
["HEBER_GEO_COMPLEX","NAN",52,"iid_geothermal","IID","physical","geothermal"]
["HEBER_II","NAN",16,"iid_geothermal","IID","physical","geothermal"]
["HEBER_SOLAR_PV","NAN",10,"iid_solar","IID","physical","utility_pv"]
["HEDGE_SOLAR","NAN",1.5,"banc_solar","BANC","physical","utility_pv"]
["HELMPG_7_UNIT 1","HELMS PUMP-GEN UNIT 1",407,"caiso_pumped_hydro","CISO","physical","pumped_storage"]
["HELMPG_7_UNIT 2","HELMS PUMP-GEN UNIT 2",407,"caiso_pumped_hydro","CISO","physical","pumped_storage"]
["HELMPG_7_UNIT 3","HELMS PUMP-GEN UNIT 3",404,"caiso_pumped_hydro","CISO","physical","pumped_storage"]
["HENRTA_6_HDEBT1","HENRIETTA D ENERGY STORAGE",10,"caiso_li_battery","CISO","physical","hr_batteries"]
["HENRTA_6_SOLAR1","LEMOORE 1",1.5,"caiso_solar","CISO","physical","utility_pv"]
["HENRTA_6_SOLAR2","WESTSIDE SOLAR POWER PV1",2,"caiso_solar","CISO","physical","utility_pv"]
["HENRTA_6_UNITA1","GWF HENRIETTA PEAKER PLANT UNIT 1",49.98,"caiso_peaker2","CISO","physical","gas_ct"]
["HENRTA_6_UNITA2","GWF HENRIETTA PEAKER PLANT UNIT 2",49.42,"caiso_peaker2","CISO","physical","gas_ct"]
["HENRTS_1_SOLAR","HENRIETTA SOLAR PROJECT",100,"caiso_solar","CISO","physical","utility_pv"]
["HERDLN_6_BYHSR1","Byron Highway Solar",5,"caiso_solar","CISO","physical","utility_pv"]
["HIDSRT_2_UNITS","HIGH DESERT POWER PROJECT AGGREGATE",830,"caiso_ccgt1","CISO","physical","gas_cc"]
["HIGGNS_1_COMBIE","COMBIE SOUTH",1.5,"caiso_small_hydro","CISO","physical","small_hydro"]
["HIGGNS_7_QFUNTS","HIGGNS_7_QFUNTS",0.5,"caiso_hydro","CISO","physical","hydro"]
["HIGHDS_2_H5SBT1","HIGH 5 SOLAR BESS",50,"caiso_li_battery","CISO","physical","hr_batteries"]
["HIGHDS_2_H5SSR1","HIGH 5 SOLAR",100,"caiso_solar","CISO","physical","utility_pv"]
["HILAND_7_YOLOWD","CLEAR LAKE UNIT 1",3.75,"caiso_hydro","CISO","physical","hydro"]
["HINSON_6_CARBGN","BP WILMINGTON CALCINER",30,"caiso_chp","CISO","physical","cogen"]
["HINSON_6_LBECH1","LONG BEACH UNIT 1",63,"caiso_peaker2","CISO","physical","gas_ct"]
["HINSON_6_LBECH2","LONG BEACH UNIT 2",63,"caiso_peaker2","CISO","physical","gas_ct"]
["HINSON_6_LBECH3","LONG BEACH UNIT 3",63,"caiso_peaker2","CISO","physical","gas_ct"]
["HINSON_6_LBECH4","LONG BEACH UNIT 4",63,"caiso_peaker2","CISO","physical","gas_ct"]
["HINSON_6_SERRGN","SOUTHEAST RESOURCE RECOVERY",34,"caiso_chp","CISO","physical","cogen"]
["HMLTBR_6_UNITS","HAMILTON BRANCH PH (AGGREGATE)",4.9000000000000004,"caiso_small_hydro","CISO","physical","small_hydro"]
["HNTGBH_2_PL1X3","HUNTINGTON BEACH ENERGY",673.8,"caiso_ccgt1","CISO","physical","gas_cc"]
["HNTGBH_7_UNIT 2","HUNTINGTON BEACH GEN STA. UNIT 2",226.84,"caiso_st","CISO","physical","steam"]
["HOLGAT_1_BORAX","U.S. BORAX, UNIT 1",48.2,"caiso_chp","CISO","physical","cogen"]
["HOLSTR_1_SOLAR","SAN BENITO SMART PARK",1.5,"caiso_solar","CISO","physical","utility_pv"]
["HOLSTR_1_SOLAR2","HOLLISTER SOLAR",1.5,"caiso_solar","CISO","physical","utility_pv"]
["HOOLEYDIGESTER1","NAN",0.2,"caiso_biomass","CISO","physical","biomass_wood"]
["HOOLEYDIGESTER2","NAN",0.2,"caiso_biomass","CISO","physical","biomass_wood"]
["HOOVER_2_MWDDYN","HOOVER",249,"caiso_hydro","WALC","specifiedimport","hydro"]
["HOOVER_2_VEADYN","HOOVER",16,"caiso_hydro","WALC","specifiedimport","hydro"]
["HUDSON_RANCH_I","NAN",64.8,"iid_geothermal","IID","physical","geothermal"]
["HUMBPP_1_UNITS3","HUMBOLDT BAY GENERATING STATION 3",65.08,"caiso_reciprocating_engine","CISO","physical","ice"]
["HUMBPP_6_UNITS","HUMBOLDT BAY GENERATING STATION 1",97.62,"caiso_reciprocating_engine","CISO","physical","ice"]
["HUMBSB_1_QF","SMALL QF AGGREGATION - TRINITY",1.25,"caiso_hydro","CISO","physical","hydro"]
["HUMMINGBIRDSTORAGE","NAN",75,"caiso_li_battery","CISO","physical","hr_batteries"]
["HURON_6_SOLAR","HURON SOLAR STATION",20,"caiso_solar","CISO","physical","utility_pv"]
["HYTTHM_2_UNITS","HYATT-THERMALITO PUMP-GEN (AGGREGATE)",933.1,"caiso_hydro","CISO","physical","hydro"]
["IGNACO_1_QF","SMALL QF AGGREGATION - VALLEJO/DINSMORE",0.5,"caiso_chp","CISO","physical","cogen"]
["IMPERIAL_VALLEYIVSC2","NAN",20,"iid_solar","IID","physical","utility_pv"]
["INDIGO_1_UNIT 1","INDIGO PEAKER UNIT 1",45,"caiso_peaker2","CISO","physical","gas_ct"]
["INDIGO_1_UNIT 2","INDIGO PEAKER UNIT 2",45,"caiso_peaker2","CISO","physical","gas_ct"]
["INDIGO_1_UNIT 3","INDIGO PEAKER UNIT 3",45,"caiso_peaker2","CISO","physical","gas_ct"]
["INDVLY_1_UNITS","INDIAN VALLEY HYDRO",3.01,"caiso_small_hydro","CISO","physical","small_hydro"]
["INSKIP_2_UNIT","INSKIP HYDRO",8,"caiso_hydro","CISO","physical","hydro"]
["INTERMOUNTAIN_1","NAN",849.97,"ldwp_coal","LADWP","physical","coal"]
["INTERMOUNTAIN_2","NAN",849.97,"ldwp_coal","LADWP","physical","coal"]
["INTKEP_2_UNITS","CCSF HETCH_HETCHY HYDRO AGGREGATE",405,"caiso_hydro","CISO","physical","hydro"]
["INTMNT_3_ANAHEIM","INTERMOUNTAIN POWER PROJECT",236,"ldwp_coal","LADWP","specifiedimport","coal"]
["INTMNT_3_PASADENA","INTERMOUNTAIN POWER PROJECT",107,"ldwp_coal","LADWP","specifiedimport","coal"]
["INTMNT_3_RIVERSIDE","IPPDYN",136,"ldwp_coal","LADWP","specifiedimport","coal"]
["INTTRB_6_UNIT","INTERNATIONAL TURBINE RESEARCH",18.399999999999999,"caiso_wind","CISO","physical","in_state_wind_north"]
["IVANPA_1_UNIT1","IVANPAH 1",126,"caiso_solar","CISO","physical","utility_pv"]
["IVANPA_1_UNIT2","IVANPAH 2",133,"caiso_solar","CISO","physical","utility_pv"]
["IVANPA_1_UNIT3","IVANPAH 3",133,"caiso_solar","CISO","physical","utility_pv"]
["IVSLR2_2_SM2SR1","SILVER RIDGE MOUNT SIGNAL 2",150,"caiso_solar","CISO","physical","utility_pv"]
["IVSLRP_2_SOLAR1","SILVER RIDGE MOUNT SIGNAL",200,"caiso_solar","CISO","physical","utility_pv"]
["IVWEST_2_SOLAR1","IMPERIAL VALLEY WEST ( Q # 608)",150,"caiso_solar","CISO","physical","utility_pv"]
["JACMSR_1_JACSR1","JACUMBA SOLAR FARM",20,"caiso_solar","CISO","physical","utility_pv"]
["JANCRK_6_RCABT1","Redwood Coast Airport Microgrid",1.75,"caiso_li_battery","CISO","physical","hr_batteries"]
["JAVASR_1_JAVSR1","NAN",13.5,"caiso_solar","CISO","physical","utility_pv"]
["JAWBNE_2_NSRWND","NORTH SKY RIVER WIND PROJECT",160,"caiso_wind","CISO","physical","in_state_wind_south"]
["JAWBNE_2_SRWND","NAN",77,"caiso_wind","CISO","physical","in_state_wind_south"]
["JAWBNE_2_SRWWD2","Sky River Wind Repower B",30.2,"caiso_wind","CISO","physical","in_state_wind_south"]
["JAYNE_6_WLSLR","WESTLANDS SOLAR FARM PV 1",18,"caiso_solar","CISO","physical","utility_pv"]
["JJ_ELMORE","NAN",42,"iid_geothermal","IID","physical","geothermal"]
["JOANEC_2_STABT1","SANTA ANA STORAGE 1",20,"caiso_li_battery","CISO","physical","hr_batteries"]
["JOANEC_2_STABT2","Santa Ana Storage 2",20,"caiso_li_battery","CISO","physical","hr_batteries"]
["JOHANN_2_JOSBT1","JOHANNA STORAGE 1",10,"caiso_li_battery","CISO","physical","hr_batteries"]
["JOHANN_2_JOSBT2","JOHANNA STORAGE 2",10,"caiso_li_battery","CISO","physical","hr_batteries"]
["JOHANN_2_OCEBT2","ORANGE COUNTY ENERGY STORAGE 2",9,"caiso_li_battery","CISO","physical","hr_batteries"]
["JOHANN_2_OCEBT3","ORANGE COUNTY ENERGY STORAGE 3",6,"caiso_li_battery","CISO","physical","hr_batteries"]
["K_ROAD_MOAPA","NAN",250,"ldwp_solar","LADWP","physical","utility_pv"]
["K_ROAD_MODESTO","NAN",26.32,"banc_solar","BANC","physical","utility_pv"]
["KANSAS_6_SOLAR","RE KANSAS SOUTH",20,"caiso_solar","CISO","physical","utility_pv"]
["KEARNY_6_NESBT1","KEARNY NORTH ENERGY STORAGE",10,"caiso_li_battery","CISO","physical","hr_batteries"]
["KEARNY_6_SESBT2","KEARNY SOUTH ENERGY STORAGE",10,"caiso_li_battery","CISO","physical","hr_batteries"]
["KEKAWK_6_UNIT","STS HYDROPOWER LTD. (KEKAWAKA)",5.5,"caiso_small_hydro","CISO","physical","small_hydro"]
["KELSO_2_UNITS","MARIPOSA ENERGY",198.03,"caiso_peaker1","CISO","physical","gas_ct"]
["KELYRG_6_UNIT","KELLY RIDGE HYDRO",11,"caiso_small_hydro","CISO","physical","small_hydro"]
["KERKH2_7_UNIT 1","KERKHOFF PH 2 UNIT #1",153.9,"caiso_hydro","CISO","physical","hydro"]
["KERMAN_6_SOLAR1","FRESNO SOLAR SOUTH",1.5,"caiso_solar","CISO","physical","utility_pv"]
["KERMAN_6_SOLAR2","FRESNO SOLAR WEST",1.5,"caiso_solar","CISO","physical","utility_pv"]
["KERNFT_1_UNITS","KERN FRONT LIMITED",52.4,"caiso_chp","CISO","physical","cogen"]
["KERNRG_1_UNITS","SOUTH BELRIDGE COGEN FACILITY",55.2,"caiso_chp","CISO","physical","cogen"]
["KERRGN_1_UNIT 1","KERN RIVER HYDRO UNITS 1-4 AGGREGATE",25.6,"caiso_hydro","CISO","physical","hydro"]
["KIEFER_LANDFILL_1_1","NAN",3.5,"caiso_biomass","BANC","physical","biogas"]
["KIEFER_LANDFILL_1_2","NAN",3.5,"caiso_biomass","BANC","physical","biogas"]
["KIEFER_LANDFILL_1_3","NAN",3.5,"caiso_biomass","BANC","physical","biogas"]
["KIEFER_LANDFILL_2_1","NAN",3.5,"caiso_biomass","BANC","physical","biogas"]
["KIEFER_LANDFILL_2_2","NAN",3.5,"caiso_biomass","BANC","physical","biogas"]
["KILARC_2_UNIT 1","KILARC HYDRO",1.5,"caiso_small_hydro","CISO","physical","small_hydro"]
["KINGCO_1_KINGBR","KINGSBURG COGEN",34.5,"caiso_chp","CISO","physical","cogen"]
["KINGRV_7_UNIT 1","KINGS RIVER HYDRO UNIT 1",51.2,"caiso_hydro","CISO","physical","hydro"]
["KIRKER_7_KELCYN","KELLER CANYON LANDFILL GEN FACILICITY",3.56,"caiso_biomass","CISO","physical","biomass_wood"]
["KNGBRD_2_SOLAR1","KINGBIRD SOLAR A",20,"caiso_solar","CISO","physical","utility_pv"]
["KNGBRD_2_SOLAR2","KINGBIRD SOLAR B",20,"caiso_solar","CISO","physical","utility_pv"]
["KNGBRG_1_KBSLR1","KINGSBURG1",1.5,"caiso_solar","CISO","physical","utility_pv"]
["KNGBRG_1_KBSLR2","KINGSBURG2",1.5,"caiso_solar","CISO","physical","utility_pv"]
["KNGCTY_6_UNITA1","KING CITY ENERGY CENTER, UNIT 1",44.6,"caiso_peaker2","CISO","physical","gas_ct"]
["KNTSTH_6_SOLAR","KENT SOUTH",20,"caiso_solar","CISO","physical","utility_pv"]
["KRAMER_1_KJ5SR5","NAN",30,"caiso_solar","CISO","physical","utility_pv"]
["KRAMER_1_SEGS37","NAN",72.057623090000007,"caiso_solar","CISO","physical","utility_pv"]
["KRAMER_1_SEGSR3","NAN",30,"caiso_solar","CISO","physical","utility_pv"]
["KRAMER_1_SEGSR4","NAN",30.881838470000002,"caiso_solar","CISO","physical","utility_pv"]
["KRAMER_2_SEGS 8","KRAMER JUNCTION 8",80,"caiso_solar","CISO","physical","utility_pv"]
["KRAMER_2_SEGS 9","KRAMER JUNCTION 9",80,"caiso_solar","CISO","physical","utility_pv"]
["KRAMER_2_SEGS89","NAN",80,"caiso_solar","CISO","physical","utility_pv"]
["KRNCNY_6_UNIT","KERN CANYON POWERHOUSE",10.6,"caiso_small_hydro","CISO","physical","small_hydro"]
["KYCORA_6_KMSBT1","KEARNY MESA STORAGE",1,"caiso_li_battery","CISO","physical","hr_batteries"]
["LACIEN_2_VENICE","MWD VENICE HYDROELECTRIC RECOVERY PLANT",9.9499999999999993,"caiso_hydro","CISO","physical","hydro"]
["LAGBEL_6_QF","NAN",0.35,"caiso_chp","CISO","physical","cogen"]
["LAKE","NAN",51,"ldwp_peaker","LADWP","physical","gas_ct"]
["LAKESIDE_BIOGAS_LLC","NAN",3,"caiso_biogas","CISO","physical","biogas"]
["LAKHDG_6_UNIT 1","LAKE HODGES PUMPED STORAGE-UNIT1",20,"caiso_pumped_hydro","CISO","physical","pumped_storage"]
["LAKHDG_6_UNIT 2","LAKE HODGES PUMPED STORAGE-UNIT2",20,"caiso_pumped_hydro","CISO","physical","pumped_storage"]
["LAMONT_1_SOLAR1","REGULUS SOLAR",60,"caiso_solar","CISO","physical","utility_pv"]
["LAMONT_1_SOLAR2","REDWOOD SOLAR FARM 4",20,"caiso_solar","CISO","physical","utility_pv"]
["LAMONT_1_SOLAR3","WOODMERE SOLAR FARM",14.99,"caiso_solar","CISO","physical","utility_pv"]
["LAMONT_1_SOLAR4","HAYWORTH SOLAR FARM",26.66,"caiso_solar","CISO","physical","utility_pv"]
["LAMONT_1_SOLAR5","REDCREST SOLAR FARM",16.66,"caiso_solar","CISO","physical","utility_pv"]
["LAPAC_6_UNIT","LOUISIANA PACIFIC SAMOA",20,"caiso_biomass","CISO","physical","biomass_wood"]
["LAPLMA_2_UNIT 1","LA PALOMA GENERATING PLANT UNIT #1",267,"caiso_ccgt1","CISO","physical","gas_cc"]
["LAPLMA_2_UNIT 2","LA PALOMA GENERATING PLANT UNIT #2",266,"caiso_ccgt1","CISO","physical","gas_cc"]
["LAPLMA_2_UNIT 3","LA PALOMA GENERATING PLANT UNIT #3",266,"caiso_ccgt1","CISO","physical","gas_cc"]
["LAPLMA_2_UNIT 4","LA PALOMA GENERATING PLANT, UNIT #4",267,"caiso_ccgt1","CISO","physical","gas_cc"]
["LARKSP_6_UNIT 1","LARKSPUR PEAKER UNIT 1",46.1,"caiso_peaker1","CISO","physical","gas_ct"]
["LARKSP_6_UNIT 2","LARKSPUR PEAKER UNIT 2",47.98,"caiso_peaker1","CISO","physical","gas_ct"]
["LAROA2_2_UNITA1","LR2",322,"caiso_ccgt2","CISO","physical","gas_cc"]
["LASSEN_6_UNITS","HONEY LAKE POWER",30,"caiso_biomass","CISO","physical","biomass_wood"]
["LAWRNC_7_SUNYVL","CITY OF SUNNYVALE UNIT 1 AND 2",0.3,"caiso_chp","CISO","physical","cogen"]
["LEATHERS","NAN",42,"iid_geothermal","IID","physical","geothermal"]
["LEBECS_2_UNITS","PASTORIA ENERGY FACILITY",799.47,"caiso_ccgt1","CISO","physical","gas_cc"]
["LECEF_1_UNITS","LOS ESTEROS ENERGY FACILITY AGGREGATE",309.83999999999997,"caiso_ccgt2","CISO","physical","gas_cc"]
["LECONT_2_LESBT1","LeConte Energy Storage",125,"caiso_li_battery","CISO","physical","hr_batteries"]
["LEPRFD_1_KANSAS","KANSAS",20,"caiso_solar","CISO","physical","utility_pv"]
["LGHTHP_6_ICEGEN","CARSON COGENERATION",48,"caiso_ccgt1","CISO","physical","gas_ct"]
["LHILLS_6_SOLAR1","LOST HILLS SOLAR",20,"caiso_solar","CISO","physical","utility_pv"]
["LILIAC_6_SOLAR","MESA CREST",3,"caiso_solar","CISO","physical","utility_pv"]
["LITLRK_6_GBCSR1","GREEN BEANWORKS C",3,"caiso_solar","CISO","physical","utility_pv"]
["LITLRK_6_SEPV01","GESTAMP SOLAR 1",2,"caiso_solar","CISO","physical","utility_pv"]
["LITLRK_6_SOLAR1","LANCASTER LITTLE ROCK C",5,"caiso_solar","CISO","physical","utility_pv"]
["LITLRK_6_SOLAR2","PALMDALE 18",2,"caiso_solar","CISO","physical","utility_pv"]
["LITLRK_6_SOLAR3","ONE TEN PARTNERS",2,"caiso_solar","CISO","physical","utility_pv"]
["LITLRK_6_SOLAR4","LITTLE ROCK PHAM SOLAR",3,"caiso_solar","CISO","physical","utility_pv"]
["LIVEOK_6_SOLAR","HARRIS",1.25,"caiso_solar","CISO","physical","utility_pv"]
["LIVOAK_1_UNIT 1","LIVE OAK LIMITED",49.7,"caiso_peaker2","CISO","physical","gas_ct"]
["LLAGAS","NAN",20,"caiso_li_battery","CISO","physical","hr_batteries"]
["LMBEPK_2_UNITA1","LAMBIE ENERGY CENTER, UNIT #1",47.5,"caiso_peaker2","CISO","physical","gas_ct"]
["LMBEPK_2_UNITA2","CREED ENERGY CENTER, UNIT #1",47.6,"caiso_peaker2","CISO","physical","gas_ct"]
["LMBEPK_2_UNITA3","GOOSE HAVEN ENERGY CENTER, UNIT #1",47.4,"caiso_peaker2","CISO","physical","gas_ct"]
["LMEC_1_PL1X3","LOS MEDANOS ENERGY CENTER AGGREGATE",580,"caiso_ccgt1","CISO","physical","gas_cc"]
["LNCSTR_6_CREST","NAN",5.5,"caiso_solar","CISO","physical","utility_pv"]
["LNCSTR_6_SOLAR2","SEPV SIERRA NGR",2.75,"caiso_solar","CISO","physical","utility_pv"]
["LOCKFD_1_BEARCK","BEAR CREEK SOLAR",1.5,"caiso_solar","CISO","physical","utility_pv"]
["LOCKFD_1_KSOLAR","KETTLEMAN SOLAR",1,"caiso_solar","CISO","physical","utility_pv"]
["LODI25_2_UNIT 1","LODI GAS TURBINE",25,"caiso_peaker2","CISO","physical","gas_ct"]
["LODIEC_2_PL1X2","LODI ENERGY CENTER",302.58,"caiso_ccgt1","CISO","physical","gas_cc"]
["LOTUS_6_LSFSR1","LOTUS SOLAR FARM",50,"caiso_solar","CISO","physical","utility_pv"]
["LOWGAP_1_SUPHR","MILL & SULPHUR CREEK HYDRO",0.99,"caiso_small_hydro","CISO","physical","small_hydro"]
["LOWGAP_7_QFUNTS","MATTHEWS DAM HYDRO",1.35,"caiso_hydro","CISO","physical","hydro"]
["LTBEAR_1_LB3SR3","LITTLE BEAR 3 SOLAR",20,"caiso_solar","CISO","physical","utility_pv"]
["LTBEAR_1_LB4SR4","LITTLE BEAR 4",50,"caiso_solar","CISO","physical","utility_pv"]
["LTBEAR_1_LB4SR5","LITTLE BEAR 4 SOLAR 5",50,"caiso_solar","CISO","physical","utility_pv"]
["LTBERA_1_LB1SR1","LITTLE BEAR SOLAR 1",40,"caiso_solar","CISO","physical","utility_pv"]
["MAGNLA_6_ANAHEIM","MAGNOLIA POWER PLANT ANAHEIM",109,"ldwp_ccgt","LADWP","specifiedimport","gas_cc"]
["MAGNLA_6_CERRITOS","MAGNOLIA POWER PLANT CERRITOS",12,"ldwp_ccgt","LADWP","specifiedimport","gas_cc"]
["MAGNLA_6_COLTON","MAGNOLIA POWER PROJECT",12,"caiso_ccgt1","LADWP","specifiedimport","gas_cc"]
["MAGNLA_6_PASADENA","MAGNOLIA POWER PLANT - PASADENA",18,"caiso_ccgt1","LADWP","specifiedimport","gas_cc"]
["MAGNOLIA_CC","MAGNOLIA",301,"ldwp_ccgt","LADWP","physical","gas_cc"]
["MAGUND_1_BKISR1","BAKERSFIELD INDUSTRIAL 1",1,"caiso_solar","CISO","physical","utility_pv"]
["MAGUND_1_BKSSR2","BAKERSFIELD SOLAR 1",5.25,"caiso_solar","CISO","physical","utility_pv"]
["MALAGA_1_PL1X2","MALAGA POWER AGGREGATE",96,"caiso_peaker1","CISO","physical","gas_ct"]
["MALCHQ_7_UNIT 1","MALACHA HYDRO L.P.",32.5,"caiso_hydro","CISO","physical","hydro"]
["MALIN_5_BPADYN","MALIN_5_BPADYN",250,"CAISO_Imports","BPAT","specifiedimport","n/a"]
["MALIN_5_GCPDDYN","GRANT COUNTY HYDRO FACILITIES",125,"caiso_hydro","BPAT","specifiedimport","hydro"]
["MALIN_5_HERMDYN","MALIN_5_HERMDYN",308,"nw_ccgt","BPAT","specifiedimport","gas_cc"]
["MALIN_5_IBERDR","IBERDROLA CENTROID SYTEM RESOURCE",100,"caiso_wind","BPAT","specifiedimport","out_of_state_wind_WAOR"]
["MALIN_5_INHRED","CSF COLUMBIA GORGE",50,"caiso_wind","BPAT","specifiedimport","out_of_state_wind_WAOR"]
["MALIN_5_INHRPG","BIGLOW CANYON",50,"caiso_wind","BPAT","specifiedimport","out_of_state_wind_WAOR"]
["MANTEC_1_ML1SR1","MANTECA  LAND 1",1,"caiso_solar","CISO","physical","utility_pv"]
["MANZNA_2_WIND","MANZANA WIND",189,"caiso_wind","CISO","physical","in_state_wind_south"]
["MARCPW_6_SOLAR1","MARICOPA WEST SOLAR PV",20,"caiso_solar","CISO","physical","utility_pv"]
["MARTIN_1_SUNSET","SUNSET RESERVOIR - NORTH BASIN",4.5,"caiso_solar","CISO","physical","utility_pv"]
["MCARTH_6_FRIVRB","FALL RIVER MILLS PROJECT B",1.5,"caiso_solar","CISO","physical","utility_pv"]
["MCCALL_1_QF","FISH WATER",0.52,"caiso_small_hydro","CISO","physical","small_hydro"]
["MCCLELLAN_1","NAN",74,"banc_peaker","BANC","physical","gas_ct"]
["MCCLURE_1","NAN",62,"banc_peaker","BANC","physical","gas_ct"]
["MCCLURE_2","NAN",62,"banc_peaker","BANC","physical","gas_ct"]
["MCSWAN_6_UNITS","MC SWAIN HYDRO",10,"caiso_hydro","CISO","physical","hydro"]
["MDFKRL_2_PROJCT","MIDDLE FORK AND RALSTON PSP",210,"caiso_hydro","CISO","physical","hydro"]
["MELROSESTORAGE1","NAN",20,"caiso_li_battery","CISO","physical","hr_batteries"]
["MENBIO_6_RENEW1","CALRENEW - 1(A)",5,"caiso_solar","CISO","physical","utility_pv"]
["MENBIO_6_UNIT","NAN",25,"caiso_biomass","CISO","physical","biomass_wood"]
["MERCED_1_SOLAR1","MISSION SOLAR",1.5,"caiso_solar","CISO","physical","utility_pv"]
["MERCED_1_SOLAR2","MERCED SOLAR",1.5,"caiso_solar","CISO","physical","utility_pv"]
["MERCFL_6_UNIT","MERCED FALLS POWERHOUSE",3.5,"caiso_small_hydro","CISO","physical","small_hydro"]
["MESAP_1_QF","SMALL QF AGGREGATION - SAN LUIS OBISPO",1,"caiso_chp","CISO","physical","cogen"]
["MESAS_2_QF","NAN",2.9,"caiso_chp","CISO","physical","cogen"]
["MESQUITE_RECOVERY","NAN",27,"caiso_biomass","IID","physical","biogas"]
["METEC_2_PL1X3","METCALF ENERGY CENTER",593.16,"caiso_ccgt1","CISO","physical","gas_cc"]
["MIDSUN_1_PL1X2","North Midway Cogens 5A 5B",9.6,"caiso_peaker2","CISO","physical","gas_ct"]
["MIDWD_2_WIND1","NAN",7.81,"caiso_wind","CISO","physical","in_state_wind_south"]
["MIDWD_2_WIND2","CORAM ENERGY",3,"caiso_wind","CISO","physical","in_state_wind_south"]
["MIDWD_6_WNDLND","NAN",7.45,"caiso_wind","CISO","physical","in_state_wind_south"]
["MIDWD_7_CORAMB","CELLC 7.5 MW TEHACHAPI PROJECT",7.5,"caiso_wind","CISO","physical","in_state_wind_south"]
["MIDWY3_2_MDSSR1","MIDWAY SOUTH SOLAR FARM",20,"iid_solar","IID","specifiedimport","utility_pv"]
["MIDWYS_2_MIDSL1","MIDWAY SOLAR FARM",49.9,"iid_solar","IID","specifiedimport","utility_pv"]
["MILFORD_WIND_1_1","NAN",145,"nw_wind","LADWP","physical","out_of_state_wind_WYID"]
["MILFORD_WIND_1_2","NAN",58.5,"nw_wind","LADWP","physical","out_of_state_wind_WYID"]
["MILFORD_WIND_2","NAN",100,"nw_wind","LADWP","physical","out_of_state_wind_WYID"]
["MILFRD_7_PASADENA","MILFORD I",5,"nw_wind","LADWP","specifiedimport","out_of_state_wind_WYID"]
["MIRLOM_2_CORONA","MWD CORONA HYDROELECTRIC RECOVERY PLANT",2.85,"caiso_hydro","CISO","physical","hydro"]
["MIRLOM_2_LNDFL","MILLIKEN LANDFILL SOLAR",3,"caiso_solar","CISO","physical","utility_pv"]
["MIRLOM_2_MLBBTA","MIRA LOMA BESS A",10,"caiso_li_battery","CISO","physical","hr_batteries"]
["MIRLOM_2_MLBBTB","MIRA LOMA BESS B",10,"caiso_li_battery","CISO","physical","hr_batteries"]
["MIRLOM_2_ONTARO","ONTARIO RT SOLAR",5.5,"caiso_solar","CISO","physical","utility_pv"]
["MIRLOM_2_RTS032","SPVP032",1.5,"caiso_solar","CISO","physical","utility_pv"]
["MIRLOM_2_RTS033","SPVP033",1,"caiso_solar","CISO","physical","utility_pv"]
["MIRLOM_2_TEMESC","MWD TEMESCAL HYDROELECTRIC RECOVERY PLAN",2.85,"caiso_hydro","CISO","physical","hydro"]
["MIRLOM_6_PEAKER","MIRA LOMA PEAKER",46,"caiso_peaker1","CISO","physical","gas_ct"]
["MIRLOM_7_MWDLKM","LAKE MATHEWS HYDROELECTRIC RECOVERY PLAN",5,"caiso_hydro","CISO","physical","hydro"]
["MISSIX_1_QF","SMALL QF AGGREGATION - SAB FRABCUSCI",1,"caiso_chp","CISO","physical","cogen"]
["MKTRCK_1_UNIT 1","MCKITTRICK LIMITED",47.49,"caiso_peaker2","CISO","physical","gas_ct"]
["MLPTAS_7_QFUNTS","MLPTAS_7_QFUNTS",1,"caiso_chp","CISO","physical","cogen"]
["MM_SD_MIRAMAR2","NAN",1.6,"caiso_biomass","CISO","physical","biomass_wood"]
["MNDALY_6_MCGRTH","MCGRATH BEACH PEAKER",47.2,"caiso_peaker1","CISO","physical","gas_ct"]
["MNDOTA_1_SOLAR1","NORTH STAR SOLAR 1",60,"caiso_solar","CISO","physical","utility_pv"]
["MNDOTA_1_SOLAR2","CITIZEN SOLAR B",5,"caiso_solar","CISO","physical","utility_pv"]
["MNOCAERSSTORAGE","NAN",10,"caiso_li_battery","CISO","physical","hr_batteries"]
["MOJAVE_1_SIPHON","MOJAVE SIPHON POWER PLANT",14.36,"caiso_hydro","CISO","physical","hydro"]
["MOJAVW_2_SOLAR","MOJAVE WEST",20,"caiso_solar","CISO","physical","utility_pv"]
["MONLTH_6_BATTRY","TEHACHAPI STORAGE PROJECT",7.99,"caiso_li_battery","CISO","physical","hr_batteries"]
["MONLTS_2_MONWD4","NAN",6.1432232100000004,"caiso_wind","CISO","physical","in_state_wind_south"]
["MONLTS_2_MONWD5","NAN",4.04,"caiso_wind","CISO","physical","in_state_wind_south"]
["MONLTS_2_MONWD6","NAN",5.25,"caiso_wind","CISO","physical","in_state_wind_south"]
["MONLTS_2_MONWD7","NAN",6.1561563110000002,"caiso_wind","CISO","physical","in_state_wind_south"]
["MONTPH_7_UNITS","MONTICELLO HYDRO AGGREGATE",12.5,"caiso_small_hydro","CISO","physical","small_hydro"]
["MOORPK_2_ACOBT1","ACORN I BESS",2,"caiso_li_battery","CISO","physical","hr_batteries"]
["MOORPK_2_CALABS","CALABASAS GAS-TO-ENERGY FACILITY",6.96,"caiso_biomass","CISO","physical","biomass_wood"]
["MOORPK_6_QF","MOORPARK QFS",0.8,"caiso_small_hydro","CISO","physical","small_hydro"]
["MORWD_6_QF","MORWIND",38.159999999999997,"caiso_wind","CISO","physical","in_state_wind_south"]
["MOSSLD_1_QF","SMALL QF AGGREGATION - SANTA CRUZ",1,"caiso_chp","CISO","physical","cogen"]
["MOSSLD_2_PSP1","MOSS LANDING POWER BLOCK 1",510,"caiso_ccgt1","CISO","physical","gas_cc"]
["MOSSLD_2_PSP2","MOSS LANDING POWER BLOCK 2",510,"caiso_ccgt1","CISO","physical","gas_cc"]
["MRCHNT_2_PL1X3","DESERT STAR ENERGY CENTER",494.58,"caiso_ccgt1","CISO","physical","gas_cc"]
["MRGT_6_MEF2","MIRAMAR ENERGY FACILITY II",44,"caiso_peaker1","CISO","physical","gas_ct"]
["MRGT_6_MMAREF","MIRAMAR ENERGY FACILITY",45,"caiso_peaker1","CISO","physical","gas_ct"]
["MRGT_6_TGEBT1","TOP GUN ENERGY STORAGE",30,"caiso_li_battery","CISO","physical","hr_batteries"]
["MRLSDS_6_SOLAR1","MORELOS SOLAR",15,"caiso_solar","CISO","physical","utility_pv"]
["MSHGTS_6_MMARLF","MIRAMAR LANDFILL",5,"caiso_biomass","CISO","physical","biomass_wood"]
["MSOLAR_2_SOLAR1","MESQUITE SOLAR 1",165,"caiso_solar","CISO","physical","utility_pv"]
["MSOLAR_2_SOLAR2","MESQUITE SOLAR 2",100.81,"caiso_solar","CISO","physical","utility_pv"]
["MSOLAR_2_SOLAR3","MESQUITE SOLAR 3, LLC",152,"caiso_solar","CISO","physical","utility_pv"]
["MSQUIT_5_SERDYN","MSQUIT_5_SERDYN",625,"sw_ccgt","SRP","specifiedimport","gas_ct"]
["MSSION_2_QF","SMALL QF AGGREGATION - SAN DIEGO",2,"caiso_small_hydro","CISO","physical","small_hydro"]
["MSTANG_2_MTGBT1","MUSTANG 1 BESS",75,"caiso_li_battery","CISO","physical","hr_batteries"]
["MSTANG_2_SOLAR","MUSTANG",30,"caiso_solar","CISO","physical","utility_pv"]
["MSTANG_2_SOLAR3","MUSTANG 3",40,"caiso_solar","CISO","physical","utility_pv"]
["MSTANG_2_SOLAR4","MUSTANG 4",30,"caiso_solar","CISO","physical","utility_pv"]
["MTHSE_G_38380_1","NAN",20,"banc_solar","BANC","physical","utility_pv"]
["MTNPOS_1_UNIT","MT.POSO COGENERATION CO.",46.64,"caiso_biomass","CISO","physical","cogen"]
["MTWIND_1_MVPWD1","Mountain View Power Project I Repower",66.599999999999994,"caiso_wind","CISO","physical","in_state_wind_south"]
["MTWIND_1_UNIT 1","MOUNTAIN VIEW POWER PROJECT I",44.4,"caiso_wind","CISO","physical","in_state_wind_south"]
["MTWIND_1_UNIT 2","MOUNTAIN VIEW POWER PROJECT II",22.2,"caiso_wind","CISO","physical","in_state_wind_south"]
["MTWIND_1_UNIT 3","MOUNTAIN VIEW POWER PROJECT III",22.44,"caiso_wind","CISO","physical","in_state_wind_south"]
["MURRAY_6_UNIT","GROSSMONT HOSPITAL",4.12,"caiso_chp","CISO","physical","cogen"]
["NAPA_RECYCLING_BIOMASS_PLANT","NAN",1,"caiso_biomass","CISO","physical","biomass_wood"]
["NAROW1_2_UNIT","NARROWS PH 1 UNIT",12,"caiso_small_hydro","CISO","physical","small_hydro"]
["NAROW2_2_UNIT","NARROWS POWERHOUSE UNIT 2",55,"caiso_hydro","CISO","physical","hydro"]
["NAVYII_2_UNITS","COSO POWER DEVELOPER (NAVY II) AGGREGATE",90,"caiso_geothermal","CISO","physical","geothermal"]
["NCPA_7_GP1UN1","NCPA GEO PLANT 1 UNIT 1",38.85,"caiso_geothermal","CISO","physical","geothermal"]
["NCPA_7_GP1UN2","NCPA GEO PLANT 1 UNIT 2",39.94,"caiso_geothermal","CISO","physical","geothermal"]
["NCPA_7_GP2UN3","NCPA GEO PLANT 2 UNIT 3",42.42,"caiso_geothermal","CISO","physical","geothermal"]
["NCPA_7_GP2UN4","NCPA GEO PLANT 2 UNIT 4",52.73,"caiso_geothermal","CISO","physical","geothermal"]
["NEENACH_SOLAR","NAN",3,"ldwp_solar","LADWP","physical","utility_pv"]
["NEENCH_6_SOLAR","ALPINE SOLAR",66,"caiso_solar","CISO","physical","utility_pv"]
["NEWARK_1_QF","NEWARK 1 QF",0.1,"caiso_chp","CISO","physical","cogen"]
["NGILAA_5_SDGDYN","NGILAA_5_SDGDYN",57,"sw_ct","AZPS","specifiedimport","gas_ct"]
["NHOGAN_6_UNITS","NEW HOGAN PH AGGREGATE",4,"caiso_hydro","CISO","physical","hydro"]
["NILAND_1","NAN",50,"iid_peaker","IID","physical","gas_ct"]
["NILAND_2","NAN",50,"iid_peaker","IID","physical","gas_ct"]
["NIMTG_6_NICOGN","NORTH ISLAND COGEN",4.05,"caiso_chp","CISO","physical","cogen"]
["NIMTG_6_NIQF","NAN",42.7,"caiso_chp","CISO","physical","cogen"]
["NORTH_BRAWLEY_01","NAN",16,"iid_geothermal","IID","physical","geothermal"]
["NORTH_BRAWLEY_02","NAN",16,"iid_geothermal","IID","physical","geothermal"]
["NORTH_BRAWLEY_03","NAN",16,"iid_geothermal","IID","physical","geothermal"]
["NORTH_BRAWLEY_04","NAN",16,"iid_geothermal","IID","physical","geothermal"]
["NORTH_BRAWLEY_05","NAN",16,"iid_geothermal","IID","physical","geothermal"]
["NORTH_BRAWLEY_06","NAN",16,"iid_geothermal","IID","physical","geothermal"]
["NORTH_FORK_COMMUNITY_POWER","NAN",2,"caiso_biomass","CISO","physical","biomass_wood"]
["NOVATO_6_LNDFL","REDWOOD RENEWABLE ENERGY",3.9,"caiso_biogas","CISO","physical","biogas"]
["NWCSTL_7_UNIT 1","NEWCASTLE HYDRO",12,"caiso_hydro","CISO","physical","hydro"]
["NZWIND_2_WDSTR5","WINDSTREAM 6111",6.31,"caiso_wind","CISO","physical","in_state_wind_south"]
["NZWIND_6_CALWND","WIND RESOURCE I",9,"caiso_wind","CISO","physical","in_state_wind_south"]
["NZWIND_6_WDSTR","WINDSTREAM 39",3.35,"caiso_wind","CISO","physical","in_state_wind_south"]
["NZWIND_6_WDSTR2","WINDSTREAM 6040",4.07,"caiso_wind","CISO","physical","in_state_wind_south"]
["NZWIND_6_WDSTR3","WINDSTREAM 6041",3.86,"caiso_wind","CISO","physical","in_state_wind_south"]
["NZWIND_6_WDSTR4","WINDSTREAM 6042",6.77,"caiso_wind","CISO","physical","in_state_wind_south"]
["OAK C_1_EBMUD","MWWTP PGS 1 - ENGINES",6.9,"caiso_biogas","CISO","physical","biogas"]
["OAK C_7_UNIT 1","OAKLAND STATION C GT UNIT 1",55,"caiso_peaker2","CISO","physical","gas_ct"]
["OAK C_7_UNIT 3","OAKLAND STATION C GT UNIT 3",55,"caiso_peaker2","CISO","physical","gas_ct"]
["OAK C_7_UNIT_2","OAKLAND STATION C GT UNIT 2",55,"caiso_peaker2","CISO","physical","gas_ct"]
["OAK L_1_GTG1","MWWTP PGS 2 - TURBINE",4.5999999999999996,"caiso_biomass","CISO","physical","biomass_wood"]
["OAKWD_6_QF","OAK CREEK",27.87,"caiso_wind","CISO","physical","in_state_wind_south"]
["OAKWD_6_ZEPHWD","ZEPHYR PARK",3.5,"caiso_wind","CISO","physical","in_state_wind_south"]
["OASIS_6_CREST","NAN",13.5,"caiso_solar","CISO","physical","utility_pv"]
["OASIS_6_GBDSR4","GREEN BEANWORKS D",3,"caiso_solar","CISO","physical","utility_pv"]
["OASIS_6_LPPSR1","Lancaster Psomas PV",3,"caiso_solar","CISO","physical","utility_pv"]
["OASIS_6_SOLAR1","MORGAN LANCASTER I",1.5,"caiso_solar","CISO","physical","utility_pv"]
["OASIS_6_SOLAR2","OASIS SOLAR",20,"caiso_solar","CISO","physical","utility_pv"]
["OASIS_6_SOLAR3","SOCCER CENTER",3,"caiso_solar","CISO","physical","utility_pv"]
["OCI_SOLAR_LAKESIDE","NAN",2,"caiso_solar","CISO","physical","utility_pv"]
["OCTILO_5_WIND","OCOTILLO WIND ENERGY FACILITY",265,"caiso_wind","CISO","physical","in_state_wind_south"]
["OGROVE_6_PL1X2","ORANGE GROVE ENERGY CENTER",96,"caiso_peaker2","CISO","physical","gas_ct"]
["OILFLD_7_QFUNTS","NACIMIENTO HYDROELECTRIC PLANT",3.8,"caiso_hydro","CISO","physical","hydro"]
["OLDRIV_6_BIOGAS","BIDART OLD RIVER 1",2,"caiso_biomass","CISO","physical","biomass_wood"]
["OLDRIV_6_CESDBM","CES DAIRY BIOGAS",1,"caiso_biogas","CISO","physical","biogas"]
["OLDRIV_6_LKVBM1","LAKEVIEW DAIRY BIOGAS",1,"caiso_biogas","CISO","physical","biogas"]
["OLDRV1_6_SOLAR","OLD RIVER ONE",20,"caiso_solar","CISO","physical","utility_pv"]
["OLINDA_2_COYCRK","MWD COYOTE CREEK HYDROELECTRIC RECOVERY",3.13,"caiso_hydro","CISO","physical","hydro"]
["OLINDA_2_LNDFL2","BREA POWER II",28.1,"caiso_biomass","CISO","physical","biomass_wood"]
["OLINDA_2_QF","OLINDA QFS",0.4,"caiso_small_hydro","CISO","physical","small_hydro"]
["OLINDA_7_BLKSND","BLACKSAND GENERATING FACILITY",8,"caiso_biomass","CISO","physical","biomass_wood"]
["OLINDA_7_LNDFIL","NAN",5.6,"caiso_biomass","CISO","physical","biomass_wood"]
["OLIVE_O1","NAN",44,"ldwp_st","LADWP","physical","steam"]
["OLIVE_O2","NAN",55,"ldwp_st","LADWP","physical","steam"]
["OLIVEP_1_SOLAR","WHITE RIVER SOLAR",20,"caiso_solar","CISO","physical","utility_pv"]
["OLIVEP_1_SOLAR2","WHITE RIVER WEST",19.75,"caiso_solar","CISO","physical","utility_pv"]
["OLSEN_2_UNIT","OLSEN POWER PARTNERS",5.8,"caiso_small_hydro","CISO","physical","small_hydro"]
["OMAR_2_UNIT 1","KERN RIVER COGENERATION CO. UNIT 1",78,"caiso_peaker1","CISO","physical","gas_ct"]
["OMAR_2_UNIT 2","KERN RIVER COGENERATION CO. UNIT 2",78.11,"caiso_peaker1","CISO","physical","gas_ct"]
["OMAR_2_UNIT 3","KERN RIVER COGENERATION CO. UNIT 3",81.41,"caiso_peaker1","CISO","physical","gas_ct"]
["OMAR_2_UNIT 4","KERN RIVER COGENERATION CO. UNIT 4",81.44,"caiso_peaker1","CISO","physical","cogen"]
["ONLLPP_6_UNITS","O'NEILL PUMP-GEN (AGGREGATE)",25.2,"caiso_pumped_hydro","CISO","physical","pumped_storage"]
["ORLND_6_HIGHLI","HIGH LINE CANAL HYDRO",0.5,"caiso_hydro","CISO","physical","hydro"]
["ORLND_6_SOLAR1","ENERPARC CALIFORNIA 2",1.5,"caiso_solar","CISO","physical","utility_pv"]
["ORMESA_1_E","NAN",12.9,"iid_geothermal","IID","physical","geothermal"]
["ORMESA_1_H","NAN",12.9,"iid_geothermal","IID","physical","geothermal"]
["ORMESA_I","NAN",33.5,"iid_geothermal","IID","physical","geothermal"]
["ORMESA_II_OEC21","NAN",15,"iid_geothermal","IID","physical","geothermal"]
["ORMESA_II_OEC22","NAN",15,"iid_geothermal","IID","physical","geothermal"]
["ORMOND_7_UNIT 1","ORMOND BEACH GEN STA. UNIT 1",741.27,"caiso_st","CISO","physical","steam"]
["ORMOND_7_UNIT 2","ORMOND BEACH GEN STA. UNIT 2",750,"caiso_st","CISO","physical","steam"]
["ORNI33__LLC","NAN",20,"iid_solar","IID","physical","utility_pv"]
["OROLOM_1_SOLAR1","ORO LOMA SOLAR 1",10,"caiso_solar","CISO","physical","utility_pv"]
["OROLOM_1_SOLAR2","ORO LOMA SOLAR 2",10,"caiso_solar","CISO","physical","utility_pv"]
["OROVIL_6_UNIT","OROVILLE COGENERATION, LP",7.5,"caiso_chp","CISO","physical","cogen"]
["ORTGA_6_ME1SL1","MERCED 1",3,"caiso_solar","CISO","physical","utility_pv"]
["OSO_6_NSPIN","OSO_6_NSPIN",70,"caiso_pumped_hydro","CISO","physical","pumped_storage"]
["OTAY_6_ECVBT1","EnerSmart Chula Vista 1",3,"caiso_li_battery","CISO","physical","hr_batteries"]
["OTAY_6_ECVBT2","Chula Vista 2",3,"caiso_li_battery","CISO","physical","hr_batteries"]
["OTAY_6_LNDFL5","NAN",1.5,"caiso_biogas","CISO","physical","biogas"]
["OTAY_6_LNDFL6","NAN",1.5,"caiso_biogas","CISO","physical","biogas"]
["OTAY_6_PL1X2","CHULA VISTA ENERGY CENTER, LLC",35.5,"caiso_peaker2","CISO","physical","gas_ct"]
["OTAY_6_UNITB1","NAN",3,"caiso_biogas","CISO","physical","biogas"]
["OTMESA_2_PL1X3","OTAY MESA ENERGY CENTER",603.67999999999995,"caiso_ccgt1","CISO","physical","gas_cc"]
["OXBOW_6_DRUM","OXBOW HYDRO",5.8,"caiso_hydro","CISO","physical","hydro"]
["OXMTN_6_LNDFIL","OX MOUNTAIN LANDFILL GENERATING PLANT",10.62,"caiso_biomass","CISO","physical","biomass_wood"]
["PACLUM_6_UNIT","HUMBOLDT REDWOOD",28.8,"caiso_biomass","CISO","physical","biomass_wood"]
["PADUA_2_ONTARO","ONTARIO/SIERRA HYDRO PSP",1.92,"caiso_small_hydro","CISO","physical","small_hydro"]
["PADUA_2_SOLAR1","KONA SOLAR - RANCHO DC #1",1.75,"caiso_solar","CISO","physical","utility_pv"]
["PADUA_6_MWDSDM","SAN DIMAS HYDROELECTRIC RECOVERY PLANT",9.9,"caiso_hydro","CISO","physical","hydro"]
["PADUA_6_QF","PADUA QFS",1.82,"caiso_small_hydro","CISO","physical","small_hydro"]
["PADUA_7_SDIMAS","SAN DIMAS WASH HYDRO",1.05,"caiso_small_hydro","CISO","physical","small_hydro"]
["PAIGES_6_SOLAR","PAIGE SOLAR",20,"caiso_solar","CISO","physical","utility_pv"]
["PALALT_7_COBUG","COOPERATIVELY OWNED BACK UP GENERATOR",4.5,"caiso_peaker2","CISO","physical","gas_ct"]
["PALO_VERDE_3_LADWP","NAN",407,"ldwp_nuclear","LADWP","physical","nuclear"]
["PALOMR_2_PL1X3","PALOMAR ENERGY CENTER",575,"caiso_ccgt1","CISO","physical","gas_cc"]
["PANDOL_6_UNIT","NAN",49,"caiso_biomass","CISO","physical","biomass_wood"]
["PANSEA_1_PANARO","NAN",30,"caiso_wind","CISO","physical","in_state_wind_south"]
["PARDEB_6_UNITS","PARDEE POWER HOUSE",30,"caiso_hydro","CISO","physical","hydro"]
["PARQUEEOLICO","NAN",10,"caiso_wind","CISO","physical","in_state_wind_south"]
["PBLOSM_2_SOLAR","PEARBLOSSOM",9.5,"caiso_solar","CISO","physical","utility_pv"]
["PEABDY_2_LNDFIL","G2 ENERGY HAY ROAD POWER PLANT",1.6,"caiso_biomass","CISO","physical","biomass_wood"]
["PEABDY_2_LNDFL1","POTRERO HILLS ENERGY PRODUCERS",8,"caiso_biomass","CISO","physical","biomass_wood"]
["PEARBL_2_NSPIN","PEARBL_2_NSPIN",118,"caiso_pumped_hydro","CISO","physical","pumped_storage"]
["PEASE_1_TBEBT1","Tierra Buena Energy Storage",5,"caiso_li_battery","CISO","physical","hr_batteries"]
["PEORIA_1_SOLAR","SONORA 1",1.5,"caiso_solar","CISO","physical","utility_pv"]
["PGE_BAY_BIP_DO","NAN",90,"caiso_loadmod","CISO","physical","demand_response"]
["PGE_BAY_CBP DA_NONRES","NAN",0.1,"caiso_loadmod","CISO","physical","demand_response"]
["PGE_BAY_CBP DA_RES","NAN",0.1,"caiso_loadmod","CISO","physical","demand_response"]
["PGE_BAY_PDP_NON_RES","NAN",4,"caiso_loadmod","CISO","physical","demand_response"]
["PGE_BAY_SMARTAC_NON_RES","NAN",0.1,"caiso_loadmod","CISO","physical","demand_response"]
["PGE_BAY_SMARTAC_RES","NAN",0.1,"caiso_loadmod","CISO","physical","demand_response"]
["PGE_BAY_SMARTRATE_RES","NAN",0.1,"caiso_loadmod","CISO","physical","demand_response"]
["PGE_VAL_BIP_DO","NAN",267,"caiso_loadmod","CISO","physical","demand_response"]
["PGE_VAL_CBP_DA","NAN",0.1,"caiso_loadmod","CISO","physical","demand_response"]
["PGE_VAL_CBP_DA_RES","NAN",0.1,"caiso_loadmod","CISO","physical","demand_response"]
["PGE_VAL_SMARTAC_NON_RES","NAN",0.1,"caiso_loadmod","CISO","physical","demand_response"]
["PGE_VAL_SMARTAC_RES","NAN",0.1,"caiso_loadmod","CISO","physical","demand_response"]
["PGE_VAL_SMARTRATE_RES","NAN",2,"caiso_loadmod","CISO","physical","demand_response"]
["PHOENX_1_UNIT","PHOENIX PH",2,"caiso_small_hydro","CISO","physical","small_hydro"]
["PINE_TREE_SOLAR","NAN",8.5,"ldwp_solar","LADWP","physical","utility_pv"]
["PINE_TREE_WIND","NAN",120,"ldwp_wind","LADWP","physical","out_of_state_wind_WYID"]
["PINFLT_7_UNITS","PINE FLAT HYDRO AGGREGATE",198.51,"caiso_hydro","CISO","physical","hydro"]
["PIOPIC_2_CTG1","PIO PICO UNIT 1",111.3,"caiso_peaker1","CISO","physical","gas_ct"]
["PIOPIC_2_CTG2","PIO PICO UNIT 2",112.7,"caiso_peaker1","CISO","physical","gas_ct"]
["PIOPIC_2_CTG3","PIO PICO UNIT 3",112,"caiso_peaker1","CISO","physical","gas_ct"]
["PIT1_6_FRIVRA","FALL RIVER MILLS PROJECT A",1.5,"caiso_solar","CISO","physical","utility_pv"]
["PIT1_7_UNIT 1","PIT PH 1 UNIT 1",32,"caiso_hydro","CISO","physical","hydro"]
["PIT1_7_UNIT 2","PIT PH 1 UNIT 2",32,"caiso_hydro","CISO","physical","hydro"]
["PIT3_7_PL1X3","PIT PH 3 UNITS 1, 2 & 3 AGGREGATE",70.599999999999994,"caiso_hydro","CISO","physical","hydro"]
["PIT4_7_PL1X2","PIT PH 4 UNITS 1 & 2 AGGREGATE",95,"caiso_hydro","CISO","physical","hydro"]
["PIT5_7_PL1X2","PIT PH 5 UNITS 1 & 2 AGGREGATE",82,"caiso_hydro","CISO","physical","hydro"]
["PIT5_7_PL3X4","PIT PH 5 UNITS 3 & 4 AGGREGATE",82,"caiso_hydro","CISO","physical","hydro"]
["PIT5_7_QFUNTS","GRASSHOPPER FLAT HYDRO",1.1000000000000001,"caiso_hydro","CISO","physical","hydro"]
["PIT6_7_UNIT 1","PIT PH 6 UNIT 1",39,"caiso_hydro","CISO","physical","hydro"]
["PIT6_7_UNIT 2","PIT PH 6 UNIT 2",40,"caiso_hydro","CISO","physical","hydro"]
["PIT7_7_UNIT 1","PIT PH 7 UNIT 1",55.7,"caiso_hydro","CISO","physical","hydro"]
["PIT7_7_UNIT 2","PIT PH 7 UNIT 2",54.6,"caiso_hydro","CISO","physical","hydro"]
["PIUTE_6_GNBSR1","GREEN BEANWORKS B",3,"caiso_biomass","CISO","physical","utility_pv"]
["PLACVL_1_CHILIB","CHILI BAR HYDRO",8.4,"caiso_small_hydro","CISO","physical","small_hydro"]
["PLACVL_1_RCKCRE","ROCK CREEK HYDRO",5,"caiso_small_hydro","CISO","physical","small_hydro"]
["PLAINV_6_BSOLAR","WESTERN ANTELOPE BLUE SKY RANCH A",20,"caiso_solar","CISO","physical","utility_pv"]
["PLAINV_6_DSOLAR","WESTERN ANTELOPE DRY RANCH",10,"caiso_solar","CISO","physical","utility_pv"]
["PLAINV_6_NLRSR1","NORTH LANCASTER RANCH",20,"caiso_solar","CISO","physical","utility_pv"]
["PLAINV_6_SOLAR3","SIERRA SOLAR GREENWORKS LLC",20,"caiso_solar","CISO","physical","utility_pv"]
["PLAINV_6_SOLARC","CENTRAL ANTELOPE DRY RANCH C",20,"caiso_solar","CISO","physical","utility_pv"]
["PLMSSR_6_HISIER","HIGH SIERRA COGENERATION AGGREGATE",6,"caiso_chp","CISO","physical","cogen"]
["PLSNTG_7_LNCLND","LINCOLN LANDFILL POWER PLANT",4.9800000000000004,"caiso_biomass","CISO","physical","biomass_wood"]
["PMDLET_6_SOLAR1","SEPV PALMDALE EAST, LLC",10,"caiso_solar","CISO","physical","utility_pv"]
["PMPJCK_1_RB2SLR","RIO BRAVO SOLAR 2",20,"caiso_solar","CISO","physical","utility_pv"]
["PMPJCK_1_SOLAR1","PUMPJACK SOLAR I",20,"caiso_solar","CISO","physical","utility_pv"]
["PMPJCK_1_SOLAR2","RIO BRAVO SOLAR 1",20,"caiso_solar","CISO","physical","utility_pv"]
["PNCHEG_2_PL1X4","PANOCHE ENERGY CENTER (AGGREGATED)",401,"caiso_peaker1","CISO","physical","gas_ct"]
["PNCHPP_1_PL1X2","MIDWAY PEAKING AGGREGATE",119.91,"caiso_peaker2","CISO","physical","gas_ct"]
["PNCHVS_2_SOLAR","PANOCHE VALLEY SOLAR",140,"caiso_solar","CISO","physical","utility_pv"]
["PNOCHE_1_PL1X2","PANOCHE PEAKER",49.97,"caiso_peaker2","CISO","physical","gas_ct"]
["PNOCHE_1_UNITA1","CALPEAK POWER PANOCHE UNIT 1",52.01,"caiso_peaker2","CISO","physical","gas_ct"]
["POCATELLO_WASTE","NAN",0.46,"caiso_biomass","CISO","physical","biomass_wood"]
["POEPH_7_UNIT 1","POE HYDRO UNIT 1",69,"caiso_hydro","CISO","physical","hydro"]
["POEPH_7_UNIT 2","POE HYDRO UNIT 2",68.5,"caiso_hydro","CISO","physical","hydro"]
["POINTLOMA1","NAN",2.29,"caiso_biomass","CISO","physical","biomass_wood"]
["POINTLOMA2","NAN",2.29,"caiso_biomass","CISO","physical","biomass_wood"]
["POTTER_6_UNITS","POTTER VALLEY",10.1,"caiso_small_hydro","CISO","physical","small_hydro"]
["POTTER_7_VECINO","VECINO VINEYARDS LLC",1.25,"caiso_hydro","CISO","physical","hydro"]
["PRCTVY_1_MIGBT1","MIGUEL BESS",2,"caiso_biomass","CISO","physical","hr_batteries"]
["PRIMA_PLANT1","NAN",3,"caiso_biomass","CISO","physical","biomass_wood"]
["PRIMA_PLANT2","NAN",3,"caiso_biomass","CISO","physical","biomass_wood"]
["PRIMM_2_SOLAR1","SILVER STATE SOUTH",250,"caiso_solar","CISO","physical","utility_pv"]
["PROXIMASOLAR","NAN",50,"caiso_solar","CISO","physical","utility_pv"]
["PROXIMASTORAGE","NAN",5,"caiso_li_battery","CISO","physical","hr_batteries"]
["PSWEET_1_STCRUZ","SANTA CRUZ ENERGY LLC",1.6,"caiso_biogas","CISO","physical","biogas"]
["PSWEET_7_QFUNTS","PSWEET_7_QFUNTS",1,"caiso_chp","CISO","physical","cogen"]
["PTLOMA_6_NTCCGN","NAN",2.58,"caiso_chp","CISO","physical","cogen"]
["PTLOMA_6_NTCQF","NTC/MCRD COGENERATION",22.3,"caiso_chp","CISO","physical","cogen"]
["PUTHCR_1_PCNSB1","Putah Creek Solar Farm North",3,"caiso_solar","CISO","physical","utility_pv"]
["PUTHCR_1_SOLAR1","PUTAH CREEK SOLAR FARM",1.98,"caiso_solar","CISO","physical","utility_pv"]
["PVERDE_5_SCEDYN","PVERDE_5_SCEDYN",635,"caiso_nuclear","SRP","specifiedimport","nuclear"]
["PWEST_1_UNIT","PACIFIC WEST 1 WIND GENERATION",2.1,"caiso_wind","CISO","physical","in_state_wind_south"]
["QUARANTINASTORAGE","NAN",10,"caiso_li_battery","CISO","physical","hr_batteries"]
["RABBITBRUSHSTORAGE","NAN",20,"caiso_li_battery","CISO","physical","hr_batteries"]
["RACEWAYSOLAR","NAN",125,"caiso_solar","CISO","physical","utility_pv"]
["RACEWAYSTORAGE","NAN",80,"caiso_li_battery","CISO","physical","hr_batteries"]
["RAMON_2_SCEDYN","RAMON_2_SCEDYN",106.18,"iid_geothermal","IID","specifiedimport","geothermal"]
["RANCHO_2_SMUDSYSDYN","SMUD REGULATION MARKET",124,"caiso_specified_imports","BANC","specifiedimport","n/a"]
["RATSKE_2_NROSR1","NORTH ROSAMOND SOLAR",150,"caiso_solar","CISO","physical","utility_pv"]
["RATSKE_2_RBSSB1","Rabbitbrush Solar 1",60,"caiso_solar","CISO","physical","utility_pv"]
["RATSKE_2_RBSSB2","Rabbitbrush Solar 2",40,"caiso_solar","CISO","physical","utility_pv"]
["RCKCRK_7_UNIT 1","ROCK CREEK HYDRO UNIT 1",57,"caiso_hydro","CISO","physical","hydro"]
["RCKCRK_7_UNIT 2","ROCK CREEK HYDRO UNIT 2",56.9,"caiso_hydro","CISO","physical","hydro"]
["RDWAY_1_CREST","NAN",6.5,"caiso_solar","CISO","physical","utility_pv"]
["RE_BR1_26960_1","NAN",61.1,"ldwp_solar","LADWP","physical","utility_pv"]
["RE_GASKELL_WEST_3","NAN",20,"caiso_solar","CISO","physical","utility_pv"]
["RE_GASKELL_WEST_4","NAN",20,"caiso_solar","CISO","physical","utility_pv"]
["RE_GASKELL_WEST_5","NAN",20,"caiso_solar","CISO","physical","utility_pv"]
["RECTOR_2_CREST","NAN",14,"caiso_solar","CISO","physical","utility_pv"]
["RECTOR_2_IVANPV","IVANHOE TULARE PV",3.5,"caiso_solar","CISO","physical","utility_pv"]
["RECTOR_2_KAWEAH","KAWEAH PH 2 & 3 PSP AGGREGATE",6.55,"caiso_small_hydro","CISO","physical","small_hydro"]
["RECTOR_2_KAWH 1","KAWEAH PH 1 UNIT 1",2.25,"caiso_hydro","CISO","physical","hydro"]
["RECTOR_2_QF","KAWEAH UNIT 1",20.09,"caiso_small_hydro","CISO","physical","small_hydro"]
["RECTOR_2_TFDBM1","TWO FIETS DAIRY DIGESTER",0.8,"caiso_biomass","CISO","physical","biomass_wood"]
["RECTOR_7_TULARE","MM TULARE",1.5,"caiso_biomass","CISO","physical","biomass_wood"]
["REDBLF_6_UNIT","RED BLUFF PEAKER PLANT",44,"caiso_reciprocating_engine","CISO","physical","ice"]
["REDDING_POWER_1","NAN",17.03,"banc_peaker","BANC","physical","gas_ct"]
["REDDING_POWER_2","NAN",25.03,"banc_peaker","BANC","physical","gas_ct"]
["REDDING_POWER_3","NAN",25.03,"banc_peaker","BANC","physical","gas_ct"]
["REDDING_POWER_CC","NAN",121,"banc_ccgt","BANC","physical","gas_cc"]
["REDMAN_2_SOLAR","LANCASTER EAST AVENUE F",3.75,"caiso_solar","CISO","physical","utility_pv"]
["REDMAN_6_AVSSR1","ANTELOPE VALLEY SOLAR",3,"caiso_solar","CISO","physical","utility_pv"]
["REDOND_7_UNIT 5","REDONDO GEN STA. UNIT 5",178.87,"caiso_st","CISO","physical","steam"]
["REDOND_7_UNIT 6","REDONDO GEN STA. UNIT 6",175,"caiso_st","CISO","physical","steam"]
["REDOND_7_UNIT 8","REDONDO GEN STA. UNIT 8",480,"caiso_st","CISO","physical","steam"]
["REEDLY_6_SOLAR","TERZIAN",1.23,"caiso_solar","CISO","physical","utility_pv"]
["RENWD_1_QF","RENWIND RE-POWERING PROJECT",10,"caiso_wind","CISO","physical","in_state_wind_south"]
["REXFORDSOLAR","NAN",300,"caiso_solar","CISO","physical","utility_pv"]
["REXFORDSTORAGE","NAN",180,"caiso_li_battery","CISO","physical","hr_batteries"]
["RHONDO_6_PUENTE","NAN",4,"caiso_biogas","CISO","physical","biogas"]
["RICHMN_1_CHVSR2","CHEVRON 8.5",8.5,"caiso_solar","CISO","physical","utility_pv"]
["RICHMN_1_SOLAR","CHEVRON 2",2,"caiso_solar","CISO","physical","utility_pv"]
["RICHMN_7_BAYENV","BAY ENVIRONMENTAL (NOVE POWER)",2.5,"caiso_biomass","CISO","physical","biomass_wood"]
["RIOBRV_6_UNIT 1","RIO BRAVO HYDRO",14,"caiso_hydro","CISO","physical","hydro"]
["RIOOSO_1_QF","SMALL QF AGGREGATION - GRASS VALLEY",1.1100000000000001,"caiso_small_hydro","CISO","physical","small_hydro"]
["RIPON_1","NAN",50,"banc_peaker","BANC","physical","gas_ct"]
["RIPON_2","NAN",50,"banc_peaker","BANC","physical","gas_ct"]
["RNDMTN_2_SLSPHY1","SILVER SPRINGS",0.6,"caiso_hydro","CISO","physical","hydro"]
["RNDSBG_1_HZASR1","HAZEL A",2.99,"caiso_solar","CISO","physical","utility_pv"]
["ROCKWOOD_1","NAN",25,"iid_peaker","IID","physical","gas_ct"]
["ROCKWOOD_2","NAN",25,"iid_peaker","IID","physical","gas_ct"]
["ROLLIN_6_UNIT","ROLLINS HYDRO",13.5,"caiso_hydro","CISO","physical","hydro"]
["ROSEVILLE_1","NAN",25.6,"banc_peaker","BANC","physical","gas_ct"]
["ROSEVILLE_2","NAN",25.6,"banc_peaker","BANC","physical","gas_ct"]
["ROSMDW_2_WIND1","PACIFIC WIND - PHASE 1",140,"caiso_wind","CISO","physical","in_state_wind_south"]
["ROSMND_6_SOLAR","LANCASTER B",3,"caiso_solar","CISO","physical","utility_pv"]
["RSMSLR_6_SOLAR1","ROSAMOND ONE",20,"caiso_solar","CISO","physical","utility_pv"]
["RSMSLR_6_SOLAR2","ROSAMOND TWO",20,"caiso_solar","CISO","physical","utility_pv"]
["RTEDDY_2_SC1SR3","ROSAMOND WEST SOLAR CLEAN",40,"caiso_solar","CISO","physical","utility_pv"]
["RTEDDY_2_SEBSR3","ROSAMOND WEST SOLAR EAST BAY 3",56,"caiso_solar","CISO","physical","utility_pv"]
["RTEDDY_2_SEBSR4","ROSAMOND WEST SOLAR EAST BAY 4",56,"caiso_solar","CISO","physical","utility_pv"]
["RTEDDY_2_SOLAR1","ROSAMOND WEST SOLAR 1",54,"caiso_solar","CISO","physical","utility_pv"]
["RTEDDY_2_SOLAR2","ROSAMOND WEST SOLAR 2",54,"caiso_solar","CISO","physical","utility_pv"]
["RTEDDY_2_SPASR4","ROSAMOND WEST SOLAR PALO ALTO",26,"caiso_solar","CISO","physical","utility_pv"]
["RTEDDY_2_SRXSR4","ROSAMOND WEST SOLAR ROSIE X",13.6,"caiso_solar","CISO","physical","utility_pv"]
["RTREE_2_WIND1","RISING TREE 1",79.2,"caiso_wind","CISO","physical","in_state_wind_south"]
["RTREE_2_WIND2","RISING TREE 2",19.8,"caiso_wind","CISO","physical","in_state_wind_south"]
["RTREE_2_WIND3","RISING TREE 3",99,"caiso_wind","CISO","physical","in_state_wind_south"]
["RUSCTY_2_UNITS","RUSSELL CITY ENERGY CENTER",615.17999999999995,"caiso_ccgt2","CISO","physical","gas_cc"]
["RVRVEW_1_UNITA1","RIVERVIEW ENERGY CENTER (GP ANTIOCH)",47.6,"caiso_peaker2","CISO","physical","gas_ct"]
["RVSIDE_2_RERCU3","RIVERSIDE ENERGY RES. CTR UNIT 3",49,"caiso_peaker1","CISO","physical","gas_ct"]
["RVSIDE_2_RERCU4","RIVERSIDE ENERGY RES. CTR UNIT 4",49,"caiso_peaker1","CISO","physical","gas_ct"]
["RVSIDE_6_RERCU1","RIVERSIDE ENERGY RES. CTR UNIT 1",48.35,"caiso_peaker1","CISO","physical","gas_ct"]
["RVSIDE_6_RERCU2","RIVERSIDE ENERGY RES. CTR UNIT 2",48.5,"caiso_peaker2","CISO","physical","gas_ct"]
["RVSIDE_6_SOLAR1","TEQUESQUITE LANDFILL SOLAR PROJECT",7.5,"caiso_solar","CISO","physical","utility_pv"]
["RVSIDE_6_SPRING","SPRINGS GENERATION PROJECT AGGREGATE",36,"caiso_peaker1","CISO","physical","gas_ct"]
["S_RITA_6_SOLAR1","SUN HARVEST SOLAR",1.5,"caiso_solar","CISO","physical","utility_pv"]
["SALIRV_2_UNIT","SALINAS RIVER COGENERATION",39,"caiso_chp","CISO","physical","cogen"]
["SALTON_SEA_4","NAN",42,"iid_geothermal","IID","physical","geothermal"]
["SALTON_SEA_5","NAN",50,"iid_geothermal","IID","physical","geothermal"]
["SALTON_SEA_UNIT_2_G1","NAN",10,"iid_geothermal","IID","physical","geothermal"]
["SALTON_SEA_UNIT_2_G2","NAN",5,"iid_geothermal","IID","physical","geothermal"]
["SALTON_SEA_UNIT_2_G3","NAN",5,"iid_geothermal","IID","physical","geothermal"]
["SALTSP_7_UNITS","SALT SPRINGS HYDRO AGGREGATE",46,"caiso_hydro","CISO","physical","hydro"]
["SAMPSN_6_KELCO1","KELCO QUALIFYING FACILITY",25,"caiso_chp","CISO","physical","cogen"]
["SANBRN_2_EESSB2","EdSan 1 Edwards 0",166,"caiso_solar","CISO","physical","utility_pv"]
["SANBRN_2_ES1BT3","EdSan 1 Edwards 1",51,"caiso_solar","CISO","physical","utility_pv"]
["SANBRN_2_ES2SB3","EdSan 2 Sanborn 3",42,"caiso_solar","CISO","physical","utility_pv"]
["SANBRN_2_ESABT1","EDSAN 1A",100,"caiso_li_battery","CISO","physical","hr_batteries"]
["SANBRN_2_ESBBT1","EDSAN 1B",100,"caiso_li_battery","CISO","physical","hr_batteries"]
["SANBRN_2_SS2SB4","EdSan 2 Sanborn 4",36,"caiso_solar","CISO","physical","utility_pv"]
["SANDHILLCWIND","NAN",80,"caiso_wind","CISO","physical","in_state_wind_south"]
["SANDLT_2_SUNITS","MOJAVE SOLAR",275,"caiso_solar","CISO","physical","utility_pv"]
["SANDRINISOL","NAN",100,"caiso_solar","CISO","physical","utility_pv"]
["SANITR_6_UNITS","LACSD CARSON WATER POLLUTION AGGREGATE",8,"caiso_biogas","CISO","physical","biogas"]
["SANLOB_1_LNDFIL","COLD CANYON",1.5,"caiso_biomass","CISO","physical","biomass_wood"]
["SANLOB_1_OSFBM1","OLD SANTA FE ROAD",0.85,"caiso_biomass","CISO","physical","biomass_wood"]
["SANTA_BARBARA_COUNTY_PUBLIC_WORKS_DEPARTMENT","NAN",2.274,"caiso_biogas","CISO","physical","biogas"]
["SANTFG_7_UNITS","GEYSERS CALISTOGA AGGREGATE",72,"caiso_geothermal","CISO","physical","geothermal"]
["SANTGO_2_LNDFL1","BOWERMAN POWER",19.600000000000001,"caiso_biogas","CISO","physical","biogas"]
["SANTGO_2_MABBT1","MILLIKAN AVENUE BESS",2,"caiso_li_battery","CISO","physical","hr_batteries"]
["SANWD_1_QF","SAN GORGONIO FARMS WIND FARM",31,"caiso_wind","CISO","physical","in_state_wind_south"]
["SAUGUS_2_TOLAND","NAN",1.57,"caiso_biogas","CISO","physical","biogas"]
["SAUGUS_6_MWDFTH","FOOTHILL HYDROELECTRIC RECOVERY PLANT",9.1,"caiso_hydro","CISO","physical","hydro"]
["SAUGUS_6_PTCHGN","NAN",20.78,"caiso_chp","CISO","physical","cogen"]
["SAUGUS_6_QF","SAUGUS QFS",2.19,"caiso_small_hydro","CISO","physical","small_hydro"]
["SAUGUS_7_CHIQCN","CHIQUITA CANYON LANDFILL FAC",8,"caiso_biomass","CISO","physical","biomass_wood"]
["SAUGUS_7_LOPEZ","MM LOPEZ ENERGY",6.1,"caiso_biomass","CISO","physical","biomass_wood"]
["SBERDO_2_PSP3","MOUNTAINVIEW GEN STA. UNIT 3",555,"caiso_ccgt1","CISO","physical","gas_cc"]
["SBERDO_2_PSP4","MOUNTAINVIEW GEN STA. UNIT 4",555,"caiso_ccgt1","CISO","physical","gas_cc"]
["SBERDO_2_QF","NAN",10.6,"caiso_chp","CISO","physical","cogen"]
["SBERDO_2_REDLND","REDLANDS RT SOLAR",2,"caiso_solar","CISO","physical","utility_pv"]
["SBERDO_2_RTS005","SPVP005 REDLANDS RT SOLAR",2.5,"caiso_solar","CISO","physical","utility_pv"]
["SBERDO_2_RTS007","SPVP007 REDLANDS RT SOLAR",2.5,"caiso_solar","CISO","physical","utility_pv"]
["SBERDO_2_RTS011","SPVP011",3.5,"caiso_solar","CISO","physical","utility_pv"]
["SBERDO_2_RTS013","SPVP013",3.5,"caiso_solar","CISO","physical","utility_pv"]
["SBERDO_2_RTS016","SPVP016 REDLANDS RT SOLAR",1.5,"caiso_solar","CISO","physical","utility_pv"]
["SBERDO_2_RTS048","SPVP048",5,"caiso_solar","CISO","physical","utility_pv"]
["SBERDO_2_SNTANA","SANTA ANA PSP",6.95,"caiso_small_hydro","CISO","physical","small_hydro"]
["SBERDO_6_MILLCK","MILL CREEK PSP",3.93,"caiso_small_hydro","CISO","physical","small_hydro"]
["SCACOGEN2_CC","NAN",65.599999999999994,"banc_ccgt","BANC","physical","gas_cc"]
["SCACOGEN2GT","NAN",49,"banc_peaker","BANC","physical","gas_ct"]
["SCATTERGOOD_1","NAN",174,"ldwp_st","LADWP","physical","steam"]
["SCATTERGOOD_2","NAN",177,"ldwp_st","LADWP","physical","steam"]
["SCATTERGOOD_4","NAN",300,"ldwp_peaker","LADWP","physical","gas_ct"]
["SCATTERGOOD_5","NAN",100,"ldwp_peaker","LADWP","physical","gas_ct"]
["SCATTERGOOD_6","NAN",89,"ldwp_peaker","LADWP","physical","gas_ct"]
["SCATTERGOOD_7","NAN",89,"ldwp_peaker","LADWP","physical","gas_ct"]
["SCE_AP_I","NAN",19,"caiso_loadmod","CISO","physical","demand_response"]
["SCE_BIP_15","NAN",212,"caiso_loadmod","CISO","physical","demand_response"]
["SCE_BIP_30","NAN",606,"caiso_loadmod","CISO","physical","demand_response"]
["SCE_CBP_DA","NAN",0.1,"caiso_loadmod","CISO","physical","demand_response"]
["SCE_CBP_DO","NAN",1,"caiso_loadmod","CISO","physical","demand_response"]
["SCE_SDP_COMM","NAN",3,"caiso_loadmod","CISO","physical","demand_response"]
["SCE_SDP_RESD","NAN",1,"caiso_loadmod","CISO","physical","demand_response"]
["SCEHOV_2_HOOVER","SCEHOV_2_HOOVER",287.01,"caiso_hydro","WALC","specifiedimport","hydro"]
["SCHLTE_1_PL1X3","TRACY COMBINED CYCLE POWER PLANT",336.04,"caiso_ccgt2","CISO","physical","gas_cc"]
["SCHNDR_1_FIVPTS","FIVE POINTS SOLAR STATION",15,"caiso_solar","CISO","physical","utility_pv"]
["SCHNDR_1_OS2BM2","OPEN SKY DIGESTER GENSET 2",0.8,"caiso_biogas","CISO","physical","biogas"]
["SCHNDR_1_WSTSDE","WESTSIDE SOLAR STATION",15,"caiso_solar","CISO","physical","utility_pv"]
["SDGE_BIP","NAN",2,"caiso_loadmod","CISO","physical","demand_response"]
["SDGE_CBP_DA","NAN",0.1,"caiso_loadmod","CISO","physical","demand_response"]
["SDGE_CBP_DO","NAN",0.1,"caiso_loadmod","CISO","physical","demand_response"]
["SDGE_SUMM_SAV_RESD","NAN",0.1,"caiso_loadmod","CISO","physical","demand_response"]
["SDGE_SUMMER_SAVER_COM","NAN",0.1,"caiso_loadmod","CISO","physical","demand_response"]
["SDGEAC_SAVER_DA_COMM","NAN",0.1,"caiso_loadmod","CISO","physical","demand_response"]
["SDGEAC_SAVER_DA_RES","NAN",0.1,"caiso_loadmod","CISO","physical","demand_response"]
["SDGEAC_SAVER_DO_COMM","NAN",0.1,"caiso_loadmod","CISO","physical","demand_response"]
["SDGEAC_SAVER_DO_RES","NAN",0.1,"caiso_loadmod","CISO","physical","demand_response"]
["SDSU_GEN","NAN",7,"iid_solar","IID","physical","utility_pv"]
["SEARLS_7_ARGUS","ARGUS COGENERATION",19,"caiso_chp","CISO","physical","cogen"]
["SEAWST_6_LAPOS","SEA WEST ENERGY - SEAWEST",13,"caiso_wind","CISO","physical","in_state_wind_south"]
["SECOND_IMPERIAL01_12","NAN",33,"iid_geothermal","IID","physical","geothermal"]
["SEGS_1_SR2SL2","SUNRAY 2",20,"caiso_solar","CISO","physical","utility_pv"]
["SENTNL_2_CTG1","SENTINEL UNIT 1",107.68,"caiso_peaker1","CISO","physical","gas_ct"]
["SENTNL_2_CTG2","SENTINEL UNIT 2",102.5,"caiso_peaker1","CISO","physical","gas_ct"]
["SENTNL_2_CTG3","SENTINEL UNIT 3",105.69,"caiso_peaker1","CISO","physical","gas_ct"]
["SENTNL_2_CTG4","SENTINEL UNIT 4",106.55,"caiso_peaker1","CISO","physical","gas_ct"]
["SENTNL_2_CTG5","SENTINEL UNIT 5",107.52,"caiso_peaker1","CISO","physical","gas_ct"]
["SENTNL_2_CTG6","SENTINEL UNIT 6",105,"caiso_peaker1","CISO","physical","gas_ct"]
["SENTNL_2_CTG7","SENTINEL UNIT 7",106.73,"caiso_peaker1","CISO","physical","gas_ct"]
["SENTNL_2_CTG8","SENTINEL UNIT 8",106.85,"caiso_peaker1","CISO","physical","gas_ct"]
["SEPV_BOULEVARD_2","NAN",2.9,"caiso_solar","CISO","physical","utility_pv"]
["SEVILLE_2","NAN",32.5,"iid_solar","IID","physical","utility_pv"]
["SGREGY_6_SANGER","ALGONQUIN POWER SANGER 2",48.3,"caiso_chp","CISO","physical","cogen"]
["SHANDN_2_SBBBM1","SAN BERNARDINO BIOGAS",2.6,"caiso_biomass","CISO","physical","biomass_wood"]
["SHEEP_CREEK_ROAD_SOLAR_GENERATION_FACILITY_PROJECT","NAN",3,"caiso_solar","CISO","physical","utility_pv"]
["SHELRF_1_UNITS","SHELL OIL REFINERY AGGREGATE",100,"caiso_peaker2","CISO","physical","gas_ct"]
["SHUTLE_6_CREST","NAN",4,"caiso_solar","CISO","physical","utility_pv"]
["SIERRA_1_UNITS","HIGH SIERRA LIMITED",52.43,"caiso_peaker2","CISO","physical","gas_ct"]
["SIERRASTORAGE","NAN",10,"caiso_li_battery","CISO","physical","hr_batteries"]
["SIGHEB_6_MIRDYN","Heber South",17,"iid_geothermal","IID","specifiedimport","geothermal"]
["SISQUC_1_SMARIA","SANTA MARIA II LFG POWER PLANT",1.42,"caiso_biomass","CISO","physical","biomass_wood"]
["SKERN_6_SOLAR1","SOUTH KERN SOLAR PV PLANT",20,"caiso_solar","CISO","physical","utility_pv"]
["SKERN_6_SOLAR2","SKIC SOLAR",10,"caiso_solar","CISO","physical","utility_pv"]
["SLATE_2_SLASR1","SLATE",50.5,"caiso_solar","CISO","physical","utility_pv"]
["SLATE_2_SLASR2_SUN","Slate_2",46.5,"caiso_solar","CISO","physical","utility_pv"]
["SLATE_2_SLASR2_LESR","Slate_2",46.5,"caiso_li_battery","CISO","physical","hr_batteries"]
["SLATE_2_SLASR3_LESR","SLATE_3",33.799999999999997,"caiso_li_battery","CISO","physical","hr_batteries"]
["SLATE_2_SLASR3_SUN","SLATE_3",33.700000000000003,"caiso_solar","CISO","physical","utility_pv"]
["SLATE_2_SLASR4","SLATE_4",63,"caiso_solar","CISO","physical","utility_pv"]
["SLATE_2_SLASR5_LESR","Slate 5",10,"caiso_li_battery","CISO","physical","hr_batteries"]
["SLATE_2_SLASR5_SUN","Slate 5",16,"caiso_solar","CISO","physical","utility_pv"]
["SLRMS3_2_SRMSR1","SILVER RIDGE MOUNT SIGNAL 3",250,"caiso_solar","CISO","physical","utility_pv"]
["SLST13_2_SOLAR1","QUINTO SOLAR PV PROJECT",107.6,"caiso_solar","CISO","physical","utility_pv"]
["SLSTR1_2_SOLAR1","SOLAR STAR 1",310,"caiso_solar","CISO","physical","utility_pv"]
["SLSTR2_2_SOLAR2","SOLAR STAR 2",276,"caiso_solar","CISO","physical","utility_pv"]
["SLUISP_2_UNITS","SAN LUIS (GIANELLI) PUMP-GEN (AGGREGATE)",374.43,"caiso_pumped_hydro","CISO","physical","pumped_storage"]
["SLYCRK_1_UNIT 1","SLY CREEK HYDRO",13,"caiso_hydro","CISO","physical","hydro"]
["SMPRIP_1_SMPSON","RIPON COGENERATION UNIT 1",46.05,"caiso_peaker1","CISO","physical","cogen"]
["SMRCOS_6_LNDFIL","SAN MARCOS ENERGY",1.5,"caiso_biomass","CISO","physical","biomass_wood"]
["SMUDGO_7_UNIT 1","SONOMA POWER PLANT",64.8,"caiso_geothermal","CISO","physical","geothermal"]
["SMYRNA_1_DL1SR1","DELANO LAND 1",1,"caiso_solar","CISO","physical","utility_pv"]
["SNCLRA_2_HOWLNG","HOUWELINGS NURSERIES OXNARD, INC",13,"caiso_biomass","CISO","physical","biomass_wood"]
["SNCLRA_2_SILBT1","SILVERSTRAND BESS",11,"caiso_li_battery","CISO","physical","hr_batteries"]
["SNCLRA_2_SPRHYD","SPRINGVILLE HYDROELECTRIC GENERATOR",1,"caiso_small_hydro","CISO","physical","small_hydro"]
["SNCLRA_2_UNIT","CHANNEL ISLANDS POWER",27.5,"caiso_chp","CISO","physical","cogen"]
["SNCLRA_2_UNIT1","NEW INDY OXNARD",27.8,"caiso_chp","CISO","physical","cogen"]
["SNCLRA_2_VESBT1","VENTURA ENERGY STORAGE",100,"caiso_li_battery","CISO","physical","hr_batteries"]
["SNCLRA_6_OXGEN","OXGEN",47.7,"caiso_chp","CISO","physical","cogen"]
["SNCLRA_6_PROCGN","PROCTER AND GAMBLE OXNARD 2",47.9,"caiso_chp","CISO","physical","cogen"]
["SNCLRA_6_QF","SANTA CLARA QFS",1.65,"caiso_small_hydro","CISO","physical","small_hydro"]
["SNDBAR_7_UNIT 1","SANDBAR",16.2,"caiso_hydro","CISO","physical","hydro"]
["SNMALF_6_UNITS","SONOMA COUNTY LANDFILL",5,"caiso_biomass","CISO","physical","biomass_wood"]
["SNORA_2_SNRSLR","SG SORRENTO",50,"iid_solar","IID","specifiedimport","utility_pv"]
["SOL_GEN","NAN",20,"iid_solar","IID","physical","utility_pv"]
["SONRISASOLAR","NAN",100,"caiso_solar","CISO","physical","utility_pv"]
["SONRISASTORAGE","NAN",30,"caiso_li_battery","CISO","physical","hr_batteries"]
["SOUTH_2_UNIT","SOUTH HYDRO",7.1,"caiso_small_hydro","CISO","physical","small_hydro"]
["SPA_COGEN_3_CC","NAN",157,"banc_ccgt","BANC","physical","gas_cc"]
["SPANSH_6_FBEHY1","FIVE BEARS HYDROELECTRIC",0.99,"caiso_hydro","CISO","physical","hydro"]
["SPAULD_6_UNIT 3","SPAULDING HYDRO PH 3 UNIT",6.5,"caiso_hydro","CISO","physical","hydro"]
["SPAULD_6_UNIT12","SPAULDING HYDRO PH 1 & 2 AGGREGATE",11.4,"caiso_hydro","CISO","physical","hydro"]
["SPBURN_2_UNIT 1","BURNEY BIOMASS",22,"caiso_biomass","CISO","physical","biomass_wood"]
["SPBURN_7_SNOWMT","BURNEY CREEK HYDRO",3,"caiso_small_hydro","CISO","physical","small_hydro"]
["SPI LI_2_UNIT 1","LINCOLN BIOMASS",17.2,"caiso_biomass","CISO","physical","biomass_wood"]
["SPIAND_1_ANDSN2","SPI ANDERSON 2",27.15,"caiso_biomass","CISO","physical","biomass_wood"]
["SPICER_1_UNITS","SPICER HYDRO UNITS 1-3 AGGREGATE",6,"caiso_small_hydro","CISO","physical","small_hydro"]
["SPIFBD_1_PL1X2","SIERRA PACIFIC IND. (SONORA)",7.5,"caiso_biomass","CISO","physical","biomass_wood"]
["SPOINT_2_MEADDYN","SPOINT_2_MEADDYN",325,"SW_CCGT","WALC","specifiedimport","gas_cc"]
["SPOINT_2_PARKERDYN","SOUTHPOINT ENERGY CENTER",200,"SW_CCGT","WALC","specifiedimport","gas_cc"]
["SPQUIN_6_SRPCQU","QUINCY BIOMASS",24,"caiso_biomass","CISO","physical","biomass_wood"]
["SPRGAP_1_UNIT 1","SPRING GAP HYDRO",7,"caiso_hydro","CISO","physical","hydro"]
["SPRGVL_2_CREST","NAN",14,"caiso_solar","CISO","physical","utility_pv"]
["SPRGVL_2_EXETPV","EXETER TULARE PV",3.5,"caiso_solar","CISO","physical","utility_pv"]
["SPRGVL_2_LINDPV","LINDSAY TULARE PV",4,"caiso_solar","CISO","physical","utility_pv"]
["SPRGVL_2_PORTPV","PORTERVILLE TULARE PV",3.5,"caiso_solar","CISO","physical","utility_pv"]
["SPRGVL_2_QF","SPRINGVILLE QFS",0.18,"caiso_small_hydro","CISO","physical","cogen"]
["SPRGVL_2_TULE","TULE RIVER HYDRO PLANT (PG&E)",6.4,"caiso_small_hydro","CISO","physical","small_hydro"]
["SPRGVL_2_TULESC","TULE RIVER HYDRO PLANT (SCE)",2.5,"caiso_small_hydro","CISO","physical","small_hydro"]
["SPRINGBOK_1","NAN",108,"ldwp_solar","LADWP","physical","utility_pv"]
["SPRINGBOK_2","NAN",165,"ldwp_solar","LADWP","physical","utility_pv"]
["SPRINGBOK_3","NAN",90,"ldwp_solar","LADWP","physical","utility_pv"]
["SRINTL_6_UNIT","SRI INTERNATIONAL",6.9,"caiso_chp","CISO","physical","cogen"]
["STANIS_7_UNIT 1","STANISLAUS HYDRO",91,"caiso_hydro","CISO","physical","hydro"]
["STANTN_2_STAGT1","STANTON 1",49.65,"caiso_peaker1","CISO","physical","gas_ct"]
["STANTN_2_STAGT2","STANTON 2",49.65,"caiso_peaker1","CISO","physical","gas_ct"]
["STAUFF_1_UNIT","NAN",4.5999999999999996,"caiso_chp","CISO","physical","cogen"]
["STIGCT_2_LODI","LODI STIG UNIT",49.9,"caiso_peaker2","CISO","physical","gas_ct"]
["STNRES_1_UNIT","COVANTA STANISLAUS",19.899999999999999,"caiso_biomass","CISO","physical","biomass_wood"]
["STOILS_1_UNITS","CHEVRON RICHMOND REFINERY",56.2,"caiso_chp","CISO","physical","cogen"]
["STOREY_2_MDRCH2","MADERA CHOWCHILLA 2",0.56000000000000005,"caiso_small_hydro","CISO","physical","small_hydro"]
["STOREY_2_MDRCH3","MADERA CHOWCHILLA 3",0.42,"caiso_small_hydro","CISO","physical","small_hydro"]
["STOREY_2_MDRCH4","MADERA CHOWCHILLA 4",0.92,"caiso_small_hydro","CISO","physical","small_hydro"]
["STOREY_7_MDRCHW","MADERA CANAL SITE 980",1.84,"caiso_small_hydro","CISO","physical","small_hydro"]
["STRAUSSWIND","NAN",99,"caiso_wind","CISO","physical","in_state_wind_south"]
["STROUD_6_SOLAR","STROUD SOLAR STATION",20,"caiso_solar","CISO","physical","utility_pv"]
["STROUD_6_WWHSR1","WINTER WHEAT SOLAR FARM",1.5,"caiso_solar","CISO","physical","utility_pv"]
["SUMWHT_6_SWSSR1","SUMMER WHEAT SOLAR FARM",18.5,"caiso_solar","CISO","physical","utility_pv"]
["SUN_EDISON_VICTORVILLE_SOLAR","NAN",10,"caiso_solar","CISO","physical","utility_pv"]
["SUNCAT_2_A1ABT1","Arlington Solar Unit 1A BESS",43,"caiso_li_battery","CISO","physical","hr_batteries"]
["SUNCAT_2_A1BBT1","Arlington Solar Unit 1B BESS",67,"caiso_li_battery","CISO","physical","hr_batteries"]
["SUNCAT_2_A2ABT2","Arlington Solar Unit 2A BESS",132,"caiso_li_battery","CISO","physical","hr_batteries"]
["SUNPEAK_IID","NAN",23,"iid_solar","IID","physical","utility_pv"]
["SUNRIS_2_PL1X3","SUNRISE POWER PROJECT AGGREGATE II",586.02,"caiso_ccgt1","CISO","physical","gas_cc"]
["SUNSET_2_UNITS","MIDWAY SUNSET COGENERATION PLANT",248,"caiso_peaker1","CISO","physical","cogen"]
["SUNSHN_2_LNDFL","SUNSHINE GAS PRODUCERS",20,"caiso_biomass","CISO","physical","biomass_wood"]
["SUNSLR_1_SSVSR1","SUNSHINE VALLEY SOLAR 1",100,"caiso_solar","CISO","physical","utility_pv"]
["SUNSPT_2_WNASR1","WINDHUB SOLAR A",20,"caiso_solar","CISO","physical","utility_pv"]
["SUNST2_5_SS2SR1","SUN STREAMS SOLAR 2",150,"caiso_solar","CISO","physical","utility_pv"]
["SUNSTR_5_SS1SCEDYN","SUNSTREAM SOLAR 1",150,"SW_SOLAR","AZPS","specifiedimport","out_of_state_wind_AZNM"]
["SUTTER_2_CISO","SUTTER POWER PLANT PSEUDO-CISO",275,"caiso_ccgt1","BANC","specifiedimport","gas_cc"]
["SUTTERENERGYCC_TOTAL","SUTTER POWER PLANT",250,"banc_ccgt","BANC","physical","gas_cc"]
["SWIFT_1_NAS","YERBA BUENA BATTERY",4.8,"caiso_li_battery","CISO","physical","hr_batteries"]
["SYCAMR_2_UNIT 1","SYCAMORE COGENERATION UNIT 1",86,"caiso_chp","CISO","physical","cogen"]
["SYCAMR_2_UNIT 2","SYCAMORE COGENERATION UNIT 2",78,"caiso_peaker1","CISO","physical","gas_ct"]
["SYCAMR_2_UNIT 3","SYCAMORE COGENERATION UNIT 3",78,"caiso_chp","CISO","physical","cogen"]
["SYCAMR_2_UNIT 4","SYCAMORE COGENERATION UNIT 4",78,"caiso_peaker1","CISO","physical","gas_ct"]
["TANHIL_6_SOLART","BERRY COGEN 18",17,"caiso_chp","CISO","physical","cogen"]
["TBLMTN_6_QF","SMALL QF AGGREGATION - PARADISE",1.7,"caiso_small_hydro","CISO","physical","small_hydro"]
["TECOLOTE_3_WBDYN","TECOLOTE WIND",271.68,"caiso_wind","PNM","specifiedimport","out_of_state_wind_AZNM"]
["TEHAPI_2_PW1WD1","POINT WIND 1",47.49,"caiso_wind","CISO","physical","in_state_wind_south"]
["TEHAPI_2_PW2WD2","POINT WIND 2",14.4,"caiso_wind","CISO","physical","in_state_wind_south"]
["TEHAPI_2_WIND1","WIND WALL MONOLITH 1",19.850000000000001,"caiso_wind","CISO","physical","in_state_wind_south"]
["TEHAPI_2_WIND2","WIND WALL MONOLITH 2",23.66,"caiso_wind","CISO","physical","in_state_wind_south"]
["TENGEN_2_PL1X2","BERRY COGEN 42",40.200000000000003,"caiso_chp","CISO","physical","cogen"]
["TERMEX_2_PL1X3","TDM",625,"caiso_ccgt1","CISO","physical","gas_cc"]
["TESLA_1_QF","SMALL QF AGGREGATION - STOCKTON",2,"caiso_small_hydro","CISO","physical","small_hydro"]
["THERMONO1_2","NAN",14,"caiso_geothermal","CISO","physical","geothermal"]
["THREE_MILE_CANYON","NAN",9.9,"nw_wind","PACW","physical","out_of_state_wind_WAOR"]
["TIDWTR_2_UNITS","MARTINEZ COGEN LIMITED PARTNERSHIP",114.8,"caiso_chp","CISO","physical","cogen"]
["TIERRA_DEL_SOL__SOLAR_FARM","NAN",45,"iid_solar","IID","physical","utility_pv"]
["TIFFNY_1_DILLON","TIFFNY_1_DILLON",45,"caiso_wind","CISO","physical","in_state_wind_south"]
["TIGRCK_7_UNITS","TIGER CREEK HYDRO AGGREGATE",62,"caiso_hydro","CISO","physical","hydro"]
["TITANS_2_TTSSR1","TITAN SOLAR 1 PSEUDO",70,"caiso_solar","IID","specifiedimport","utility_pv"]
["TKOPWR_6_HYDRO","BEAR CREEK HYDROELECTRIC PROJECT",2.83,"caiso_small_hydro","CISO","physical","small_hydro"]
["TMPLTN_2_SOLAR","VINTNER SOLAR",1.5,"caiso_solar","CISO","physical","utility_pv"]
["TOADTW_6_UNIT","TOAD TOWN",1.5,"caiso_small_hydro","CISO","physical","small_hydro"]
["TOPAZ_2_SOLAR","TOPAZ SOLAR FARMS",550,"caiso_solar","CISO","physical","utility_pv"]
["TORTLA_1_SOLAR","LONGBOAT SOLAR",20,"caiso_solar","CISO","physical","utility_pv"]
["TOWNSITE_2_MEADDYN_LESR","Townsite Solar BESS",90,"caiso_li_battery","CISO","physical","hr_batteries"]
["TOWNSITE_2_MEADDYN_SUN","Townsite Solar BESS",90,"caiso_solar","CISO","physical","utility_pv"]
["TRNQL8_2_AMASR1","TRANQUILLITY 8 AMARILLO",20,"caiso_solar","CISO","physical","utility_pv"]
["TRNQL8_2_AZUSR1","TRANQUILLITY 8 AZUL",20,"caiso_solar","CISO","physical","utility_pv"]
["TRNQL8_2_ROJSR1","TRANQUILLITY 8 ROJO",100,"caiso_solar","CISO","physical","utility_pv"]
["TRNQL8_2_VERSR1","TRANQUILLITY 8 VERDE",60,"caiso_solar","CISO","physical","utility_pv"]
["TRNQLT_2_RETBT1","NAN",72,"caiso_li_battery","CISO","physical","hr_batteries"]
["TRNQLT_2_SOLAR","TRANQUILLITY",200,"caiso_solar","CISO","physical","utility_pv"]
["TRNSWD_1_QF","FPL ENERGY C WIND",38.97,"caiso_wind","CISO","physical","in_state_wind_south"]
["TULARE_2_TULBM1","TULARE BIOMAT FUEL CELL",2.8,"caiso_biomass","CISO","physical","biomass_wood"]
["TULEWD_1_TULWD1","TULE WIND",130.5,"caiso_wind","CISO","physical","in_state_wind_south"]
["TULLCK_7_UNITS","TULLOCK HYDRO",25.9,"caiso_hydro","CISO","physical","hydro"]
["TUPMAN_1_BIOGAS","ABEC BIDART-STOCKALE #1",0.6,"caiso_biomass","CISO","physical","biomass_wood"]
["TVYVLY_6_KRSHY1","Kings River Syphon",1.3,"caiso_hydro","CISO","physical","hydro"]
["TWISSL_6_SOLAR","NICKEL 1 (\"NLH1\")",1.5,"caiso_solar","CISO","physical","utility_pv"]
["TWISSL_6_SOLAR1","CORONAL LOST HILLS",20,"caiso_solar","CISO","physical","utility_pv"]
["TX_ELK_6_SOLAR1","CASTOR",1.5,"caiso_solar","CISO","physical","utility_pv"]
["TX-ELK_6_ECKSR2","EAGLE CREEK",3,"caiso_solar","CISO","physical","utility_pv"]
["TXMCKT_6_UNIT","MCKITTRICK COGEN",11.2,"caiso_chp","CISO","physical","cogen"]
["UC_DAVIS_MC","NAN",27,"banc_ccgt","BANC","physical","gas_cc"]
["UKIAH_7_LAKEMN","UKIAH LAKE MENDOCINO HYDRO",3.5,"caiso_small_hydro","CISO","physical","small_hydro"]
["ULTPCH_1_UCSBT1","Ultrapower Chinese Station BESS",10,"caiso_li_battery","CISO","physical","hr_batteries"]
["ULTPCH_1_UNIT 1","PACIFIC ULTRAPOWER CHINESE STATION",18,"caiso_biomass","CISO","physical","biomass_wood"]
["ULTPFR_1_UNIT 1","RIO BRAVO FRESNO",24.3,"caiso_biomass","CISO","physical","biomass_wood"]
["ULTRCK_2_UNIT","RIO BRAVO ROCKLIN",24.4,"caiso_biomass","CISO","physical","biomass_wood"]
["UNCHEM_1_UNIT","CONTRA COSTA CARBON PLANT",19,"caiso_chp","CISO","physical","cogen"]
["UNOCAL_1_UNITS","TOSCO (RODEO PLANT)",49.85,"caiso_chp","CISO","physical","cogen"]
["UNVRSY_1_UNIT 1","BERRY COGEN 38 - UNIT 1",38,"caiso_chp","CISO","physical","cogen"]
["USWND2_1_WIND1","GOLDEN HILLS A",42.96,"caiso_wind","CISO","physical","in_state_wind_north"]
["USWND2_1_WIND2","GOLDEN HILLS B",42.96,"caiso_wind","CISO","physical","in_state_wind_north"]
["USWND2_1_WIND3","GOLDEN HILLS C",46,"caiso_wind","CISO","physical","in_state_wind_north"]
["USWND4_2_UNIT2","ALTAMONT LANDFILL GAS TO ENERGY",7.4,"caiso_biogas","CISO","physical","biogas"]
["USWNDR_2_LABWD1","LABRISA WIND PROJECT",9,"caiso_wind","CISO","physical","in_state_wind_north"]
["USWNDR_2_SMUD","SOLANO WIND FARM",102.18,"caiso_wind","CISO","physical","in_state_wind_north"]
["USWNDR_2_SMUD2","SOLANO WIND PROJECT PHASE 3",127.8,"caiso_wind","CISO","physical","in_state_wind_north"]
["USWNDR_2_UNITS","NAN",8,"caiso_wind","CISO","physical","in_state_wind_south"]
["USWPFK_6_FRICK","FRICK SUMMIT WIND REPOWER",10,"caiso_wind","CISO","physical","in_state_wind_north"]
["USWPJR_2_UNITS","VASCO WIND",78.2,"caiso_wind","CISO","physical","in_state_wind_north"]
["V2_GEN","NAN",3.1,"iid_solar","IID","physical","utility_pv"]
["V3_GEN","NAN",3.1,"iid_solar","IID","physical","utility_pv"]
["VACADX_1_NAS","VACA-DIXON BATTERY",0.7,"caiso_li_battery","CISO","physical","hr_batteries"]
["VACADX_1_SOLAR","VACA-DIXON SOLAR STATION",2.5,"caiso_solar","CISO","physical","utility_pv"]
["VACADX_1_UNITA1","CALPEAK POWER VACA DIXON UNIT 1",50.61,"caiso_peaker2","CISO","physical","gas_ct"]
["VALLEY_5_PERRIS","MWD PERRIS HYDROELECTRIC RECOVERY PLANT",7.94,"caiso_small_hydro","CISO","physical","small_hydro"]
["VALLEY_5_REDMTN","MWD RED MOUNTAIN HYDROELECTRIC RECOVERY",5.9,"caiso_hydro","CISO","physical","hydro"]
["VALLEY_5_RTS044","NAN",8,"caiso_solar","CISO","physical","utility_pv"]
["VALLEY_5_SOLAR1","KONA SOLAR - MERIDIAN #1",1.49,"caiso_solar","CISO","physical","utility_pv"]
["VALLEY_5_SOLAR2","AP NORTH LAKE SOLAR",20,"caiso_solar","CISO","physical","utility_pv"]
["VALLEY_CC","NAN",529,"ldwp_ccgt","LADWP","physical","gas_cc"]
["VALLEY_UNIT_5","NAN",47,"ldwp_peaker","LADWP","physical","gas_ct"]
["VALTNE_2_AVASR1","VALENTINE SOLAR",100,"caiso_solar","CISO","physical","utility_pv"]
["VALTNE_2_TBBBT1","NAN",128,"caiso_solar","CISO","physical","utility_pv"]
["VALTNE_2_TRSBT1","Tropico Solar",70,"caiso_li_battery","CISO","physical","hr_batteries"]
["VAN_DER_KOOI_DAIRY_DIGESTER","NAN",0.8,"caiso_biogas","CISO","physical","biogas"]
["VEAVST_1_SOLAR","COMMUNITY SOLAR",14.4,"caiso_solar","CISO","physical","utility_pv"]
["VEDDER_1_SEKERN","TEXACO EXPLORATION & PROD (SE KERN RIVER",34.47,"caiso_chp","CISO","physical","cogen"]
["VEGA_6_SOLAR1","VEGA SOLAR",20,"caiso_solar","CISO","physical","utility_pv"]
["VENWD_1_WIND1","Windpark Unlimited 1",12.19591471,"caiso_wind","CISO","physical","in_state_wind_south"]
["VENWD_1_WIND2","Windpark Unlimited 2",16,"caiso_wind","CISO","physical","in_state_wind_south"]
["VENWD_1_WIND3","PAINTED HILLS",44.53,"caiso_wind","CISO","physical","in_state_wind_south"]
["VERNON_6_GONZL1","H. GONZALES UNIT #1",5.75,"caiso_peaker1","CISO","physical","gas_ct"]
["VERNON_6_GONZL2","H. GONZALES UNIT #2",5.75,"caiso_peaker1","CISO","physical","gas_ct"]
["VERNON_6_MALBRG","MALBURG GENERATING STATION",134,"caiso_ccgt2","CISO","physical","gas_cc"]
["VESTAL_2_KERN","KERN RIVER PH 3 UNITS 1 & 2 AGGREGATE",36.799999999999997,"caiso_hydro","CISO","physical","hydro"]
["VESTAL_2_RTS042","SPVP042 PORTERVILLE SOLAR",5,"caiso_solar","CISO","physical","utility_pv"]
["VESTAL_2_SOLAR1","NICOLIS",20,"caiso_solar","CISO","physical","utility_pv"]
["VESTAL_2_SOLAR2","TROPICO",14,"caiso_solar","CISO","physical","utility_pv"]
["VESTAL_2_TS5SR1","TULARE SOLAR 5",55.8,"caiso_solar","CISO","physical","utility_pv"]
["VESTAL_2_UNIT1","CALGREN-PIXLEY",5,"caiso_chp","CISO","physical","cogen"]
["VESTAL_2_WELLHD","WELLHEAD POWER DELANO",49,"caiso_peaker1","CISO","physical","gas_ct"]
["VESTAL_6_QF","ISABELLA HYDRO DAM 1",11.95,"caiso_small_hydro","CISO","physical","small_hydro"]
["VICTOR_1_CREST","NAN",24.49,"caiso_solar","CISO","physical","utility_pv"]
["VICTOR_1_EXSLRA","EXPRESSWAY SOLAR A",2,"caiso_solar","CISO","physical","utility_pv"]
["VICTOR_1_EXSLRB","EXPRESSWAY SOLAR B",2,"caiso_solar","CISO","physical","utility_pv"]
["VICTOR_1_LVSLR1","LONE VALLEY SOLAR PARK 1",10,"caiso_solar","CISO","physical","utility_pv"]
["VICTOR_1_LVSLR2","LONE VALLEY SOLAR PARK 2",20,"caiso_solar","CISO","physical","utility_pv"]
["VICTOR_1_SLRHES","SUNEDISON - HESPERIA",1.5,"caiso_solar","CISO","physical","utility_pv"]
["VICTOR_1_SOLAR1","VICTOR PHELAN SOLAR ONE",17.5,"caiso_solar","CISO","physical","utility_pv"]
["VICTOR_1_SOLAR2","ALAMO SOLAR",20,"caiso_solar","CISO","physical","utility_pv"]
["VICTOR_1_SOLAR3","ADELANTO SOLAR 2",7,"caiso_solar","CISO","physical","utility_pv"]
["VICTOR_1_SOLAR4","ADELANTO SOLAR",20,"caiso_solar","CISO","physical","utility_pv"]
["VICTOR_1_VDRYFA","VICTOR DRY FARM RANCH A",5,"caiso_solar","CISO","physical","utility_pv"]
["VICTOR_1_VDRYFB","VICTOR DRY FARM RANCH B",5,"caiso_solar","CISO","physical","utility_pv"]
["VILLPK_2_VALLYV","MWD VALLEY VIEW HYDROELECTRIC RECOVERY P",4.0999999999999996,"caiso_hydro","CISO","physical","hydro"]
["VILLPK_6_MWDYOR","YORBA LINDA HYDROELECTRIC RECOVERY PLANT",5.0999999999999996,"caiso_hydro","CISO","physical","hydro"]
["VINCNT_2_QF","NAN",207,"caiso_wind","CISO","physical","in_state_wind_south"]
["VINCNT_2_WESTWD","NAN",59,"caiso_wind","CISO","physical","in_state_wind_south"]
["VISTA_2_FCELL","CSUSB FUEL CELL",1.4,"caiso_chp","CISO","physical","cogen"]
["VISTA_2_RIALTO","RIALTO RT SOLAR",1,"caiso_solar","CISO","physical","utility_pv"]
["VISTA_2_RTS028","SPVP028",3.5,"caiso_solar","CISO","physical","utility_pv"]
["VISTA_6_QF","VISTA QFS",0.18,"caiso_small_hydro","CISO","physical","small_hydro"]
["VISTRA_5_DALBT1","DALLAS ENERGY STORAGE",100,"caiso_li_battery","CISO","physical","hr_batteries"]
["VISTRA_5_DALBT2","DALLAS ENERGY STORAGE 2",100,"caiso_li_battery","CISO","physical","hr_batteries"]
["VISTRA_5_DALBT3","DALLAS ENERGY STORAGE 3",100,"caiso_li_battery","CISO","physical","hr_batteries"]
["VISTRA_5_DALBT4","DALLAS ENERGY STORAGE 4",100,"caiso_li_battery","CISO","physical","hr_batteries"]
["VLCNTR_6_VCEBT1","Valley Center Energy Storage",54,"caiso_li_battery","CISO","physical","hr_batteries"]
["VLCNTR_6_VCEBT2","Valley Center Energy Storage B",50,"caiso_li_battery","CISO","physical","hr_batteries"]
["VLCNTR_6_VCSLR","COLE GRADE",2.33,"caiso_solar","CISO","physical","utility_pv"]
["VLCNTR_6_VCSLR1","VALLEY CENTER 1",2.5,"caiso_solar","CISO","physical","utility_pv"]
["VLCNTR_6_VCSLR2","VALLEY CENTER 2",5,"caiso_solar","CISO","physical","utility_pv"]
["VLYHOM_7_SSJID","WOODWARD POWER PLANT",3,"caiso_small_hydro","CISO","physical","small_hydro"]
["VOLTA_2_UNIT 1","VOLTA HYDRO UNIT 1",9.1,"caiso_hydro","CISO","physical","hydro"]
["VOLTA_2_UNIT 2","VOLTA HYDRO UNIT 2",1,"caiso_hydro","CISO","physical","hydro"]
["VOLTA_6_BAILCK","BAILEY CREEK RANCH",0.63,"caiso_hydro","CISO","physical","hydro"]
["VOLTA_6_DIGHYD","DIGGER CREEK RANCH HYDRO",0.6,"caiso_small_hydro","CISO","physical","small_hydro"]
["VOLTA_7_PONHY1","VOLTA_7_PONHY1",1.25,"caiso_hydro","CISO","physical","hydro"]
["VOLTA_7_QFUNTS","VOLTA_7_QFUNTS",0.15,"caiso_small_hydro","CISO","physical","small_hydro"]
["VOYAGR_2_VOAWD5","VOYAGER WIND OASIS ALTA",13.98,"caiso_wind","CISO","physical","in_state_wind_south"]
["VOYAGR_2_VOYWD1","VOYAGER 1",128.91,"caiso_wind","CISO","physical","in_state_wind_south"]
["VOYAGR_2_VOYWD2","VOYAGER WIND 2",126.35,"caiso_wind","CISO","physical","in_state_wind_south"]
["VOYAGR_2_VOYWD3","VOYAGER WIND 3",42.45,"caiso_wind","CISO","physical","in_state_wind_south"]
["VOYAGR_2_VOYWD4","VOYAGER WIND 4",21.01,"caiso_wind","CISO","physical","in_state_wind_south"]
["VSTAES_6_VESBT1","VISTA ENERGY STORAGE",40,"caiso_li_battery","CISO","physical","hr_batteries"]
["VULCAN_1","NAN",38,"iid_geothermal","IID","physical","geothermal"]
["VULCAN_2","NAN",10.74,"iid_geothermal","IID","physical","geothermal"]
["VULCAN_EXPANDER","NAN",10.5,"iid_geothermal","IID","physical","geothermal"]
["WADHAM_6_UNIT","WADHAM ENERGY LP",29.07,"caiso_biomass","CISO","physical","biomass_wood"]
["WALCRK_2_CTG1","WALNUT CREEK ENERGY PARK UNIT 1",96.43,"caiso_peaker1","CISO","physical","gas_ct"]
["WALCRK_2_CTG2","WALNUT CREEK ENERGY PARK UNIT 2",96.91,"caiso_peaker1","CISO","physical","gas_ct"]
["WALCRK_2_CTG3","WALNUT CREEK ENERGY PARK UNIT 3",96.65,"caiso_peaker1","CISO","physical","gas_ct"]
["WALCRK_2_CTG4","WALNUT CREEK ENERGY PARK UNIT 4",96.49,"caiso_peaker1","CISO","physical","gas_ct"]
["WALCRK_2_CTG5","WALNUT CREEK ENERGY PARK UNIT 5",96.65,"caiso_peaker1","CISO","physical","gas_ct"]
["WALNUT_2_SOLAR","INDUSTRY METROLINK PV 1",1.5,"caiso_solar","CISO","physical","utility_pv"]
["WALNUT_6_HILLGEN","PUENTE HILLS",47,"caiso_biomass","CISO","physical","biomass_wood"]
["WALNUT_7_WCOVCT","NAN",0.2,"caiso_geothermal","CISO","physical","geothermal"]
["WALNUT_7_WCOVST","MM WEST COVINA - ST UNIT",6.5,"caiso_biomass","CISO","physical","biomass_wood"]
["WARNE_2_UNIT","WARNE HYDRO AGGREGATE",76,"caiso_hydro","CISO","physical","hydro"]
["WAUKNA_1_SOLAR","CORCORAN SOLAR",20,"caiso_solar","CISO","physical","utility_pv"]
["WAUKNA_1_SOLAR2","CORCORAN 2",19.75,"caiso_solar","CISO","physical","utility_pv"]
["WDLEAF_7_UNIT 1","WOODLEAF HYDRO",60,"caiso_hydro","CISO","physical","hydro"]
["WEBER_6_FORWRD","FORWARD",4.2,"caiso_biomass","CISO","physical","biomass_wood"]
["WESTLANDSSOLAR","NAN",19.88,"caiso_solar","CISO","physical","utility_pv"]
["WESTPT_2_UNIT","WEST POINT HYDRO PLANT",14,"caiso_small_hydro","CISO","physical","small_hydro"]
["WFRESN_1_SOLAR","JOYA DEL SOL",1.5,"caiso_solar","CISO","physical","utility_pv"]
["WHEATL_6_LNDFIL","G2 ENERGY, OSTROM ROAD LLC",3.55,"caiso_biomass","CISO","physical","biomass_wood"]
["WHITEH_2_MEADDYN1","WHITE HILLS A",50,"caiso_wind","WALC","specifiedimport","out_of_state_wind_AZNM"]
["WHITEH_2_MEADDYN2","WHITE HILLS B",300,"caiso_wind","WALC","specifiedimport","out_of_state_wind_AZNM"]
["WHITNY_6_SOLAR","WHITNEY POINT SOLAR",20,"caiso_solar","CISO","physical","utility_pv"]
["WHTWTR_1_WINDA1","WHITEWATER HILL WIND PROJECT",61.5,"caiso_wind","CISO","physical","in_state_wind_south"]
["WILLMS_6_ARBBM1","Abel Road Bioenergy",3,"caiso_biomass","CISO","physical","biogas"]
["WILSONASOLAR","NAN",14,"caiso_solar","CISO","physical","utility_pv"]
["WISE_1_UNIT 1","WISE HYDRO UNIT 1",14.5,"caiso_hydro","CISO","physical","hydro"]
["WISE_1_UNIT 2","WISE HYDRO UNIT 2",3.2,"caiso_hydro","CISO","physical","hydro"]
["WISHON_6_UNITS","WISHON/SAN JOAQUIN  #1-A AGGREGATE",18.399999999999999,"caiso_small_hydro","CISO","physical","small_hydro"]
["WISTER_2_WISSR1","Wister Solar",20,"caiso_solar","CISO","physical","utility_pv"]
["WISTRA_2_WRSSR1","WISTARIA RANCH SOLAR",100,"caiso_solar","CISO","physical","utility_pv"]
["WLDWD_1_SOLAR1","WILDWOOD SOLAR I",20,"caiso_solar","CISO","physical","utility_pv"]
["WLDWD_1_SOLAR2","WILDWOOD SOLAR 2",15,"caiso_solar","CISO","physical","utility_pv"]
["WNDMAS_2_UNIT 1","BUENA VISTA ENERGY, LLC",38,"caiso_wind","CISO","physical","in_state_wind_north"]
["WNDSTR_2_WIND","WINDSTAR",120,"caiso_wind","CISO","physical","in_state_wind_south"]
["WOLFSK_1_UNITA1","WOLFSKILL ENERGY CENTER",46.9,"caiso_peaker2","CISO","physical","gas_ct"]
["WOODLAND_1","NAN",49,"banc_peaker","BANC","physical","gas_ct"]
["WOODLAND_3A","NAN",8.1999999999999993,"banc_reciprocating_engine","BANC","physical","ice"]
["WOODLAND_3B","NAN",8.1999999999999993,"banc_reciprocating_engine","BANC","physical","ice"]
["WOODLAND_3C","NAN",8.1999999999999993,"banc_reciprocating_engine","BANC","physical","ice"]
["WOODLAND_3D","NAN",8.1999999999999993,"banc_reciprocating_engine","BANC","physical","ice"]
["WOODLAND_3E","NAN",8.1999999999999993,"banc_reciprocating_engine","BANC","physical","ice"]
["WOODLAND_3F","NAN",8.1999999999999993,"banc_reciprocating_engine","BANC","physical","ice"]
["WOODLAND_CC","NAN",84.2,"banc_ccgt","BANC","physical","gas_cc"]
["WOODWR_1_HYDRO","QUINTEN LUALLEN",7.3,"caiso_hydro","CISO","physical","hydro"]
["WRGHTP_7_AMENGY","SMALL QF AGGREGATION - LOS BANOS",2.5,"caiso_hydro","CISO","physical","hydro"]
["WRGTSR_2_WSFSR1","WRIGHT SOLAR FREEMAN",200,"caiso_solar","CISO","physical","utility_pv"]
["WRIGHTFREEMANSTORAGE","NAN",80,"caiso_li_battery","CISO","physical","hr_batteries"]
["WSENGY_1_UNIT 1","WHEELABRATOR SHASTA",50,"caiso_biomass","CISO","physical","biomass_wood"]
["WSNR_2_CVPDYN","CENTRAL VALLEY 1",10,"caiso_hydro","BANC","specifiedimport","hydro"]
["WSNR_2_TESLADYN","CENTRAL VALLEY TESLA",10,"caiso_hydro","BANC","specifiedimport","hydro"]
["WSNR_5_TRCYDYN","CENTRAL VALLEY TRACY",10,"caiso_hydro","BANC","specifiedimport","hydro"]
["WSTWND_2_M89WD1_LESR","Mojave 89",70.599999999999994,"caiso_li_battery","CISO","physical","hr_batteries"]
["WSTWND_2_M89WD1_WIND","Mojave 89",82.65,"caiso_wind","CISO","physical","in_state_wind_south"]
["WSTWND_2_M90BT1","MOJAVE 90 BESS 1A",15.71,"caiso_li_battery","CISO","physical","hr_batteries"]
["WSTWND_2_M90WD2","MOJAVE 90",48.85,"caiso_wind","CISO","physical","in_state_wind_south"]
["WSTWND_2_SBSBT1","Sagebrush Solar 2",80,"caiso_li_battery","CISO","physical","hr_batteries"]
["YUBACT_1_SUNSWT","YUBA CITY COGEN",49.97,"caiso_chp","CISO","physical","cogen"]
["YUBACT_6_UNITA1","YUBA CITY ENERGY CENTER (CALPINE)",47.6,"caiso_peaker2","CISO","physical","gas_ct"]
["YUCCA_GT21","NAN",22,"iid_peaker","IID","physical","gas_ct"]
["YUCCA_ST1","NAN",75,"iid_st","IID","physical","steam"]
["ZOND_6_UNIT","ZOND WINDSYSTEMS INC.",17.100000000000001,"caiso_wind","CISO","physical","in_state_wind_north"]
["_BRANCH_GENERIC_AMARGO_ITC","AMARGOSA230",null,"nan","NAN","unspecifiedimport","n/a"]
["_BRANCH_GENERIC_BLYTHE_ITC","BLYTHE161",null,"nan","NAN","unspecifiedimport","n/a"]
["_BRANCH_GENERIC_CASCADE_ITC","CRAG",null,"nan","NAN","unspecifiedimport","n/a"]
["_BRANCH_GENERIC_CFE_ITC","CFETIJ & CFEROA",null,"nan","NAN","unspecifiedimport","n/a"]
["_BRANCH_GENERIC_COTPISO_ITC","TRCYCOTPISO",null,"nan","NAN","unspecifiedimport","n/a"]
["_BRANCH_GENERIC_CTW230_ITC","CTW230",null,"nan","NAN","unspecifiedimport","n/a"]
["_BRANCH_GENERIC_ELDORADO_ITC","WILLOWBEACH",null,"nan","NAN","unspecifiedimport","n/a"]
["_BRANCH_GENERIC_GONDIPPDC_ITC","GONIPP",null,"nan","NAN","unspecifiedimport","n/a"]
["_BRANCH_GENERIC_IID-SCE_ITC","MIR2",null,"nan","NAN","unspecifiedimport","n/a"]
["_BRANCH_GENERIC_IID-SDGE_ITC","IVLY2",null,"nan","NAN","unspecifiedimport","n/a"]
["_BRANCH_GENERIC_IPPDCADLN_ITC","IPP & IPPUTAH",null,"nan","NAN","unspecifiedimport","n/a"]
["_BRANCH_GENERIC_LAUGHLIN_ITC","MOHAVE500",null,"nan","NAN","unspecifiedimport","n/a"]
["_BRANCH_GENERIC_LLNL_ITC","LLL115",null,"nan","NAN","unspecifiedimport","n/a"]
["_BRANCH_GENERIC_MALIN500_ISL","MALIN500",null,"nan","NAN","unspecifiedimport","n/a"]
["_BRANCH_GENERIC_MARBLE_ITC","MARBLE60",null,"nan","NAN","unspecifiedimport","n/a"]
["_BRANCH_GENERIC_MCCLMKTPC_ITC","MCCULLOUG500",null,"nan","NAN","unspecifiedimport","n/a"]
["_BRANCH_GENERIC_MCCULLGH_ITC","ELDORADO500",null,"nan","NAN","unspecifiedimport","n/a"]
["_BRANCH_GENERIC_MEADMKTPC_ITC","MEAD5MSCHD",null,"nan","NAN","unspecifiedimport","n/a"]
["_BRANCH_GENERIC_MEADTMEAD_ITC","MEAD2MSCHD",null,"nan","NAN","unspecifiedimport","n/a"]
["_BRANCH_GENERIC_MEAD_ITC","MEAD230",null,"nan","NAN","unspecifiedimport","n/a"]
["_BRANCH_GENERIC_MERCHANT_ITC","ELDORADO230",null,"nan","NAN","unspecifiedimport","n/a"]
["_BRANCH_GENERIC_MERCURY_ITC","MERCURY138",null,"nan","NAN","unspecifiedimport","n/a"]
["_BRANCH_GENERIC_MKTPCADLN_ITC","MARKETPLACE",null,"nan","NAN","unspecifiedimport","n/a"]
["_BRANCH_GENERIC_MONAIPPDC_ITC","MDWP",null,"nan","NAN","unspecifiedimport","n/a"]
["_BRANCH_GENERIC_NEWMELONP_ITC","NML230",null,"nan","NAN","unspecifiedimport","n/a"]
["_BRANCH_GENERIC_NOB_ITC","NOB",null,"nan","NAN","unspecifiedimport","n/a"]
["_BRANCH_GENERIC_NORTHGILA500_ITC","NORTHGILA500",null,"nan","NAN","unspecifiedimport","n/a"]
["_BRANCH_GENERIC_NWEST230_ITC","NWEST",null,"nan","NAN","unspecifiedimport","n/a"]
["_BRANCH_GENERIC_OAKDALE_ITC","OAKDALE",null,"nan","NAN","unspecifiedimport","n/a"]
["_BRANCH_GENERIC_PALOVRDE_ITC","PVWEST",null,"nan","NAN","unspecifiedimport","n/a"]
["_BRANCH_GENERIC_PARKER_ITC","PARKER230",null,"nan","NAN","unspecifiedimport","n/a"]
["_BRANCH_GENERIC_RDM230_ITC","RDM230",null,"nan","NAN","unspecifiedimport","n/a"]
["_BRANCH_GENERIC_RNCHLAKE_ITC","LAKE & RANCHOSECO",null,"nan","NAN","unspecifiedimport","n/a"]
["_BRANCH_GENERIC_SILVERPK_ITC","SILVERPEAK55",null,"nan","NAN","unspecifiedimport","n/a"]
["_BRANCH_GENERIC_STANDIFORD_ITC","STANDIFORD",null,"nan","NAN","unspecifiedimport","n/a"]
["_BRANCH_GENERIC_SUMMIT_ITC","SUMMIT120",null,"nan","NAN","unspecifiedimport","n/a"]
["_BRANCH_GENERIC_SYLMAR-AC_ITC","SYLMAR",null,"nan","NAN","unspecifiedimport","n/a"]
["_BRANCH_GENERIC_TRACY230_ITC","TESLA230",null,"nan","NAN","unspecifiedimport","n/a"]
["_BRANCH_GENERIC_TRACY500_ITC","TRCYPGAE & TRCYCOTP",null,"nan","NAN","unspecifiedimport","n/a"]
["_BRANCH_GENERIC_TRCYTEA_ITC","TRCYTEA",null,"nan","NAN","unspecifiedimport","n/a"]
["_BRANCH_GENERIC_VICTVL_ITC","LUGO",null,"nan","NAN","unspecifiedimport","n/a"]
["_BRANCH_GENERIC_WESTLYLBNS_ITC","WESTLYQNTO",null,"nan","NAN","unspecifiedimport","n/a"]
["_BRANCH_GENERIC_WESTLYTSLA_ITC","WESTLYTSLA",null,"nan","NAN","unspecifiedimport","n/a"]
["_BRANCH_GENERIC_WSTWGMEAD_ITC","WESTWING500",null,"nan","NAN","unspecifiedimport","n/a"]
["_CREZ_GENERIC_ARIZONA_SOLAR","NAN",null,"caiso_solar","NAN","newresolve","utility_pv"]
["_CREZ_GENERIC_ARIZONA_WIND","NAN",null,"caiso_wind","NAN","newresolve","out_of_state_wind_AZNM"]
["_CREZ_GENERIC_BAJA_CALIFORNIA_SOLAR","NAN",null,"caiso_solar","NAN","newresolve","utility_pv"]
["_CREZ_GENERIC_BAJA_CALIFORNIA_WIND","NAN",null,"caiso_wind","NAN","newresolve","in_state_wind_south"]
["_CREZ_GENERIC_CAPE_MENDOCINO_OFFSHORE_WIND","NAN",null,"caiso_wind","NAN","newresolve","offshore_wind"]
["_CREZ_GENERIC_CARRIZO_SOLAR","NAN",null,"caiso_solar","NAN","newresolve","utility_pv"]
["_CREZ_GENERIC_CARRIZO_WIND","NAN",null,"caiso_wind","NAN","newresolve","in_state_wind_north"]
["_CREZ_GENERIC_CENTRAL_VALLEY_NORTH_LOS_BANOS_SOLAR","NAN",null,"caiso_solar","NAN","newresolve","utility_pv"]
["_CREZ_GENERIC_CENTRAL_VALLEY_NORTH_LOS_BANOS_WIND","NAN",null,"caiso_wind","NAN","newresolve","in_state_wind_north"]
["_CREZ_GENERIC_DEL_NORTE_OFFSHORE_WIND","NAN",null,"caiso_wind","NAN","newresolve","offshore_wind"]
["_CREZ_GENERIC_DIABLO_CANYON_EXT_TX_OFFSHORE_WIND","NAN",null,"caiso_wind","NAN","newresolve","offshore_wind"]
["_CREZ_GENERIC_DIABLO_CANYON_OFFSHORE_WIND","NAN",null,"caiso_wind","NAN","newresolve","offshore_wind"]
["_CREZ_GENERIC_DISTRIBUTED_SOLAR","NAN",null,"caiso_solar","NAN","newresolve","utility_pv"]
["_CREZ_GENERIC_DISTRIBUTED_WIND","NAN",null,"caiso_wind","NAN","newresolve","in_state_wind_south"]
["_CREZ_GENERIC_GREATER_IMPERIAL_GEOTHERMAL","NAN",null,"caiso_geothermal","NAN","newresolve","geothermal"]
["_CREZ_GENERIC_GREATER_IMPERIAL_SOLAR","NAN",null,"caiso_solar","NAN","newresolve","utility_pv"]
["_CREZ_GENERIC_GREATER_IMPERIAL_WIND","NAN",null,"caiso_wind","NAN","newresolve","in_state_wind_south"]
["_CREZ_GENERIC_GREATER_KRAMER_SOLAR","NAN",null,"caiso_solar","NAN","newresolve","utility_pv"]
["_CREZ_GENERIC_GREATER_KRAMER_WIND","NAN",null,"caiso_wind","NAN","newresolve","in_state_wind_south"]
["_CREZ_GENERIC_HUMBOLDT_BAY_OFFSHORE_WIND","NAN",null,"caiso_wind","NAN","newresolve","offshore_wind"]
["_CREZ_GENERIC_HUMBOLDT_WIND","NAN",null,"caiso_wind","NAN","newresolve","in_state_wind_north"]
["_CREZ_GENERIC_IDAHO_WIND","NAN",null,"caiso_wind","NAN","newresolve","out_of_state_wind_WYID"]
["_CREZ_GENERIC_INSTATE_BIOMASS","NAN",null,"caiso_biomass","NAN","newresolve","biomass_wood"]
["_CREZ_GENERIC_INYOKERN_NORTH_KRAMER_GEOTHERMAL","NAN",null,"caiso_geothermal","NAN","newresolve","geothermal"]
["_CREZ_GENERIC_INYOKERN_NORTH_KRAMER_SOLAR","NAN",null,"caiso_solar","NAN","newresolve","utility_pv"]
["_CREZ_GENERIC_KERN_GREATER_CARRIZO_SOLAR","NAN",null,"caiso_solar","NAN","newresolve","utility_pv"]
["_CREZ_GENERIC_KERN_GREATER_CARRIZO_WIND","NAN",null,"caiso_wind","NAN","newresolve","in_state_wind_north"]
["_CREZ_GENERIC_KRAMER_INYOKERN_EX_SOLAR","NAN",null,"caiso_solar","NAN","newresolve","utility_pv"]
["_CREZ_GENERIC_KRAMER_INYOKERN_EX_WIND","NAN",null,"caiso_wind","NAN","newresolve","in_state_wind_south"]
["_CREZ_GENERIC_MORRO_BAY_OFFSHORE_WIND","NAN",null,"caiso_wind","NAN","newresolve","offshore_wind"]
["_CREZ_GENERIC_MOUNTAIN_PASS_EL_DORADO_SOLAR","NAN",null,"caiso_solar","NAN","newresolve","utility_pv"]
["_CREZ_GENERIC_NEW_MEXICO_SOLAR","NAN",null,"caiso_solar","NAN","newresolve","utility_pv"]
["_CREZ_GENERIC_NEW_MEXICO_WIND","NAN",null,"caiso_wind","NAN","newresolve","out_of_state_wind_AZNM"]
["_CREZ_GENERIC_NORTHERN_CALIFORNIA_EX_GEOTHERMAL","NAN",null,"caiso_geothermal","NAN","newresolve","geothermal"]
["_CREZ_GENERIC_NORTHERN_CALIFORNIA_EX_SOLAR","NAN",null,"caiso_solar","NAN","newresolve","utility_pv"]
["_CREZ_GENERIC_NORTHERN_CALIFORNIA_EX_WIND","NAN",null,"caiso_wind","NAN","newresolve","in_state_wind_north"]
["_CREZ_GENERIC_NORTH_VICTOR_SOLAR","NAN",null,"caiso_solar","NAN","newresolve","utility_pv"]
["_CREZ_GENERIC_NW_BIOMASS","NAN",null,"caiso_biomass","NAN","newresolve","biomass_wood"]
["_CREZ_GENERIC_NW_EXT_TX_WIND","NAN",null,"caiso_wind","NAN","newresolve","in_state_wind_north"]
["_CREZ_GENERIC_NW_SMALL_HYDRO","NAN",null,"caiso_small_hydro","NAN","newresolve","small_hydro"]
["_CREZ_GENERIC_PACIFIC_NORTHWEST_GEOTHERMAL","NAN",null,"caiso_geothermal","NAN","newresolve","geothermal"]
["_CREZ_GENERIC_PACIFIC_NORTHWEST_WIND","NAN",null,"caiso_wind","NAN","newresolve","out_of_state_wind_WAOR"]
["_CREZ_GENERIC_RIVERSIDE_PALM_SPRINGS_GEOTHERMAL","NAN",null,"caiso_geothermal","NAN","newresolve","geothermal"]
["_CREZ_GENERIC_RIVERSIDE_PALM_SPRINGS_SOLAR","NAN",null,"caiso_solar","NAN","newresolve","utility_pv"]
["_CREZ_GENERIC_SACRAMENTO_RIVER_SOLAR","NAN",null,"caiso_solar","NAN","newresolve","utility_pv"]
["_CREZ_GENERIC_SACRAMENTO_RIVER_WIND","NAN",null,"caiso_wind","NAN","newresolve","in_state_wind_north"]
["_CREZ_GENERIC_SCADSNV_SOLAR","NAN",null,"caiso_solar","NAN","newresolve","utility_pv"]
["_CREZ_GENERIC_SCADSNV_WIND","NAN",null,"caiso_wind","NAN","newresolve","in_state_wind_south"]
["_CREZ_GENERIC_SOLANO_GEOTHERMAL","NAN",null,"caiso_geothermal","NAN","newresolve","geothermal"]
["_CREZ_GENERIC_SOLANO_SOLAR","NAN",null,"caiso_solar","NAN","newresolve","utility_pv"]
["_CREZ_GENERIC_SOLANO_SUBZONE_SOLAR","NAN",null,"caiso_solar","NAN","newresolve","utility_pv"]
["_CREZ_GENERIC_SOLANO_SUBZONE_WIND","NAN",null,"caiso_wind","NAN","newresolve","in_state_wind_north"]
["_CREZ_GENERIC_SOLANO_WIND","NAN",null,"caiso_wind","NAN","newresolve","in_state_wind_north"]
["_CREZ_GENERIC_SOUTHERN_CALIFORNIA_DESERT_EX_SOLAR","NAN",null,"caiso_solar","NAN","newresolve","utility_pv"]
["_CREZ_GENERIC_SOUTHERN_CALIFORNIA_DESERT_EX_WIND","NAN",null,"caiso_wind","NAN","newresolve","in_state_wind_south"]
["_CREZ_GENERIC_SOUTHERN_CA_DESERT_SOUTHERN_NV_SOLAR","NAN",null,"caiso_solar","NAN","newresolve","utility_pv"]
["_CREZ_GENERIC_SOUTHERN_CA_DESERT_SOUTHERN_NV_WIND","NAN",null,"caiso_wind","NAN","newresolve","in_state_wind_south"]
["_CREZ_GENERIC_SOUTHERN_NEVADA_GEOTHERMAL","NAN",null,"caiso_geothermal","NAN","newresolve","geothermal"]
["_CREZ_GENERIC_SOUTHERN_NEVADA_SOLAR","NAN",null,"caiso_solar","NAN","newresolve","utility_pv"]
["_CREZ_GENERIC_SOUTHERN_NEVADA_WIND","NAN",null,"caiso_wind","NAN","newresolve","in_state_wind_south"]
["_CREZ_GENERIC_SW_BIOMASS","NAN",null,"caiso_biomass","NAN","newresolve","biomass_wood"]
["_CREZ_GENERIC_SW_EXT_TX_WIND","NAN",null,"caiso_wind","NAN","newresolve","out_of_state_wind_AZNM"]
["_CREZ_GENERIC_TEHACHAPI_EX_SOLAR","NAN",null,"caiso_solar","NAN","newresolve","utility_pv"]
["_CREZ_GENERIC_TEHACHAPI_SOLAR","NAN",null,"caiso_solar","NAN","newresolve","utility_pv"]
["_CREZ_GENERIC_TEHACHAPI_WIND","NAN",null,"caiso_wind","NAN","newresolve","in_state_wind_south"]
["_CREZ_GENERIC_UTAH_SOLAR","NAN",null,"caiso_solar","NAN","newresolve","utility_pv"]
["_CREZ_GENERIC_UTAH_WIND","NAN",null,"caiso_wind","NAN","newresolve","out_of_state_wind_AZNM"]
["_CREZ_GENERIC_WESTLANDS_EX_SOLAR","NAN",null,"caiso_solar","NAN","newresolve","utility_pv"]
["_CREZ_GENERIC_WESTLANDS_EX_WIND","NAN",null,"caiso_wind","NAN","newresolve","in_state_wind_north"]
["_CREZ_GENERIC_WESTLANDS_SOLAR","NAN",null,"caiso_solar","NAN","newresolve","utility_pv"]
["_CREZ_GENERIC_WYOMING_WIND","NAN",null,"caiso_wind","NAN","newresolve","out_of_state_wind_WYID"]
["_CREZ_UNBUNDLEDREC_ARIZONA_SOLAR","NAN",null,"caiso_solar","NAN","unbundledrec","n/a"]
["_CREZ_UNBUNDLEDREC_ARIZONA_WIND","NAN",null,"caiso_wind","NAN","unbundledrec","n/a"]
["_CREZ_UNBUNDLEDREC_BAJA_CALIFORNIA_SOLAR","NAN",null,"caiso_solar","NAN","unbundledrec","n/a"]
["_CREZ_UNBUNDLEDREC_BAJA_CALIFORNIA_WIND","NAN",null,"caiso_wind","NAN","unbundledrec","n/a"]
["_CREZ_UNBUNDLEDREC_CAPE_MENDOCINO_OFFSHORE_WIND","NAN",null,"caiso_wind","NAN","unbundledrec","n/a"]
["_CREZ_UNBUNDLEDREC_CARRIZO_SOLAR","NAN",null,"caiso_solar","NAN","unbundledrec","n/a"]
["_CREZ_UNBUNDLEDREC_CARRIZO_WIND","NAN",null,"caiso_wind","NAN","unbundledrec","n/a"]
["_CREZ_UNBUNDLEDREC_CENTRAL_VALLEY_NORTH_LOS_BANOS_SOLAR","NAN",null,"caiso_solar","NAN","unbundledrec","n/a"]
["_CREZ_UNBUNDLEDREC_CENTRAL_VALLEY_NORTH_LOS_BANOS_WIND","NAN",null,"caiso_wind","NAN","unbundledrec","n/a"]
["_CREZ_UNBUNDLEDREC_DEL_NORTE_OFFSHORE_WIND","NAN",null,"caiso_wind","NAN","unbundledrec","n/a"]
["_CREZ_UNBUNDLEDREC_DIABLO_CANYON_EXT_TX_OFFSHORE_WIND","NAN",null,"caiso_wind","NAN","unbundledrec","n/a"]
["_CREZ_UNBUNDLEDREC_DIABLO_CANYON_OFFSHORE_WIND","NAN",null,"caiso_wind","NAN","unbundledrec","n/a"]
["_CREZ_UNBUNDLEDREC_DISTRIBUTED_SOLAR","NAN",null,"caiso_solar","NAN","unbundledrec","n/a"]
["_CREZ_UNBUNDLEDREC_DISTRIBUTED_WIND","NAN",null,"caiso_wind","NAN","unbundledrec","n/a"]
["_CREZ_UNBUNDLEDREC_GREATER_IMPERIAL_GEOTHERMAL","NAN",null,"caiso_geothermal","NAN","unbundledrec","n/a"]
["_CREZ_UNBUNDLEDREC_GREATER_IMPERIAL_SOLAR","NAN",null,"caiso_solar","NAN","unbundledrec","n/a"]
["_CREZ_UNBUNDLEDREC_GREATER_IMPERIAL_WIND","NAN",null,"caiso_wind","NAN","unbundledrec","n/a"]
["_CREZ_UNBUNDLEDREC_GREATER_KRAMER_SOLAR","NAN",null,"caiso_solar","NAN","unbundledrec","n/a"]
["_CREZ_UNBUNDLEDREC_GREATER_KRAMER_WIND","NAN",null,"caiso_wind","NAN","unbundledrec","n/a"]
["_CREZ_UNBUNDLEDREC_HUMBOLDT_BAY_OFFSHORE_WIND","NAN",null,"caiso_wind","NAN","unbundledrec","n/a"]
["_CREZ_UNBUNDLEDREC_HUMBOLDT_WIND","NAN",null,"caiso_wind","NAN","unbundledrec","n/a"]
["_CREZ_UNBUNDLEDREC_IDAHO_WIND","NAN",null,"caiso_wind","NAN","unbundledrec","n/a"]
["_CREZ_UNBUNDLEDREC_INSTATE_BIOMASS","NAN",null,"caiso_biomass","NAN","unbundledrec","n/a"]
["_CREZ_UNBUNDLEDREC_INYOKERN_NORTH_KRAMER_GEOTHERMAL","NAN",null,"caiso_geothermal","NAN","unbundledrec","n/a"]
["_CREZ_UNBUNDLEDREC_INYOKERN_NORTH_KRAMER_SOLAR","NAN",null,"caiso_solar","NAN","unbundledrec","n/a"]
["_CREZ_UNBUNDLEDREC_KERN_GREATER_CARRIZO_SOLAR","NAN",null,"caiso_solar","NAN","unbundledrec","n/a"]
["_CREZ_UNBUNDLEDREC_KERN_GREATER_CARRIZO_WIND","NAN",null,"caiso_wind","NAN","unbundledrec","n/a"]
["_CREZ_UNBUNDLEDREC_KRAMER_INYOKERN_EX_SOLAR","NAN",null,"caiso_solar","NAN","unbundledrec","n/a"]
["_CREZ_UNBUNDLEDREC_KRAMER_INYOKERN_EX_WIND","NAN",null,"caiso_wind","NAN","unbundledrec","n/a"]
["_CREZ_UNBUNDLEDREC_MORRO_BAY_OFFSHORE_WIND","NAN",null,"caiso_wind","NAN","unbundledrec","n/a"]
["_CREZ_UNBUNDLEDREC_MOUNTAIN_PASS_EL_DORADO_SOLAR","NAN",null,"caiso_solar","NAN","unbundledrec","n/a"]
["_CREZ_UNBUNDLEDREC_NEW_MEXICO_SOLAR","NAN",null,"caiso_solar","NAN","unbundledrec","n/a"]
["_CREZ_UNBUNDLEDREC_NEW_MEXICO_WIND","NAN",null,"caiso_wind","NAN","unbundledrec","n/a"]
["_CREZ_UNBUNDLEDREC_NORTHERN_CALIFORNIA_EX_GEOTHERMAL","NAN",null,"caiso_geothermal","NAN","unbundledrec","n/a"]
["_CREZ_UNBUNDLEDREC_NORTHERN_CALIFORNIA_EX_SOLAR","NAN",null,"caiso_solar","NAN","unbundledrec","n/a"]
["_CREZ_UNBUNDLEDREC_NORTHERN_CALIFORNIA_EX_WIND","NAN",null,"caiso_wind","NAN","unbundledrec","n/a"]
["_CREZ_UNBUNDLEDREC_NORTH_VICTOR_SOLAR","NAN",null,"caiso_solar","NAN","unbundledrec","n/a"]
["_CREZ_UNBUNDLEDREC_NW_BIOMASS","NAN",null,"caiso_biomass","NAN","unbundledrec","n/a"]
["_CREZ_UNBUNDLEDREC_NW_EXT_TX_WIND","NAN",null,"caiso_wind","NAN","unbundledrec","n/a"]
["_CREZ_UNBUNDLEDREC_NW_SMALL_HYDRO","NAN",null,"caiso_small_hydro","NAN","unbundledrec","n/a"]
["_CREZ_UNBUNDLEDREC_PACIFIC_NORTHWEST_GEOTHERMAL","NAN",null,"caiso_geothermal","NAN","unbundledrec","n/a"]
["_CREZ_UNBUNDLEDREC_PACIFIC_NORTHWEST_WIND","NAN",null,"caiso_wind","NAN","unbundledrec","n/a"]
["_CREZ_UNBUNDLEDREC_RIVERSIDE_PALM_SPRINGS_GEOTHERMAL","NAN",null,"caiso_geothermal","NAN","unbundledrec","n/a"]
["_CREZ_UNBUNDLEDREC_RIVERSIDE_PALM_SPRINGS_SOLAR","NAN",null,"caiso_solar","NAN","unbundledrec","n/a"]
["_CREZ_UNBUNDLEDREC_SACRAMENTO_RIVER_SOLAR","NAN",null,"caiso_solar","NAN","unbundledrec","n/a"]
["_CREZ_UNBUNDLEDREC_SACRAMENTO_RIVER_WIND","NAN",null,"caiso_wind","NAN","unbundledrec","n/a"]
["_CREZ_UNBUNDLEDREC_SCADSNV_SOLAR","NAN",null,"caiso_solar","NAN","unbundledrec","n/a"]
["_CREZ_UNBUNDLEDREC_SCADSNV_WIND","NAN",null,"caiso_wind","NAN","unbundledrec","n/a"]
["_CREZ_UNBUNDLEDREC_SOLANO_GEOTHERMAL","NAN",null,"caiso_geothermal","NAN","unbundledrec","n/a"]
["_CREZ_UNBUNDLEDREC_SOLANO_SOLAR","NAN",null,"caiso_solar","NAN","unbundledrec","n/a"]
["_CREZ_UNBUNDLEDREC_SOLANO_SUBZONE_SOLAR","NAN",null,"caiso_solar","NAN","unbundledrec","n/a"]
["_CREZ_UNBUNDLEDREC_SOLANO_SUBZONE_WIND","NAN",null,"caiso_wind","NAN","unbundledrec","n/a"]
["_CREZ_UNBUNDLEDREC_SOLANO_WIND","NAN",null,"caiso_wind","NAN","unbundledrec","n/a"]
["_CREZ_UNBUNDLEDREC_SOUTHERN_CALIFORNIA_DESERT_EX_SOLAR","NAN",null,"caiso_solar","NAN","unbundledrec","n/a"]
["_CREZ_UNBUNDLEDREC_SOUTHERN_CALIFORNIA_DESERT_EX_WIND","NAN",null,"caiso_wind","NAN","unbundledrec","n/a"]
["_CREZ_UNBUNDLEDREC_SOUTHERN_CA_DESERT_SOUTHERN_NV_SOLAR","NAN",null,"caiso_solar","NAN","unbundledrec","n/a"]
["_CREZ_UNBUNDLEDREC_SOUTHERN_CA_DESERT_SOUTHERN_NV_WIND","NAN",null,"caiso_wind","NAN","unbundledrec","n/a"]
["_CREZ_UNBUNDLEDREC_SOUTHERN_NEVADA_GEOTHERMAL","NAN",null,"caiso_geothermal","NAN","unbundledrec","n/a"]
["_CREZ_UNBUNDLEDREC_SOUTHERN_NEVADA_SOLAR","NAN",null,"caiso_solar","NAN","unbundledrec","n/a"]
["_CREZ_UNBUNDLEDREC_SOUTHERN_NEVADA_WIND","NAN",null,"caiso_wind","NAN","unbundledrec","n/a"]
["_CREZ_UNBUNDLEDREC_SW_BIOMASS","NAN",null,"caiso_biomass","NAN","unbundledrec","n/a"]
["_CREZ_UNBUNDLEDREC_SW_EXT_TX_WIND","NAN",null,"caiso_wind","NAN","unbundledrec","n/a"]
["_CREZ_UNBUNDLEDREC_TEHACHAPI_EX_SOLAR","NAN",null,"caiso_solar","NAN","unbundledrec","n/a"]
["_CREZ_UNBUNDLEDREC_TEHACHAPI_SOLAR","NAN",null,"caiso_solar","NAN","unbundledrec","n/a"]
["_CREZ_UNBUNDLEDREC_TEHACHAPI_WIND","NAN",null,"caiso_wind","NAN","unbundledrec","n/a"]
["_CREZ_UNBUNDLEDREC_UTAH_SOLAR","NAN",null,"caiso_solar","NAN","unbundledrec","n/a"]
["_CREZ_UNBUNDLEDREC_UTAH_WIND","NAN",null,"caiso_wind","NAN","unbundledrec","n/a"]
["_CREZ_UNBUNDLEDREC_WESTLANDS_EX_SOLAR","NAN",null,"caiso_solar","NAN","unbundledrec","n/a"]
["_CREZ_UNBUNDLEDREC_WESTLANDS_EX_WIND","NAN",null,"caiso_wind","NAN","unbundledrec","n/a"]
["_CREZ_UNBUNDLEDREC_WESTLANDS_SOLAR","NAN",null,"caiso_solar","NAN","unbundledrec","n/a"]
["_CREZ_UNBUNDLEDREC_WYOMING_WIND","NAN",null,"caiso_wind","NAN","unbundledrec","n/a"]
["_EXISTING_GENERIC_BATTERY_STORAGE","NAN",null,"caiso_battery","NAN","existinggeneric","hr_batteries"]
["_EXISTING_GENERIC_BIOGAS_LANDFILLGAS","NAN",null,"caiso_biomass","NAN","existinggeneric","biomass_wood"]
["_EXISTING_GENERIC_BIOMASS/WOOD","NAN",null,"caiso_biomass","NAN","existinggeneric","biomass_wood"]
["_EXISTING_GENERIC_COAL","NAN",null,"caiso_coal","NAN","existinggeneric","coal"]
["_EXISTING_GENERIC_COGEN","NAN",null,"caiso_chp","NAN","existinggeneric","cogen"]
["_EXISTING_GENERIC_COMBINED_CYCLE","NAN",null,"caiso_ccgt1","NAN","existinggeneric","gas_cc"]
["_EXISTING_GENERIC_DR","NAN",null,"caiso_dr","NAN","existinggeneric","demand_response"]
["_EXISTING_GENERIC_GEOTHERMAL","NAN",null,"caiso_geothermal","NAN","existinggeneric","geothermal"]
["_EXISTING_GENERIC_ICE","NAN",null,"caiso_reciprocating_engine","NAN","existinggeneric","ice"]
["_EXISTING_GENERIC_INSTATE_LARGE_HYDRO","NAN",null,"caiso_hydro","NAN","existinggeneric","hydro"]
["_EXISTING_GENERIC_INSTATE_SMALL_HYDRO","NAN",null,"caiso_hydro","NAN","existinggeneric","hydro"]
["_EXISTING_GENERIC_NUCLEAR","NAN",null,"caiso_nuclear","NAN","existinggeneric","nuclear"]
["_EXISTING_GENERIC_NW_HYDRO","NAN",null,"caiso_hydro","NAN","existinggeneric","hydro"]
["_EXISTING_GENERIC_PEAKER","NAN",null,"caiso_peaker1","NAN","existinggeneric","gas_ct"]
["_EXISTING_GENERIC_PUMPED_STORAGE_HYDRO","NAN",null,"caiso_pumped_hydro","NAN","existinggeneric","pumped_storage"]
["_EXISTING_GENERIC_SOLAR_1AXIS","NAN",null,"caiso_solar","NAN","existinggeneric","utility_pv"]
["_EXISTING_GENERIC_SOLAR_2AXIS","NAN",null,"caiso_solar","NAN","existinggeneric","utility_pv"]
["_EXISTING_GENERIC_SOLAR_FIXED","NAN",null,"caiso_solar","NAN","existinggeneric","utility_pv"]
["_EXISTING_GENERIC_SOLAR_THERMAL","NAN",null,"caiso_solar","NAN","existinggeneric","utility_pv"]
["_EXISTING_GENERIC_STEAM","NAN",null,"caiso_steam","NAN","existinggeneric","steam"]
["_EXISTING_GENERIC_UNKNOWN","NAN",null,"caiso_unknown","NAN","existinggeneric","n/a"]
["_EXISTING_GENERIC_WIND","NAN",null,"caiso_wind","NAN","existinggeneric","in_state_wind_south"]
["_NEW_BTM_DR","NAN",null,"caiso_loadmod","NAN","newloadmod","demand_response"]
["_NEW_BTM_EE","NAN",null,"caiso_loadmod","NAN","newloadmod","demand_response"]
["_NEW_BTM_RESOURCE","NAN",null,"caiso_loadmod","NAN","newloadmod","demand_response"]
["_NEW_DG","NAN",null,"caiso_loadmod","NAN","newloadmod","btm_pv"]
["_NEW_EV","NAN",null,"caiso_loadmod","NAN","newloadmod","demand_response"]
["_NEW_GENERIC_BATTERY_STORAGE","NAN",null,"caiso_battery","NAN","newgeneric","hr_batteries"]
["_NEW_GENERIC_BIOGAS_LANDFILLGAS","NAN",null,"caiso_biomass","NAN","newgeneric","biomass_wood"]
["_NEW_GENERIC_BIOMASS/WOOD","NAN",null,"caiso_biomass","NAN","newgeneric","biomass_wood"]
["_NEW_GENERIC_COAL","NAN",null,"caiso_coal","NAN","newgeneric","coal"]
["_NEW_GENERIC_COGEN","NAN",null,"caiso_chp","NAN","newgeneric","cogen"]
["_NEW_GENERIC_COMBINED_CYCLE","NAN",null,"caiso_ccgt1","NAN","newgeneric","gas_cc"]
["_NEW_GENERIC_DR","NAN",null,"caiso_dr","NAN","newgeneric","demand_response"]
["_NEW_GENERIC_GEOTHERMAL","NAN",null,"caiso_geothermal","NAN","newgeneric","geothermal"]
["_NEW_GENERIC_ICE","NAN",null,"caiso_reciprocating_engine","NAN","newgeneric","ice"]
["_NEW_GENERIC_INSTATE_LARGE_HYDRO","NAN",null,"caiso_hydro","NAN","newgeneric","hydro"]
["_NEW_GENERIC_INSTATE_SMALL_HYDRO","NAN",null,"caiso_hydro","NAN","newgeneric","hydro"]
["_NEW_GENERIC_NUCLEAR","NAN",null,"caiso_nuclear","NAN","newgeneric","nuclear"]
["_NEW_GENERIC_NW_HYDRO","NAN",null,"caiso_hydro","NAN","newgeneric","hydro"]
["_NEW_GENERIC_PEAKER","NAN",null,"caiso_peaker1","NAN","newgeneric","gas_ct"]
["_NEW_GENERIC_PUMPED_STORAGE_HYDRO","NAN",null,"caiso_pumped_hydro","NAN","newgeneric","pumped_storage"]
["_NEW_GENERIC_SOLAR_1AXIS","NAN",null,"caiso_solar","NAN","newgeneric","utility_pv"]
["_NEW_GENERIC_SOLAR_2AXIS","NAN",null,"caiso_solar","NAN","newgeneric","utility_pv"]
["_NEW_GENERIC_SOLAR_FIXED","NAN",null,"caiso_solar","NAN","newgeneric","utility_pv"]
["_NEW_GENERIC_SOLAR_THERMAL","NAN",null,"caiso_solar","NAN","newgeneric","utility_pv"]
["_NEW_GENERIC_STEAM","NAN",null,"caiso_steam","NAN","newgeneric","steam"]
["_NEW_GENERIC_UNKNOWN","NAN",null,"caiso_unknown","NAN","newgeneric","n/a"]
["_NEW_GENERIC_WIND","NAN",null,"caiso_wind","NAN","newgeneric","in_state_wind_south"]
["_NEW_TOU","NAN",null,"caiso_loadmod","NAN","newloadmod","demand_response"]
["_SUPPLIERS_CHOICE","NAN",null,"suppliers_choice","NAN","supplierschoice","n/a"]
["_UNSPECIFIED_NON_IMPORT","NAN",null,"unspecified_non_import","NAN","unspecifiednonimport","n/a"]

{"sheet":"lse_names","index":5,"n_rows":104,"n_cols":3,"rows_kept":104,"cut":false,"hidden":false,"merged":[]}
["lse","NAME","lse_type"]
["3PR","3 Phases Renewables","ESP"]
["APN","American PowerNet Management","ESP"]
["AVCE","Apple Valley Choice Energy","CCA"]
["CEI","Just Energy Solutions","ESP"]
["CES","Commercial Energy of Montana","ESP"]
["CNE","Constellation New Energy","ESP"]
["COBP","City of Baldwin Park","CCA"]
["COSB","City of Solana Beach","CCA"]
["CPA","Calpine Power America","ESP"]
["CPASC","Clean Power Alliance of Southern California","CCA"]
["CPSF","CleanPowerSF","CCA"]
["DCE","Desert Community Energy","CCA"]
["DEB","Direct Energy Business","ESP"]
["EBCE","East Bay Community Energy","CCA"]
["EIPS","EDF Industrial Power Services","ESP"]
["HANFORD","City of Hanford","CCA"]
["KCCP","King City Community Power","CCA"]
["LCE","Lancaster Choice Energy","CCA"]
["LPH","Liberty Power Holdings","ESP"]
["CCCE","Monterey Bay Community Power Authority","CCA"]
["MCE","Marin Clean Energy","CCA"]
["NES","Calpine Energy Solutions","ESP"]
["PALMDALE","City of Palmdale","CCA"]
["PCEA","Peninsula Clean Energy Authority","CCA"]
["PGE","Pacific Gas & Electric","IOU"]
["PIONEER","Pioneer Community Energy","CCA"]
["POMONA","City of Pomona","CCA"]
["PPG","Pilot Power Group","ESP"]
["PRIME","Pico Rivera Innovative Municipal Energy","CCA"]
["RCEA","Redwood Coast Energy Authority","CCA"]
["RMEA","Rancho Mirage Energy Authority","CCA"]
["SCE","Southern California Edison","IOU"]
["SDGE","San Diego Gas & Electric","IOU"]
["SENA","Shell Energy North America","ESP"]
["SJCE","San Jose Clean Energy","CCA"]
["SJP","San Jacinto Power","CCA"]
["SOMA","Sonoma Clean Power Authority","CCA"]
["SVCE","Silicon Valley Clean Energy Authority","CCA"]
["TNG","Tiger Natural Gas","ESP"]
["UC","University of California","ESP"]
["VCEA","Valley Clean Energy Alliance","CCA"]
["WCE","Western Community Energy","CCA"]
["PCORP","PacifiCorp","POU"]
["BVES","Bear Valley Electric Service","IOU"]
["LIB","Liberty Utilities","IOU"]
["BCE","Butte Choice Energy","CCA"]
["CEA","Clean Energy Alliance","CCA"]
["COM","City of Commerce","CCA"]
["SDCP","San Diego Community Power","CCA"]
["SBCE","Santa Barbara Clean Energy","CCA"]
["AGERA","Agera Energy, LLC","ESP"]
["GEXA","Gexa Energy California, LLC","ESP"]
["LPD","Liberty Power Delaware, LLC","ESP"]
["PALMCO","Palmco Power CA","ESP"]
["PRAX","Praxair Plainfield, Inc.","ESP"]
["TENA","Tenaska Power Services Co.","ESP"]
["YEP","Yep Energy","ESP"]
["ANZA","Anza Electric Cooperative","COOP"]
["PLUMAS","Plumas Sierra Rural Electric Cooperative","COOP"]
["SURPRISE","Surprise Valley Electrification Corporation","POU"]
["VEA","Valley Electric Association","COOP"]
["ANHM","Anaheim","CAISOPOU"]
["AZCO","Arizona Electric Power Cooperative","POU"]
["AZUA","Azusa","CAISOPOU"]
["BAN1","Banning","CAISOPOU"]
["BWPM","Burbank","POU"]
["CCSF","City and County San Francisco","CAISOPOU"]
["CLTN","Colton","CAISOPOU"]
["COR1","Corona","CAISOPOU"]
["CRCL","Cerritos","CAISOPOU"]
["GLEN","Glendale","POU"]
["IIDE","Imperial Irrigation District","POU"]
["INDU","Industry","CAISOPOU"]
["KIRK","Kirkwood","POU"]
["LADWP","LADWP","POU"]
["LASS","Lassen","CAISOPOU"]
["MEID","Merced","POU"]
["MID","Modesto Irrigation District","POU"]
["MVAL","Moreno Valley","CAISOPOU"]
["NCPA","Northern California Power Agency","CAISOPOU"]
["NEED","Needles","POU"]
["PASA","Pasadena","CAISOPOU"]
["PITT","Pittsburg","CAISOPOU"]
["PSTN","Stockton","CAISOPOU"]
["PWRPA","Power Water Resources Pooling Authority","CAISOPOU"]
["RCMU","Rancho Cucamonga","CAISOPOU"]
["RDG1","Redding","POU"]
["RSVL","Roseville","POU"]
["RVSD","Riverside","CAISOPOU"]
["SCOV","Shelter Cove","CAISOPOU"]
["SLAK","Shasta Lake","POU"]
["SMUD","SMUD","POU"]
["SNCL","Silicon Valley Power","CAISOPOU"]
["TIDM","Turlock Irrigation District","POU"]
["TRIN","Trinity","CAISOPOU"]
["TRUC","Truckee","POU"]
["VERN","Vernon","CAISOPOU"]
["VMUS","Victorville","CAISOPOU"]
["WEPA","Eastside Power Authority","CAISOPOU"]
["_OTHER","Multiple non-IOU LSEs"]
["_OTHER","Multiple LSEs"]
["_OTHER","Multiple IOUs"]
["_OTHER","non-LSE supplier","_OTHER"]

{"sheet":"misc","index":6,"n_rows":93,"n_cols":74,"rows_kept":93,"cut":false,"hidden":false,"merged":[]}
["contract_status","bool","yes_no","Year","int_count","transact","cap_areas","cap_sub_areas","state_county","d1911016_tranches","d2106035_tranche ","energy_capacity_from_resource","is_hybrid_paired","csp_cat","solar_Technology_sub_type","storage_Technology_sub_type","nqc_reporting_source","cam_d1911016_vamo_pcia",null,"25MMT ELCC (%)",null,null,null,null,null,null,null,null,null,null,null,null,null,"30MMT ELCC (%)",null,null,null,null,null,null,null,null,null,null,null,null,null,"25MMT MRN/TRN ratio",null,null,null,null,null,null,null,null,null,null,null,null,null,"30MMT MRN/TRN ratio"]
["Online",0,"YES","NA","NA","Buy","Humboldt","North Coast  Eagle Rock","NA","NA","NA","EnergyCapacity","NotHybrid","NA","Fixed","Li","In the contract","CAM",null,"elcc_type",2024,2025,2026,2027,2028,2029,2030,2031,2032,2033,2034,2035,null,"elcc_type",2024,2025,2026,2027,2028,2029,2030,2031,2032,2033,2034,2035,null,null,2024,2025,2026,2027,2028,2029,2030,2031,2032,2033,2034,2035,null,null,2024,2025,2026,2027,2028,2029,2030,2031,2032,2033,2034,2035]
["Review",1,"NO",1970,1,"Sell","NorthCoastNorthBay","North Coast  Fulton","AlpineCounty",1,"firm_ZE","EnergyOnly","ExistingBiomassExistingStorage","Large Hydro (GWh)","SolarThermal","Flow","Calculated","D.19-11-016",null,"in_state_wind_south",0.11841355076102321,0.13636070685128646,0.15430786294154972,0.10693659222396304,5.9565321506376369E-2,7.7201442724824779E-2,9.4837563943273195E-2,8.4644753263379724E-2,7.4451942583486252E-2,6.4259131903592781E-2,5.406632122369931E-2,4.3873510543805838E-2,null,"in_state_wind_south",0.15102941403529452,0.15178846902809942,0.15254752402090432,0.11848326121551586,8.4418998410127413E-2,8.3416882718990337E-2,8.2414767027853275E-2,7.4829691124404837E-2,6.72446152209564E-2,5.9659539317507955E-2,5.207446341405951E-2,4.4489387510611059E-2,null,null,0.77201871279722722,0.78867470616438251,0.80390270140610376,0.77610409059689334,0.75027694884377893,0.76246521023924085,0.77457060149091872,0.74274625791973614,0.71261162813758272,0.6827328847380274,0.65390251423413703,0.62577079443506212,null,null,0.80029848011116889,0.81896333891271367,0.83611438362607471,0.79544567238840358,0.75709177033813169,0.73673303550177849,0.71703757483484865,0.69918925792169562,0.68264892770624752,0.66607760402249072,0.65025016398978508,0.63484459547384975]
["PlannedExisting",null,"NA",1971,2,"Owned","Sierra","Sierra  Placer","AmadorCounty","1&2","firm_ZE_&_firm_ZE_ext","CapacityOnly","ExistingBiomassNewStorage","Imported Hydro (GWh)","1Axis","PSH",null,"VAMO",null,"in_state_wind_north",0.23682710152204642,0.27272141370257291,0.30861572588309943,0.21387318444792608,0.11913064301275274,0.15440288544964956,0.18967512788654639,0.16928950652675945,0.1489038851669725,0.12851826380718556,0.10813264244739862,8.7747021087611676E-2,null,"in_state_wind_north",0.30205882807058904,0.30357693805619884,0.30509504804180865,0.23696652243103172,0.16883799682025483,0.16683376543798067,0.16482953405570655,0.14965938224880967,0.1344892304419128,0.11931907863501591,0.10414892682811902,8.8978775021222117E-2]
["Development",null,null,1972,3,null,"Stockton","Sierra  Pease","AlamedaCounty",2,"firm_ZE_ext",null,"ExistingGeothermalExistingStorage","Asset Controlling Supplier (GWh)","2Axis","Other",null,"GHG-free PCIA",null,"out_of_state_wind_WYID",0.46897827577694978,0.45359083280372914,0.43820338983050844,0.38080451179552754,0.3234056337605466,0.32954852469028811,0.33569141562002963,0.32866160707229491,0.3216317985245602,0.31460198997682548,0.30757218142909076,0.30054237288135593,null,"out_of_state_wind_WYID",0.42559322033898306,0.39180370915668034,0.35801419797437761,0.37372282962154058,0.38943146126870348,0.31241064588858902,0.23538983050847456,0.24842033898305083,0.26145084745762709,0.27448135593220335,0.28751186440677962,0.30054237288135593]
["PlannedNew",null,null,1973,4,null,"GreaterBay","Sierra  Gold Hill-Drum","ButteCounty","2&3","general",null,"ExistingGeothermalNewStorage","Nuclear (GWh)",null,null,null,null,null,"out_of_state_wind_WAOR",0.28743829805684018,0.27800728462164043,0.26857627118644067,0.23339631368112979,0.19821635617581887,0.20198135384243465,0.20574635150905043,0.20143775917334206,0.19712916683763368,0.1928205745019253,0.18851198216621692,0.18420338983050849,null,"out_of_state_wind_WAOR",0.26084745762711864,0.24013775722506214,0.21942805682300565,0.22905592783255713,0.23868379884210861,0.1914774926413933,0.14427118644067796,0.15225762711864407,0.16024406779661018,0.1682305084745763,0.17621694915254241,0.18420338983050849]
[null,null,null,1974,5,null,"GreaterFresno","Stockton  Lockeford","CalaverasCounty","1&3","general_&_firm_ZE",null,"ExistingSolarExistingStorage","Biogas (GWh)",null,null,null,null,null,"out_of_state_wind_AZNM",0.42359328134692242,0.40969494575820697,0.39579661016949158,0.34395246226692811,0.29210831436436469,0.29765673197832476,0.30320514959228489,0.29685564509755674,0.29050614060282859,0.28415663610810044,0.27780713161337228,0.27145762711864413,null,"out_of_state_wind_AZNM",0.384406779661017,0.3538872211737758,0.32336766268653466,0.33755610417429471,0.35174454566205482,0.28217735757679013,0.21261016949152545,0.22437966101694917,0.2361491525423729,0.24791864406779662,0.25968813559322035,0.27145762711864413]
[null,null,null,1975,6,null,"Kern","Stockton  Tesla-Bellota","ColusaCounty",3,"general_&_firm_ZE_ext",null,"ExistingSolarNewStorage","Biomass (GWh)",null,null,null,null,null,"offshore_wind",0.66745107707355167,0.61580710432933394,0.56416313158511622,0.55718196245584084,0.55020079332656546,0.5803035093936455,0.61040622546072543,0.55232498036858035,0.49424373527643528,0.43616249018429021,0.37808124509214514,0.32,null,"offshore_wind",0.54900000000000004,0.50668405182051957,0.46436810364103909,0.48659667347489211,0.50882524330874512,0.46741262165437258,0.42599999999999999,0.40479999999999999,0.3836,0.3624,0.3412,0.32]
[null,null,null,1976,7,null,"BigCreekVentura","Greater Bay   Llagas","ContraCostaCounty","1&2&3","general_&_long_duration_storage",null,"ExistingThermalExistingStorage","Geothermal (GWh)",null,null,null,null,null,"utility_pv",0.12434584155282009,0.12102944303332039,0.11771304451382068,0.1001620473979912,8.261105028216173E-2,7.6604612550074003E-2,7.0598174817986262E-2,6.9278539854389004E-2,6.7958904890791746E-2,6.6639269927194489E-2,6.5319634963597231E-2,6.4000000000000001E-2,null,"utility_pv",9.6000000000000002E-2,0.10220064352589828,0.10840128705179657,0.1016803220430352,9.4959357034273828E-2,7.7479678517136913E-2,0.06,6.08E-2,6.1600000000000002E-2,6.2400000000000004E-2,6.3200000000000006E-2,6.4000000000000001E-2]
[null,null,null,1977,8,null,"LABasin","Greater Bay   San Jose","DelNorteCounty",null,"general_&_long_duration_storage_ext",null,"ExistingThermalNewStorage","Small Hydro (GWh)",null,null,null,null,null,"btm_pv",5.3182100841591383E-2,4.865045278619004E-2,4.4118804730788705E-2,5.2547949194918675E-2,6.0977093659048652E-2,5.4040407611745077E-2,4.7103721564441502E-2,4.8882977251553203E-2,5.0662232938664904E-2,5.2441488625776606E-2,5.4220744312888307E-2,5.6000000000000001E-2,null,"btm_pv",8.8999999999999996E-2,9.3703365409453621E-2,9.8406730818907232E-2,8.2703365409453611E-2,6.7000000000000004E-2,5.6000000000000001E-2,4.4999999999999998E-2,4.7199999999999999E-2,4.9399999999999999E-2,5.16E-2,5.3800000000000001E-2,5.6000000000000001E-2]
[null,null,null,1978,9,null,"SanDiegoImperialValley","Greater Bay   South Bay  Moss Landing","ElDoradoCounty",null,"general_&_ZE_gen_paired_dr",null,"ExistingWindExistingStorage","Wind Baseline California (GWh)",null,null,null,null,null,"4hr_batteries",0.85399999999999998,0.86399999999999999,0.874,0.84499999999999997,0.81599999999999995,0.85299999999999998,0.89,0.79220000000000002,0.69440000000000002,0.59660000000000002,0.49880000000000002,0.40100000000000002,null,"4hr_batteries",0.88500000000000001,0.90149999999999997,0.91800000000000004,0.84550000000000003,0.77300000000000002,0.75900000000000001,0.745,0.67620000000000002,0.60740000000000005,0.53860000000000008,0.46980000000000011,0.40100000000000002]
[null,null,null,1979,10,null,"PacGE","Greater Bay  Oakland","FresnoCounty",null,"long_duration_storage",null,"ExistingWindNewStorage","Wind New PG&E (GWh)",null,null,null,null,null,"5hr_batteries",0.86399999999999999,0.86962499999999998,0.87524999999999997,0.85087500000000005,0.82650000000000001,0.85824999999999996,0.89,0.80695000000000006,0.72389999999999999,0.64084999999999992,0.55779999999999996,0.47475000000000001,null,"5hr_batteries",0.88675000000000004,0.90387499999999998,0.92100000000000004,0.85887500000000006,0.79675000000000007,0.78362500000000002,0.77049999999999996,0.71135000000000004,0.6522,0.59305000000000008,0.53390000000000004,0.47475000000000001]
[null,null,null,1980,11,null,"SCE","Greater Fresno  Panoche","GlennCounty",null,"long_duration_storage_&_firm_ZE",null,"NewBiomassExistingStorage","Wind New SCE SDG&E (GWh)",null,null,null,null,null,"6hr_batteries",0.874,0.87524999999999997,0.87649999999999995,0.85675000000000012,0.83699999999999997,0.86349999999999993,0.89,0.8217000000000001,0.75339999999999996,0.68509999999999982,0.6167999999999999,0.54849999999999999,null,"6hr_batteries",0.88850000000000007,0.90625,0.92400000000000004,0.87225000000000008,0.82050000000000001,0.80825000000000002,0.79599999999999993,0.74650000000000005,0.69699999999999995,0.64750000000000008,0.59799999999999998,0.54849999999999999]
[null,null,null,1981,12,null,"SDGE","Greater Fresno  Herndon","HumboldtCounty",null,"long_duration_storage_&_firm_ZE_ext",null,"NewBiomassNewStorage","Wind Pacific Northwest (GWh)",null,null,null,null,null,"7hr_batteries",0.88400000000000001,0.88087499999999996,0.87774999999999992,0.8626250000000002,0.84749999999999992,0.86874999999999991,0.89,0.83645000000000014,0.78289999999999993,0.72934999999999972,0.67579999999999985,0.62224999999999997,null,"7hr_batteries",0.8902500000000001,0.90862500000000002,0.92700000000000005,0.88562500000000011,0.84424999999999994,0.83287500000000003,0.8214999999999999,0.78165000000000007,0.7417999999999999,0.70195000000000007,0.66209999999999991,0.62224999999999997]
[null,null,null,1982,13,null,"AVA","Greater Fresno  Hanford","ImperialCounty",null,"long_duration_storage_&_long_duration_storage_ext",null,"NewGeothermalExistingStorage","Wind Wyoming (GWh)",null,null,null,null,null,"8hr_batteries",0.89400000000000002,0.88650000000000007,0.879,0.86850000000000005,0.85799999999999998,0.874,0.89,0.85119999999999996,0.8123999999999999,0.77359999999999984,0.73479999999999979,0.69599999999999995,null,"8hr_batteries",0.89200000000000002,0.91100000000000003,0.93,0.89900000000000002,0.86799999999999999,0.85749999999999993,0.84699999999999998,0.81679999999999997,0.78659999999999997,0.75639999999999996,0.72619999999999996,0.69599999999999995]
[null,null,null,1983,14,null,"AVRN","Greater Fresno  Coalinga","InyoCounty",null,"long_duration_storage_ext",null,"NewGeothermalNewStorage","Wind New Mexico (GWh)",null,null,null,null,null,"pumped_storage",0.90100000000000002,0.89,0.879,0.86850000000000005,0.85799999999999998,0.874,0.89,0.85860000000000003,0.82720000000000005,0.79580000000000006,0.76440000000000008,0.73299999999999998,null,"pumped_storage",0.89400000000000002,0.91400000000000003,0.93400000000000005,0.91300000000000003,0.89200000000000002,0.89050000000000007,0.88900000000000001,0.85780000000000001,0.8266,0.7954,0.76419999999999999,0.73299999999999998]
[null,null,null,1984,15,null,"AZPS","Greater Fresno  Borden","KernCounty",null,"long_duration_storage_ext_&_firm_ZE",null,"NewSolarExistingStorage","Wind Offshore Morro Bay (GWh)",null,null,null,null,null,"demand_response",0.7724039633086085,0.79750142153712067,0.82259887976563284,0.77486011512236863,0.72712135047910442,0.79507732791389651,0.86303330534868861,0.71922664427895089,0.57541998320921317,0.43161332213947545,0.28780666106973773,0.14399999999999999,null,"demand_response",0.89300000000000002,0.9083512608449148,0.92370252168982958,0.77235126084491479,0.621,0.60599999999999998,0.59099999999999997,0.50159999999999993,0.41219999999999996,0.32279999999999998,0.2334,0.14399999999999999]
[null,null,null,1985,16,null,"BANC","Greater Fresno  Reedley","KingsCounty",null,"long_duration_storage_ext_&_firm_ZE_ext",null,"NewSolarNewStorage","Wind Offshore Humboldt (GWh)",null,null,null,null,null,"hydro",0.50808542614523622,0.52136584004877395,0.53464625395231169,0.52463421830816248,0.51462218266401338,0.52965938625731068,0.54469658985060787,0.52172491439930901,0.4987532389480101,0.47578156349671119,0.45280988804541228,0.42983821259411337,null,"hydro",0.56660491660133128,0.5639186026863886,0.56123228877144593,0.53191654140391154,0.50260079403637703,0.49249487994717378,0.48238896585797048,0.47187881520519903,0.46136866455242759,0.45085851389965614,0.4403483632468847,0.42983821259411337]
[null,null,null,1986,17,null,"BPAT","Kern  Westpark","LakeCounty",null,"ZE_gen_paired_dr",null,"NewThermalExistingStorage","Solar Baseline California(GWh)",null,null,null,null,null,"small_hydro",0.36439596011147751,0.37392059696589919,0.38344523382032081,0.37626465915023138,0.36908408448014196,0.37986868084682657,0.39065327721351117,0.37417812303529918,0.35770296885708719,0.3412278146788752,0.3247526605006632,0.3082775063224511,null,"small_hydro",0.40636580378868559,0.40443919482132551,0.40251258585396549,0.38148749960139383,0.36046241334882212,0.35321450959515949,0.34596660584149685,0.33842878593768772,0.33089096603387858,0.32335314613006944,0.3158153262262603,0.3082775063224511]
[null,null,null,1987,18,null,"CHPD","Kern  Kern Power-Tevis","LassenCounty",null,"ZE_gen_paired_dr_&_firm_ZE",null,"NewThermalNewStorage","Solar New PG&E (GWh)",null,null,null,null,null,"geothermal",0.86035735395693558,0.88845422376818506,0.91655109357943454,0.92141545041207906,0.92627980724472359,0.91906618301364429,0.91185255878256499,0.91955797078363211,0.92726338278469922,0.93496879478576633,0.94267420678683345,0.95037961878790056,null,"geothermal",0.86400365575892546,0.8782620417931235,0.89252042782732166,0.91001836007896375,0.92751629233060595,0.92280590133888829,0.91809551034717063,0.92538472229861102,0.93267393425005141,0.93996314620149179,0.94725235815293218,0.95454157010437257]
[null,null,null,1988,19,null,"CSTO","Kern  Kern Oil","LosAngelesCounty",null,"ZE_gen_paired_dr_&_firm_ZE_ext",null,"NewWindExistingStorage","Solar New SCE SDG&E (GWh)",null,null,null,null,null,"biomass_wood",0.7760796336578174,0.79410595910163018,0.81213228454544306,0.81927788031425353,0.82642347608306399,0.81498790039485203,0.80355232470664006,0.81956505086438813,0.8355777770221362,0.85159050317988427,0.86760322933763234,0.88361595549538019,null,"biomass_wood",0.78777252109464602,0.80873519104432079,0.82969786099399567,0.83028460488270484,0.83087134877141389,0.82344593040995451,0.81602051204849513,0.83149916107410415,0.84697781009971318,0.86245645912532221,0.87793510815093123,0.89341375717654026]
[null,null,null,1989,20,null,"DEAA","Kern  South Kern PP","MaderaCounty",null,"ZE_gen_paired_dr_&_long_duration_storage",null,"NewWindNewStorage","Solar Distributed (GWh)",null,null,null,null,null,"biogas",0.74993508538984277,0.76621477432747476,0.78249446326510674,0.78556571387656016,0.78863696448801368,0.77725397013863851,0.76587097578926322,0.78423035140973241,0.80258972703020159,0.82094910265067078,0.83930847827113997,0.85766785389160938,null,"biogas",0.75849976538356267,0.77833009661414909,0.79816042784473562,0.79513379797889616,0.7921071681130567,0.78251806948180391,0.77292897085055123,0.79192907385472411,0.81092917685889698,0.82992927986306986,0.84892938286724273,0.86792948587141583]
[null,null,null,1990,21,null,"DOPD","Big Creek/Ventura - Vesta","MarinCounty",null,"ZE_gen_paired_dr_&_long_duration_storage_ext",null,null,"Hybrid_or_Paired_Solar_and_Battery (GWh)",null,null,null,null,null,"nuclear",0.93356208910726446,0.93542040714074237,0.93727872517422017,0.93803958722410496,0.93880044927398987,0.93205531633495187,0.92531018339591387,0.93233873256863709,0.9393672817413603,0.94639583091408352,0.95342438008680674,0.96045292925952974,null,"nuclear",0.93139197880214852,0.93996144395127801,0.9485309091004076,0.94333376244952838,0.93813661579864904,0.93575640725694242,0.93337619871523581,0.93933118321638243,0.94528616771752905,0.95124115221867567,0.95719613671982229,0.96315112122096869]
[null,null,null,1991,22,null,"EPE","Big Creek/Ventura - Santa Clara","MariposaCounty",null,null,null,null,"Shed DR (MW)",null,null,null,null,null,"gas_cc",0.84405545915455138,0.85378805932691004,0.86352065949926871,0.86634980076266022,0.86917894202605173,0.85956321379360601,0.84994748556116018,0.86140444290247919,0.87286140024379821,0.88431835758511723,0.89577531492643625,0.90723227226775538,null,"gas_cc",0.84814757974875532,0.86263887009961904,0.87713016045048275,0.87417936920023021,0.87122857794997766,0.86089172285515003,0.85055486776032241,0.86298372454380101,0.87541258132727962,0.88784143811075822,0.90027029489423682,0.91269915167771554]
[null,null,null,1992,23,null,"GCPD","LA Basin  Eastern","MendocinoCounty",null,null,null,null,"Pumped Storage (MW)",null,null,null,null,null,"gas_ct",0.81237441831218216,0.83458266364683165,0.85679090898148114,0.84024564289456083,0.82370037680764052,0.80688071641969916,0.7900610560317578,0.80257508455656523,0.81508911308137266,0.82760314160618009,0.84011717013098752,0.85263119865579484,null,"gas_ct",0.80210397441153047,0.8164055166331512,0.83070705885477203,0.82614281229582409,0.82157856573687627,0.80581095377983025,0.79004334182278424,0.79962832305535969,0.80921330428793514,0.81879828552051059,0.82838326675308604,0.83796824798566139]
[null,null,null,1993,24,null,"GRIF","LA Basin  Western","MercedCounty",null,null,null,null,"Battery Storage (MWh Energy Capacity)",null,null,null,null,null,"cogen",0.93171659158246634,0.92982721151899872,0.9279378314555311,0.93426748239376611,0.94059713333200112,0.93177611621028944,0.92295509908857776,0.92509715629415346,0.92723921349972915,0.92938127070530485,0.93152332791088055,0.93366538511645647,null,"cogen",0.89510595870195142,0.92080923604040321,0.94651251337885489,0.91922536104575825,0.89193820871266161,0.89034739869657353,0.88875658868048535,0.89657566327297322,0.9043947378654611,0.91221381245794897,0.92003288705043684,0.92785196164292472]
[null,null,null,1994,25,null,"GRIS","LA Basin  El Nido","ModocCounty",null,null,null,null,"Storage Resource Custom Profile (MW)",null,null,null,null,null,"ice",0.93417725494886394,0.93953702885460977,0.94489680276035559,0.94420958116215314,0.94352235956395081,0.94551881178594521,0.94751526400793951,0.93432127731937176,0.92112729063080401,0.90793330394223626,0.89473931725366851,0.88154533056510087,null,"ice",0.92925750703154864,0.90155388721725416,0.87385026740295979,0.89802819899977204,0.92220613059658441,0.91831713786770974,0.91442814513883497,0.90430189637815794,0.89417564761748092,0.88404939885680389,0.87392315009612687,0.86379690133544973]
[null,null,null,1995,26,null,"GRMA","San Diego/Imperial Valley  San Diego","MonoCounty",null,null,null,null,"RPS Resource Custom Profile (GWh)",null,null,null,null,null,"coal",0.68780333538830307,0.70728773218306451,0.72677212897782595,0.72091463332629768,0.71505713767476942,0.68678495655552108,0.65851277543627273,0.68894203468715276,0.71937129393803279,0.74980055318891281,0.78022981243979284,0.81065907169067308,null,"coal",0.6905015932630254,0.71720881804551684,0.74391604282800827,0.73721266741320757,0.73050929199840686,0.71015565906334177,0.68980202612827657,0.71688684336924113,0.7439716606102057,0.77105647785117026,0.79814129509213483,0.82522611233309917]
[null,null,null,1996,27,null,"GWA","San Diego/Imperial Valley  El Cajon","MontereyCounty",null,null,null,null,"GHG-free non-RPS Resource Custom Profile (GWh)",null,null,null,null,null,"steam",0.77854029702421501,0.79236174105596691,0.80618318508771891,0.80202811428072351,0.79787304347372801,0.77781790021672426,0.75776275695972062,0.77934804431009863,0.80093333166047664,0.82251861901085466,0.84410390636123267,0.86568919371161046,null,"steam",0.7804543321668751,0.79939935861356859,0.81834438506026208,0.81358928131774333,0.80883417757522458,0.79439613253754293,0.77995808749986129,0.79917096278409228,0.81838383806832327,0.83759671335255426,0.85680958863678525,0.87602246392101613]
[null,null,null,1997,28,null,"HGMA","San Diego/Imperial Valley  Border","NapaCounty",null,null,null,null,"Coal (GWh)",null,null,null,null,null,"unspecified_import",1,1,1,1,1,1,1,1,1,1,1,1,null,"unspecified_import",1,1,1,1,1,1,1,1,1,1,1,1]
[null,null,null,1998,29,null,"IID","No_sub_area","NevadaCounty"]
[null,null,null,1999,30,null,"IPCO",null,"OrangeCounty"]
[null,null,null,2000,31,null,"LDWP",null,"PlacerCounty"]
[null,null,null,2001,null,null,"NEVP",null,"PlumasCounty"]
[null,null,null,2002,null,null,"NWMT",null,"RiversideCounty"]
[null,null,null,2003,null,null,"PACE",null,"SacramentoCounty"]
[null,null,null,2004,null,null,"PACW",null,"SanBenitoCounty"]
[null,null,null,2005,null,null,"PortGE",null,"SanBernardinoCounty"]
[null,null,null,2006,null,null,"PNM",null,"SanDiegoCounty"]
[null,null,null,2007,null,null,"PSCO",null,"SanFrancisco"]
[null,null,null,2008,null,null,"PSEI",null,"SanJoaquinCounty"]
[null,null,null,2009,null,null,"SCL",null,"SanLuisObispoCounty"]
[null,null,null,2010,null,null,"SRP",null,"SanMateoCounty"]
[null,null,null,2011,null,null,"SWPP",null,"SantaBarbaraCounty"]
[null,null,null,2012,null,null,"TEPC",null,"SantaClaraCounty"]
[null,null,null,2013,null,null,"TIDC",null,"SantaCruzCounty"]
[null,null,null,2014,null,null,"TPWR",null,"ShastaCounty"]
[null,null,null,2015,null,null,"WACM",null,"SierraCounty"]
[null,null,null,2016,null,null,"WALC",null,"SiskiyouCounty"]
[null,null,null,2017,null,null,"WAUW",null,"SolanoCounty"]
[null,null,null,2018,null,null,"WWA",null,"SonomaCounty"]
[null,null,null,2019,null,null,null,null,"StanislausCounty"]
[null,null,null,2020,null,null,null,null,"SutterCounty"]
[null,null,null,2021,null,null,null,null,"TehamaCounty"]
[null,null,null,2022,null,null,null,null,"TrinityCounty"]
[null,null,null,2023,null,null,null,null,"TulareCounty"]
[null,null,null,2024,null,null,null,null,"TuolumneCounty"]
[null,null,null,2025,null,null,null,null,"VenturaCounty"]
[null,null,null,2026,null,null,null,null,"YoloCounty"]
[null,null,null,2027,null,null,null,null,"YubaCounty"]
[null,null,null,2028,null,null,null,null,"Washington"]
[null,null,null,2029,null,null,null,null,"Oregon"]
[null,null,null,2030,null,null,null,null,"California"]
[null,null,null,2031,null,null,null,null,"Idaho"]
[null,null,null,2032,null,null,null,null,"Nevada"]
[null,null,null,2033,null,null,null,null,"Utah"]
[null,null,null,2034,null,null,null,null,"Arizona"]
[null,null,null,2035,null,null,null,null,"Colorado"]
[null,null,null,2036,null,null,null,null,"Wyoming"]
[null,null,null,2037,null,null,null,null,"Montana"]
[null,null,null,2038,null,null,null,null,"SouthDakota"]
[null,null,null,2039,null,null,null,null,"NewMexico"]
[null,null,null,2040,null,null,null,null,"Texas"]
[null,null,null,2041,null,null,null,null,"BritishColumbiaCanada"]
[null,null,null,2042,null,null,null,null,"AlbertaCanada"]
[null,null,null,2043,null,null,null,null,"BajaCaliforniaMexico"]
[null,null,null,2044]
[null,null,null,2045]
[null,null,null,2046]
[null,null,null,2047]
[null,null,null,2048]
[null,null,null,2049]
[null,null,null,2050]
[null,null,null,2051]
[null,null,null,2052]
[null,null,null,2053]
[null,null,null,2054]
[null,null,null,2055]
[null,null,null,2056]
[null,null,null,2057]
[null,null,null,2058]
[null,null,null,2059]
[null,null,null,2060]

{"sheet":"btm_pv_forecast","index":7,"n_rows":43,"n_cols":17,"rows_kept":43,"cut":false,"hidden":false,"merged":[]}
[]
[null,null,null,null,null,"Capacity (MW)"]
[null,"Service Area","Type","LSE CPUC ID","LSE Name",2024,2025,2026,2027,2028,2029,2030,2031,2032,2033,2034,2035]
[]
[null,"PGE","IOU","PGE","Pacific Gas and Electric (Bundled)",2483.8068589790723,2670.6038103689802,2858.9074246620553,3056.0035900636071,3256.6374079561342,3468.7628407033926,3666.9481221821034,3882.9316452981288,4089.8779554219054,4313.371000375545,4525.9710006049063,4733.5943482356379]
[null,"PGE","ESP",null,"Pacific Gas and Electric (Direct Access)",1044.2812727718472,1116.2856772500425,1188.7877162783418,1263.803082966863,1341.8643229155455,1417.5187133768627,1491.0134772441515,1560.1180533957549,1628.5101143427687,1691.9805408676923,1751.8540669200165,1806.595437887127]
[null,"PGE","CCA","3CE","Central Coast Community Energy",421.15158866235947,452.41756345284011,484.24656690264459,518.26131780701587,553.24666760565185,588.40650611030662,623.01932056784142,657.26665772916772,690.27502269615002,722.39237653960083,753.19576332979227,782.63020991442545]
[null,"PGE","CCA","CPSF","CleanPowerSF",272.19416399859608,293.24422043725548,314.64319486101334,337.11583948832134,360.59438348444075,384.43336439847536,408.20763606432604,431.73764612373708,454.71495834668525,477.48365101121402,499.30993106673799,522.15571416344596]
[null,"PGE","CCA","EBCE","East Bay Community Energy",617.76959431414195,667.81996111621743,718.63308662617487,771.46593233074759,827.57953531612543,883.45521722999354,939.61924241275983,994.0497540750838,1047.1904037722193,1098.0250495756795,1147.2771116564363,1195.6178051162908]
[null,"PGE","CCA","KCCP","King City Community Power",3.1274358840494534,3.3636520056169532,3.6050746596521281,3.8602955575569933,4.1281791027990744,4.4032289358735328,4.6760213764533942,4.9529948206200691,5.2230105835236342,5.4948898457039075,5.7600678791208466,6.0177562422379056]
[null,"PGE","CCA","MCE","Marin Clean Energy",527.86388071769511,563.93443402414778,600.94246843265171,639.69312653983377,682.55819738465698,725.04097687911815,779.38139222076563,819.26259007070894,863.34478143792842,897.0318566789806,932.88804641092975,967.05580668741084]
[null,"PGE","CCA","PCEA","Peninsula Clean Energy Authority",316.75083019541813,339.10983202487694,364.76233374423686,394.23905047890116,426.38292831492276,456.14532228889948,487.03461529488857,517.71009069627598,550.01922490357629,578.78887456209941,609.02186232936469,639.46893059021602]
[null,"PGE","CCA","PIONEER","Pioneer Community Energy",174.58370029279465,187.74625877084296,201.05464856586698,215.08391009554981,229.8694970939209,244.8625782047807,259.97134575100404,274.72346527719623,289.20527157432571,303.56593207859419,317.5371963463985,331.39997696384302]
[null,"PGE","CCA","RCEA","Redwood Coast Energy Authority",62.138081316377651,66.496059034432207,71.017362202773811,75.665120769114964,80.48241444552616,85.149414717258253,89.681980650495873,93.946685834520423,98.166583975000705,102.08317249026896,105.78473833742601,109.17589388091692]
[null,"PGE","CCA","SJCE","San José Clean Energy",350.21324007670898,376.68297404818878,403.56176136508725,432.00922554326763,461.8896518316966,492.40267793259045,522.9226245202517,553.27567634329318,583.10753624593087,612.88219212544936,641.84777737179513,670.34157413534956]
[null,"PGE","CCA","SVCEA","Silicon Valley Clean Energy Authority",337.44318241651644,362.59051649013793,388.24515038707466,415.37112983413044,443.77395346360737,472.77166743521479,501.68487615834687,530.5496873902905,558.89072034388994,587.07254600964177,614.43748105219868,641.20263112945668]
[null,"PGE","CCA","SOMA","Sonoma Clean Power",204.13485296036629,219.59562436786734,235.2439036449297,251.77557565799594,269.1820112432012,286.89668003285396,304.69389780741091,322.21442833329922,339.42850634791262,356.56934250918135,373.249630782145,389.75397688857419]
[null,"PGE","CCA","VCEA","Valley Clean Energy Alliance",65.848531141168294,71.437151445058674,77.281773889539011,83.386448610861379,90.055275571140967,96.31582884604012,102.91328573756282,109.38630667423828,116.1331870201184,122.13662570100729,128.23331103435945,134.24818004623634]
[]
[null,"SCE","IOU","SCE","Southern California Edison (Bundled)",3045.6552922272008,3285.9745840143787,3536.1960292967306,3798.2790020660741,4067.7244055505175,4348.1989093430002,4638.7565959445928,4940.7488752548306,5249.1653779558428,5563.6355709265245,5882.7329697236801,6204.3137106902432]
[null,"SCE","ESP",null,"Southern California Edison (Direct Access)",258.95906146369924,277.62600208478869,297.02638527422238,316.37784858260233,336.86391331946299,357.73704018578508,379.46587953282386,401.31059926563461,424.5472950956584,447.79511993059907,471.39999159290011,494.98519838813047]
[null,"SCE","CCA","AVCE","Apple Valley Choice Energy",30.105810709839815,32.504098777569489,34.999640542766912,37.614739331637956,40.333183111954085,43.12310859058897,46.028780876911163,48.950928205180396,51.950231455221179,54.992953646411216,58.077081456034364,61.221541257178046]
[null,"SCE","CCA","COBP","Baldwin Park, City of",0,0,0,0,0,0,0,0,0,0,0,0]
[null,"SCE","CCA","3CE","Central Coast Community Energy",32.356121861904604,34.517261561131555,36.74543728673023,38.944289016766014,41.258232396243102,43.594883574977111,46.011355626132783,48.418939402345309,50.967377906025639,54.12182524707773,57.34463397329494,60.639115401868459]
[null,"SCE","CCA","CPASC","Clean Power Alliance",450.60008333015799,486.24333359056698,523.36965046983676,562.17382235511957,602.420790304913,644.08973111529235,687.34816420565483,731.74792995995642,777.23741380376975,823.60382235055727,870.65873870250994,918.28722226338766]
[null,"SCE","CCA","DCE","Desert Community Energy",40.155911659818344,43.376864736966027,46.551308586475862,49.762575063189573,53.202232925325021,56.760100194548706,60.514505244911582,64.356704712958205,68.498466385423498,72.722493312596029,77.094043174101955,81.556600946759119]
[null,"SCE","CCA","PALMDALE","Energy for Palmdale’s Independent Choice",35.840654395407483,38.717773668025728,41.714924374379962,44.850035603148278,48.132406508891798,51.552254902433695,55.097841856349895,58.736857126406697,62.472700596974533,66.296201333130981,70.17896164272689,74.107870100483552]
[null,"SCE","CCA","LCE","Lancaster Choice Energy",73.470263496767444,79.311062182652734,85.390813960405325,91.755651295259938,98.367589469997796,105.19021935636306,112.28423354088909,119.49346715710085,126.88751642609698,134.41155535925506,142.04239713646993,149.7950010427553]
[null,"SCE","CCA","OCPA","Orange County Power Authority",231.53585360591782,250.12237441144057,269.48587689828724,289.73591928475497,310.94494346993008,333.03473425891934,355.94026056294121,379.44347029814105,403.57843760413255,428.2826627755893,453.3604768777987,478.74445052111685]
[null,"SCE","CCA","PRIME","Pico Rivera Innovative Municipal Energy",8.8923952763280738,9.5957720828242277,10.329020981488155,11.094986170340906,11.890104778081755,12.7158536019785,13.572318905283026,14.456504282250519,15.362060028030079,16.286996387416579,17.225860469836483,18.174285396629735]
[null,"SCE","CCA","POMONA","Pomona Choice Energy",7.2880577587742517,7.869595336699347,8.4749206298659043,9.1074951868775251,9.7690306633408159,10.455502185043979,11.16817613280136,11.894906469915695,12.641736220282057,13.404609790860244,14.178771151478042,14.963381478955935]
[null,"SCE","CCA","RMEA","Rancho Mirage Energy Authority",44.304687302455967,47.783423522818374,51.405954035538571,55.192667652781736,59.09813217013734,63.110057941521113,67.284832930406395,71.54118224157564,75.896386230828227,80.314746259163087,84.796122325001576,89.343601107090407]
[null,"SCE","CCA","SJP","San Jacinto Power",23.281495073276332,25.128685117914753,27.048137450882894,29.059803227878838,31.144702770405633,33.284659804525489,35.513193930581281,37.763581278087678,40.069242217898221,42.410318278891964,44.783120013682392,47.199221443893258]
[null,"SCE","CCA","SBCE","Santa Barbara Clean Energy",20.201907875010075,21.809132762762086,23.482680952108943,25.230641871321733,27.053917088533282,28.949848210270375,30.916659468529414,32.936290369029237,35.010241508733159,37.128698349933728,39.280056954004472,41.455877888372136]
[null,"SCE","CCA","WCE","Western Community Energy",0,0,0,0,0,0,0,0,0,0,0,0]
[]
[null,"SDGE","IOU","SDGE","San Diego Gas and Electric (Bundled)",437.78139682417225,467.84549294613203,499.56400126858233,532.59835107237791,565.47146178385049,599.19856840421085,633.04840821344931,667.18813196577651,701.33795975777446,735.50607155309069,769.22680036509394,801.97027864891277]
[null,"SDGE","ESP",null,"San Diego Gas and Electric (Direct Access)",474.14911934452368,506.55513983092959,539.92689089440546,573.93568311217416,608.14132180584556,641.9135161361578,675.20239358561423,707.35052775049087,740.02850320637583,771.59934018399008,803.32713088815751,834.28002302904827]
[null,"SDGE","CCA","CEA","Clean Energy Alliance",178.97203776598533,192.34463513481677,206.13388660007689,220.27452020315263,234.63608054337388,249.07499241226589,263.71028109593857,278.52035746155553,293.15367068089392,307.76427610454715,322.15944295728002,336.53779574392155]
[null,"SDGE","CCA","OCPA","Orange County Power Authority",20.393470210252048,21.917223852047211,23.488452385250447,25.099860562123684,26.736216456575136,28.381537126609626,30.049136316445441,31.736835651642885,33.404204025123718,35.069105858886168,36.709327592816699,38.347653727019953]
[null,"SDGE","CCA","SDCP","San Diego Community Power",954.55604432506641,1025.878297666075,1099.4227056516845,1174.8478000201712,1251.440620840355,1328.4530554207558,1406.5082794585526,1485.5043299005342,1563.5487501298323,1641.4777191694861,1718.2514881266513,1794.9365298510979]
[null," "," "," "," "," "," "," "," "," "," "," "," "," "," "," "," "]
[null,"BEAR","SMJ","BEAR","Bear Valley Electric Services",6.7720883629999999,7.3201908690000002,7.8906317369999996,8.4904644180000002,9.1160487989999996,9.7639140199999996,10.437312873,11.12148865,11.821896943,12.537238436999999,13.262848098999999,14.001250491]

{"sheet":"CSPReportSheet","index":8,"n_rows":38,"n_cols":22,"rows_kept":38,"cut":false,"hidden":false,"merged":[[2,10,2,13],[2,14,2,17],[2,18,2,21],[1,10,1,21]]}
[]
[null,null,null,null,null,null,null,null,null,null,"NOTE: the below data is provided for troubleshooting purposes only."]
[null,null,null,null,null,null,null,null,null,null,"Bought/Owned",null,null,null,"Sold",null,null,null,"Net\n(GWh, MW, or MWh Energy Capacity)"]
[null,"Resource",2024,2026,2030,2035,"Units","Type",null,null,2024,2026,2030,2035,2024,2026,2030,2035,2024,2026,2030,2035]
[null,"Large Hydro",{"$f":"S5","v":9.7913999999999994},{"$f":"T5","v":14.6914},14.6914,14.6914,"GWh","GHG-Free",null,null,{"$f":"SUM(SUMIFS(unique_contracts!BT:BT,unique_contracts!$AB:$AB,{\"Buy\",\"Owned\"},unique_contracts!$BS:$BS,\"=\"&$B5&\" (\"&$G5&\")\",unique_contracts!$AM:$AM,\"<=\"&C$4,unique_contracts!$AP:$AP,\">=\"&C$4), SUMIFS(unique_contracts!BT:BT,unique_contracts!$AB:$AB,\"=\"&\"\",unique_contracts!$BS:$BS,\"=\"&$B5&\" (\"&$G5&\")\",unique_contracts!$AM:$AM,\"<=\"&C$4,unique_contracts!$AP:$AP,\">=\"&C$4))","v":9.7913999999999994},{"$f":"SUM(SUMIFS(unique_contracts!BU:BU,unique_contracts!$AB:$AB,{\"Buy\",\"Owned\"},unique_contracts!$BS:$BS,\"=\"&$B5&\" (\"&$G5&\")\",unique_contracts!$AM:$AM,\"<=\"&D$4,unique_contracts!$AP:$AP,\">=\"&D$4), SUMIFS(unique_contracts!BU:BU,unique_contracts!$AB:$AB,\"=\"&\"\",unique_contracts!$BS:$BS,\"=\"&$B5&\" (\"&$G5&\")\",unique_contracts!$AM:$AM,\"<=\"&D$4,unique_contracts!$AP:$AP,\">=\"&D$4))","v":14.6914},{"$f":"SUM(SUMIFS(unique_contracts!BV:BV,unique_contracts!$AB:$AB,{\"Buy\",\"Owned\"},unique_contracts!$BS:$BS,\"=\"&$B5&\" (\"&$G5&\")\",unique_contracts!$AM:$AM,\"<=\"&E$4,unique_contracts!$AP:$AP,\">=\"&E$4), SUMIFS(unique_contracts!BV:BV,unique_contracts!$AB:$AB,\"=\"&\"\",unique_contracts!$BS:$BS,\"=\"&$B5&\" (\"&$G5&\")\",unique_contracts!$AM:$AM,\"<=\"&E$4,unique_contracts!$AP:$AP,\">=\"&E$4))","v":14.6914},{"$f":"SUM(SUMIFS(unique_contracts!BW:BW,unique_contracts!$AB:$AB,{\"Buy\",\"Owned\"},unique_contracts!$BS:$BS,\"=\"&$B5&\" (\"&$G5&\")\",unique_contracts!$AM:$AM,\"<=\"&F$4,unique_contracts!$AP:$AP,\">=\"&F$4), SUMIFS(unique_contracts!BW:BW,unique_contracts!$AB:$AB,\"=\"&\"\",unique_contracts!$BS:$BS,\"=\"&$B5&\" (\"&$G5&\")\",unique_contracts!$AM:$AM,\"<=\"&F$4,unique_contracts!$AP:$AP,\">=\"&F$4))","v":14.6914},{"$f":"SUMIFS(unique_contracts!BT:BT,unique_contracts!$AB:$AB,\"=Sell\",unique_contracts!$BS:$BS,\"=\"&$B5&\" (\"&$G5&\")\",unique_contracts!$AM:$AM,\"<=\"&C$4,unique_contracts!$AP:$AP,\">=\"&C$4)","v":0},{"$f":"SUMIFS(unique_contracts!BU:BU,unique_contracts!$AB:$AB,\"=Sell\",unique_contracts!$BS:$BS,\"=\"&$B5&\" (\"&$G5&\")\",unique_contracts!$AM:$AM,\"<=\"&D$4,unique_contracts!$AP:$AP,\">=\"&D$4)","v":0},{"$f":"SUMIFS(unique_contracts!BV:BV,unique_contracts!$AB:$AB,\"=Sell\",unique_contracts!$BS:$BS,\"=\"&$B5&\" (\"&$G5&\")\",unique_contracts!$AM:$AM,\"<=\"&E$4,unique_contracts!$AP:$AP,\">=\"&E$4)","v":0},{"$f":"SUMIFS(unique_contracts!BW:BW,unique_contracts!$AB:$AB,\"=Sell\",unique_contracts!$BS:$BS,\"=\"&$B5&\" (\"&$G5&\")\",unique_contracts!$AM:$AM,\"<=\"&F$4,unique_contracts!$AP:$AP,\">=\"&F$4)","v":0},{"$f":"K5-O5","v":9.7913999999999994},{"$f":"L5-P5","v":14.6914},14.6914,14.6914]
[null,"Imported Hydro",{"$f":"S6","v":0},{"$f":"T6","v":0},0,0,"GWh","GHG-Free",null,null,{"$f":"SUM(SUMIFS(unique_contracts!BT:BT,unique_contracts!$AB:$AB,{\"Buy\",\"Owned\"},unique_contracts!$BS:$BS,\"=\"&$B6&\" (\"&$G6&\")\",unique_contracts!$AM:$AM,\"<=\"&C$4,unique_contracts!$AP:$AP,\">=\"&C$4), SUMIFS(unique_contracts!BT:BT,unique_contracts!$AB:$AB,\"=\"&\"\",unique_contracts!$BS:$BS,\"=\"&$B6&\" (\"&$G6&\")\",unique_contracts!$AM:$AM,\"<=\"&C$4,unique_contracts!$AP:$AP,\">=\"&C$4))","v":0},{"$f":"SUM(SUMIFS(unique_contracts!BU:BU,unique_contracts!$AB:$AB,{\"Buy\",\"Owned\"},unique_contracts!$BS:$BS,\"=\"&$B6&\" (\"&$G6&\")\",unique_contracts!$AM:$AM,\"<=\"&D$4,unique_contracts!$AP:$AP,\">=\"&D$4), SUMIFS(unique_contracts!BU:BU,unique_contracts!$AB:$AB,\"=\"&\"\",unique_contracts!$BS:$BS,\"=\"&$B6&\" (\"&$G6&\")\",unique_contracts!$AM:$AM,\"<=\"&D$4,unique_contracts!$AP:$AP,\">=\"&D$4))","v":0},{"$f":"SUM(SUMIFS(unique_contracts!BV:BV,unique_contracts!$AB:$AB,{\"Buy\",\"Owned\"},unique_contracts!$BS:$BS,\"=\"&$B6&\" (\"&$G6&\")\",unique_contracts!$AM:$AM,\"<=\"&E$4,unique_contracts!$AP:$AP,\">=\"&E$4), SUMIFS(unique_contracts!BV:BV,unique_contracts!$AB:$AB,\"=\"&\"\",unique_contracts!$BS:$BS,\"=\"&$B6&\" (\"&$G6&\")\",unique_contracts!$AM:$AM,\"<=\"&E$4,unique_contracts!$AP:$AP,\">=\"&E$4))","v":0},{"$f":"SUM(SUMIFS(unique_contracts!BW:BW,unique_contracts!$AB:$AB,{\"Buy\",\"Owned\"},unique_contracts!$BS:$BS,\"=\"&$B6&\" (\"&$G6&\")\",unique_contracts!$AM:$AM,\"<=\"&F$4,unique_contracts!$AP:$AP,\">=\"&F$4), SUMIFS(unique_contracts!BW:BW,unique_contracts!$AB:$AB,\"=\"&\"\",unique_contracts!$BS:$BS,\"=\"&$B6&\" (\"&$G6&\")\",unique_contracts!$AM:$AM,\"<=\"&F$4,unique_contracts!$AP:$AP,\">=\"&F$4))","v":0},{"$f":"SUMIFS(unique_contracts!BT:BT,unique_contracts!$AB:$AB,\"=Sell\",unique_contracts!$BS:$BS,\"=\"&$B6&\" (\"&$G6&\")\",unique_contracts!$AM:$AM,\"<=\"&C$4,unique_contracts!$AP:$AP,\">=\"&C$4)","v":0},{"$f":"SUMIFS(unique_contracts!BU:BU,unique_contracts!$AB:$AB,\"=Sell\",unique_contracts!$BS:$BS,\"=\"&$B6&\" (\"&$G6&\")\",unique_contracts!$AM:$AM,\"<=\"&D$4,unique_contracts!$AP:$AP,\">=\"&D$4)","v":0},{"$f":"SUMIFS(unique_contracts!BV:BV,unique_contracts!$AB:$AB,\"=Sell\",unique_contracts!$BS:$BS,\"=\"&$B6&\" (\"&$G6&\")\",unique_contracts!$AM:$AM,\"<=\"&E$4,unique_contracts!$AP:$AP,\">=\"&E$4)","v":0},{"$f":"SUMIFS(unique_contracts!BW:BW,unique_contracts!$AB:$AB,\"=Sell\",unique_contracts!$BS:$BS,\"=\"&$B6&\" (\"&$G6&\")\",unique_contracts!$AM:$AM,\"<=\"&F$4,unique_contracts!$AP:$AP,\">=\"&F$4)","v":0},{"$f":"K6-O6","v":0},{"$f":"L6-P6","v":0},{"$f":"M6-Q6","v":0},{"$f":"N6-R6","v":0}]
[null,"Asset Controlling Supplier",{"$f":"S7","v":0},0,0,0,"GWh","GHG-Free (Partial)",null,null,{"$f":"SUM(SUMIFS(unique_contracts!BT:BT,unique_contracts!$AB:$AB,{\"Buy\",\"Owned\"},unique_contracts!$BS:$BS,\"=\"&$B7&\" (\"&$G7&\")\",unique_contracts!$AM:$AM,\"<=\"&C$4,unique_contracts!$AP:$AP,\">=\"&C$4), SUMIFS(unique_contracts!BT:BT,unique_contracts!$AB:$AB,\"=\"&\"\",unique_contracts!$BS:$BS,\"=\"&$B7&\" (\"&$G7&\")\",unique_contracts!$AM:$AM,\"<=\"&C$4,unique_contracts!$AP:$AP,\">=\"&C$4))","v":0},{"$f":"SUM(SUMIFS(unique_contracts!BU:BU,unique_contracts!$AB:$AB,{\"Buy\",\"Owned\"},unique_contracts!$BS:$BS,\"=\"&$B7&\" (\"&$G7&\")\",unique_contracts!$AM:$AM,\"<=\"&D$4,unique_contracts!$AP:$AP,\">=\"&D$4), SUMIFS(unique_contracts!BU:BU,unique_contracts!$AB:$AB,\"=\"&\"\",unique_contracts!$BS:$BS,\"=\"&$B7&\" (\"&$G7&\")\",unique_contracts!$AM:$AM,\"<=\"&D$4,unique_contracts!$AP:$AP,\">=\"&D$4))","v":0},{"$f":"SUM(SUMIFS(unique_contracts!BV:BV,unique_contracts!$AB:$AB,{\"Buy\",\"Owned\"},unique_contracts!$BS:$BS,\"=\"&$B7&\" (\"&$G7&\")\",unique_contracts!$AM:$AM,\"<=\"&E$4,unique_contracts!$AP:$AP,\">=\"&E$4), SUMIFS(unique_contracts!BV:BV,unique_contracts!$AB:$AB,\"=\"&\"\",unique_contracts!$BS:$BS,\"=\"&$B7&\" (\"&$G7&\")\",unique_contracts!$AM:$AM,\"<=\"&E$4,unique_contracts!$AP:$AP,\">=\"&E$4))","v":0},{"$f":"SUM(SUMIFS(unique_contracts!BW:BW,unique_contracts!$AB:$AB,{\"Buy\",\"Owned\"},unique_contracts!$BS:$BS,\"=\"&$B7&\" (\"&$G7&\")\",unique_contracts!$AM:$AM,\"<=\"&F$4,unique_contracts!$AP:$AP,\">=\"&F$4), SUMIFS(unique_contracts!BW:BW,unique_contracts!$AB:$AB,\"=\"&\"\",unique_contracts!$BS:$BS,\"=\"&$B7&\" (\"&$G7&\")\",unique_contracts!$AM:$AM,\"<=\"&F$4,unique_contracts!$AP:$AP,\">=\"&F$4))","v":0},{"$f":"SUMIFS(unique_contracts!BT:BT,unique_contracts!$AB:$AB,\"=Sell\",unique_contracts!$BS:$BS,\"=\"&$B7&\" (\"&$G7&\")\",unique_contracts!$AM:$AM,\"<=\"&C$4,unique_contracts!$AP:$AP,\">=\"&C$4)","v":0},{"$f":"SUMIFS(unique_contracts!BU:BU,unique_contracts!$AB:$AB,\"=Sell\",unique_contracts!$BS:$BS,\"=\"&$B7&\" (\"&$G7&\")\",unique_contracts!$AM:$AM,\"<=\"&D$4,unique_contracts!$AP:$AP,\">=\"&D$4)","v":0},{"$f":"SUMIFS(unique_contracts!BV:BV,unique_contracts!$AB:$AB,\"=Sell\",unique_contracts!$BS:$BS,\"=\"&$B7&\" (\"&$G7&\")\",unique_contracts!$AM:$AM,\"<=\"&E$4,unique_contracts!$AP:$AP,\">=\"&E$4)","v":0},{"$f":"SUMIFS(unique_contracts!BW:BW,unique_contracts!$AB:$AB,\"=Sell\",unique_contracts!$BS:$BS,\"=\"&$B7&\" (\"&$G7&\")\",unique_contracts!$AM:$AM,\"<=\"&F$4,unique_contracts!$AP:$AP,\">=\"&F$4)","v":0},{"$f":"K7-O7","v":0},{"$f":"L7-P7","v":0},{"$f":"M7-Q7","v":0},{"$f":"N7-R7","v":0}]
[null,"Nuclear",{"$f":"S8","v":34.790700000000001},{"$f":"T8","v":1.5357000000000001},{"$f":"U8","v":1.5357000000000001},{"$f":"V8","v":1.5357000000000001},"GWh","GHG-Free",null,null,{"$f":"SUM(SUMIFS(unique_contracts!BT:BT,unique_contracts!$AB:$AB,{\"Buy\",\"Owned\"},unique_contracts!$BS:$BS,\"=\"&$B8&\" (\"&$G8&\")\",unique_contracts!$AM:$AM,\"<=\"&C$4,unique_contracts!$AP:$AP,\">=\"&C$4), SUMIFS(unique_contracts!BT:BT,unique_contracts!$AB:$AB,\"=\"&\"\",unique_contracts!$BS:$BS,\"=\"&$B8&\" (\"&$G8&\")\",unique_contracts!$AM:$AM,\"<=\"&C$4,unique_contracts!$AP:$AP,\">=\"&C$4))","v":34.790700000000001},{"$f":"SUM(SUMIFS(unique_contracts!BU:BU,unique_contracts!$AB:$AB,{\"Buy\",\"Owned\"},unique_contracts!$BS:$BS,\"=\"&$B8&\" (\"&$G8&\")\",unique_contracts!$AM:$AM,\"<=\"&D$4,unique_contracts!$AP:$AP,\">=\"&D$4), SUMIFS(unique_contracts!BU:BU,unique_contracts!$AB:$AB,\"=\"&\"\",unique_contracts!$BS:$BS,\"=\"&$B8&\" (\"&$G8&\")\",unique_contracts!$AM:$AM,\"<=\"&D$4,unique_contracts!$AP:$AP,\">=\"&D$4))","v":1.5357000000000001},{"$f":"SUM(SUMIFS(unique_contracts!BV:BV,unique_contracts!$AB:$AB,{\"Buy\",\"Owned\"},unique_contracts!$BS:$BS,\"=\"&$B8&\" (\"&$G8&\")\",unique_contracts!$AM:$AM,\"<=\"&E$4,unique_contracts!$AP:$AP,\">=\"&E$4), SUMIFS(unique_contracts!BV:BV,unique_contracts!$AB:$AB,\"=\"&\"\",unique_contracts!$BS:$BS,\"=\"&$B8&\" (\"&$G8&\")\",unique_contracts!$AM:$AM,\"<=\"&E$4,unique_contracts!$AP:$AP,\">=\"&E$4))","v":1.5357000000000001},{"$f":"SUM(SUMIFS(unique_contracts!BW:BW,unique_contracts!$AB:$AB,{\"Buy\",\"Owned\"},unique_contracts!$BS:$BS,\"=\"&$B8&\" (\"&$G8&\")\",unique_contracts!$AM:$AM,\"<=\"&F$4,unique_contracts!$AP:$AP,\">=\"&F$4), SUMIFS(unique_contracts!BW:BW,unique_contracts!$AB:$AB,\"=\"&\"\",unique_contracts!$BS:$BS,\"=\"&$B8&\" (\"&$G8&\")\",unique_contracts!$AM:$AM,\"<=\"&F$4,unique_contracts!$AP:$AP,\">=\"&F$4))","v":1.5357000000000001},{"$f":"SUMIFS(unique_contracts!BT:BT,unique_contracts!$AB:$AB,\"=Sell\",unique_contracts!$BS:$BS,\"=\"&$B8&\" (\"&$G8&\")\",unique_contracts!$AM:$AM,\"<=\"&C$4,unique_contracts!$AP:$AP,\">=\"&C$4)","v":0},{"$f":"SUMIFS(unique_contracts!BU:BU,unique_contracts!$AB:$AB,\"=Sell\",unique_contracts!$BS:$BS,\"=\"&$B8&\" (\"&$G8&\")\",unique_contracts!$AM:$AM,\"<=\"&D$4,unique_contracts!$AP:$AP,\">=\"&D$4)","v":0},{"$f":"SUMIFS(unique_contracts!BV:BV,unique_contracts!$AB:$AB,\"=Sell\",unique_contracts!$BS:$BS,\"=\"&$B8&\" (\"&$G8&\")\",unique_contracts!$AM:$AM,\"<=\"&E$4,unique_contracts!$AP:$AP,\">=\"&E$4)","v":0},{"$f":"SUMIFS(unique_contracts!BW:BW,unique_contracts!$AB:$AB,\"=Sell\",unique_contracts!$BS:$BS,\"=\"&$B8&\" (\"&$G8&\")\",unique_contracts!$AM:$AM,\"<=\"&F$4,unique_contracts!$AP:$AP,\">=\"&F$4)","v":0},34.790700000000001,1.5357000000000001,1.5357000000000001,1.5357000000000001]
[null,"Biogas",0,0,0,0,"GWh","RPS Eligible",null,null,{"$f":"SUM(SUMIFS(unique_contracts!BT:BT,unique_contracts!$AB:$AB,{\"Buy\",\"Owned\"},unique_contracts!$BS:$BS,\"=\"&$B9&\" (\"&$G9&\")\",unique_contracts!$AM:$AM,\"<=\"&C$4,unique_contracts!$AP:$AP,\">=\"&C$4), SUMIFS(unique_contracts!BT:BT,unique_contracts!$AB:$AB,\"=\"&\"\",unique_contracts!$BS:$BS,\"=\"&$B9&\" (\"&$G9&\")\",unique_contracts!$AM:$AM,\"<=\"&C$4,unique_contracts!$AP:$AP,\">=\"&C$4))","v":0},{"$f":"SUM(SUMIFS(unique_contracts!BU:BU,unique_contracts!$AB:$AB,{\"Buy\",\"Owned\"},unique_contracts!$BS:$BS,\"=\"&$B9&\" (\"&$G9&\")\",unique_contracts!$AM:$AM,\"<=\"&D$4,unique_contracts!$AP:$AP,\">=\"&D$4), SUMIFS(unique_contracts!BU:BU,unique_contracts!$AB:$AB,\"=\"&\"\",unique_contracts!$BS:$BS,\"=\"&$B9&\" (\"&$G9&\")\",unique_contracts!$AM:$AM,\"<=\"&D$4,unique_contracts!$AP:$AP,\">=\"&D$4))","v":0},{"$f":"SUM(SUMIFS(unique_contracts!BV:BV,unique_contracts!$AB:$AB,{\"Buy\",\"Owned\"},unique_contracts!$BS:$BS,\"=\"&$B9&\" (\"&$G9&\")\",unique_contracts!$AM:$AM,\"<=\"&E$4,unique_contracts!$AP:$AP,\">=\"&E$4), SUMIFS(unique_contracts!BV:BV,unique_contracts!$AB:$AB,\"=\"&\"\",unique_contracts!$BS:$BS,\"=\"&$B9&\" (\"&$G9&\")\",unique_contracts!$AM:$AM,\"<=\"&E$4,unique_contracts!$AP:$AP,\">=\"&E$4))","v":0},{"$f":"SUM(SUMIFS(unique_contracts!BW:BW,unique_contracts!$AB:$AB,{\"Buy\",\"Owned\"},unique_contracts!$BS:$BS,\"=\"&$B9&\" (\"&$G9&\")\",unique_contracts!$AM:$AM,\"<=\"&F$4,unique_contracts!$AP:$AP,\">=\"&F$4), SUMIFS(unique_contracts!BW:BW,unique_contracts!$AB:$AB,\"=\"&\"\",unique_contracts!$BS:$BS,\"=\"&$B9&\" (\"&$G9&\")\",unique_contracts!$AM:$AM,\"<=\"&F$4,unique_contracts!$AP:$AP,\">=\"&F$4))","v":0},{"$f":"SUMIFS(unique_contracts!BT:BT,unique_contracts!$AB:$AB,\"=Sell\",unique_contracts!$BS:$BS,\"=\"&$B9&\" (\"&$G9&\")\",unique_contracts!$AM:$AM,\"<=\"&C$4,unique_contracts!$AP:$AP,\">=\"&C$4)","v":0},{"$f":"SUMIFS(unique_contracts!BU:BU,unique_contracts!$AB:$AB,\"=Sell\",unique_contracts!$BS:$BS,\"=\"&$B9&\" (\"&$G9&\")\",unique_contracts!$AM:$AM,\"<=\"&D$4,unique_contracts!$AP:$AP,\">=\"&D$4)","v":0},{"$f":"SUMIFS(unique_contracts!BV:BV,unique_contracts!$AB:$AB,\"=Sell\",unique_contracts!$BS:$BS,\"=\"&$B9&\" (\"&$G9&\")\",unique_contracts!$AM:$AM,\"<=\"&E$4,unique_contracts!$AP:$AP,\">=\"&E$4)","v":0},{"$f":"SUMIFS(unique_contracts!BW:BW,unique_contracts!$AB:$AB,\"=Sell\",unique_contracts!$BS:$BS,\"=\"&$B9&\" (\"&$G9&\")\",unique_contracts!$AM:$AM,\"<=\"&F$4,unique_contracts!$AP:$AP,\">=\"&F$4)","v":0},0,0,0,0]
[null,"Biomass",0,0,0,0,"GWh","RPS Eligible",null,null,{"$f":"SUM(SUMIFS(unique_contracts!BT:BT,unique_contracts!$AB:$AB,{\"Buy\",\"Owned\"},unique_contracts!$BS:$BS,\"=\"&$B10&\" (\"&$G10&\")\",unique_contracts!$AM:$AM,\"<=\"&C$4,unique_contracts!$AP:$AP,\">=\"&C$4), SUMIFS(unique_contracts!BT:BT,unique_contracts!$AB:$AB,\"=\"&\"\",unique_contracts!$BS:$BS,\"=\"&$B10&\" (\"&$G10&\")\",unique_contracts!$AM:$AM,\"<=\"&C$4,unique_contracts!$AP:$AP,\">=\"&C$4))","v":0},{"$f":"SUM(SUMIFS(unique_contracts!BU:BU,unique_contracts!$AB:$AB,{\"Buy\",\"Owned\"},unique_contracts!$BS:$BS,\"=\"&$B10&\" (\"&$G10&\")\",unique_contracts!$AM:$AM,\"<=\"&D$4,unique_contracts!$AP:$AP,\">=\"&D$4), SUMIFS(unique_contracts!BU:BU,unique_contracts!$AB:$AB,\"=\"&\"\",unique_contracts!$BS:$BS,\"=\"&$B10&\" (\"&$G10&\")\",unique_contracts!$AM:$AM,\"<=\"&D$4,unique_contracts!$AP:$AP,\">=\"&D$4))","v":0},{"$f":"SUM(SUMIFS(unique_contracts!BV:BV,unique_contracts!$AB:$AB,{\"Buy\",\"Owned\"},unique_contracts!$BS:$BS,\"=\"&$B10&\" (\"&$G10&\")\",unique_contracts!$AM:$AM,\"<=\"&E$4,unique_contracts!$AP:$AP,\">=\"&E$4), SUMIFS(unique_contracts!BV:BV,unique_contracts!$AB:$AB,\"=\"&\"\",unique_contracts!$BS:$BS,\"=\"&$B10&\" (\"&$G10&\")\",unique_contracts!$AM:$AM,\"<=\"&E$4,unique_contracts!$AP:$AP,\">=\"&E$4))","v":0},{"$f":"SUM(SUMIFS(unique_contracts!BW:BW,unique_contracts!$AB:$AB,{\"Buy\",\"Owned\"},unique_contracts!$BS:$BS,\"=\"&$B10&\" (\"&$G10&\")\",unique_contracts!$AM:$AM,\"<=\"&F$4,unique_contracts!$AP:$AP,\">=\"&F$4), SUMIFS(unique_contracts!BW:BW,unique_contracts!$AB:$AB,\"=\"&\"\",unique_contracts!$BS:$BS,\"=\"&$B10&\" (\"&$G10&\")\",unique_contracts!$AM:$AM,\"<=\"&F$4,unique_contracts!$AP:$AP,\">=\"&F$4))","v":0},{"$f":"SUMIFS(unique_contracts!BT:BT,unique_contracts!$AB:$AB,\"=Sell\",unique_contracts!$BS:$BS,\"=\"&$B10&\" (\"&$G10&\")\",unique_contracts!$AM:$AM,\"<=\"&C$4,unique_contracts!$AP:$AP,\">=\"&C$4)","v":0},{"$f":"SUMIFS(unique_contracts!BU:BU,unique_contracts!$AB:$AB,\"=Sell\",unique_contracts!$BS:$BS,\"=\"&$B10&\" (\"&$G10&\")\",unique_contracts!$AM:$AM,\"<=\"&D$4,unique_contracts!$AP:$AP,\">=\"&D$4)","v":0},{"$f":"SUMIFS(unique_contracts!BV:BV,unique_contracts!$AB:$AB,\"=Sell\",unique_contracts!$BS:$BS,\"=\"&$B10&\" (\"&$G10&\")\",unique_contracts!$AM:$AM,\"<=\"&E$4,unique_contracts!$AP:$AP,\">=\"&E$4)","v":0},{"$f":"SUMIFS(unique_contracts!BW:BW,unique_contracts!$AB:$AB,\"=Sell\",unique_contracts!$BS:$BS,\"=\"&$B10&\" (\"&$G10&\")\",unique_contracts!$AM:$AM,\"<=\"&F$4,unique_contracts!$AP:$AP,\">=\"&F$4)","v":0},0,0,0,0]
[null,"Geothermal",0,0,0,0,"GWh","RPS Eligible",null,null,{"$f":"SUM(SUMIFS(unique_contracts!BT:BT,unique_contracts!$AB:$AB,{\"Buy\",\"Owned\"},unique_contracts!$BS:$BS,\"=\"&$B11&\" (\"&$G11&\")\",unique_contracts!$AM:$AM,\"<=\"&C$4,unique_contracts!$AP:$AP,\">=\"&C$4), SUMIFS(unique_contracts!BT:BT,unique_contracts!$AB:$AB,\"=\"&\"\",unique_contracts!$BS:$BS,\"=\"&$B11&\" (\"&$G11&\")\",unique_contracts!$AM:$AM,\"<=\"&C$4,unique_contracts!$AP:$AP,\">=\"&C$4))","v":0},{"$f":"SUM(SUMIFS(unique_contracts!BU:BU,unique_contracts!$AB:$AB,{\"Buy\",\"Owned\"},unique_contracts!$BS:$BS,\"=\"&$B11&\" (\"&$G11&\")\",unique_contracts!$AM:$AM,\"<=\"&D$4,unique_contracts!$AP:$AP,\">=\"&D$4), SUMIFS(unique_contracts!BU:BU,unique_contracts!$AB:$AB,\"=\"&\"\",unique_contracts!$BS:$BS,\"=\"&$B11&\" (\"&$G11&\")\",unique_contracts!$AM:$AM,\"<=\"&D$4,unique_contracts!$AP:$AP,\">=\"&D$4))","v":0},{"$f":"SUM(SUMIFS(unique_contracts!BV:BV,unique_contracts!$AB:$AB,{\"Buy\",\"Owned\"},unique_contracts!$BS:$BS,\"=\"&$B11&\" (\"&$G11&\")\",unique_contracts!$AM:$AM,\"<=\"&E$4,unique_contracts!$AP:$AP,\">=\"&E$4), SUMIFS(unique_contracts!BV:BV,unique_contracts!$AB:$AB,\"=\"&\"\",unique_contracts!$BS:$BS,\"=\"&$B11&\" (\"&$G11&\")\",unique_contracts!$AM:$AM,\"<=\"&E$4,unique_contracts!$AP:$AP,\">=\"&E$4))","v":0},{"$f":"SUM(SUMIFS(unique_contracts!BW:BW,unique_contracts!$AB:$AB,{\"Buy\",\"Owned\"},unique_contracts!$BS:$BS,\"=\"&$B11&\" (\"&$G11&\")\",unique_contracts!$AM:$AM,\"<=\"&F$4,unique_contracts!$AP:$AP,\">=\"&F$4), SUMIFS(unique_contracts!BW:BW,unique_contracts!$AB:$AB,\"=\"&\"\",unique_contracts!$BS:$BS,\"=\"&$B11&\" (\"&$G11&\")\",unique_contracts!$AM:$AM,\"<=\"&F$4,unique_contracts!$AP:$AP,\">=\"&F$4))","v":0},{"$f":"SUMIFS(unique_contracts!BT:BT,unique_contracts!$AB:$AB,\"=Sell\",unique_contracts!$BS:$BS,\"=\"&$B11&\" (\"&$G11&\")\",unique_contracts!$AM:$AM,\"<=\"&C$4,unique_contracts!$AP:$AP,\">=\"&C$4)","v":0},{"$f":"SUMIFS(unique_contracts!BU:BU,unique_contracts!$AB:$AB,\"=Sell\",unique_contracts!$BS:$BS,\"=\"&$B11&\" (\"&$G11&\")\",unique_contracts!$AM:$AM,\"<=\"&D$4,unique_contracts!$AP:$AP,\">=\"&D$4)","v":0},{"$f":"SUMIFS(unique_contracts!BV:BV,unique_contracts!$AB:$AB,\"=Sell\",unique_contracts!$BS:$BS,\"=\"&$B11&\" (\"&$G11&\")\",unique_contracts!$AM:$AM,\"<=\"&E$4,unique_contracts!$AP:$AP,\">=\"&E$4)","v":0},{"$f":"SUMIFS(unique_contracts!BW:BW,unique_contracts!$AB:$AB,\"=Sell\",unique_contracts!$BS:$BS,\"=\"&$B11&\" (\"&$G11&\")\",unique_contracts!$AM:$AM,\"<=\"&F$4,unique_contracts!$AP:$AP,\">=\"&F$4)","v":0},0,0,0,0]
[null,"Small Hydro",0,0,0,0,"GWh","RPS Eligible",null,null,{"$f":"SUM(SUMIFS(unique_contracts!BT:BT,unique_contracts!$AB:$AB,{\"Buy\",\"Owned\"},unique_contracts!$BS:$BS,\"=\"&$B12&\" (\"&$G12&\")\",unique_contracts!$AM:$AM,\"<=\"&C$4,unique_contracts!$AP:$AP,\">=\"&C$4), SUMIFS(unique_contracts!BT:BT,unique_contracts!$AB:$AB,\"=\"&\"\",unique_contracts!$BS:$BS,\"=\"&$B12&\" (\"&$G12&\")\",unique_contracts!$AM:$AM,\"<=\"&C$4,unique_contracts!$AP:$AP,\">=\"&C$4))","v":0},{"$f":"SUM(SUMIFS(unique_contracts!BU:BU,unique_contracts!$AB:$AB,{\"Buy\",\"Owned\"},unique_contracts!$BS:$BS,\"=\"&$B12&\" (\"&$G12&\")\",unique_contracts!$AM:$AM,\"<=\"&D$4,unique_contracts!$AP:$AP,\">=\"&D$4), SUMIFS(unique_contracts!BU:BU,unique_contracts!$AB:$AB,\"=\"&\"\",unique_contracts!$BS:$BS,\"=\"&$B12&\" (\"&$G12&\")\",unique_contracts!$AM:$AM,\"<=\"&D$4,unique_contracts!$AP:$AP,\">=\"&D$4))","v":0},{"$f":"SUM(SUMIFS(unique_contracts!BV:BV,unique_contracts!$AB:$AB,{\"Buy\",\"Owned\"},unique_contracts!$BS:$BS,\"=\"&$B12&\" (\"&$G12&\")\",unique_contracts!$AM:$AM,\"<=\"&E$4,unique_contracts!$AP:$AP,\">=\"&E$4), SUMIFS(unique_contracts!BV:BV,unique_contracts!$AB:$AB,\"=\"&\"\",unique_contracts!$BS:$BS,\"=\"&$B12&\" (\"&$G12&\")\",unique_contracts!$AM:$AM,\"<=\"&E$4,unique_contracts!$AP:$AP,\">=\"&E$4))","v":0},{"$f":"SUM(SUMIFS(unique_contracts!BW:BW,unique_contracts!$AB:$AB,{\"Buy\",\"Owned\"},unique_contracts!$BS:$BS,\"=\"&$B12&\" (\"&$G12&\")\",unique_contracts!$AM:$AM,\"<=\"&F$4,unique_contracts!$AP:$AP,\">=\"&F$4), SUMIFS(unique_contracts!BW:BW,unique_contracts!$AB:$AB,\"=\"&\"\",unique_contracts!$BS:$BS,\"=\"&$B12&\" (\"&$G12&\")\",unique_contracts!$AM:$AM,\"<=\"&F$4,unique_contracts!$AP:$AP,\">=\"&F$4))","v":0},{"$f":"SUMIFS(unique_contracts!BT:BT,unique_contracts!$AB:$AB,\"=Sell\",unique_contracts!$BS:$BS,\"=\"&$B12&\" (\"&$G12&\")\",unique_contracts!$AM:$AM,\"<=\"&C$4,unique_contracts!$AP:$AP,\">=\"&C$4)","v":0},{"$f":"SUMIFS(unique_contracts!BU:BU,unique_contracts!$AB:$AB,\"=Sell\",unique_contracts!$BS:$BS,\"=\"&$B12&\" (\"&$G12&\")\",unique_contracts!$AM:$AM,\"<=\"&D$4,unique_contracts!$AP:$AP,\">=\"&D$4)","v":0},{"$f":"SUMIFS(unique_contracts!BV:BV,unique_contracts!$AB:$AB,\"=Sell\",unique_contracts!$BS:$BS,\"=\"&$B12&\" (\"&$G12&\")\",unique_contracts!$AM:$AM,\"<=\"&E$4,unique_contracts!$AP:$AP,\">=\"&E$4)","v":0},{"$f":"SUMIFS(unique_contracts!BW:BW,unique_contracts!$AB:$AB,\"=Sell\",unique_contracts!$BS:$BS,\"=\"&$B12&\" (\"&$G12&\")\",unique_contracts!$AM:$AM,\"<=\"&F$4,unique_contracts!$AP:$AP,\">=\"&F$4)","v":0},0,0,0,0]
[null,"Wind Resources"]
[null,"Wind Baseline California",{"$f":"S14","v":0},{"$f":"T14","v":0},{"$f":"U14","v":0},{"$f":"V14","v":0},"GWh","RPS Eligible",null,null,{"$f":"SUM(SUMIFS(unique_contracts!BT:BT,unique_contracts!$AB:$AB,{\"Buy\",\"Owned\"},unique_contracts!$BS:$BS,\"=\"&$B14&\" (\"&$G14&\")\",unique_contracts!$AM:$AM,\"<=\"&C$4,unique_contracts!$AP:$AP,\">=\"&C$4), SUMIFS(unique_contracts!BT:BT,unique_contracts!$AB:$AB,\"=\"&\"\",unique_contracts!$BS:$BS,\"=\"&$B14&\" (\"&$G14&\")\",unique_contracts!$AM:$AM,\"<=\"&C$4,unique_contracts!$AP:$AP,\">=\"&C$4))","v":0},{"$f":"SUM(SUMIFS(unique_contracts!BU:BU,unique_contracts!$AB:$AB,{\"Buy\",\"Owned\"},unique_contracts!$BS:$BS,\"=\"&$B14&\" (\"&$G14&\")\",unique_contracts!$AM:$AM,\"<=\"&D$4,unique_contracts!$AP:$AP,\">=\"&D$4), SUMIFS(unique_contracts!BU:BU,unique_contracts!$AB:$AB,\"=\"&\"\",unique_contracts!$BS:$BS,\"=\"&$B14&\" (\"&$G14&\")\",unique_contracts!$AM:$AM,\"<=\"&D$4,unique_contracts!$AP:$AP,\">=\"&D$4))","v":0},{"$f":"SUM(SUMIFS(unique_contracts!BV:BV,unique_contracts!$AB:$AB,{\"Buy\",\"Owned\"},unique_contracts!$BS:$BS,\"=\"&$B14&\" (\"&$G14&\")\",unique_contracts!$AM:$AM,\"<=\"&E$4,unique_contracts!$AP:$AP,\">=\"&E$4), SUMIFS(unique_contracts!BV:BV,unique_contracts!$AB:$AB,\"=\"&\"\",unique_contracts!$BS:$BS,\"=\"&$B14&\" (\"&$G14&\")\",unique_contracts!$AM:$AM,\"<=\"&E$4,unique_contracts!$AP:$AP,\">=\"&E$4))","v":0},{"$f":"SUM(SUMIFS(unique_contracts!BW:BW,unique_contracts!$AB:$AB,{\"Buy\",\"Owned\"},unique_contracts!$BS:$BS,\"=\"&$B14&\" (\"&$G14&\")\",unique_contracts!$AM:$AM,\"<=\"&F$4,unique_contracts!$AP:$AP,\">=\"&F$4), SUMIFS(unique_contracts!BW:BW,unique_contracts!$AB:$AB,\"=\"&\"\",unique_contracts!$BS:$BS,\"=\"&$B14&\" (\"&$G14&\")\",unique_contracts!$AM:$AM,\"<=\"&F$4,unique_contracts!$AP:$AP,\">=\"&F$4))","v":0},{"$f":"SUMIFS(unique_contracts!BT:BT,unique_contracts!$AB:$AB,\"=Sell\",unique_contracts!$BS:$BS,\"=\"&$B14&\" (\"&$G14&\")\",unique_contracts!$AM:$AM,\"<=\"&C$4,unique_contracts!$AP:$AP,\">=\"&C$4)","v":0},{"$f":"SUMIFS(unique_contracts!BU:BU,unique_contracts!$AB:$AB,\"=Sell\",unique_contracts!$BS:$BS,\"=\"&$B14&\" (\"&$G14&\")\",unique_contracts!$AM:$AM,\"<=\"&D$4,unique_contracts!$AP:$AP,\">=\"&D$4)","v":0},{"$f":"SUMIFS(unique_contracts!BV:BV,unique_contracts!$AB:$AB,\"=Sell\",unique_contracts!$BS:$BS,\"=\"&$B14&\" (\"&$G14&\")\",unique_contracts!$AM:$AM,\"<=\"&E$4,unique_contracts!$AP:$AP,\">=\"&E$4)","v":0},{"$f":"SUMIFS(unique_contracts!BW:BW,unique_contracts!$AB:$AB,\"=Sell\",unique_contracts!$BS:$BS,\"=\"&$B14&\" (\"&$G14&\")\",unique_contracts!$AM:$AM,\"<=\"&F$4,unique_contracts!$AP:$AP,\">=\"&F$4)","v":0},0,0,0,0]
[null,"Wind New PG&E",0,0,0,0,"GWh","RPS Eligible",null,null,{"$f":"SUM(SUMIFS(unique_contracts!BT:BT,unique_contracts!$AB:$AB,{\"Buy\",\"Owned\"},unique_contracts!$BS:$BS,\"=\"&$B15&\" (\"&$G15&\")\",unique_contracts!$AM:$AM,\"<=\"&C$4,unique_contracts!$AP:$AP,\">=\"&C$4), SUMIFS(unique_contracts!BT:BT,unique_contracts!$AB:$AB,\"=\"&\"\",unique_contracts!$BS:$BS,\"=\"&$B15&\" (\"&$G15&\")\",unique_contracts!$AM:$AM,\"<=\"&C$4,unique_contracts!$AP:$AP,\">=\"&C$4))","v":0},{"$f":"SUM(SUMIFS(unique_contracts!BU:BU,unique_contracts!$AB:$AB,{\"Buy\",\"Owned\"},unique_contracts!$BS:$BS,\"=\"&$B15&\" (\"&$G15&\")\",unique_contracts!$AM:$AM,\"<=\"&D$4,unique_contracts!$AP:$AP,\">=\"&D$4), SUMIFS(unique_contracts!BU:BU,unique_contracts!$AB:$AB,\"=\"&\"\",unique_contracts!$BS:$BS,\"=\"&$B15&\" (\"&$G15&\")\",unique_contracts!$AM:$AM,\"<=\"&D$4,unique_contracts!$AP:$AP,\">=\"&D$4))","v":0},{"$f":"SUM(SUMIFS(unique_contracts!BV:BV,unique_contracts!$AB:$AB,{\"Buy\",\"Owned\"},unique_contracts!$BS:$BS,\"=\"&$B15&\" (\"&$G15&\")\",unique_contracts!$AM:$AM,\"<=\"&E$4,unique_contracts!$AP:$AP,\">=\"&E$4), SUMIFS(unique_contracts!BV:BV,unique_contracts!$AB:$AB,\"=\"&\"\",unique_contracts!$BS:$BS,\"=\"&$B15&\" (\"&$G15&\")\",unique_contracts!$AM:$AM,\"<=\"&E$4,unique_contracts!$AP:$AP,\">=\"&E$4))","v":0},{"$f":"SUM(SUMIFS(unique_contracts!BW:BW,unique_contracts!$AB:$AB,{\"Buy\",\"Owned\"},unique_contracts!$BS:$BS,\"=\"&$B15&\" (\"&$G15&\")\",unique_contracts!$AM:$AM,\"<=\"&F$4,unique_contracts!$AP:$AP,\">=\"&F$4), SUMIFS(unique_contracts!BW:BW,unique_contracts!$AB:$AB,\"=\"&\"\",unique_contracts!$BS:$BS,\"=\"&$B15&\" (\"&$G15&\")\",unique_contracts!$AM:$AM,\"<=\"&F$4,unique_contracts!$AP:$AP,\">=\"&F$4))","v":0},{"$f":"SUMIFS(unique_contracts!BT:BT,unique_contracts!$AB:$AB,\"=Sell\",unique_contracts!$BS:$BS,\"=\"&$B15&\" (\"&$G15&\")\",unique_contracts!$AM:$AM,\"<=\"&C$4,unique_contracts!$AP:$AP,\">=\"&C$4)","v":0},{"$f":"SUMIFS(unique_contracts!BU:BU,unique_contracts!$AB:$AB,\"=Sell\",unique_contracts!$BS:$BS,\"=\"&$B15&\" (\"&$G15&\")\",unique_contracts!$AM:$AM,\"<=\"&D$4,unique_contracts!$AP:$AP,\">=\"&D$4)","v":0},{"$f":"SUMIFS(unique_contracts!BV:BV,unique_contracts!$AB:$AB,\"=Sell\",unique_contracts!$BS:$BS,\"=\"&$B15&\" (\"&$G15&\")\",unique_contracts!$AM:$AM,\"<=\"&E$4,unique_contracts!$AP:$AP,\">=\"&E$4)","v":0},{"$f":"SUMIFS(unique_contracts!BW:BW,unique_contracts!$AB:$AB,\"=Sell\",unique_contracts!$BS:$BS,\"=\"&$B15&\" (\"&$G15&\")\",unique_contracts!$AM:$AM,\"<=\"&F$4,unique_contracts!$AP:$AP,\">=\"&F$4)","v":0},0,0,0,0]
[null,"Wind New SCE SDG&E",32.936,65.542000000000002,64.241,62.651000000000003,"GWh","RPS Eligible",null,null,{"$f":"SUM(SUMIFS(unique_contracts!BT:BT,unique_contracts!$AB:$AB,{\"Buy\",\"Owned\"},unique_contracts!$BS:$BS,\"=\"&$B16&\" (\"&$G16&\")\",unique_contracts!$AM:$AM,\"<=\"&C$4,unique_contracts!$AP:$AP,\">=\"&C$4), SUMIFS(unique_contracts!BT:BT,unique_contracts!$AB:$AB,\"=\"&\"\",unique_contracts!$BS:$BS,\"=\"&$B16&\" (\"&$G16&\")\",unique_contracts!$AM:$AM,\"<=\"&C$4,unique_contracts!$AP:$AP,\">=\"&C$4))","v":32.936},{"$f":"SUM(SUMIFS(unique_contracts!BU:BU,unique_contracts!$AB:$AB,{\"Buy\",\"Owned\"},unique_contracts!$BS:$BS,\"=\"&$B16&\" (\"&$G16&\")\",unique_contracts!$AM:$AM,\"<=\"&D$4,unique_contracts!$AP:$AP,\">=\"&D$4), SUMIFS(unique_contracts!BU:BU,unique_contracts!$AB:$AB,\"=\"&\"\",unique_contracts!$BS:$BS,\"=\"&$B16&\" (\"&$G16&\")\",unique_contracts!$AM:$AM,\"<=\"&D$4,unique_contracts!$AP:$AP,\">=\"&D$4))","v":65.542000000000002},{"$f":"SUM(SUMIFS(unique_contracts!BV:BV,unique_contracts!$AB:$AB,{\"Buy\",\"Owned\"},unique_contracts!$BS:$BS,\"=\"&$B16&\" (\"&$G16&\")\",unique_contracts!$AM:$AM,\"<=\"&E$4,unique_contracts!$AP:$AP,\">=\"&E$4), SUMIFS(unique_contracts!BV:BV,unique_contracts!$AB:$AB,\"=\"&\"\",unique_contracts!$BS:$BS,\"=\"&$B16&\" (\"&$G16&\")\",unique_contracts!$AM:$AM,\"<=\"&E$4,unique_contracts!$AP:$AP,\">=\"&E$4))","v":64.241},{"$f":"SUM(SUMIFS(unique_contracts!BW:BW,unique_contracts!$AB:$AB,{\"Buy\",\"Owned\"},unique_contracts!$BS:$BS,\"=\"&$B16&\" (\"&$G16&\")\",unique_contracts!$AM:$AM,\"<=\"&F$4,unique_contracts!$AP:$AP,\">=\"&F$4), SUMIFS(unique_contracts!BW:BW,unique_contracts!$AB:$AB,\"=\"&\"\",unique_contracts!$BS:$BS,\"=\"&$B16&\" (\"&$G16&\")\",unique_contracts!$AM:$AM,\"<=\"&F$4,unique_contracts!$AP:$AP,\">=\"&F$4))","v":62.651000000000003},{"$f":"SUMIFS(unique_contracts!BT:BT,unique_contracts!$AB:$AB,\"=Sell\",unique_contracts!$BS:$BS,\"=\"&$B16&\" (\"&$G16&\")\",unique_contracts!$AM:$AM,\"<=\"&C$4,unique_contracts!$AP:$AP,\">=\"&C$4)","v":0},{"$f":"SUMIFS(unique_contracts!BU:BU,unique_contracts!$AB:$AB,\"=Sell\",unique_contracts!$BS:$BS,\"=\"&$B16&\" (\"&$G16&\")\",unique_contracts!$AM:$AM,\"<=\"&D$4,unique_contracts!$AP:$AP,\">=\"&D$4)","v":0},{"$f":"SUMIFS(unique_contracts!BV:BV,unique_contracts!$AB:$AB,\"=Sell\",unique_contracts!$BS:$BS,\"=\"&$B16&\" (\"&$G16&\")\",unique_contracts!$AM:$AM,\"<=\"&E$4,unique_contracts!$AP:$AP,\">=\"&E$4)","v":0},{"$f":"SUMIFS(unique_contracts!BW:BW,unique_contracts!$AB:$AB,\"=Sell\",unique_contracts!$BS:$BS,\"=\"&$B16&\" (\"&$G16&\")\",unique_contracts!$AM:$AM,\"<=\"&F$4,unique_contracts!$AP:$AP,\">=\"&F$4)","v":0},32.936,65.542000000000002,64.241,62.651000000000003]
[null,"Wind Pacific Northwest",0,0,0,0,"GWh","RPS Eligible",null,null,{"$f":"SUM(SUMIFS(unique_contracts!BT:BT,unique_contracts!$AB:$AB,{\"Buy\",\"Owned\"},unique_contracts!$BS:$BS,\"=\"&$B17&\" (\"&$G17&\")\",unique_contracts!$AM:$AM,\"<=\"&C$4,unique_contracts!$AP:$AP,\">=\"&C$4), SUMIFS(unique_contracts!BT:BT,unique_contracts!$AB:$AB,\"=\"&\"\",unique_contracts!$BS:$BS,\"=\"&$B17&\" (\"&$G17&\")\",unique_contracts!$AM:$AM,\"<=\"&C$4,unique_contracts!$AP:$AP,\">=\"&C$4))","v":0},{"$f":"SUM(SUMIFS(unique_contracts!BU:BU,unique_contracts!$AB:$AB,{\"Buy\",\"Owned\"},unique_contracts!$BS:$BS,\"=\"&$B17&\" (\"&$G17&\")\",unique_contracts!$AM:$AM,\"<=\"&D$4,unique_contracts!$AP:$AP,\">=\"&D$4), SUMIFS(unique_contracts!BU:BU,unique_contracts!$AB:$AB,\"=\"&\"\",unique_contracts!$BS:$BS,\"=\"&$B17&\" (\"&$G17&\")\",unique_contracts!$AM:$AM,\"<=\"&D$4,unique_contracts!$AP:$AP,\">=\"&D$4))","v":0},{"$f":"SUM(SUMIFS(unique_contracts!BV:BV,unique_contracts!$AB:$AB,{\"Buy\",\"Owned\"},unique_contracts!$BS:$BS,\"=\"&$B17&\" (\"&$G17&\")\",unique_contracts!$AM:$AM,\"<=\"&E$4,unique_contracts!$AP:$AP,\">=\"&E$4), SUMIFS(unique_contracts!BV:BV,unique_contracts!$AB:$AB,\"=\"&\"\",unique_contracts!$BS:$BS,\"=\"&$B17&\" (\"&$G17&\")\",unique_contracts!$AM:$AM,\"<=\"&E$4,unique_contracts!$AP:$AP,\">=\"&E$4))","v":0},{"$f":"SUM(SUMIFS(unique_contracts!BW:BW,unique_contracts!$AB:$AB,{\"Buy\",\"Owned\"},unique_contracts!$BS:$BS,\"=\"&$B17&\" (\"&$G17&\")\",unique_contracts!$AM:$AM,\"<=\"&F$4,unique_contracts!$AP:$AP,\">=\"&F$4), SUMIFS(unique_contracts!BW:BW,unique_contracts!$AB:$AB,\"=\"&\"\",unique_contracts!$BS:$BS,\"=\"&$B17&\" (\"&$G17&\")\",unique_contracts!$AM:$AM,\"<=\"&F$4,unique_contracts!$AP:$AP,\">=\"&F$4))","v":0},{"$f":"SUMIFS(unique_contracts!BT:BT,unique_contracts!$AB:$AB,\"=Sell\",unique_contracts!$BS:$BS,\"=\"&$B17&\" (\"&$G17&\")\",unique_contracts!$AM:$AM,\"<=\"&C$4,unique_contracts!$AP:$AP,\">=\"&C$4)","v":0},{"$f":"SUMIFS(unique_contracts!BU:BU,unique_contracts!$AB:$AB,\"=Sell\",unique_contracts!$BS:$BS,\"=\"&$B17&\" (\"&$G17&\")\",unique_contracts!$AM:$AM,\"<=\"&D$4,unique_contracts!$AP:$AP,\">=\"&D$4)","v":0},{"$f":"SUMIFS(unique_contracts!BV:BV,unique_contracts!$AB:$AB,\"=Sell\",unique_contracts!$BS:$BS,\"=\"&$B17&\" (\"&$G17&\")\",unique_contracts!$AM:$AM,\"<=\"&E$4,unique_contracts!$AP:$AP,\">=\"&E$4)","v":0},{"$f":"SUMIFS(unique_contracts!BW:BW,unique_contracts!$AB:$AB,\"=Sell\",unique_contracts!$BS:$BS,\"=\"&$B17&\" (\"&$G17&\")\",unique_contracts!$AM:$AM,\"<=\"&F$4,unique_contracts!$AP:$AP,\">=\"&F$4)","v":0},0,0,0,0]
[null,"Wind Wyoming",0,0,0,0,"GWh","RPS Eligible",null,null,{"$f":"SUM(SUMIFS(unique_contracts!BT:BT,unique_contracts!$AB:$AB,{\"Buy\",\"Owned\"},unique_contracts!$BS:$BS,\"=\"&$B18&\" (\"&$G18&\")\",unique_contracts!$AM:$AM,\"<=\"&C$4,unique_contracts!$AP:$AP,\">=\"&C$4), SUMIFS(unique_contracts!BT:BT,unique_contracts!$AB:$AB,\"=\"&\"\",unique_contracts!$BS:$BS,\"=\"&$B18&\" (\"&$G18&\")\",unique_contracts!$AM:$AM,\"<=\"&C$4,unique_contracts!$AP:$AP,\">=\"&C$4))","v":0},{"$f":"SUM(SUMIFS(unique_contracts!BU:BU,unique_contracts!$AB:$AB,{\"Buy\",\"Owned\"},unique_contracts!$BS:$BS,\"=\"&$B18&\" (\"&$G18&\")\",unique_contracts!$AM:$AM,\"<=\"&D$4,unique_contracts!$AP:$AP,\">=\"&D$4), SUMIFS(unique_contracts!BU:BU,unique_contracts!$AB:$AB,\"=\"&\"\",unique_contracts!$BS:$BS,\"=\"&$B18&\" (\"&$G18&\")\",unique_contracts!$AM:$AM,\"<=\"&D$4,unique_contracts!$AP:$AP,\">=\"&D$4))","v":0},{"$f":"SUM(SUMIFS(unique_contracts!BV:BV,unique_contracts!$AB:$AB,{\"Buy\",\"Owned\"},unique_contracts!$BS:$BS,\"=\"&$B18&\" (\"&$G18&\")\",unique_contracts!$AM:$AM,\"<=\"&E$4,unique_contracts!$AP:$AP,\">=\"&E$4), SUMIFS(unique_contracts!BV:BV,unique_contracts!$AB:$AB,\"=\"&\"\",unique_contracts!$BS:$BS,\"=\"&$B18&\" (\"&$G18&\")\",unique_contracts!$AM:$AM,\"<=\"&E$4,unique_contracts!$AP:$AP,\">=\"&E$4))","v":0},{"$f":"SUM(SUMIFS(unique_contracts!BW:BW,unique_contracts!$AB:$AB,{\"Buy\",\"Owned\"},unique_contracts!$BS:$BS,\"=\"&$B18&\" (\"&$G18&\")\",unique_contracts!$AM:$AM,\"<=\"&F$4,unique_contracts!$AP:$AP,\">=\"&F$4), SUMIFS(unique_contracts!BW:BW,unique_contracts!$AB:$AB,\"=\"&\"\",unique_contracts!$BS:$BS,\"=\"&$B18&\" (\"&$G18&\")\",unique_contracts!$AM:$AM,\"<=\"&F$4,unique_contracts!$AP:$AP,\">=\"&F$4))","v":0},{"$f":"SUMIFS(unique_contracts!BT:BT,unique_contracts!$AB:$AB,\"=Sell\",unique_contracts!$BS:$BS,\"=\"&$B18&\" (\"&$G18&\")\",unique_contracts!$AM:$AM,\"<=\"&C$4,unique_contracts!$AP:$AP,\">=\"&C$4)","v":0},{"$f":"SUMIFS(unique_contracts!BU:BU,unique_contracts!$AB:$AB,\"=Sell\",unique_contracts!$BS:$BS,\"=\"&$B18&\" (\"&$G18&\")\",unique_contracts!$AM:$AM,\"<=\"&D$4,unique_contracts!$AP:$AP,\">=\"&D$4)","v":0},{"$f":"SUMIFS(unique_contracts!BV:BV,unique_contracts!$AB:$AB,\"=Sell\",unique_contracts!$BS:$BS,\"=\"&$B18&\" (\"&$G18&\")\",unique_contracts!$AM:$AM,\"<=\"&E$4,unique_contracts!$AP:$AP,\">=\"&E$4)","v":0},{"$f":"SUMIFS(unique_contracts!BW:BW,unique_contracts!$AB:$AB,\"=Sell\",unique_contracts!$BS:$BS,\"=\"&$B18&\" (\"&$G18&\")\",unique_contracts!$AM:$AM,\"<=\"&F$4,unique_contracts!$AP:$AP,\">=\"&F$4)","v":0},0,0,0,0]
[null,"Wind New Mexico",0,151.096,299.02800000000002,291.62599999999998,"GWh","RPS Eligible",null,null,{"$f":"SUM(SUMIFS(unique_contracts!BT:BT,unique_contracts!$AB:$AB,{\"Buy\",\"Owned\"},unique_contracts!$BS:$BS,\"=\"&$B19&\" (\"&$G19&\")\",unique_contracts!$AM:$AM,\"<=\"&C$4,unique_contracts!$AP:$AP,\">=\"&C$4), SUMIFS(unique_contracts!BT:BT,unique_contracts!$AB:$AB,\"=\"&\"\",unique_contracts!$BS:$BS,\"=\"&$B19&\" (\"&$G19&\")\",unique_contracts!$AM:$AM,\"<=\"&C$4,unique_contracts!$AP:$AP,\">=\"&C$4))","v":0},{"$f":"SUM(SUMIFS(unique_contracts!BU:BU,unique_contracts!$AB:$AB,{\"Buy\",\"Owned\"},unique_contracts!$BS:$BS,\"=\"&$B19&\" (\"&$G19&\")\",unique_contracts!$AM:$AM,\"<=\"&D$4,unique_contracts!$AP:$AP,\">=\"&D$4), SUMIFS(unique_contracts!BU:BU,unique_contracts!$AB:$AB,\"=\"&\"\",unique_contracts!$BS:$BS,\"=\"&$B19&\" (\"&$G19&\")\",unique_contracts!$AM:$AM,\"<=\"&D$4,unique_contracts!$AP:$AP,\">=\"&D$4))","v":151.096},{"$f":"SUM(SUMIFS(unique_contracts!BV:BV,unique_contracts!$AB:$AB,{\"Buy\",\"Owned\"},unique_contracts!$BS:$BS,\"=\"&$B19&\" (\"&$G19&\")\",unique_contracts!$AM:$AM,\"<=\"&E$4,unique_contracts!$AP:$AP,\">=\"&E$4), SUMIFS(unique_contracts!BV:BV,unique_contracts!$AB:$AB,\"=\"&\"\",unique_contracts!$BS:$BS,\"=\"&$B19&\" (\"&$G19&\")\",unique_contracts!$AM:$AM,\"<=\"&E$4,unique_contracts!$AP:$AP,\">=\"&E$4))","v":299.02800000000002},{"$f":"SUM(SUMIFS(unique_contracts!BW:BW,unique_contracts!$AB:$AB,{\"Buy\",\"Owned\"},unique_contracts!$BS:$BS,\"=\"&$B19&\" (\"&$G19&\")\",unique_contracts!$AM:$AM,\"<=\"&F$4,unique_contracts!$AP:$AP,\">=\"&F$4), SUMIFS(unique_contracts!BW:BW,unique_contracts!$AB:$AB,\"=\"&\"\",unique_contracts!$BS:$BS,\"=\"&$B19&\" (\"&$G19&\")\",unique_contracts!$AM:$AM,\"<=\"&F$4,unique_contracts!$AP:$AP,\">=\"&F$4))","v":291.62599999999998},{"$f":"SUMIFS(unique_contracts!BT:BT,unique_contracts!$AB:$AB,\"=Sell\",unique_contracts!$BS:$BS,\"=\"&$B19&\" (\"&$G19&\")\",unique_contracts!$AM:$AM,\"<=\"&C$4,unique_contracts!$AP:$AP,\">=\"&C$4)","v":0},{"$f":"SUMIFS(unique_contracts!BU:BU,unique_contracts!$AB:$AB,\"=Sell\",unique_contracts!$BS:$BS,\"=\"&$B19&\" (\"&$G19&\")\",unique_contracts!$AM:$AM,\"<=\"&D$4,unique_contracts!$AP:$AP,\">=\"&D$4)","v":0},{"$f":"SUMIFS(unique_contracts!BV:BV,unique_contracts!$AB:$AB,\"=Sell\",unique_contracts!$BS:$BS,\"=\"&$B19&\" (\"&$G19&\")\",unique_contracts!$AM:$AM,\"<=\"&E$4,unique_contracts!$AP:$AP,\">=\"&E$4)","v":0},{"$f":"SUMIFS(unique_contracts!BW:BW,unique_contracts!$AB:$AB,\"=Sell\",unique_contracts!$BS:$BS,\"=\"&$B19&\" (\"&$G19&\")\",unique_contracts!$AM:$AM,\"<=\"&F$4,unique_contracts!$AP:$AP,\">=\"&F$4)","v":0},0,151.096,299.02800000000002,291.62599999999998]
[null,"Wind Offshore Morro Bay",0,0,0,0,"GWh","RPS Eligible",null,null,{"$f":"SUM(SUMIFS(unique_contracts!BT:BT,unique_contracts!$AB:$AB,{\"Buy\",\"Owned\"},unique_contracts!$BS:$BS,\"=\"&$B20&\" (\"&$G20&\")\",unique_contracts!$AM:$AM,\"<=\"&C$4,unique_contracts!$AP:$AP,\">=\"&C$4), SUMIFS(unique_contracts!BT:BT,unique_contracts!$AB:$AB,\"=\"&\"\",unique_contracts!$BS:$BS,\"=\"&$B20&\" (\"&$G20&\")\",unique_contracts!$AM:$AM,\"<=\"&C$4,unique_contracts!$AP:$AP,\">=\"&C$4))","v":0},{"$f":"SUM(SUMIFS(unique_contracts!BU:BU,unique_contracts!$AB:$AB,{\"Buy\",\"Owned\"},unique_contracts!$BS:$BS,\"=\"&$B20&\" (\"&$G20&\")\",unique_contracts!$AM:$AM,\"<=\"&D$4,unique_contracts!$AP:$AP,\">=\"&D$4), SUMIFS(unique_contracts!BU:BU,unique_contracts!$AB:$AB,\"=\"&\"\",unique_contracts!$BS:$BS,\"=\"&$B20&\" (\"&$G20&\")\",unique_contracts!$AM:$AM,\"<=\"&D$4,unique_contracts!$AP:$AP,\">=\"&D$4))","v":0},{"$f":"SUM(SUMIFS(unique_contracts!BV:BV,unique_contracts!$AB:$AB,{\"Buy\",\"Owned\"},unique_contracts!$BS:$BS,\"=\"&$B20&\" (\"&$G20&\")\",unique_contracts!$AM:$AM,\"<=\"&E$4,unique_contracts!$AP:$AP,\">=\"&E$4), SUMIFS(unique_contracts!BV:BV,unique_contracts!$AB:$AB,\"=\"&\"\",unique_contracts!$BS:$BS,\"=\"&$B20&\" (\"&$G20&\")\",unique_contracts!$AM:$AM,\"<=\"&E$4,unique_contracts!$AP:$AP,\">=\"&E$4))","v":0},{"$f":"SUM(SUMIFS(unique_contracts!BW:BW,unique_contracts!$AB:$AB,{\"Buy\",\"Owned\"},unique_contracts!$BS:$BS,\"=\"&$B20&\" (\"&$G20&\")\",unique_contracts!$AM:$AM,\"<=\"&F$4,unique_contracts!$AP:$AP,\">=\"&F$4), SUMIFS(unique_contracts!BW:BW,unique_contracts!$AB:$AB,\"=\"&\"\",unique_contracts!$BS:$BS,\"=\"&$B20&\" (\"&$G20&\")\",unique_contracts!$AM:$AM,\"<=\"&F$4,unique_contracts!$AP:$AP,\">=\"&F$4))","v":0},{"$f":"SUMIFS(unique_contracts!BT:BT,unique_contracts!$AB:$AB,\"=Sell\",unique_contracts!$BS:$BS,\"=\"&$B20&\" (\"&$G20&\")\",unique_contracts!$AM:$AM,\"<=\"&C$4,unique_contracts!$AP:$AP,\">=\"&C$4)","v":0},{"$f":"SUMIFS(unique_contracts!BU:BU,unique_contracts!$AB:$AB,\"=Sell\",unique_contracts!$BS:$BS,\"=\"&$B20&\" (\"&$G20&\")\",unique_contracts!$AM:$AM,\"<=\"&D$4,unique_contracts!$AP:$AP,\">=\"&D$4)","v":0},{"$f":"SUMIFS(unique_contracts!BV:BV,unique_contracts!$AB:$AB,\"=Sell\",unique_contracts!$BS:$BS,\"=\"&$B20&\" (\"&$G20&\")\",unique_contracts!$AM:$AM,\"<=\"&E$4,unique_contracts!$AP:$AP,\">=\"&E$4)","v":0},{"$f":"SUMIFS(unique_contracts!BW:BW,unique_contracts!$AB:$AB,\"=Sell\",unique_contracts!$BS:$BS,\"=\"&$B20&\" (\"&$G20&\")\",unique_contracts!$AM:$AM,\"<=\"&F$4,unique_contracts!$AP:$AP,\">=\"&F$4)","v":0},0,0,0,0]
[null,"Wind Offshore Humboldt",0,0,0,0,"GWh","RPS Eligible",null,null,{"$f":"SUM(SUMIFS(unique_contracts!BT:BT,unique_contracts!$AB:$AB,{\"Buy\",\"Owned\"},unique_contracts!$BS:$BS,\"=\"&$B21&\" (\"&$G21&\")\",unique_contracts!$AM:$AM,\"<=\"&C$4,unique_contracts!$AP:$AP,\">=\"&C$4), SUMIFS(unique_contracts!BT:BT,unique_contracts!$AB:$AB,\"=\"&\"\",unique_contracts!$BS:$BS,\"=\"&$B21&\" (\"&$G21&\")\",unique_contracts!$AM:$AM,\"<=\"&C$4,unique_contracts!$AP:$AP,\">=\"&C$4))","v":0},{"$f":"SUM(SUMIFS(unique_contracts!BU:BU,unique_contracts!$AB:$AB,{\"Buy\",\"Owned\"},unique_contracts!$BS:$BS,\"=\"&$B21&\" (\"&$G21&\")\",unique_contracts!$AM:$AM,\"<=\"&D$4,unique_contracts!$AP:$AP,\">=\"&D$4), SUMIFS(unique_contracts!BU:BU,unique_contracts!$AB:$AB,\"=\"&\"\",unique_contracts!$BS:$BS,\"=\"&$B21&\" (\"&$G21&\")\",unique_contracts!$AM:$AM,\"<=\"&D$4,unique_contracts!$AP:$AP,\">=\"&D$4))","v":0},{"$f":"SUM(SUMIFS(unique_contracts!BV:BV,unique_contracts!$AB:$AB,{\"Buy\",\"Owned\"},unique_contracts!$BS:$BS,\"=\"&$B21&\" (\"&$G21&\")\",unique_contracts!$AM:$AM,\"<=\"&E$4,unique_contracts!$AP:$AP,\">=\"&E$4), SUMIFS(unique_contracts!BV:BV,unique_contracts!$AB:$AB,\"=\"&\"\",unique_contracts!$BS:$BS,\"=\"&$B21&\" (\"&$G21&\")\",unique_contracts!$AM:$AM,\"<=\"&E$4,unique_contracts!$AP:$AP,\">=\"&E$4))","v":0},{"$f":"SUM(SUMIFS(unique_contracts!BW:BW,unique_contracts!$AB:$AB,{\"Buy\",\"Owned\"},unique_contracts!$BS:$BS,\"=\"&$B21&\" (\"&$G21&\")\",unique_contracts!$AM:$AM,\"<=\"&F$4,unique_contracts!$AP:$AP,\">=\"&F$4), SUMIFS(unique_contracts!BW:BW,unique_contracts!$AB:$AB,\"=\"&\"\",unique_contracts!$BS:$BS,\"=\"&$B21&\" (\"&$G21&\")\",unique_contracts!$AM:$AM,\"<=\"&F$4,unique_contracts!$AP:$AP,\">=\"&F$4))","v":0},{"$f":"SUMIFS(unique_contracts!BT:BT,unique_contracts!$AB:$AB,\"=Sell\",unique_contracts!$BS:$BS,\"=\"&$B21&\" (\"&$G21&\")\",unique_contracts!$AM:$AM,\"<=\"&C$4,unique_contracts!$AP:$AP,\">=\"&C$4)","v":0},{"$f":"SUMIFS(unique_contracts!BU:BU,unique_contracts!$AB:$AB,\"=Sell\",unique_contracts!$BS:$BS,\"=\"&$B21&\" (\"&$G21&\")\",unique_contracts!$AM:$AM,\"<=\"&D$4,unique_contracts!$AP:$AP,\">=\"&D$4)","v":0},{"$f":"SUMIFS(unique_contracts!BV:BV,unique_contracts!$AB:$AB,\"=Sell\",unique_contracts!$BS:$BS,\"=\"&$B21&\" (\"&$G21&\")\",unique_contracts!$AM:$AM,\"<=\"&E$4,unique_contracts!$AP:$AP,\">=\"&E$4)","v":0},{"$f":"SUMIFS(unique_contracts!BW:BW,unique_contracts!$AB:$AB,\"=Sell\",unique_contracts!$BS:$BS,\"=\"&$B21&\" (\"&$G21&\")\",unique_contracts!$AM:$AM,\"<=\"&F$4,unique_contracts!$AP:$AP,\">=\"&F$4)","v":0},0,0,0,0]
[null,"Solar Resources"]
[null,"Solar Baseline California",152.98267999999999,152.06612000000001,150.18124,148.00924000000001,"GWh","RPS Eligible",null,null,{"$f":"SUM(SUMIFS(unique_contracts!BT:BT,unique_contracts!$AB:$AB,{\"Buy\",\"Owned\"},unique_contracts!$BS:$BS,\"=\"&$B23&\" (\"&$G23&\")\",unique_contracts!$AM:$AM,\"<=\"&C$4,unique_contracts!$AP:$AP,\">=\"&C$4), SUMIFS(unique_contracts!BT:BT,unique_contracts!$AB:$AB,\"=\"&\"\",unique_contracts!$BS:$BS,\"=\"&$B23&\" (\"&$G23&\")\",unique_contracts!$AM:$AM,\"<=\"&C$4,unique_contracts!$AP:$AP,\">=\"&C$4))","v":152.98267999999999},{"$f":"SUM(SUMIFS(unique_contracts!BU:BU,unique_contracts!$AB:$AB,{\"Buy\",\"Owned\"},unique_contracts!$BS:$BS,\"=\"&$B23&\" (\"&$G23&\")\",unique_contracts!$AM:$AM,\"<=\"&D$4,unique_contracts!$AP:$AP,\">=\"&D$4), SUMIFS(unique_contracts!BU:BU,unique_contracts!$AB:$AB,\"=\"&\"\",unique_contracts!$BS:$BS,\"=\"&$B23&\" (\"&$G23&\")\",unique_contracts!$AM:$AM,\"<=\"&D$4,unique_contracts!$AP:$AP,\">=\"&D$4))","v":152.06612000000001},{"$f":"SUM(SUMIFS(unique_contracts!BV:BV,unique_contracts!$AB:$AB,{\"Buy\",\"Owned\"},unique_contracts!$BS:$BS,\"=\"&$B23&\" (\"&$G23&\")\",unique_contracts!$AM:$AM,\"<=\"&E$4,unique_contracts!$AP:$AP,\">=\"&E$4), SUMIFS(unique_contracts!BV:BV,unique_contracts!$AB:$AB,\"=\"&\"\",unique_contracts!$BS:$BS,\"=\"&$B23&\" (\"&$G23&\")\",unique_contracts!$AM:$AM,\"<=\"&E$4,unique_contracts!$AP:$AP,\">=\"&E$4))","v":150.18124},{"$f":"SUM(SUMIFS(unique_contracts!BW:BW,unique_contracts!$AB:$AB,{\"Buy\",\"Owned\"},unique_contracts!$BS:$BS,\"=\"&$B23&\" (\"&$G23&\")\",unique_contracts!$AM:$AM,\"<=\"&F$4,unique_contracts!$AP:$AP,\">=\"&F$4), SUMIFS(unique_contracts!BW:BW,unique_contracts!$AB:$AB,\"=\"&\"\",unique_contracts!$BS:$BS,\"=\"&$B23&\" (\"&$G23&\")\",unique_contracts!$AM:$AM,\"<=\"&F$4,unique_contracts!$AP:$AP,\">=\"&F$4))","v":148.00924000000001},{"$f":"SUMIFS(unique_contracts!BT:BT,unique_contracts!$AB:$AB,\"=Sell\",unique_contracts!$BS:$BS,\"=\"&$B23&\" (\"&$G23&\")\",unique_contracts!$AM:$AM,\"<=\"&C$4,unique_contracts!$AP:$AP,\">=\"&C$4)","v":0},{"$f":"SUMIFS(unique_contracts!BU:BU,unique_contracts!$AB:$AB,\"=Sell\",unique_contracts!$BS:$BS,\"=\"&$B23&\" (\"&$G23&\")\",unique_contracts!$AM:$AM,\"<=\"&D$4,unique_contracts!$AP:$AP,\">=\"&D$4)","v":0},{"$f":"SUMIFS(unique_contracts!BV:BV,unique_contracts!$AB:$AB,\"=Sell\",unique_contracts!$BS:$BS,\"=\"&$B23&\" (\"&$G23&\")\",unique_contracts!$AM:$AM,\"<=\"&E$4,unique_contracts!$AP:$AP,\">=\"&E$4)","v":0},{"$f":"SUMIFS(unique_contracts!BW:BW,unique_contracts!$AB:$AB,\"=Sell\",unique_contracts!$BS:$BS,\"=\"&$B23&\" (\"&$G23&\")\",unique_contracts!$AM:$AM,\"<=\"&F$4,unique_contracts!$AP:$AP,\">=\"&F$4)","v":0},152.98267999999999,152.06612000000001,150.18124,148.00924000000001]
[null,"Solar New PG&E",0,0,0,0,"GWh","RPS Eligible",null,null,{"$f":"SUM(SUMIFS(unique_contracts!BT:BT,unique_contracts!$AB:$AB,{\"Buy\",\"Owned\"},unique_contracts!$BS:$BS,\"=\"&$B24&\" (\"&$G24&\")\",unique_contracts!$AM:$AM,\"<=\"&C$4,unique_contracts!$AP:$AP,\">=\"&C$4), SUMIFS(unique_contracts!BT:BT,unique_contracts!$AB:$AB,\"=\"&\"\",unique_contracts!$BS:$BS,\"=\"&$B24&\" (\"&$G24&\")\",unique_contracts!$AM:$AM,\"<=\"&C$4,unique_contracts!$AP:$AP,\">=\"&C$4))","v":0},{"$f":"SUM(SUMIFS(unique_contracts!BU:BU,unique_contracts!$AB:$AB,{\"Buy\",\"Owned\"},unique_contracts!$BS:$BS,\"=\"&$B24&\" (\"&$G24&\")\",unique_contracts!$AM:$AM,\"<=\"&D$4,unique_contracts!$AP:$AP,\">=\"&D$4), SUMIFS(unique_contracts!BU:BU,unique_contracts!$AB:$AB,\"=\"&\"\",unique_contracts!$BS:$BS,\"=\"&$B24&\" (\"&$G24&\")\",unique_contracts!$AM:$AM,\"<=\"&D$4,unique_contracts!$AP:$AP,\">=\"&D$4))","v":0},{"$f":"SUM(SUMIFS(unique_contracts!BV:BV,unique_contracts!$AB:$AB,{\"Buy\",\"Owned\"},unique_contracts!$BS:$BS,\"=\"&$B24&\" (\"&$G24&\")\",unique_contracts!$AM:$AM,\"<=\"&E$4,unique_contracts!$AP:$AP,\">=\"&E$4), SUMIFS(unique_contracts!BV:BV,unique_contracts!$AB:$AB,\"=\"&\"\",unique_contracts!$BS:$BS,\"=\"&$B24&\" (\"&$G24&\")\",unique_contracts!$AM:$AM,\"<=\"&E$4,unique_contracts!$AP:$AP,\">=\"&E$4))","v":0},{"$f":"SUM(SUMIFS(unique_contracts!BW:BW,unique_contracts!$AB:$AB,{\"Buy\",\"Owned\"},unique_contracts!$BS:$BS,\"=\"&$B24&\" (\"&$G24&\")\",unique_contracts!$AM:$AM,\"<=\"&F$4,unique_contracts!$AP:$AP,\">=\"&F$4), SUMIFS(unique_contracts!BW:BW,unique_contracts!$AB:$AB,\"=\"&\"\",unique_contracts!$BS:$BS,\"=\"&$B24&\" (\"&$G24&\")\",unique_contracts!$AM:$AM,\"<=\"&F$4,unique_contracts!$AP:$AP,\">=\"&F$4))","v":0},{"$f":"SUMIFS(unique_contracts!BT:BT,unique_contracts!$AB:$AB,\"=Sell\",unique_contracts!$BS:$BS,\"=\"&$B24&\" (\"&$G24&\")\",unique_contracts!$AM:$AM,\"<=\"&C$4,unique_contracts!$AP:$AP,\">=\"&C$4)","v":0},{"$f":"SUMIFS(unique_contracts!BU:BU,unique_contracts!$AB:$AB,\"=Sell\",unique_contracts!$BS:$BS,\"=\"&$B24&\" (\"&$G24&\")\",unique_contracts!$AM:$AM,\"<=\"&D$4,unique_contracts!$AP:$AP,\">=\"&D$4)","v":0},{"$f":"SUMIFS(unique_contracts!BV:BV,unique_contracts!$AB:$AB,\"=Sell\",unique_contracts!$BS:$BS,\"=\"&$B24&\" (\"&$G24&\")\",unique_contracts!$AM:$AM,\"<=\"&E$4,unique_contracts!$AP:$AP,\">=\"&E$4)","v":0},{"$f":"SUMIFS(unique_contracts!BW:BW,unique_contracts!$AB:$AB,\"=Sell\",unique_contracts!$BS:$BS,\"=\"&$B24&\" (\"&$G24&\")\",unique_contracts!$AM:$AM,\"<=\"&F$4,unique_contracts!$AP:$AP,\">=\"&F$4)","v":0},0,0,0,0]
[null,"Solar New SCE SDG&E",0,0,0,0,"GWh","RPS Eligible",null,null,{"$f":"SUM(SUMIFS(unique_contracts!BT:BT,unique_contracts!$AB:$AB,{\"Buy\",\"Owned\"},unique_contracts!$BS:$BS,\"=\"&$B25&\" (\"&$G25&\")\",unique_contracts!$AM:$AM,\"<=\"&C$4,unique_contracts!$AP:$AP,\">=\"&C$4), SUMIFS(unique_contracts!BT:BT,unique_contracts!$AB:$AB,\"=\"&\"\",unique_contracts!$BS:$BS,\"=\"&$B25&\" (\"&$G25&\")\",unique_contracts!$AM:$AM,\"<=\"&C$4,unique_contracts!$AP:$AP,\">=\"&C$4))","v":0},{"$f":"SUM(SUMIFS(unique_contracts!BU:BU,unique_contracts!$AB:$AB,{\"Buy\",\"Owned\"},unique_contracts!$BS:$BS,\"=\"&$B25&\" (\"&$G25&\")\",unique_contracts!$AM:$AM,\"<=\"&D$4,unique_contracts!$AP:$AP,\">=\"&D$4), SUMIFS(unique_contracts!BU:BU,unique_contracts!$AB:$AB,\"=\"&\"\",unique_contracts!$BS:$BS,\"=\"&$B25&\" (\"&$G25&\")\",unique_contracts!$AM:$AM,\"<=\"&D$4,unique_contracts!$AP:$AP,\">=\"&D$4))","v":0},{"$f":"SUM(SUMIFS(unique_contracts!BV:BV,unique_contracts!$AB:$AB,{\"Buy\",\"Owned\"},unique_contracts!$BS:$BS,\"=\"&$B25&\" (\"&$G25&\")\",unique_contracts!$AM:$AM,\"<=\"&E$4,unique_contracts!$AP:$AP,\">=\"&E$4), SUMIFS(unique_contracts!BV:BV,unique_contracts!$AB:$AB,\"=\"&\"\",unique_contracts!$BS:$BS,\"=\"&$B25&\" (\"&$G25&\")\",unique_contracts!$AM:$AM,\"<=\"&E$4,unique_contracts!$AP:$AP,\">=\"&E$4))","v":0},{"$f":"SUM(SUMIFS(unique_contracts!BW:BW,unique_contracts!$AB:$AB,{\"Buy\",\"Owned\"},unique_contracts!$BS:$BS,\"=\"&$B25&\" (\"&$G25&\")\",unique_contracts!$AM:$AM,\"<=\"&F$4,unique_contracts!$AP:$AP,\">=\"&F$4), SUMIFS(unique_contracts!BW:BW,unique_contracts!$AB:$AB,\"=\"&\"\",unique_contracts!$BS:$BS,\"=\"&$B25&\" (\"&$G25&\")\",unique_contracts!$AM:$AM,\"<=\"&F$4,unique_contracts!$AP:$AP,\">=\"&F$4))","v":0},{"$f":"SUMIFS(unique_contracts!BT:BT,unique_contracts!$AB:$AB,\"=Sell\",unique_contracts!$BS:$BS,\"=\"&$B25&\" (\"&$G25&\")\",unique_contracts!$AM:$AM,\"<=\"&C$4,unique_contracts!$AP:$AP,\">=\"&C$4)","v":0},{"$f":"SUMIFS(unique_contracts!BU:BU,unique_contracts!$AB:$AB,\"=Sell\",unique_contracts!$BS:$BS,\"=\"&$B25&\" (\"&$G25&\")\",unique_contracts!$AM:$AM,\"<=\"&D$4,unique_contracts!$AP:$AP,\">=\"&D$4)","v":0},{"$f":"SUMIFS(unique_contracts!BV:BV,unique_contracts!$AB:$AB,\"=Sell\",unique_contracts!$BS:$BS,\"=\"&$B25&\" (\"&$G25&\")\",unique_contracts!$AM:$AM,\"<=\"&E$4,unique_contracts!$AP:$AP,\">=\"&E$4)","v":0},{"$f":"SUMIFS(unique_contracts!BW:BW,unique_contracts!$AB:$AB,\"=Sell\",unique_contracts!$BS:$BS,\"=\"&$B25&\" (\"&$G25&\")\",unique_contracts!$AM:$AM,\"<=\"&F$4,unique_contracts!$AP:$AP,\">=\"&F$4)","v":0},0,0,0,0]
[null,"Solar Distributed",0,0,0,0,"GWh","RPS Eligible",null,null,{"$f":"SUM(SUMIFS(unique_contracts!BT:BT,unique_contracts!$AB:$AB,{\"Buy\",\"Owned\"},unique_contracts!$BS:$BS,\"=\"&$B26&\" (\"&$G26&\")\",unique_contracts!$AM:$AM,\"<=\"&C$4,unique_contracts!$AP:$AP,\">=\"&C$4), SUMIFS(unique_contracts!BT:BT,unique_contracts!$AB:$AB,\"=\"&\"\",unique_contracts!$BS:$BS,\"=\"&$B26&\" (\"&$G26&\")\",unique_contracts!$AM:$AM,\"<=\"&C$4,unique_contracts!$AP:$AP,\">=\"&C$4))","v":0},{"$f":"SUM(SUMIFS(unique_contracts!BU:BU,unique_contracts!$AB:$AB,{\"Buy\",\"Owned\"},unique_contracts!$BS:$BS,\"=\"&$B26&\" (\"&$G26&\")\",unique_contracts!$AM:$AM,\"<=\"&D$4,unique_contracts!$AP:$AP,\">=\"&D$4), SUMIFS(unique_contracts!BU:BU,unique_contracts!$AB:$AB,\"=\"&\"\",unique_contracts!$BS:$BS,\"=\"&$B26&\" (\"&$G26&\")\",unique_contracts!$AM:$AM,\"<=\"&D$4,unique_contracts!$AP:$AP,\">=\"&D$4))","v":0},{"$f":"SUM(SUMIFS(unique_contracts!BV:BV,unique_contracts!$AB:$AB,{\"Buy\",\"Owned\"},unique_contracts!$BS:$BS,\"=\"&$B26&\" (\"&$G26&\")\",unique_contracts!$AM:$AM,\"<=\"&E$4,unique_contracts!$AP:$AP,\">=\"&E$4), SUMIFS(unique_contracts!BV:BV,unique_contracts!$AB:$AB,\"=\"&\"\",unique_contracts!$BS:$BS,\"=\"&$B26&\" (\"&$G26&\")\",unique_contracts!$AM:$AM,\"<=\"&E$4,unique_contracts!$AP:$AP,\">=\"&E$4))","v":0},{"$f":"SUM(SUMIFS(unique_contracts!BW:BW,unique_contracts!$AB:$AB,{\"Buy\",\"Owned\"},unique_contracts!$BS:$BS,\"=\"&$B26&\" (\"&$G26&\")\",unique_contracts!$AM:$AM,\"<=\"&F$4,unique_contracts!$AP:$AP,\">=\"&F$4), SUMIFS(unique_contracts!BW:BW,unique_contracts!$AB:$AB,\"=\"&\"\",unique_contracts!$BS:$BS,\"=\"&$B26&\" (\"&$G26&\")\",unique_contracts!$AM:$AM,\"<=\"&F$4,unique_contracts!$AP:$AP,\">=\"&F$4))","v":0},{"$f":"SUMIFS(unique_contracts!BT:BT,unique_contracts!$AB:$AB,\"=Sell\",unique_contracts!$BS:$BS,\"=\"&$B26&\" (\"&$G26&\")\",unique_contracts!$AM:$AM,\"<=\"&C$4,unique_contracts!$AP:$AP,\">=\"&C$4)","v":0},{"$f":"SUMIFS(unique_contracts!BU:BU,unique_contracts!$AB:$AB,\"=Sell\",unique_contracts!$BS:$BS,\"=\"&$B26&\" (\"&$G26&\")\",unique_contracts!$AM:$AM,\"<=\"&D$4,unique_contracts!$AP:$AP,\">=\"&D$4)","v":0},{"$f":"SUMIFS(unique_contracts!BV:BV,unique_contracts!$AB:$AB,\"=Sell\",unique_contracts!$BS:$BS,\"=\"&$B26&\" (\"&$G26&\")\",unique_contracts!$AM:$AM,\"<=\"&E$4,unique_contracts!$AP:$AP,\">=\"&E$4)","v":0},{"$f":"SUMIFS(unique_contracts!BW:BW,unique_contracts!$AB:$AB,\"=Sell\",unique_contracts!$BS:$BS,\"=\"&$B26&\" (\"&$G26&\")\",unique_contracts!$AM:$AM,\"<=\"&F$4,unique_contracts!$AP:$AP,\">=\"&F$4)","v":0},0,0,0,0]
[null,"Hybrid",null,null,null,null,null,null,null,null,{"$f":"SUM(SUMIFS(unique_contracts!BT:BT,unique_contracts!$AB:$AB,{\"Buy\",\"Owned\"},unique_contracts!$BS:$BS,\"=\"&$B27&\" (\"&$G27&\")\",unique_contracts!$AM:$AM,\"<=\"&C$4,unique_contracts!$AP:$AP,\">=\"&C$4), SUMIFS(unique_contracts!BT:BT,unique_contracts!$AB:$AB,\"=\"&\"\",unique_contracts!$BS:$BS,\"=\"&$B27&\" (\"&$G27&\")\",unique_contracts!$AM:$AM,\"<=\"&C$4,unique_contracts!$AP:$AP,\">=\"&C$4))","v":0},{"$f":"SUM(SUMIFS(unique_contracts!BU:BU,unique_contracts!$AB:$AB,{\"Buy\",\"Owned\"},unique_contracts!$BS:$BS,\"=\"&$B27&\" (\"&$G27&\")\",unique_contracts!$AM:$AM,\"<=\"&D$4,unique_contracts!$AP:$AP,\">=\"&D$4), SUMIFS(unique_contracts!BU:BU,unique_contracts!$AB:$AB,\"=\"&\"\",unique_contracts!$BS:$BS,\"=\"&$B27&\" (\"&$G27&\")\",unique_contracts!$AM:$AM,\"<=\"&D$4,unique_contracts!$AP:$AP,\">=\"&D$4))","v":0},{"$f":"SUM(SUMIFS(unique_contracts!BV:BV,unique_contracts!$AB:$AB,{\"Buy\",\"Owned\"},unique_contracts!$BS:$BS,\"=\"&$B27&\" (\"&$G27&\")\",unique_contracts!$AM:$AM,\"<=\"&E$4,unique_contracts!$AP:$AP,\">=\"&E$4), SUMIFS(unique_contracts!BV:BV,unique_contracts!$AB:$AB,\"=\"&\"\",unique_contracts!$BS:$BS,\"=\"&$B27&\" (\"&$G27&\")\",unique_contracts!$AM:$AM,\"<=\"&E$4,unique_contracts!$AP:$AP,\">=\"&E$4))","v":0},{"$f":"SUM(SUMIFS(unique_contracts!BW:BW,unique_contracts!$AB:$AB,{\"Buy\",\"Owned\"},unique_contracts!$BS:$BS,\"=\"&$B27&\" (\"&$G27&\")\",unique_contracts!$AM:$AM,\"<=\"&F$4,unique_contracts!$AP:$AP,\">=\"&F$4), SUMIFS(unique_contracts!BW:BW,unique_contracts!$AB:$AB,\"=\"&\"\",unique_contracts!$BS:$BS,\"=\"&$B27&\" (\"&$G27&\")\",unique_contracts!$AM:$AM,\"<=\"&F$4,unique_contracts!$AP:$AP,\">=\"&F$4))","v":0},{"$f":"SUMIFS(unique_contracts!BT:BT,unique_contracts!$AB:$AB,\"=Sell\",unique_contracts!$BS:$BS,\"=\"&$B27&\" (\"&$G27&\")\",unique_contracts!$AM:$AM,\"<=\"&C$4,unique_contracts!$AP:$AP,\">=\"&C$4)","v":0},{"$f":"SUMIFS(unique_contracts!BU:BU,unique_contracts!$AB:$AB,\"=Sell\",unique_contracts!$BS:$BS,\"=\"&$B27&\" (\"&$G27&\")\",unique_contracts!$AM:$AM,\"<=\"&D$4,unique_contracts!$AP:$AP,\">=\"&D$4)","v":0},{"$f":"SUMIFS(unique_contracts!BV:BV,unique_contracts!$AB:$AB,\"=Sell\",unique_contracts!$BS:$BS,\"=\"&$B27&\" (\"&$G27&\")\",unique_contracts!$AM:$AM,\"<=\"&E$4,unique_contracts!$AP:$AP,\">=\"&E$4)","v":0},{"$f":"SUMIFS(unique_contracts!BW:BW,unique_contracts!$AB:$AB,\"=Sell\",unique_contracts!$BS:$BS,\"=\"&$B27&\" (\"&$G27&\")\",unique_contracts!$AM:$AM,\"<=\"&F$4,unique_contracts!$AP:$AP,\">=\"&F$4)","v":0},0,0,0,0]
[null,"Hybrid_or_Paired_Solar_and_Battery",0,0,0,0,"GWh","RPS Eligible",null,null,{"$f":"SUM(SUMIFS(unique_contracts!BT:BT,unique_contracts!$AB:$AB,{\"Buy\",\"Owned\"},unique_contracts!$BS:$BS,\"=\"&$B28&\" (\"&$G28&\")\",unique_contracts!$AM:$AM,\"<=\"&C$4,unique_contracts!$AP:$AP,\">=\"&C$4), SUMIFS(unique_contracts!BT:BT,unique_contracts!$AB:$AB,\"=\"&\"\",unique_contracts!$BS:$BS,\"=\"&$B28&\" (\"&$G28&\")\",unique_contracts!$AM:$AM,\"<=\"&C$4,unique_contracts!$AP:$AP,\">=\"&C$4))","v":0},{"$f":"SUM(SUMIFS(unique_contracts!BU:BU,unique_contracts!$AB:$AB,{\"Buy\",\"Owned\"},unique_contracts!$BS:$BS,\"=\"&$B28&\" (\"&$G28&\")\",unique_contracts!$AM:$AM,\"<=\"&D$4,unique_contracts!$AP:$AP,\">=\"&D$4), SUMIFS(unique_contracts!BU:BU,unique_contracts!$AB:$AB,\"=\"&\"\",unique_contracts!$BS:$BS,\"=\"&$B28&\" (\"&$G28&\")\",unique_contracts!$AM:$AM,\"<=\"&D$4,unique_contracts!$AP:$AP,\">=\"&D$4))","v":0},{"$f":"SUM(SUMIFS(unique_contracts!BV:BV,unique_contracts!$AB:$AB,{\"Buy\",\"Owned\"},unique_contracts!$BS:$BS,\"=\"&$B28&\" (\"&$G28&\")\",unique_contracts!$AM:$AM,\"<=\"&E$4,unique_contracts!$AP:$AP,\">=\"&E$4), SUMIFS(unique_contracts!BV:BV,unique_contracts!$AB:$AB,\"=\"&\"\",unique_contracts!$BS:$BS,\"=\"&$B28&\" (\"&$G28&\")\",unique_contracts!$AM:$AM,\"<=\"&E$4,unique_contracts!$AP:$AP,\">=\"&E$4))","v":0},{"$f":"SUM(SUMIFS(unique_contracts!BW:BW,unique_contracts!$AB:$AB,{\"Buy\",\"Owned\"},unique_contracts!$BS:$BS,\"=\"&$B28&\" (\"&$G28&\")\",unique_contracts!$AM:$AM,\"<=\"&F$4,unique_contracts!$AP:$AP,\">=\"&F$4), SUMIFS(unique_contracts!BW:BW,unique_contracts!$AB:$AB,\"=\"&\"\",unique_contracts!$BS:$BS,\"=\"&$B28&\" (\"&$G28&\")\",unique_contracts!$AM:$AM,\"<=\"&F$4,unique_contracts!$AP:$AP,\">=\"&F$4))","v":0},{"$f":"SUMIFS(unique_contracts!BT:BT,unique_contracts!$AB:$AB,\"=Sell\",unique_contracts!$BS:$BS,\"=\"&$B28&\" (\"&$G28&\")\",unique_contracts!$AM:$AM,\"<=\"&C$4,unique_contracts!$AP:$AP,\">=\"&C$4)","v":0},{"$f":"SUMIFS(unique_contracts!BU:BU,unique_contracts!$AB:$AB,\"=Sell\",unique_contracts!$BS:$BS,\"=\"&$B28&\" (\"&$G28&\")\",unique_contracts!$AM:$AM,\"<=\"&D$4,unique_contracts!$AP:$AP,\">=\"&D$4)","v":0},{"$f":"SUMIFS(unique_contracts!BV:BV,unique_contracts!$AB:$AB,\"=Sell\",unique_contracts!$BS:$BS,\"=\"&$B28&\" (\"&$G28&\")\",unique_contracts!$AM:$AM,\"<=\"&E$4,unique_contracts!$AP:$AP,\">=\"&E$4)","v":0},{"$f":"SUMIFS(unique_contracts!BW:BW,unique_contracts!$AB:$AB,\"=Sell\",unique_contracts!$BS:$BS,\"=\"&$B28&\" (\"&$G28&\")\",unique_contracts!$AM:$AM,\"<=\"&F$4,unique_contracts!$AP:$AP,\">=\"&F$4)","v":0},0,0,0,0]
[null,"Storage & DR"]
[null,"Shed DR",0,0,0,0,"MW","GHG-Free",null,null,{"$f":"SUM(SUMIFS(unique_contracts!BT:BT,unique_contracts!$AB:$AB,{\"Buy\",\"Owned\"},unique_contracts!$BS:$BS,\"=\"&$B30&\" (\"&$G30&\")\",unique_contracts!$AM:$AM,\"<=\"&C$4,unique_contracts!$AP:$AP,\">=\"&C$4), SUMIFS(unique_contracts!BT:BT,unique_contracts!$AB:$AB,\"=\"&\"\",unique_contracts!$BS:$BS,\"=\"&$B30&\" (\"&$G30&\")\",unique_contracts!$AM:$AM,\"<=\"&C$4,unique_contracts!$AP:$AP,\">=\"&C$4))","v":0},{"$f":"SUM(SUMIFS(unique_contracts!BU:BU,unique_contracts!$AB:$AB,{\"Buy\",\"Owned\"},unique_contracts!$BS:$BS,\"=\"&$B30&\" (\"&$G30&\")\",unique_contracts!$AM:$AM,\"<=\"&D$4,unique_contracts!$AP:$AP,\">=\"&D$4), SUMIFS(unique_contracts!BU:BU,unique_contracts!$AB:$AB,\"=\"&\"\",unique_contracts!$BS:$BS,\"=\"&$B30&\" (\"&$G30&\")\",unique_contracts!$AM:$AM,\"<=\"&D$4,unique_contracts!$AP:$AP,\">=\"&D$4))","v":0},{"$f":"SUM(SUMIFS(unique_contracts!BV:BV,unique_contracts!$AB:$AB,{\"Buy\",\"Owned\"},unique_contracts!$BS:$BS,\"=\"&$B30&\" (\"&$G30&\")\",unique_contracts!$AM:$AM,\"<=\"&E$4,unique_contracts!$AP:$AP,\">=\"&E$4), SUMIFS(unique_contracts!BV:BV,unique_contracts!$AB:$AB,\"=\"&\"\",unique_contracts!$BS:$BS,\"=\"&$B30&\" (\"&$G30&\")\",unique_contracts!$AM:$AM,\"<=\"&E$4,unique_contracts!$AP:$AP,\">=\"&E$4))","v":0},{"$f":"SUM(SUMIFS(unique_contracts!BW:BW,unique_contracts!$AB:$AB,{\"Buy\",\"Owned\"},unique_contracts!$BS:$BS,\"=\"&$B30&\" (\"&$G30&\")\",unique_contracts!$AM:$AM,\"<=\"&F$4,unique_contracts!$AP:$AP,\">=\"&F$4), SUMIFS(unique_contracts!BW:BW,unique_contracts!$AB:$AB,\"=\"&\"\",unique_contracts!$BS:$BS,\"=\"&$B30&\" (\"&$G30&\")\",unique_contracts!$AM:$AM,\"<=\"&F$4,unique_contracts!$AP:$AP,\">=\"&F$4))","v":0},{"$f":"SUMIFS(unique_contracts!BT:BT,unique_contracts!$AB:$AB,\"=Sell\",unique_contracts!$BS:$BS,\"=\"&$B30&\" (\"&$G30&\")\",unique_contracts!$AM:$AM,\"<=\"&C$4,unique_contracts!$AP:$AP,\">=\"&C$4)","v":0},{"$f":"SUMIFS(unique_contracts!BU:BU,unique_contracts!$AB:$AB,\"=Sell\",unique_contracts!$BS:$BS,\"=\"&$B30&\" (\"&$G30&\")\",unique_contracts!$AM:$AM,\"<=\"&D$4,unique_contracts!$AP:$AP,\">=\"&D$4)","v":0},{"$f":"SUMIFS(unique_contracts!BV:BV,unique_contracts!$AB:$AB,\"=Sell\",unique_contracts!$BS:$BS,\"=\"&$B30&\" (\"&$G30&\")\",unique_contracts!$AM:$AM,\"<=\"&E$4,unique_contracts!$AP:$AP,\">=\"&E$4)","v":0},{"$f":"SUMIFS(unique_contracts!BW:BW,unique_contracts!$AB:$AB,\"=Sell\",unique_contracts!$BS:$BS,\"=\"&$B30&\" (\"&$G30&\")\",unique_contracts!$AM:$AM,\"<=\"&F$4,unique_contracts!$AP:$AP,\">=\"&F$4)","v":0},0,0,0,0]
[null,"Pumped Storage",0,0,0,0,"MW","n/a",null,null,{"$f":"SUM(SUMIFS(unique_contracts!BT:BT,unique_contracts!$AB:$AB,{\"Buy\",\"Owned\"},unique_contracts!$BS:$BS,\"=\"&$B31&\" (\"&$G31&\")\",unique_contracts!$AM:$AM,\"<=\"&C$4,unique_contracts!$AP:$AP,\">=\"&C$4), SUMIFS(unique_contracts!BT:BT,unique_contracts!$AB:$AB,\"=\"&\"\",unique_contracts!$BS:$BS,\"=\"&$B31&\" (\"&$G31&\")\",unique_contracts!$AM:$AM,\"<=\"&C$4,unique_contracts!$AP:$AP,\">=\"&C$4))","v":0},{"$f":"SUM(SUMIFS(unique_contracts!BU:BU,unique_contracts!$AB:$AB,{\"Buy\",\"Owned\"},unique_contracts!$BS:$BS,\"=\"&$B31&\" (\"&$G31&\")\",unique_contracts!$AM:$AM,\"<=\"&D$4,unique_contracts!$AP:$AP,\">=\"&D$4), SUMIFS(unique_contracts!BU:BU,unique_contracts!$AB:$AB,\"=\"&\"\",unique_contracts!$BS:$BS,\"=\"&$B31&\" (\"&$G31&\")\",unique_contracts!$AM:$AM,\"<=\"&D$4,unique_contracts!$AP:$AP,\">=\"&D$4))","v":0},{"$f":"SUM(SUMIFS(unique_contracts!BV:BV,unique_contracts!$AB:$AB,{\"Buy\",\"Owned\"},unique_contracts!$BS:$BS,\"=\"&$B31&\" (\"&$G31&\")\",unique_contracts!$AM:$AM,\"<=\"&E$4,unique_contracts!$AP:$AP,\">=\"&E$4), SUMIFS(unique_contracts!BV:BV,unique_contracts!$AB:$AB,\"=\"&\"\",unique_contracts!$BS:$BS,\"=\"&$B31&\" (\"&$G31&\")\",unique_contracts!$AM:$AM,\"<=\"&E$4,unique_contracts!$AP:$AP,\">=\"&E$4))","v":0},{"$f":"SUM(SUMIFS(unique_contracts!BW:BW,unique_contracts!$AB:$AB,{\"Buy\",\"Owned\"},unique_contracts!$BS:$BS,\"=\"&$B31&\" (\"&$G31&\")\",unique_contracts!$AM:$AM,\"<=\"&F$4,unique_contracts!$AP:$AP,\">=\"&F$4), SUMIFS(unique_contracts!BW:BW,unique_contracts!$AB:$AB,\"=\"&\"\",unique_contracts!$BS:$BS,\"=\"&$B31&\" (\"&$G31&\")\",unique_contracts!$AM:$AM,\"<=\"&F$4,unique_contracts!$AP:$AP,\">=\"&F$4))","v":0},{"$f":"SUMIFS(unique_contracts!BT:BT,unique_contracts!$AB:$AB,\"=Sell\",unique_contracts!$BS:$BS,\"=\"&$B31&\" (\"&$G31&\")\",unique_contracts!$AM:$AM,\"<=\"&C$4,unique_contracts!$AP:$AP,\">=\"&C$4)","v":0},{"$f":"SUMIFS(unique_contracts!BU:BU,unique_contracts!$AB:$AB,\"=Sell\",unique_contracts!$BS:$BS,\"=\"&$B31&\" (\"&$G31&\")\",unique_contracts!$AM:$AM,\"<=\"&D$4,unique_contracts!$AP:$AP,\">=\"&D$4)","v":0},{"$f":"SUMIFS(unique_contracts!BV:BV,unique_contracts!$AB:$AB,\"=Sell\",unique_contracts!$BS:$BS,\"=\"&$B31&\" (\"&$G31&\")\",unique_contracts!$AM:$AM,\"<=\"&E$4,unique_contracts!$AP:$AP,\">=\"&E$4)","v":0},{"$f":"SUMIFS(unique_contracts!BW:BW,unique_contracts!$AB:$AB,\"=Sell\",unique_contracts!$BS:$BS,\"=\"&$B31&\" (\"&$G31&\")\",unique_contracts!$AM:$AM,\"<=\"&F$4,unique_contracts!$AP:$AP,\">=\"&F$4)","v":0},0,0,0,0]
[null,"Battery Storage",1.7643885030476327,1.7643885030476327,1.7323582134682711,1.7323582134682711,"MWh Energy Capacity","n/a",null,null,{"$f":"SUM(SUMIFS(unique_contracts!BT:BT,unique_contracts!$AB:$AB,{\"Buy\",\"Owned\"},unique_contracts!$BS:$BS,\"=\"&$B32&\" (\"&$G32&\")\",unique_contracts!$AM:$AM,\"<=\"&C$4,unique_contracts!$AP:$AP,\">=\"&C$4), SUMIFS(unique_contracts!BT:BT,unique_contracts!$AB:$AB,\"=\"&\"\",unique_contracts!$BS:$BS,\"=\"&$B32&\" (\"&$G32&\")\",unique_contracts!$AM:$AM,\"<=\"&C$4,unique_contracts!$AP:$AP,\">=\"&C$4))","v":1.7643885030476327},{"$f":"SUM(SUMIFS(unique_contracts!BU:BU,unique_contracts!$AB:$AB,{\"Buy\",\"Owned\"},unique_contracts!$BS:$BS,\"=\"&$B32&\" (\"&$G32&\")\",unique_contracts!$AM:$AM,\"<=\"&D$4,unique_contracts!$AP:$AP,\">=\"&D$4), SUMIFS(unique_contracts!BU:BU,unique_contracts!$AB:$AB,\"=\"&\"\",unique_contracts!$BS:$BS,\"=\"&$B32&\" (\"&$G32&\")\",unique_contracts!$AM:$AM,\"<=\"&D$4,unique_contracts!$AP:$AP,\">=\"&D$4))","v":1.7643885030476327},{"$f":"SUM(SUMIFS(unique_contracts!BV:BV,unique_contracts!$AB:$AB,{\"Buy\",\"Owned\"},unique_contracts!$BS:$BS,\"=\"&$B32&\" (\"&$G32&\")\",unique_contracts!$AM:$AM,\"<=\"&E$4,unique_contracts!$AP:$AP,\">=\"&E$4), SUMIFS(unique_contracts!BV:BV,unique_contracts!$AB:$AB,\"=\"&\"\",unique_contracts!$BS:$BS,\"=\"&$B32&\" (\"&$G32&\")\",unique_contracts!$AM:$AM,\"<=\"&E$4,unique_contracts!$AP:$AP,\">=\"&E$4))","v":1.7323582134682711},{"$f":"SUM(SUMIFS(unique_contracts!BW:BW,unique_contracts!$AB:$AB,{\"Buy\",\"Owned\"},unique_contracts!$BS:$BS,\"=\"&$B32&\" (\"&$G32&\")\",unique_contracts!$AM:$AM,\"<=\"&F$4,unique_contracts!$AP:$AP,\">=\"&F$4), SUMIFS(unique_contracts!BW:BW,unique_contracts!$AB:$AB,\"=\"&\"\",unique_contracts!$BS:$BS,\"=\"&$B32&\" (\"&$G32&\")\",unique_contracts!$AM:$AM,\"<=\"&F$4,unique_contracts!$AP:$AP,\">=\"&F$4))","v":1.7323582134682711},{"$f":"SUMIFS(unique_contracts!BT:BT,unique_contracts!$AB:$AB,\"=Sell\",unique_contracts!$BS:$BS,\"=\"&$B32&\" (\"&$G32&\")\",unique_contracts!$AM:$AM,\"<=\"&C$4,unique_contracts!$AP:$AP,\">=\"&C$4)","v":0},{"$f":"SUMIFS(unique_contracts!BU:BU,unique_contracts!$AB:$AB,\"=Sell\",unique_contracts!$BS:$BS,\"=\"&$B32&\" (\"&$G32&\")\",unique_contracts!$AM:$AM,\"<=\"&D$4,unique_contracts!$AP:$AP,\">=\"&D$4)","v":0},{"$f":"SUMIFS(unique_contracts!BV:BV,unique_contracts!$AB:$AB,\"=Sell\",unique_contracts!$BS:$BS,\"=\"&$B32&\" (\"&$G32&\")\",unique_contracts!$AM:$AM,\"<=\"&E$4,unique_contracts!$AP:$AP,\">=\"&E$4)","v":0},{"$f":"SUMIFS(unique_contracts!BW:BW,unique_contracts!$AB:$AB,\"=Sell\",unique_contracts!$BS:$BS,\"=\"&$B32&\" (\"&$G32&\")\",unique_contracts!$AM:$AM,\"<=\"&F$4,unique_contracts!$AP:$AP,\">=\"&F$4)","v":0},1.7643885030476327,1.7643885030476327,1.7323582134682711,1.7323582134682711]
[null,"User-Specified Profies"]
[null,"Storage Resource Custom Profile",0,{"$f":"T34","v":0},{"$f":"U34","v":0},{"$f":"V34","v":0},"MW","n/a",null,null,{"$f":"SUM(SUMIFS(unique_contracts!BT:BT,unique_contracts!$AB:$AB,{\"Buy\",\"Owned\"},unique_contracts!$BS:$BS,\"=\"&$B34&\" (\"&$G34&\")\",unique_contracts!$AM:$AM,\"<=\"&C$4,unique_contracts!$AP:$AP,\">=\"&C$4), SUMIFS(unique_contracts!BT:BT,unique_contracts!$AB:$AB,\"=\"&\"\",unique_contracts!$BS:$BS,\"=\"&$B34&\" (\"&$G34&\")\",unique_contracts!$AM:$AM,\"<=\"&C$4,unique_contracts!$AP:$AP,\">=\"&C$4))","v":0},{"$f":"SUM(SUMIFS(unique_contracts!BU:BU,unique_contracts!$AB:$AB,{\"Buy\",\"Owned\"},unique_contracts!$BS:$BS,\"=\"&$B34&\" (\"&$G34&\")\",unique_contracts!$AM:$AM,\"<=\"&D$4,unique_contracts!$AP:$AP,\">=\"&D$4), SUMIFS(unique_contracts!BU:BU,unique_contracts!$AB:$AB,\"=\"&\"\",unique_contracts!$BS:$BS,\"=\"&$B34&\" (\"&$G34&\")\",unique_contracts!$AM:$AM,\"<=\"&D$4,unique_contracts!$AP:$AP,\">=\"&D$4))","v":0},{"$f":"SUM(SUMIFS(unique_contracts!BV:BV,unique_contracts!$AB:$AB,{\"Buy\",\"Owned\"},unique_contracts!$BS:$BS,\"=\"&$B34&\" (\"&$G34&\")\",unique_contracts!$AM:$AM,\"<=\"&E$4,unique_contracts!$AP:$AP,\">=\"&E$4), SUMIFS(unique_contracts!BV:BV,unique_contracts!$AB:$AB,\"=\"&\"\",unique_contracts!$BS:$BS,\"=\"&$B34&\" (\"&$G34&\")\",unique_contracts!$AM:$AM,\"<=\"&E$4,unique_contracts!$AP:$AP,\">=\"&E$4))","v":0},{"$f":"SUM(SUMIFS(unique_contracts!BW:BW,unique_contracts!$AB:$AB,{\"Buy\",\"Owned\"},unique_contracts!$BS:$BS,\"=\"&$B34&\" (\"&$G34&\")\",unique_contracts!$AM:$AM,\"<=\"&F$4,unique_contracts!$AP:$AP,\">=\"&F$4), SUMIFS(unique_contracts!BW:BW,unique_contracts!$AB:$AB,\"=\"&\"\",unique_contracts!$BS:$BS,\"=\"&$B34&\" (\"&$G34&\")\",unique_contracts!$AM:$AM,\"<=\"&F$4,unique_contracts!$AP:$AP,\">=\"&F$4))","v":0},{"$f":"SUMIFS(unique_contracts!BT:BT,unique_contracts!$AB:$AB,\"=Sell\",unique_contracts!$BS:$BS,\"=\"&$B34&\" (\"&$G34&\")\",unique_contracts!$AM:$AM,\"<=\"&C$4,unique_contracts!$AP:$AP,\">=\"&C$4)","v":0},{"$f":"SUMIFS(unique_contracts!BU:BU,unique_contracts!$AB:$AB,\"=Sell\",unique_contracts!$BS:$BS,\"=\"&$B34&\" (\"&$G34&\")\",unique_contracts!$AM:$AM,\"<=\"&D$4,unique_contracts!$AP:$AP,\">=\"&D$4)","v":0},{"$f":"SUMIFS(unique_contracts!BV:BV,unique_contracts!$AB:$AB,\"=Sell\",unique_contracts!$BS:$BS,\"=\"&$B34&\" (\"&$G34&\")\",unique_contracts!$AM:$AM,\"<=\"&E$4,unique_contracts!$AP:$AP,\">=\"&E$4)","v":0},{"$f":"SUMIFS(unique_contracts!BW:BW,unique_contracts!$AB:$AB,\"=Sell\",unique_contracts!$BS:$BS,\"=\"&$B34&\" (\"&$G34&\")\",unique_contracts!$AM:$AM,\"<=\"&F$4,unique_contracts!$AP:$AP,\">=\"&F$4)","v":0},{"$f":"K34-O34","v":0},{"$f":"L34-P34","v":0},{"$f":"M34-Q34","v":0},{"$f":"N34-R34","v":0}]
[null,"RPS Resource Custom Profile ",0,0,0,0,"GWh","RPS Eligible",null,null,{"$f":"SUM(SUMIFS(unique_contracts!BT:BT,unique_contracts!$AB:$AB,{\"Buy\",\"Owned\"},unique_contracts!$BS:$BS,\"=\"&$B35&\" (\"&$G35&\")\",unique_contracts!$AM:$AM,\"<=\"&C$4,unique_contracts!$AP:$AP,\">=\"&C$4), SUMIFS(unique_contracts!BT:BT,unique_contracts!$AB:$AB,\"=\"&\"\",unique_contracts!$BS:$BS,\"=\"&$B35&\" (\"&$G35&\")\",unique_contracts!$AM:$AM,\"<=\"&C$4,unique_contracts!$AP:$AP,\">=\"&C$4))","v":0},{"$f":"SUM(SUMIFS(unique_contracts!BU:BU,unique_contracts!$AB:$AB,{\"Buy\",\"Owned\"},unique_contracts!$BS:$BS,\"=\"&$B35&\" (\"&$G35&\")\",unique_contracts!$AM:$AM,\"<=\"&D$4,unique_contracts!$AP:$AP,\">=\"&D$4), SUMIFS(unique_contracts!BU:BU,unique_contracts!$AB:$AB,\"=\"&\"\",unique_contracts!$BS:$BS,\"=\"&$B35&\" (\"&$G35&\")\",unique_contracts!$AM:$AM,\"<=\"&D$4,unique_contracts!$AP:$AP,\">=\"&D$4))","v":0},{"$f":"SUM(SUMIFS(unique_contracts!BV:BV,unique_contracts!$AB:$AB,{\"Buy\",\"Owned\"},unique_contracts!$BS:$BS,\"=\"&$B35&\" (\"&$G35&\")\",unique_contracts!$AM:$AM,\"<=\"&E$4,unique_contracts!$AP:$AP,\">=\"&E$4), SUMIFS(unique_contracts!BV:BV,unique_contracts!$AB:$AB,\"=\"&\"\",unique_contracts!$BS:$BS,\"=\"&$B35&\" (\"&$G35&\")\",unique_contracts!$AM:$AM,\"<=\"&E$4,unique_contracts!$AP:$AP,\">=\"&E$4))","v":0},{"$f":"SUM(SUMIFS(unique_contracts!BW:BW,unique_contracts!$AB:$AB,{\"Buy\",\"Owned\"},unique_contracts!$BS:$BS,\"=\"&$B35&\" (\"&$G35&\")\",unique_contracts!$AM:$AM,\"<=\"&F$4,unique_contracts!$AP:$AP,\">=\"&F$4), SUMIFS(unique_contracts!BW:BW,unique_contracts!$AB:$AB,\"=\"&\"\",unique_contracts!$BS:$BS,\"=\"&$B35&\" (\"&$G35&\")\",unique_contracts!$AM:$AM,\"<=\"&F$4,unique_contracts!$AP:$AP,\">=\"&F$4))","v":0},{"$f":"SUMIFS(unique_contracts!BT:BT,unique_contracts!$AB:$AB,\"=Sell\",unique_contracts!$BS:$BS,\"=\"&$B35&\" (\"&$G35&\")\",unique_contracts!$AM:$AM,\"<=\"&C$4,unique_contracts!$AP:$AP,\">=\"&C$4)","v":0},{"$f":"SUMIFS(unique_contracts!BU:BU,unique_contracts!$AB:$AB,\"=Sell\",unique_contracts!$BS:$BS,\"=\"&$B35&\" (\"&$G35&\")\",unique_contracts!$AM:$AM,\"<=\"&D$4,unique_contracts!$AP:$AP,\">=\"&D$4)","v":0},{"$f":"SUMIFS(unique_contracts!BV:BV,unique_contracts!$AB:$AB,\"=Sell\",unique_contracts!$BS:$BS,\"=\"&$B35&\" (\"&$G35&\")\",unique_contracts!$AM:$AM,\"<=\"&E$4,unique_contracts!$AP:$AP,\">=\"&E$4)","v":0},{"$f":"SUMIFS(unique_contracts!BW:BW,unique_contracts!$AB:$AB,\"=Sell\",unique_contracts!$BS:$BS,\"=\"&$B35&\" (\"&$G35&\")\",unique_contracts!$AM:$AM,\"<=\"&F$4,unique_contracts!$AP:$AP,\">=\"&F$4)","v":0},0,0,0,0]
[null,"GHG-free non-RPS Resource",0,0,0,0,"GWh","GHG-Free",null,null,{"$f":"SUM(SUMIFS(unique_contracts!BT:BT,unique_contracts!$AB:$AB,{\"Buy\",\"Owned\"},unique_contracts!$BS:$BS,\"=\"&$B36&\" (\"&$G36&\")\",unique_contracts!$AM:$AM,\"<=\"&C$4,unique_contracts!$AP:$AP,\">=\"&C$4), SUMIFS(unique_contracts!BT:BT,unique_contracts!$AB:$AB,\"=\"&\"\",unique_contracts!$BS:$BS,\"=\"&$B36&\" (\"&$G36&\")\",unique_contracts!$AM:$AM,\"<=\"&C$4,unique_contracts!$AP:$AP,\">=\"&C$4))","v":0},{"$f":"SUM(SUMIFS(unique_contracts!BU:BU,unique_contracts!$AB:$AB,{\"Buy\",\"Owned\"},unique_contracts!$BS:$BS,\"=\"&$B36&\" (\"&$G36&\")\",unique_contracts!$AM:$AM,\"<=\"&D$4,unique_contracts!$AP:$AP,\">=\"&D$4), SUMIFS(unique_contracts!BU:BU,unique_contracts!$AB:$AB,\"=\"&\"\",unique_contracts!$BS:$BS,\"=\"&$B36&\" (\"&$G36&\")\",unique_contracts!$AM:$AM,\"<=\"&D$4,unique_contracts!$AP:$AP,\">=\"&D$4))","v":0},{"$f":"SUM(SUMIFS(unique_contracts!BV:BV,unique_contracts!$AB:$AB,{\"Buy\",\"Owned\"},unique_contracts!$BS:$BS,\"=\"&$B36&\" (\"&$G36&\")\",unique_contracts!$AM:$AM,\"<=\"&E$4,unique_contracts!$AP:$AP,\">=\"&E$4), SUMIFS(unique_contracts!BV:BV,unique_contracts!$AB:$AB,\"=\"&\"\",unique_contracts!$BS:$BS,\"=\"&$B36&\" (\"&$G36&\")\",unique_contracts!$AM:$AM,\"<=\"&E$4,unique_contracts!$AP:$AP,\">=\"&E$4))","v":0},{"$f":"SUM(SUMIFS(unique_contracts!BW:BW,unique_contracts!$AB:$AB,{\"Buy\",\"Owned\"},unique_contracts!$BS:$BS,\"=\"&$B36&\" (\"&$G36&\")\",unique_contracts!$AM:$AM,\"<=\"&F$4,unique_contracts!$AP:$AP,\">=\"&F$4), SUMIFS(unique_contracts!BW:BW,unique_contracts!$AB:$AB,\"=\"&\"\",unique_contracts!$BS:$BS,\"=\"&$B36&\" (\"&$G36&\")\",unique_contracts!$AM:$AM,\"<=\"&F$4,unique_contracts!$AP:$AP,\">=\"&F$4))","v":0},{"$f":"SUMIFS(unique_contracts!BT:BT,unique_contracts!$AB:$AB,\"=Sell\",unique_contracts!$BS:$BS,\"=\"&$B36&\" (\"&$G36&\")\",unique_contracts!$AM:$AM,\"<=\"&C$4,unique_contracts!$AP:$AP,\">=\"&C$4)","v":0},{"$f":"SUMIFS(unique_contracts!BU:BU,unique_contracts!$AB:$AB,\"=Sell\",unique_contracts!$BS:$BS,\"=\"&$B36&\" (\"&$G36&\")\",unique_contracts!$AM:$AM,\"<=\"&D$4,unique_contracts!$AP:$AP,\">=\"&D$4)","v":0},{"$f":"SUMIFS(unique_contracts!BV:BV,unique_contracts!$AB:$AB,\"=Sell\",unique_contracts!$BS:$BS,\"=\"&$B36&\" (\"&$G36&\")\",unique_contracts!$AM:$AM,\"<=\"&E$4,unique_contracts!$AP:$AP,\">=\"&E$4)","v":0},{"$f":"SUMIFS(unique_contracts!BW:BW,unique_contracts!$AB:$AB,\"=Sell\",unique_contracts!$BS:$BS,\"=\"&$B36&\" (\"&$G36&\")\",unique_contracts!$AM:$AM,\"<=\"&F$4,unique_contracts!$AP:$AP,\">=\"&F$4)","v":0},0,0,0,0]
[null,"Coal"]
[null,"Coal",0,0,0,0,"GWh","n/a",null,null,{"$f":"SUM(SUMIFS(unique_contracts!BT:BT,unique_contracts!$AB:$AB,{\"Buy\",\"Owned\"},unique_contracts!$BS:$BS,\"=\"&$B38&\" (\"&$G38&\")\",unique_contracts!$AM:$AM,\"<=\"&C$4,unique_contracts!$AP:$AP,\">=\"&C$4), SUMIFS(unique_contracts!BT:BT,unique_contracts!$AB:$AB,\"=\"&\"\",unique_contracts!$BS:$BS,\"=\"&$B38&\" (\"&$G38&\")\",unique_contracts!$AM:$AM,\"<=\"&C$4,unique_contracts!$AP:$AP,\">=\"&C$4))","v":0},{"$f":"SUM(SUMIFS(unique_contracts!BU:BU,unique_contracts!$AB:$AB,{\"Buy\",\"Owned\"},unique_contracts!$BS:$BS,\"=\"&$B38&\" (\"&$G38&\")\",unique_contracts!$AM:$AM,\"<=\"&D$4,unique_contracts!$AP:$AP,\">=\"&D$4), SUMIFS(unique_contracts!BU:BU,unique_contracts!$AB:$AB,\"=\"&\"\",unique_contracts!$BS:$BS,\"=\"&$B38&\" (\"&$G38&\")\",unique_contracts!$AM:$AM,\"<=\"&D$4,unique_contracts!$AP:$AP,\">=\"&D$4))","v":0},{"$f":"SUM(SUMIFS(unique_contracts!BV:BV,unique_contracts!$AB:$AB,{\"Buy\",\"Owned\"},unique_contracts!$BS:$BS,\"=\"&$B38&\" (\"&$G38&\")\",unique_contracts!$AM:$AM,\"<=\"&E$4,unique_contracts!$AP:$AP,\">=\"&E$4), SUMIFS(unique_contracts!BV:BV,unique_contracts!$AB:$AB,\"=\"&\"\",unique_contracts!$BS:$BS,\"=\"&$B38&\" (\"&$G38&\")\",unique_contracts!$AM:$AM,\"<=\"&E$4,unique_contracts!$AP:$AP,\">=\"&E$4))","v":0},{"$f":"SUM(SUMIFS(unique_contracts!BW:BW,unique_contracts!$AB:$AB,{\"Buy\",\"Owned\"},unique_contracts!$BS:$BS,\"=\"&$B38&\" (\"&$G38&\")\",unique_contracts!$AM:$AM,\"<=\"&F$4,unique_contracts!$AP:$AP,\">=\"&F$4), SUMIFS(unique_contracts!BW:BW,unique_contracts!$AB:$AB,\"=\"&\"\",unique_contracts!$BS:$BS,\"=\"&$B38&\" (\"&$G38&\")\",unique_contracts!$AM:$AM,\"<=\"&F$4,unique_contracts!$AP:$AP,\">=\"&F$4))","v":0},{"$f":"SUMIFS(unique_contracts!BT:BT,unique_contracts!$AB:$AB,\"=Sell\",unique_contracts!$BS:$BS,\"=\"&$B38&\" (\"&$G38&\")\",unique_contracts!$AM:$AM,\"<=\"&C$4,unique_contracts!$AP:$AP,\">=\"&C$4)","v":0},{"$f":"SUMIFS(unique_contracts!BU:BU,unique_contracts!$AB:$AB,\"=Sell\",unique_contracts!$BS:$BS,\"=\"&$B38&\" (\"&$G38&\")\",unique_contracts!$AM:$AM,\"<=\"&D$4,unique_contracts!$AP:$AP,\">=\"&D$4)","v":0},{"$f":"SUMIFS(unique_contracts!BV:BV,unique_contracts!$AB:$AB,\"=Sell\",unique_contracts!$BS:$BS,\"=\"&$B38&\" (\"&$G38&\")\",unique_contracts!$AM:$AM,\"<=\"&E$4,unique_contracts!$AP:$AP,\">=\"&E$4)","v":0},{"$f":"SUMIFS(unique_contracts!BW:BW,unique_contracts!$AB:$AB,\"=Sell\",unique_contracts!$BS:$BS,\"=\"&$B38&\" (\"&$G38&\")\",unique_contracts!$AM:$AM,\"<=\"&F$4,unique_contracts!$AP:$AP,\">=\"&F$4)","v":0},0,0,0,0]

{"sheet":"Reliability","index":9,"n_rows":257,"n_cols":16,"rows_kept":257,"cut":false,"hidden":false,"merged":[]}
["LSE Input"]
[null,null,30,"MMT"]
[]
[]
[null,null,"Reliability Need"]
[null,null,null,null,2024,2025,2026,2027,2028,2029,2030,2031,2032,2033,2034,2035]
[null,null,"CAISO gross peak (MW)",null,53530,54113,54769,55494,56125,56797,57454,58178,58827,59511,60161,60803]
[null,null,"PRM (%)",null,0.14000000000000001,0.14000000000000001,0.14000000000000001,0.14000000000000001,0.14000000000000001,0.14000000000000001,0.14000000000000001,0.14000000000000001,0.14000000000000001,0.14000000000000001,0.14000000000000001,0.14000000000000001]
[null,null,"CAISO total reliability need (TRN) (MW)",null,{"$f":"E7*(1+E8)","v":61024.200000000004},{"$f":"F7*(1+F8)","v":61688.820000000007},62436.66,63263.16,63982.500000000007,64748.580000000009,65497.560000000005,66322.920000000013,67062.780000000013,67842.540000000008,68583.540000000008,69315.420000000013]
[null,null,"MRN/TRN ratio",null,{"$f":"IF($C$2=25,misc!AW3,misc!BK3)","v":0.80029848011116889},{"$f":"IF($C$2=25,misc!AX3,misc!BL3)","v":0.81896333891271367},{"$f":"IF($C$2=25,misc!AY3,misc!BM3)","v":0.83611438362607471},{"$f":"IF($C$2=25,misc!AZ3,misc!BN3)","v":0.79544567238840358},{"$f":"IF($C$2=25,misc!BA3,misc!BO3)","v":0.75709177033813169},{"$f":"IF($C$2=25,misc!BB3,misc!BP3)","v":0.73673303550177849},{"$f":"IF($C$2=25,misc!BC3,misc!BQ3)","v":0.71703757483484865},{"$f":"IF($C$2=25,misc!BD3,misc!BR3)","v":0.69918925792169562},{"$f":"IF($C$2=25,misc!BE3,misc!BS3)","v":0.68264892770624752},{"$f":"IF($C$2=25,misc!BF3,misc!BT3)","v":0.66607760402249072},{"$f":"IF($C$2=25,misc!BG3,misc!BU3)","v":0.65025016398978508},{"$f":"IF($C$2=25,misc!BH3,misc!BV3)","v":0.63484459547384975}]
[null,null,"CAISO marginal reliability need (MRN) (MW)",null,{"$f":"E9*E10","v":48837.574509999999},{"$f":"F9*F10","v":50520.882000785394},52204.189491570796,50322.406843615157,48440.624195659519,47702.417887829753,46964.211579999996,46372.273217999995,45780.334855999994,45188.396493999993,44596.458131999992,44004.519769999999]
[null,null,"LSE managed peak share (%)"]
[null,null,"LSE MRN (MW)"]
[]
[]
[null,null,"BTM PV"]
[null,null,null,null,2024,2025,2026,2027,2028,2029,2030,2031,2032,2033,2034,2035]
[null,null,"Capacity (MW)"]
[]
[]
[null,null,"ELCC (%)"]
[null,null,"Resource Type",null,2024,2025,2026,2027,2028,2029,2030,2031,2032,2033,2034,2035]
[null,null,"in_state_wind_south",null,{"$f":"IF($C$2=25,misc!U3,misc!AI3)","v":0.15102941403529452},{"$f":"IF($C$2=25,misc!V3,misc!AJ3)","v":0.15178846902809942},{"$f":"IF($C$2=25,misc!W3,misc!AK3)","v":0.15254752402090432},{"$f":"IF($C$2=25,misc!X3,misc!AL3)","v":0.11848326121551586},{"$f":"IF($C$2=25,misc!Y3,misc!AM3)","v":8.4418998410127413E-2},{"$f":"IF($C$2=25,misc!Z3,misc!AN3)","v":8.3416882718990337E-2},{"$f":"IF($C$2=25,misc!AA3,misc!AO3)","v":8.2414767027853275E-2},{"$f":"IF($C$2=25,misc!AB3,misc!AP3)","v":7.4829691124404837E-2},{"$f":"IF($C$2=25,misc!AC3,misc!AQ3)","v":6.72446152209564E-2},{"$f":"IF($C$2=25,misc!AD3,misc!AR3)","v":5.9659539317507955E-2},{"$f":"IF($C$2=25,misc!AE3,misc!AS3)","v":5.207446341405951E-2},{"$f":"IF($C$2=25,misc!AF3,misc!AT3)","v":4.4489387510611059E-2}]
[null,null,"in_state_wind_north",null,{"$f":"IF($C$2=25,misc!U4,misc!AI4)","v":0.30205882807058904},{"$f":"IF($C$2=25,misc!V4,misc!AJ4)","v":0.30357693805619884},{"$f":"IF($C$2=25,misc!W4,misc!AK4)","v":0.30509504804180865},{"$f":"IF($C$2=25,misc!X4,misc!AL4)","v":0.23696652243103172},{"$f":"IF($C$2=25,misc!Y4,misc!AM4)","v":0.16883799682025483},{"$f":"IF($C$2=25,misc!Z4,misc!AN4)","v":0.16683376543798067},{"$f":"IF($C$2=25,misc!AA4,misc!AO4)","v":0.16482953405570655},{"$f":"IF($C$2=25,misc!AB4,misc!AP4)","v":0.14965938224880967},{"$f":"IF($C$2=25,misc!AC4,misc!AQ4)","v":0.1344892304419128},{"$f":"IF($C$2=25,misc!AD4,misc!AR4)","v":0.11931907863501591},{"$f":"IF($C$2=25,misc!AE4,misc!AS4)","v":0.10414892682811902},{"$f":"IF($C$2=25,misc!AF4,misc!AT4)","v":8.8978775021222117E-2}]
[null,null,"out_of_state_wind_WYID",null,{"$f":"IF($C$2=25,misc!U5,misc!AI5)","v":0.42559322033898306},{"$f":"IF($C$2=25,misc!V5,misc!AJ5)","v":0.39180370915668034},{"$f":"IF($C$2=25,misc!W5,misc!AK5)","v":0.35801419797437761},{"$f":"IF($C$2=25,misc!X5,misc!AL5)","v":0.37372282962154058},{"$f":"IF($C$2=25,misc!Y5,misc!AM5)","v":0.38943146126870348},{"$f":"IF($C$2=25,misc!Z5,misc!AN5)","v":0.31241064588858902},{"$f":"IF($C$2=25,misc!AA5,misc!AO5)","v":0.23538983050847456},{"$f":"IF($C$2=25,misc!AB5,misc!AP5)","v":0.24842033898305083},{"$f":"IF($C$2=25,misc!AC5,misc!AQ5)","v":0.26145084745762709},{"$f":"IF($C$2=25,misc!AD5,misc!AR5)","v":0.27448135593220335},{"$f":"IF($C$2=25,misc!AE5,misc!AS5)","v":0.28751186440677962},{"$f":"IF($C$2=25,misc!AF5,misc!AT5)","v":0.30054237288135593}]
[null,null,"out_of_state_wind_WAOR",null,{"$f":"IF($C$2=25,misc!U6,misc!AI6)","v":0.26084745762711864},{"$f":"IF($C$2=25,misc!V6,misc!AJ6)","v":0.24013775722506214},{"$f":"IF($C$2=25,misc!W6,misc!AK6)","v":0.21942805682300565},{"$f":"IF($C$2=25,misc!X6,misc!AL6)","v":0.22905592783255713},{"$f":"IF($C$2=25,misc!Y6,misc!AM6)","v":0.23868379884210861},{"$f":"IF($C$2=25,misc!Z6,misc!AN6)","v":0.1914774926413933},{"$f":"IF($C$2=25,misc!AA6,misc!AO6)","v":0.14427118644067796},{"$f":"IF($C$2=25,misc!AB6,misc!AP6)","v":0.15225762711864407},{"$f":"IF($C$2=25,misc!AC6,misc!AQ6)","v":0.16024406779661018},{"$f":"IF($C$2=25,misc!AD6,misc!AR6)","v":0.1682305084745763},{"$f":"IF($C$2=25,misc!AE6,misc!AS6)","v":0.17621694915254241},{"$f":"IF($C$2=25,misc!AF6,misc!AT6)","v":0.18420338983050849}]
[null,null,"out_of_state_wind_AZNM",null,{"$f":"IF($C$2=25,misc!U7,misc!AI7)","v":0.384406779661017},{"$f":"IF($C$2=25,misc!V7,misc!AJ7)","v":0.3538872211737758},{"$f":"IF($C$2=25,misc!W7,misc!AK7)","v":0.32336766268653466},{"$f":"IF($C$2=25,misc!X7,misc!AL7)","v":0.33755610417429471},{"$f":"IF($C$2=25,misc!Y7,misc!AM7)","v":0.35174454566205482},{"$f":"IF($C$2=25,misc!Z7,misc!AN7)","v":0.28217735757679013},{"$f":"IF($C$2=25,misc!AA7,misc!AO7)","v":0.21261016949152545},{"$f":"IF($C$2=25,misc!AB7,misc!AP7)","v":0.22437966101694917},{"$f":"IF($C$2=25,misc!AC7,misc!AQ7)","v":0.2361491525423729},{"$f":"IF($C$2=25,misc!AD7,misc!AR7)","v":0.24791864406779662},{"$f":"IF($C$2=25,misc!AE7,misc!AS7)","v":0.25968813559322035},{"$f":"IF($C$2=25,misc!AF7,misc!AT7)","v":0.27145762711864413}]
[null,null,"offshore_wind",null,{"$f":"IF($C$2=25,misc!U8,misc!AI8)","v":0.54900000000000004},{"$f":"IF($C$2=25,misc!V8,misc!AJ8)","v":0.50668405182051957},{"$f":"IF($C$2=25,misc!W8,misc!AK8)","v":0.46436810364103909},{"$f":"IF($C$2=25,misc!X8,misc!AL8)","v":0.48659667347489211},{"$f":"IF($C$2=25,misc!Y8,misc!AM8)","v":0.50882524330874512},{"$f":"IF($C$2=25,misc!Z8,misc!AN8)","v":0.46741262165437258},{"$f":"IF($C$2=25,misc!AA8,misc!AO8)","v":0.42599999999999999},{"$f":"IF($C$2=25,misc!AB8,misc!AP8)","v":0.40479999999999999},{"$f":"IF($C$2=25,misc!AC8,misc!AQ8)","v":0.3836},{"$f":"IF($C$2=25,misc!AD8,misc!AR8)","v":0.3624},{"$f":"IF($C$2=25,misc!AE8,misc!AS8)","v":0.3412},{"$f":"IF($C$2=25,misc!AF8,misc!AT8)","v":0.32}]
[null,null,"utility_pv",null,{"$f":"IF($C$2=25,misc!U9,misc!AI9)","v":9.6000000000000002E-2},{"$f":"IF($C$2=25,misc!V9,misc!AJ9)","v":0.10220064352589828},{"$f":"IF($C$2=25,misc!W9,misc!AK9)","v":0.10840128705179657},{"$f":"IF($C$2=25,misc!X9,misc!AL9)","v":0.1016803220430352},{"$f":"IF($C$2=25,misc!Y9,misc!AM9)","v":9.4959357034273828E-2},{"$f":"IF($C$2=25,misc!Z9,misc!AN9)","v":7.7479678517136913E-2},{"$f":"IF($C$2=25,misc!AA9,misc!AO9)","v":0.06},{"$f":"IF($C$2=25,misc!AB9,misc!AP9)","v":6.08E-2},{"$f":"IF($C$2=25,misc!AC9,misc!AQ9)","v":6.1600000000000002E-2},{"$f":"IF($C$2=25,misc!AD9,misc!AR9)","v":6.2400000000000004E-2},{"$f":"IF($C$2=25,misc!AE9,misc!AS9)","v":6.3200000000000006E-2},{"$f":"IF($C$2=25,misc!AF9,misc!AT9)","v":6.4000000000000001E-2}]
[null,null,"btm_pv",null,{"$f":"IF($C$2=25,misc!U10,misc!AI10)","v":8.8999999999999996E-2},{"$f":"IF($C$2=25,misc!V10,misc!AJ10)","v":9.3703365409453621E-2},{"$f":"IF($C$2=25,misc!W10,misc!AK10)","v":9.8406730818907232E-2},{"$f":"IF($C$2=25,misc!X10,misc!AL10)","v":8.2703365409453611E-2},{"$f":"IF($C$2=25,misc!Y10,misc!AM10)","v":6.7000000000000004E-2},{"$f":"IF($C$2=25,misc!Z10,misc!AN10)","v":5.6000000000000001E-2},{"$f":"IF($C$2=25,misc!AA10,misc!AO10)","v":4.4999999999999998E-2},{"$f":"IF($C$2=25,misc!AB10,misc!AP10)","v":4.7199999999999999E-2},{"$f":"IF($C$2=25,misc!AC10,misc!AQ10)","v":4.9399999999999999E-2},{"$f":"IF($C$2=25,misc!AD10,misc!AR10)","v":5.16E-2},{"$f":"IF($C$2=25,misc!AE10,misc!AS10)","v":5.3800000000000001E-2},{"$f":"IF($C$2=25,misc!AF10,misc!AT10)","v":5.6000000000000001E-2}]
[null,null,"4hr_batteries",null,{"$f":"IF($C$2=25,misc!U11,misc!AI11)","v":0.88500000000000001},{"$f":"IF($C$2=25,misc!V11,misc!AJ11)","v":0.90149999999999997},{"$f":"IF($C$2=25,misc!W11,misc!AK11)","v":0.91800000000000004},{"$f":"IF($C$2=25,misc!X11,misc!AL11)","v":0.84550000000000003},{"$f":"IF($C$2=25,misc!Y11,misc!AM11)","v":0.77300000000000002},{"$f":"IF($C$2=25,misc!Z11,misc!AN11)","v":0.75900000000000001},{"$f":"IF($C$2=25,misc!AA11,misc!AO11)","v":0.745},{"$f":"IF($C$2=25,misc!AB11,misc!AP11)","v":0.67620000000000002},{"$f":"IF($C$2=25,misc!AC11,misc!AQ11)","v":0.60740000000000005},{"$f":"IF($C$2=25,misc!AD11,misc!AR11)","v":0.53860000000000008},{"$f":"IF($C$2=25,misc!AE11,misc!AS11)","v":0.46980000000000011},{"$f":"IF($C$2=25,misc!AF11,misc!AT11)","v":0.40100000000000002}]
[null,null,"5hr_batteries",null,{"$f":"IF($C$2=25,misc!U12,misc!AI12)","v":0.88675000000000004},{"$f":"IF($C$2=25,misc!V12,misc!AJ12)","v":0.90387499999999998},{"$f":"IF($C$2=25,misc!W12,misc!AK12)","v":0.92100000000000004},{"$f":"IF($C$2=25,misc!X12,misc!AL12)","v":0.85887500000000006},{"$f":"IF($C$2=25,misc!Y12,misc!AM12)","v":0.79675000000000007},{"$f":"IF($C$2=25,misc!Z12,misc!AN12)","v":0.78362500000000002},{"$f":"IF($C$2=25,misc!AA12,misc!AO12)","v":0.77049999999999996},{"$f":"IF($C$2=25,misc!AB12,misc!AP12)","v":0.71135000000000004},{"$f":"IF($C$2=25,misc!AC12,misc!AQ12)","v":0.6522},{"$f":"IF($C$2=25,misc!AD12,misc!AR12)","v":0.59305000000000008},{"$f":"IF($C$2=25,misc!AE12,misc!AS12)","v":0.53390000000000004},{"$f":"IF($C$2=25,misc!AF12,misc!AT12)","v":0.47475000000000001}]
[null,null,"6hr_batteries",null,{"$f":"IF($C$2=25,misc!U13,misc!AI13)","v":0.88850000000000007},{"$f":"IF($C$2=25,misc!V13,misc!AJ13)","v":0.90625},{"$f":"IF($C$2=25,misc!W13,misc!AK13)","v":0.92400000000000004},{"$f":"IF($C$2=25,misc!X13,misc!AL13)","v":0.87225000000000008},{"$f":"IF($C$2=25,misc!Y13,misc!AM13)","v":0.82050000000000001},{"$f":"IF($C$2=25,misc!Z13,misc!AN13)","v":0.80825000000000002},{"$f":"IF($C$2=25,misc!AA13,misc!AO13)","v":0.79599999999999993},{"$f":"IF($C$2=25,misc!AB13,misc!AP13)","v":0.74650000000000005},{"$f":"IF($C$2=25,misc!AC13,misc!AQ13)","v":0.69699999999999995},{"$f":"IF($C$2=25,misc!AD13,misc!AR13)","v":0.64750000000000008},{"$f":"IF($C$2=25,misc!AE13,misc!AS13)","v":0.59799999999999998},{"$f":"IF($C$2=25,misc!AF13,misc!AT13)","v":0.54849999999999999}]
[null,null,"7hr_batteries",null,{"$f":"IF($C$2=25,misc!U14,misc!AI14)","v":0.8902500000000001},{"$f":"IF($C$2=25,misc!V14,misc!AJ14)","v":0.90862500000000002},{"$f":"IF($C$2=25,misc!W14,misc!AK14)","v":0.92700000000000005},{"$f":"IF($C$2=25,misc!X14,misc!AL14)","v":0.88562500000000011},{"$f":"IF($C$2=25,misc!Y14,misc!AM14)","v":0.84424999999999994},{"$f":"IF($C$2=25,misc!Z14,misc!AN14)","v":0.83287500000000003},{"$f":"IF($C$2=25,misc!AA14,misc!AO14)","v":0.8214999999999999},{"$f":"IF($C$2=25,misc!AB14,misc!AP14)","v":0.78165000000000007},{"$f":"IF($C$2=25,misc!AC14,misc!AQ14)","v":0.7417999999999999},{"$f":"IF($C$2=25,misc!AD14,misc!AR14)","v":0.70195000000000007},{"$f":"IF($C$2=25,misc!AE14,misc!AS14)","v":0.66209999999999991},{"$f":"IF($C$2=25,misc!AF14,misc!AT14)","v":0.62224999999999997}]
[null,null,"8hr_batteries",null,{"$f":"IF($C$2=25,misc!U15,misc!AI15)","v":0.89200000000000002},{"$f":"IF($C$2=25,misc!V15,misc!AJ15)","v":0.91100000000000003},{"$f":"IF($C$2=25,misc!W15,misc!AK15)","v":0.93},{"$f":"IF($C$2=25,misc!X15,misc!AL15)","v":0.89900000000000002},{"$f":"IF($C$2=25,misc!Y15,misc!AM15)","v":0.86799999999999999},{"$f":"IF($C$2=25,misc!Z15,misc!AN15)","v":0.85749999999999993},{"$f":"IF($C$2=25,misc!AA15,misc!AO15)","v":0.84699999999999998},{"$f":"IF($C$2=25,misc!AB15,misc!AP15)","v":0.81679999999999997},{"$f":"IF($C$2=25,misc!AC15,misc!AQ15)","v":0.78659999999999997},{"$f":"IF($C$2=25,misc!AD15,misc!AR15)","v":0.75639999999999996},{"$f":"IF($C$2=25,misc!AE15,misc!AS15)","v":0.72619999999999996},{"$f":"IF($C$2=25,misc!AF15,misc!AT15)","v":0.69599999999999995}]
[null,null,"pumped_storage",null,{"$f":"IF($C$2=25,misc!U16,misc!AI16)","v":0.89400000000000002},{"$f":"IF($C$2=25,misc!V16,misc!AJ16)","v":0.91400000000000003},{"$f":"IF($C$2=25,misc!W16,misc!AK16)","v":0.93400000000000005},{"$f":"IF($C$2=25,misc!X16,misc!AL16)","v":0.91300000000000003},{"$f":"IF($C$2=25,misc!Y16,misc!AM16)","v":0.89200000000000002},{"$f":"IF($C$2=25,misc!Z16,misc!AN16)","v":0.89050000000000007},{"$f":"IF($C$2=25,misc!AA16,misc!AO16)","v":0.88900000000000001},{"$f":"IF($C$2=25,misc!AB16,misc!AP16)","v":0.85780000000000001},{"$f":"IF($C$2=25,misc!AC16,misc!AQ16)","v":0.8266},{"$f":"IF($C$2=25,misc!AD16,misc!AR16)","v":0.7954},{"$f":"IF($C$2=25,misc!AE16,misc!AS16)","v":0.76419999999999999},{"$f":"IF($C$2=25,misc!AF16,misc!AT16)","v":0.73299999999999998}]
[null,null,"demand_response",null,{"$f":"IF($C$2=25,misc!U17,misc!AI17)","v":0.89300000000000002},{"$f":"IF($C$2=25,misc!V17,misc!AJ17)","v":0.9083512608449148},{"$f":"IF($C$2=25,misc!W17,misc!AK17)","v":0.92370252168982958},{"$f":"IF($C$2=25,misc!X17,misc!AL17)","v":0.77235126084491479},{"$f":"IF($C$2=25,misc!Y17,misc!AM17)","v":0.621},{"$f":"IF($C$2=25,misc!Z17,misc!AN17)","v":0.60599999999999998},{"$f":"IF($C$2=25,misc!AA17,misc!AO17)","v":0.59099999999999997},{"$f":"IF($C$2=25,misc!AB17,misc!AP17)","v":0.50159999999999993},{"$f":"IF($C$2=25,misc!AC17,misc!AQ17)","v":0.41219999999999996},{"$f":"IF($C$2=25,misc!AD17,misc!AR17)","v":0.32279999999999998},{"$f":"IF($C$2=25,misc!AE17,misc!AS17)","v":0.2334},{"$f":"IF($C$2=25,misc!AF17,misc!AT17)","v":0.14399999999999999}]
[null,null,"hydro",null,{"$f":"IF($C$2=25,misc!U18,misc!AI18)","v":0.56660491660133128},{"$f":"IF($C$2=25,misc!V18,misc!AJ18)","v":0.5639186026863886},{"$f":"IF($C$2=25,misc!W18,misc!AK18)","v":0.56123228877144593},{"$f":"IF($C$2=25,misc!X18,misc!AL18)","v":0.53191654140391154},{"$f":"IF($C$2=25,misc!Y18,misc!AM18)","v":0.50260079403637703},{"$f":"IF($C$2=25,misc!Z18,misc!AN18)","v":0.49249487994717378},{"$f":"IF($C$2=25,misc!AA18,misc!AO18)","v":0.48238896585797048},{"$f":"IF($C$2=25,misc!AB18,misc!AP18)","v":0.47187881520519903},{"$f":"IF($C$2=25,misc!AC18,misc!AQ18)","v":0.46136866455242759},{"$f":"IF($C$2=25,misc!AD18,misc!AR18)","v":0.45085851389965614},{"$f":"IF($C$2=25,misc!AE18,misc!AS18)","v":0.4403483632468847},{"$f":"IF($C$2=25,misc!AF18,misc!AT18)","v":0.42983821259411337}]
[null,null,"small_hydro",null,{"$f":"IF($C$2=25,misc!U19,misc!AI19)","v":0.40636580378868559},{"$f":"IF($C$2=25,misc!V19,misc!AJ19)","v":0.40443919482132551},{"$f":"IF($C$2=25,misc!W19,misc!AK19)","v":0.40251258585396549},{"$f":"IF($C$2=25,misc!X19,misc!AL19)","v":0.38148749960139383},{"$f":"IF($C$2=25,misc!Y19,misc!AM19)","v":0.36046241334882212},{"$f":"IF($C$2=25,misc!Z19,misc!AN19)","v":0.35321450959515949},{"$f":"IF($C$2=25,misc!AA19,misc!AO19)","v":0.34596660584149685},{"$f":"IF($C$2=25,misc!AB19,misc!AP19)","v":0.33842878593768772},{"$f":"IF($C$2=25,misc!AC19,misc!AQ19)","v":0.33089096603387858},{"$f":"IF($C$2=25,misc!AD19,misc!AR19)","v":0.32335314613006944},{"$f":"IF($C$2=25,misc!AE19,misc!AS19)","v":0.3158153262262603},{"$f":"IF($C$2=25,misc!AF19,misc!AT19)","v":0.3082775063224511}]
[null,null,"geothermal",null,{"$f":"IF($C$2=25,misc!U20,misc!AI20)","v":0.86400365575892546},{"$f":"IF($C$2=25,misc!V20,misc!AJ20)","v":0.8782620417931235},{"$f":"IF($C$2=25,misc!W20,misc!AK20)","v":0.89252042782732166},{"$f":"IF($C$2=25,misc!X20,misc!AL20)","v":0.91001836007896375},{"$f":"IF($C$2=25,misc!Y20,misc!AM20)","v":0.92751629233060595},{"$f":"IF($C$2=25,misc!Z20,misc!AN20)","v":0.92280590133888829},{"$f":"IF($C$2=25,misc!AA20,misc!AO20)","v":0.91809551034717063},{"$f":"IF($C$2=25,misc!AB20,misc!AP20)","v":0.92538472229861102},{"$f":"IF($C$2=25,misc!AC20,misc!AQ20)","v":0.93267393425005141},{"$f":"IF($C$2=25,misc!AD20,misc!AR20)","v":0.93996314620149179},{"$f":"IF($C$2=25,misc!AE20,misc!AS20)","v":0.94725235815293218},{"$f":"IF($C$2=25,misc!AF20,misc!AT20)","v":0.95454157010437257}]
[null,null,"biomass_wood",null,{"$f":"IF($C$2=25,misc!U21,misc!AI21)","v":0.78777252109464602},{"$f":"IF($C$2=25,misc!V21,misc!AJ21)","v":0.80873519104432079},{"$f":"IF($C$2=25,misc!W21,misc!AK21)","v":0.82969786099399567},{"$f":"IF($C$2=25,misc!X21,misc!AL21)","v":0.83028460488270484},{"$f":"IF($C$2=25,misc!Y21,misc!AM21)","v":0.83087134877141389},{"$f":"IF($C$2=25,misc!Z21,misc!AN21)","v":0.82344593040995451},{"$f":"IF($C$2=25,misc!AA21,misc!AO21)","v":0.81602051204849513},{"$f":"IF($C$2=25,misc!AB21,misc!AP21)","v":0.83149916107410415},{"$f":"IF($C$2=25,misc!AC21,misc!AQ21)","v":0.84697781009971318},{"$f":"IF($C$2=25,misc!AD21,misc!AR21)","v":0.86245645912532221},{"$f":"IF($C$2=25,misc!AE21,misc!AS21)","v":0.87793510815093123},{"$f":"IF($C$2=25,misc!AF21,misc!AT21)","v":0.89341375717654026}]
[null,null,"biogas",null,{"$f":"IF($C$2=25,misc!U22,misc!AI22)","v":0.75849976538356267},{"$f":"IF($C$2=25,misc!V22,misc!AJ22)","v":0.77833009661414909},{"$f":"IF($C$2=25,misc!W22,misc!AK22)","v":0.79816042784473562},{"$f":"IF($C$2=25,misc!X22,misc!AL22)","v":0.79513379797889616},{"$f":"IF($C$2=25,misc!Y22,misc!AM22)","v":0.7921071681130567},{"$f":"IF($C$2=25,misc!Z22,misc!AN22)","v":0.78251806948180391},{"$f":"IF($C$2=25,misc!AA22,misc!AO22)","v":0.77292897085055123},{"$f":"IF($C$2=25,misc!AB22,misc!AP22)","v":0.79192907385472411},{"$f":"IF($C$2=25,misc!AC22,misc!AQ22)","v":0.81092917685889698},{"$f":"IF($C$2=25,misc!AD22,misc!AR22)","v":0.82992927986306986},{"$f":"IF($C$2=25,misc!AE22,misc!AS22)","v":0.84892938286724273},{"$f":"IF($C$2=25,misc!AF22,misc!AT22)","v":0.86792948587141583}]
[null,null,"nuclear",null,{"$f":"IF($C$2=25,misc!U23,misc!AI23)","v":0.93139197880214852},{"$f":"IF($C$2=25,misc!V23,misc!AJ23)","v":0.93996144395127801},{"$f":"IF($C$2=25,misc!W23,misc!AK23)","v":0.9485309091004076},{"$f":"IF($C$2=25,misc!X23,misc!AL23)","v":0.94333376244952838},{"$f":"IF($C$2=25,misc!Y23,misc!AM23)","v":0.93813661579864904},{"$f":"IF($C$2=25,misc!Z23,misc!AN23)","v":0.93575640725694242},{"$f":"IF($C$2=25,misc!AA23,misc!AO23)","v":0.93337619871523581},{"$f":"IF($C$2=25,misc!AB23,misc!AP23)","v":0.93933118321638243},{"$f":"IF($C$2=25,misc!AC23,misc!AQ23)","v":0.94528616771752905},{"$f":"IF($C$2=25,misc!AD23,misc!AR23)","v":0.95124115221867567},{"$f":"IF($C$2=25,misc!AE23,misc!AS23)","v":0.95719613671982229},{"$f":"IF($C$2=25,misc!AF23,misc!AT23)","v":0.96315112122096869}]
[null,null,"gas_cc",null,{"$f":"IF($C$2=25,misc!U24,misc!AI24)","v":0.84814757974875532},{"$f":"IF($C$2=25,misc!V24,misc!AJ24)","v":0.86263887009961904},{"$f":"IF($C$2=25,misc!W24,misc!AK24)","v":0.87713016045048275},{"$f":"IF($C$2=25,misc!X24,misc!AL24)","v":0.87417936920023021},{"$f":"IF($C$2=25,misc!Y24,misc!AM24)","v":0.87122857794997766},{"$f":"IF($C$2=25,misc!Z24,misc!AN24)","v":0.86089172285515003},{"$f":"IF($C$2=25,misc!AA24,misc!AO24)","v":0.85055486776032241},{"$f":"IF($C$2=25,misc!AB24,misc!AP24)","v":0.86298372454380101},{"$f":"IF($C$2=25,misc!AC24,misc!AQ24)","v":0.87541258132727962},{"$f":"IF($C$2=25,misc!AD24,misc!AR24)","v":0.88784143811075822},{"$f":"IF($C$2=25,misc!AE24,misc!AS24)","v":0.90027029489423682},{"$f":"IF($C$2=25,misc!AF24,misc!AT24)","v":0.91269915167771554}]
[null,null,"gas_ct",null,{"$f":"IF($C$2=25,misc!U25,misc!AI25)","v":0.80210397441153047},{"$f":"IF($C$2=25,misc!V25,misc!AJ25)","v":0.8164055166331512},{"$f":"IF($C$2=25,misc!W25,misc!AK25)","v":0.83070705885477203},{"$f":"IF($C$2=25,misc!X25,misc!AL25)","v":0.82614281229582409},{"$f":"IF($C$2=25,misc!Y25,misc!AM25)","v":0.82157856573687627},{"$f":"IF($C$2=25,misc!Z25,misc!AN25)","v":0.80581095377983025},{"$f":"IF($C$2=25,misc!AA25,misc!AO25)","v":0.79004334182278424},{"$f":"IF($C$2=25,misc!AB25,misc!AP25)","v":0.79962832305535969},{"$f":"IF($C$2=25,misc!AC25,misc!AQ25)","v":0.80921330428793514},{"$f":"IF($C$2=25,misc!AD25,misc!AR25)","v":0.81879828552051059},{"$f":"IF($C$2=25,misc!AE25,misc!AS25)","v":0.82838326675308604},{"$f":"IF($C$2=25,misc!AF25,misc!AT25)","v":0.83796824798566139}]
[null,null,"cogen",null,{"$f":"IF($C$2=25,misc!U26,misc!AI26)","v":0.89510595870195142},{"$f":"IF($C$2=25,misc!V26,misc!AJ26)","v":0.92080923604040321},{"$f":"IF($C$2=25,misc!W26,misc!AK26)","v":0.94651251337885489},{"$f":"IF($C$2=25,misc!X26,misc!AL26)","v":0.91922536104575825},{"$f":"IF($C$2=25,misc!Y26,misc!AM26)","v":0.89193820871266161},{"$f":"IF($C$2=25,misc!Z26,misc!AN26)","v":0.89034739869657353},{"$f":"IF($C$2=25,misc!AA26,misc!AO26)","v":0.88875658868048535},{"$f":"IF($C$2=25,misc!AB26,misc!AP26)","v":0.89657566327297322},{"$f":"IF($C$2=25,misc!AC26,misc!AQ26)","v":0.9043947378654611},{"$f":"IF($C$2=25,misc!AD26,misc!AR26)","v":0.91221381245794897},{"$f":"IF($C$2=25,misc!AE26,misc!AS26)","v":0.92003288705043684},{"$f":"IF($C$2=25,misc!AF26,misc!AT26)","v":0.92785196164292472}]
[null,null,"ice",null,{"$f":"IF($C$2=25,misc!U27,misc!AI27)","v":0.92925750703154864},{"$f":"IF($C$2=25,misc!V27,misc!AJ27)","v":0.90155388721725416},{"$f":"IF($C$2=25,misc!W27,misc!AK27)","v":0.87385026740295979},{"$f":"IF($C$2=25,misc!X27,misc!AL27)","v":0.89802819899977204},{"$f":"IF($C$2=25,misc!Y27,misc!AM27)","v":0.92220613059658441},{"$f":"IF($C$2=25,misc!Z27,misc!AN27)","v":0.91831713786770974},{"$f":"IF($C$2=25,misc!AA27,misc!AO27)","v":0.91442814513883497},{"$f":"IF($C$2=25,misc!AB27,misc!AP27)","v":0.90430189637815794},{"$f":"IF($C$2=25,misc!AC27,misc!AQ27)","v":0.89417564761748092},{"$f":"IF($C$2=25,misc!AD27,misc!AR27)","v":0.88404939885680389},{"$f":"IF($C$2=25,misc!AE27,misc!AS27)","v":0.87392315009612687},{"$f":"IF($C$2=25,misc!AF27,misc!AT27)","v":0.86379690133544973}]
[null,null,"coal",null,{"$f":"IF($C$2=25,misc!U28,misc!AI28)","v":0.6905015932630254},{"$f":"IF($C$2=25,misc!V28,misc!AJ28)","v":0.71720881804551684},{"$f":"IF($C$2=25,misc!W28,misc!AK28)","v":0.74391604282800827},{"$f":"IF($C$2=25,misc!X28,misc!AL28)","v":0.73721266741320757},{"$f":"IF($C$2=25,misc!Y28,misc!AM28)","v":0.73050929199840686},{"$f":"IF($C$2=25,misc!Z28,misc!AN28)","v":0.71015565906334177},{"$f":"IF($C$2=25,misc!AA28,misc!AO28)","v":0.68980202612827657},{"$f":"IF($C$2=25,misc!AB28,misc!AP28)","v":0.71688684336924113},{"$f":"IF($C$2=25,misc!AC28,misc!AQ28)","v":0.7439716606102057},{"$f":"IF($C$2=25,misc!AD28,misc!AR28)","v":0.77105647785117026},{"$f":"IF($C$2=25,misc!AE28,misc!AS28)","v":0.79814129509213483},{"$f":"IF($C$2=25,misc!AF28,misc!AT28)","v":0.82522611233309917}]
[null,null,"steam",null,{"$f":"IF($C$2=25,misc!U29,misc!AI29)","v":0.7804543321668751},{"$f":"IF($C$2=25,misc!V29,misc!AJ29)","v":0.79939935861356859},{"$f":"IF($C$2=25,misc!W29,misc!AK29)","v":0.81834438506026208},{"$f":"IF($C$2=25,misc!X29,misc!AL29)","v":0.81358928131774333},{"$f":"IF($C$2=25,misc!Y29,misc!AM29)","v":0.80883417757522458},{"$f":"IF($C$2=25,misc!Z29,misc!AN29)","v":0.79439613253754293},{"$f":"IF($C$2=25,misc!AA29,misc!AO29)","v":0.77995808749986129},{"$f":"IF($C$2=25,misc!AB29,misc!AP29)","v":0.79917096278409228},{"$f":"IF($C$2=25,misc!AC29,misc!AQ29)","v":0.81838383806832327},{"$f":"IF($C$2=25,misc!AD29,misc!AR29)","v":0.83759671335255426},{"$f":"IF($C$2=25,misc!AE29,misc!AS29)","v":0.85680958863678525},{"$f":"IF($C$2=25,misc!AF29,misc!AT29)","v":0.87602246392101613}]
[null,null,"unspecified_import",null,{"$f":"IF($C$2=25,misc!U30,misc!AI30)","v":1},{"$f":"IF($C$2=25,misc!V30,misc!AJ30)","v":1},{"$f":"IF($C$2=25,misc!W30,misc!AK30)","v":1},{"$f":"IF($C$2=25,misc!X30,misc!AL30)","v":1},{"$f":"IF($C$2=25,misc!Y30,misc!AM30)","v":1},{"$f":"IF($C$2=25,misc!Z30,misc!AN30)","v":1},{"$f":"IF($C$2=25,misc!AA30,misc!AO30)","v":1},{"$f":"IF($C$2=25,misc!AB30,misc!AP30)","v":1},{"$f":"IF($C$2=25,misc!AC30,misc!AQ30)","v":1},{"$f":"IF($C$2=25,misc!AD30,misc!AR30)","v":1},{"$f":"IF($C$2=25,misc!AE30,misc!AS30)","v":1},{"$f":"IF($C$2=25,misc!AF30,misc!AT30)","v":1}]
[]
[]
[]
[null,null,"Contract ELCC (effective MW)"]
[null,null,"Resource Type","Contract Status",2024,2025,2026,2027,2028,2029,2030,2031,2032,2033,2034,2035]
[null,null,"hybrid","Online"]
[null,null,"in_state_wind_south","Online"]
[null,null,"in_state_wind_north","Online"]
[null,null,"out_of_state_wind_WYID","Online"]
[null,null,"out_of_state_wind_WAOR","Online"]
[null,null,"out_of_state_wind_AZNM","Online"]
[null,null,"offshore_wind","Online"]
[null,null,"utility_pv","Online"]
[null,null,"btm_pv","Online"]
[null,null,"4hr_batteries","Online"]
[null,null,"5hr_batteries","Online"]
[null,null,"6hr_batteries","Online"]
[null,null,"7hr_batteries","Online"]
[null,null,"8hr_batteries","Online"]
[null,null,"pumped_storage","Online"]
[null,null,"demand_response","Online"]
[null,null,"hydro","Online"]
[null,null,"small_hydro","Online"]
[null,null,"geothermal","Online"]
[null,null,"biomass_wood","Online"]
[null,null,"biogas","Online"]
[null,null,"nuclear","Online"]
[null,null,"gas_cc","Online"]
[null,null,"gas_ct","Online"]
[null,null,"cogen","Online"]
[null,null,"ice","Online"]
[null,null,"coal","Online"]
[null,null,"steam","Online"]
[null,null,"unspecified_import","Online"]
[null,null,"hybrid","Development"]
[null,null,"in_state_wind_south","Development"]
[null,null,"in_state_wind_north","Development"]
[null,null,"out_of_state_wind_WYID","Development"]
[null,null,"out_of_state_wind_WAOR","Development"]
[null,null,"out_of_state_wind_AZNM","Development"]
[null,null,"offshore_wind","Development"]
[null,null,"utility_pv","Development"]
[null,null,"btm_pv","Development"]
[null,null,"4hr_batteries","Development"]
[null,null,"5hr_batteries","Development"]
[null,null,"6hr_batteries","Development"]
[null,null,"7hr_batteries","Development"]
[null,null,"8hr_batteries","Development"]
[null,null,"pumped_storage","Development"]
[null,null,"demand_response","Development"]
[null,null,"hydro","Development"]
[null,null,"small_hydro","Development"]
[null,null,"geothermal","Development"]
[null,null,"biomass_wood","Development"]
[null,null,"biogas","Development"]
[null,null,"nuclear","Development"]
[null,null,"gas_cc","Development"]
[null,null,"gas_ct","Development"]
[null,null,"cogen","Development"]
[null,null,"ice","Development"]
[null,null,"coal","Development"]
[null,null,"steam","Development"]
[null,null,"unspecified_import","Development"]
[null,null,"hybrid","Review"]
[null,null,"in_state_wind_south","Review"]
[null,null,"in_state_wind_north","Review"]
[null,null,"out_of_state_wind_WYID","Review"]
[null,null,"out_of_state_wind_WAOR","Review"]
[null,null,"out_of_state_wind_AZNM","Review"]
[null,null,"offshore_wind","Review"]
[null,null,"utility_pv","Review"]
[null,null,"btm_pv","Review"]
[null,null,"4hr_batteries","Review"]
[null,null,"5hr_batteries","Review"]
[null,null,"6hr_batteries","Review"]
[null,null,"7hr_batteries","Review"]
[null,null,"8hr_batteries","Review"]
[null,null,"pumped_storage","Review"]
[null,null,"demand_response","Review"]
[null,null,"hydro","Review"]
[null,null,"small_hydro","Review"]
[null,null,"geothermal","Review"]
[null,null,"biomass_wood","Review"]
[null,null,"biogas","Review"]
[null,null,"nuclear","Review"]
[null,null,"gas_cc","Review"]
[null,null,"gas_ct","Review"]
[null,null,"cogen","Review"]
[null,null,"ice","Review"]
[null,null,"coal","Review"]
[null,null,"steam","Review"]
[null,null,"unspecified_import","Review"]
[null,null,"hybrid","PlannedExisting"]
[null,null,"in_state_wind_south","PlannedExisting"]
[null,null,"in_state_wind_north","PlannedExisting"]
[null,null,"out_of_state_wind_WYID","PlannedExisting"]
[null,null,"out_of_state_wind_WAOR","PlannedExisting"]
[null,null,"out_of_state_wind_AZNM","PlannedExisting"]
[null,null,"offshore_wind","PlannedExisting"]
[null,null,"utility_pv","PlannedExisting"]
[null,null,"btm_pv","PlannedExisting"]
[null,null,"4hr_batteries","PlannedExisting"]
[null,null,"5hr_batteries","PlannedExisting"]
[null,null,"6hr_batteries","PlannedExisting"]
[null,null,"7hr_batteries","PlannedExisting"]
[null,null,"8hr_batteries","PlannedExisting"]
[null,null,"pumped_storage","PlannedExisting"]
[null,null,"demand_response","PlannedExisting"]
[null,null,"hydro","PlannedExisting"]
[null,null,"small_hydro","PlannedExisting"]
[null,null,"geothermal","PlannedExisting"]
[null,null,"biomass_wood","PlannedExisting"]
[null,null,"biogas","PlannedExisting"]
[null,null,"nuclear","PlannedExisting"]
[null,null,"gas_cc","PlannedExisting"]
[null,null,"gas_ct","PlannedExisting"]
[null,null,"cogen","PlannedExisting"]
[null,null,"ice","PlannedExisting"]
[null,null,"coal","PlannedExisting"]
[null,null,"steam","PlannedExisting"]
[null,null,"unspecified_import","PlannedExisting"]
[null,null,"hybrid","PlannedNew"]
[null,null,"in_state_wind_south","PlannedNew"]
[null,null,"in_state_wind_north","PlannedNew"]
[null,null,"out_of_state_wind_WYID","PlannedNew"]
[null,null,"out_of_state_wind_WAOR","PlannedNew"]
[null,null,"out_of_state_wind_AZNM","PlannedNew"]
[null,null,"offshore_wind","PlannedNew"]
[null,null,"utility_pv","PlannedNew"]
[null,null,"btm_pv","PlannedNew"]
[null,null,"4hr_batteries","PlannedNew"]
[null,null,"5hr_batteries","PlannedNew"]
[null,null,"6hr_batteries","PlannedNew"]
[null,null,"7hr_batteries","PlannedNew"]
[null,null,"8hr_batteries","PlannedNew"]
[null,null,"pumped_storage","PlannedNew"]
[null,null,"demand_response","PlannedNew"]
[null,null,"hydro","PlannedNew"]
[null,null,"small_hydro","PlannedNew"]
[null,null,"geothermal","PlannedNew"]
[null,null,"biomass_wood","PlannedNew"]
[null,null,"biogas","PlannedNew"]
[null,null,"nuclear","PlannedNew"]
[null,null,"gas_cc","PlannedNew"]
[null,null,"gas_ct","PlannedNew"]
[null,null,"cogen","PlannedNew"]
[null,null,"ice","PlannedNew"]
[null,null,"coal","PlannedNew"]
[null,null,"steam","PlannedNew"]
[null,null,"unspecified_import","PlannedNew"]
[null,null,"LSE total supply (effective MW)"]
[]
[]
[]
[null,null,"Load and Resource Table by Resource Type"]
[null,null,null,null,2024,2025,2026,2027,2028,2029,2030,2031,2032,2033,2034,2035]
[null,null,"LSE reliability need (MW)"]
[null,null,"ELCC by resource type (effective MW)"]
[null,null,"hybrid"]
[null,null,"in_state_wind_south"]
[null,null,"in_state_wind_north"]
[null,null,"out_of_state_wind_WYID"]
[null,null,"out_of_state_wind_WAOR"]
[null,null,"out_of_state_wind_AZNM"]
[null,null,"offshore_wind"]
[null,null,"utility_pv"]
[null,null,"btm_pv"]
[null,null,"4hr_batteries"]
[null,null,"5hr_batteries"]
[null,null,"6hr_batteries"]
[null,null,"7hr_batteries"]
[null,null,"8hr_batteries"]
[null,null,"pumped_storage"]
[null,null,"demand_response"]
[null,null,"hydro"]
[null,null,"small_hydro"]
[null,null,"geothermal"]
[null,null,"biomass_wood"]
[null,null,"biogas"]
[null,null,"nuclear"]
[null,null,"gas_cc"]
[null,null,"gas_ct"]
[null,null,"cogen"]
[null,null,"ice"]
[null,null,"coal"]
[null,null,"steam"]
[null,null,"unspecified_import"]
[null,null,"LSE total supply (effective MW)"]
[null,null,"Net capacity position (+ve = excess, -ve = shortfall) (effective MW)"]
[]
[]
[]
[]
[]
[]
[null,null,"Load and Resource Table by Contract Status"]
[null,null,null,null,2024,2025,2026,2027,2028,2029,2030,2031,2032,2033,2034,2035]
[null,null,"LSE reliability need (MW)"]
[null,null,"ELCC by contract status (effective MW)"]
[null,null,"Online"]
[null,null,"Development"]
[null,null,"Review"]
[null,null,"PlannedExisting"]
[null,null,"PlannedNew"]
[null,null,"BTM PV"]
[null,null,"LSE total supply (effective MW)"]
[null,null,"Net capacity position (+ve = excess, -ve = shortfall) (effective MW)"]

{"sheet":"ReportSheet","index":10,"n_rows":8,"n_cols":11,"rows_kept":8,"cut":false,"hidden":false,"merged":[]}
["Duplicated Contract IDs:","Entry with non-positive values:","Invalid resource error rows:","Rows missing required project viability associated data:","Rows missing required hybrid associated data:","Supertype Contract Status Error or Null Rows:","Transaction counterparty error rows:","Rows missing CSP GWh:","Rows with invalid buying_energy_capacity and csp_resource_category:","Rows missing MTR NQC:","Warning-total capacity is equal to or greater then generator plus storage MWs for rows:"]
[null,null,null,29,41]
[null,null,null,30,42]
[null,null,null,32]
[null,null,null,33]
[null,null,null,45]
[null,null,null,46]
[null,null,null,48]